Workbook

Sheet Resumo
A1: Ministério da Integração e do Desenvolvimento Regional
A2: Companhia de Desenvolvimento dos Vales do São Francisco e do Parnaíba
A4: PLANILHA RESUMO
A5: OBRA: | B5: Execução de Manutenção e Obras Civis nas Barragens de Pereiro, Cal, Soledade, Mudubim, Barra Franca, Baixa Alegre e Açude da Roça, localizadas no estado de Pernambuco. | E5: BDI (serv.): | F5: ='BDI serv'!D23 -> 0.2591 | G5: Bancos de dados:
A6: LOCAL: | B6: BARRAGENS DE PERNAMBUCO | E6: BDI (forn.): | F6: ='BDI forn'!D23 -> 0 | G6: MAI/25 - SINAPI
A7: DATA BASE: | B7: 2025-04-01 | C7: Encargos sociais - Horistas: | F7: ='Encargos Sociais'!E49 -> 1.1384 | G7: MAR/25 - ORSE
A8: PRAZO: | B8: 360 dias | C8: Encargos sociais - Mensalista: | F8: ='Encargos Sociais'!F49 -> 0.7011 | G8: JAN/25 - SETOP
E9: Desconto: | F9: 0 | G9: JAN/25 - EMBASA
G10: JAN/2025 - SICRO3
A11: ITEM | B11: DESCRIÇÃO | C11: UNID. | D11: QUANT. | E11: CUSTO UNITÁRIO | F11: PREÇO UNITÁRIO | G11: PREÇO TOTAL
A13: 1 | B13: BARRAGENS PERNAMBUCO | G13: =SUM(G14:G20) -> 4513426.31
A14: 1.1 | B14: Pereiro | C14: unid. | D14: 1 | E14: =PEREIRO!I89 -> 487439.29 | F14: =PEREIRO!I91 -> 613653.52 | G14: =TRUNC(D14*F14,2) -> 613653.52
A15: 1.2 | B15: Barra Franca | C15: unid. | D15: 1 | E15: ='BARRA FRANCA'!I84 -> 508933.47 | F15: ='BARRA FRANCA'!I86 -> 640686.64 | G15: 640686.64
A16: 1.3 | B16: Baixa Alegre | C16: unid. | D16: 1 | E16: ='BAIXA ALEGRE'!I87 -> 390457.42 | F16: ='BAIXA ALEGRE'!I89 -> 491546.56 | G16: 491546.56
A17: 1.4 | B17: Cal | C17: unid. | D17: 1 | E17: =CAL!I84 -> 341426.86 | F17: =CAL!I86 -> 429846.95 | G17: 429846.95
A18: 1.5 | B18: Soledade | C18: unid. | D18: 1 | E18: =SOLEDADE!I92 -> 544000 | F18: =SOLEDADE!I94 -> 684845.16 | G18: 684845.16
A19: 1.6 | B19: Mudubim | C19: unid. | D19: 1 | E19: =MUDUBIM!I87 -> 587843.53 | F19: =MUDUBIM!I89 -> 740035.14 | G19: 740035.14
A20: 1.7 | B20: Açude da Roça | C20: unid. | D20: 1 | E20: ='AÇUDE DA ROÇA'!I79 -> 725126.61 | F20: ='AÇUDE DA ROÇA'!I81 -> 912812.34 | G20: 912812.34
B22: TOTAL (Custo): | G22: =SUMPRODUCT(D13:D21,E13:E21) -> 3585227.18
B23: BDI e Encargos Sociais: | G23: =G24-G22 -> 928199.13
B24: TOTAL GERAL COM BDI: | G24: =SUMPRODUCT(D13:D21,F13:F21) -> 4513426.31

Sheet PEREIRO
A1: Ministério da Integração e do Desenvolvimento Regional
A2: Companhia de Desenvolvimento dos Vales do São Francisco e do Parnaíba
A4: PLANILHA ORÇAMENTÁRIA - ORÇAMENTO NÃO DESONERADO
A5: OBRA: | B5: =Resumo!B5 -> Execução de Manutenção e Obras Civis nas Barragens de Pereiro, Cal, Soledade, Mudubim, Barra Franca, Baixa Alegre e Açude da Roça, localizadas no estado de Pernambuco. | G5: BDI (serv.): | H5: ='BDI serv'!D23 -> 0.2591 | I5: Bancos de dados:
A6: LOCAL: | B6: =Resumo!B6 -> BARRAGENS DE PERNAMBUCO | G6: BDI (forn.): | H6: ='BDI forn'!D23 -> 0 | I6: =Resumo!G6 -> MAI/25 - SINAPI
A7: DATA BASE: | B7: =Resumo!B7 -> 2025-04-01 | E7: Encargos sociais - Horistas: | H7: ='Encargos Sociais'!E49 -> 1.1384 | I7: =Resumo!G7 -> MAR/25 - ORSE
A8: PRAZO: | B8: 120 dias | E8: Encargos sociais - Mensalista: | H8: ='Encargos Sociais'!F49 -> 0.7011 | I8: =Resumo!G8 -> JAN/25 - SETOP
B9: =Resumo!B14 -> Pereiro | G9: Desconto: | H9: 0 | I9: =Resumo!G10 -> JAN/2025 - SICRO3
A10: ITEM | B10: REFERÊNCIA | D10: DESCRIÇÃO | E10: UNID. | F10: QUANT. | G10: CUSTO UNITÁRIO | H10: PREÇO UNITÁRIO | I10: PREÇO TOTAL
B11: FONTE | C11: CÓDIGO
A12: 1 | D12: ADMINISTRAÇÃO DA OBRA | I12: =SUM(I13) -> 140311.08
A13: 1.1 | D13: Administração da Obra | I13: =SUM(I14:I14) -> 140311.08
A14: 1.1.1 | B14: PRÓPRIA | C14: CPU.01 | D14: Administração Local | E14: mês | F14: 4 | G14: =TRUNC((1-$H$9)*(SUMIFS(CPU!$G:$G,CPU!$A:$A,PEREIRO!$C14,CPU!$H:$H,"ss")+SUMIFS(CPU!$G:$G,CPU!$A:$A,PEREIRO!$C14,CPU!$H:$H,"mdo")+SUMIF('Comp SINAPI PE 04-2025 Onerado'!B:B,PEREIRO!C14,'Comp SINAPI PE 04-2025 Onerado'!E:E)+SUMIF('Ins SINAPI PE 04-2025 Onerado'!B:B,PEREIRO!C14,'Ins SINAPI PE 04-2025 Onerado'!F:F)),2) -> 27859.4 | H14: =TRUNC(G14*(1+$H$5),2) -> 35077.77 | I14: =TRUNC(F14*H14,2) -> 140311.08
A16: 2 | D16: SERVIÇOS PRELIMINARES | I16: =SUM(I17,I19,I21) -> 30486.77
A17: 2.1 | D17: Mobilização e desmobilização | I17: =SUM(I18) -> 2799.41
A18: 2.1.1 | B18: PRÓPRIA | C18: CPU.02 | D18: Mobilização e desmobilização de instalação do canteiro | E18: un | F18: 1 | G18: =TRUNC((1-$H$9)*(SUMIFS(CPU!$G:$G,CPU!$A:$A,PEREIRO!$C18,CPU!$H:$H,"ss")+SUMIFS(CPU!$G:$G,CPU!$A:$A,PEREIRO!$C18,CPU!$H:$H,"mdo")+SUMIF('Comp SINAPI PE 04-2025 Onerado'!B:B,PEREIRO!C18,'Comp SINAPI PE 04-2025 Onerado'!E:E)+SUMIF('Ins SINAPI PE 04-2025 Onerado'!B:B,PEREIRO!C18,'Ins SINAPI PE 04-2025 Onerado'!F:F)),2) -> 2223.35 | H18: =TRUNC(G18*(1+$H$5),2) -> 2799.41 | I18: =TRUNC(F18*H18,2) -> 2799.41
A19: 2.2 | D19: Canteiro de obras | I19: =SUM(I20) -> 26508.7
A20: 2.2.1 | B20: PRÓPRIA | C20: CPU.03 | D20: Execução de canteiro de obras, inclusive, limpeza, refeitório, sanitários e central de formas | E20: m2 | F20: 28.5 | G20: =TRUNC((1-$H$9)*(SUMIFS(CPU!$G:$G,CPU!$A:$A,PEREIRO!$C20,CPU!$H:$H,"ss")+SUMIFS(CPU!$G:$G,CPU!$A:$A,PEREIRO!$C20,CPU!$H:$H,"mdo")+SUMIF('Comp SINAPI PE 04-2025 Onerado'!B:B,PEREIRO!C20,'Comp SINAPI PE 04-2025 Onerado'!E:E)+SUMIF('Ins SINAPI PE 04-2025 Onerado'!B:B,PEREIRO!C20,'Ins SINAPI PE 04-2025 Onerado'!F:F)),2) -> 738.73 | H20: =TRUNC(G20*(1+$H$5),2) -> 930.13 | I20: =TRUNC(F20*H20,2) -> 26508.7
A21: 2.3 | D21: Sinalização | I21: =SUM(I22:I22) -> 1178.66
A22: 2.3.1 | B22: SINAPI | C22: 103689 | D22: =IF(J22="ca",VLOOKUP(C22,'Comp SINAPI PE 04-2025 Onerado'!$B$11:$C$9004,2,0),VLOOKUP(C22,'Ins SINAPI PE 04-2025 Onerado'!$B$10:$C$9004,2,0)) -> FORNECIMENTO E INSTALAÇÃO DE PLACA DE OBRA COM CHAPA GALVANIZADA E ESTRUTURA DE MADEIRA. AF_03/2022_PS | E22: =IF(J22="ca",VLOOKUP(C22,'Comp SINAPI PE 04-2025 Onerado'!$B$11:$D$9004,3,0),VLOOKUP(C22,'Ins SINAPI PE 04-2025 Onerado'!$B$11:$D$9004,3,0)) -> M2 | F22: 2 | G22: =TRUNC((1-$H$9)*(SUMIFS(CPU!$G:$G,CPU!$A:$A,PEREIRO!$C22,CPU!$H:$H,"ss")+SUMIFS(CPU!$G:$G,CPU!$A:$A,PEREIRO!$C22,CPU!$H:$H,"mdo")+SUMIF('Comp SINAPI PE 04-2025 Onerado'!B:B,PEREIRO!C22,'Comp SINAPI PE 04-2025 Onerado'!E:E)+SUMIF('Ins SINAPI PE 04-2025 Onerado'!B:B,PEREIRO!C22,'Ins SINAPI PE 04-2025 Onerado'!F:F)),2) -> 468.06 | H22: =TRUNC(G22*(1+$H$5),2) -> 589.33 | I22: =TRUNC(F22*H22,2) -> 1178.66 | J22: ca
A24: 3 | D24: CORTE DA VEGETAÇÃO E REMOÇÃO DAS RAIZES | I24: =SUM(I25) -> 148152.03
A25: 3.1 | D25: Remoção da vegetação | I25: =SUM(I26:I27) -> 148152.03
A26: 3.1.1 | B26: PRÓPRIA | C26: CPU.04 | D26: Limpeza de vegetação | E26: =(VLOOKUP(C26,CPU!B2:D$434,3,0)) -> m2 | F26: 12343.9 | G26: =TRUNC((1-$H$9)*(SUMIFS(CPU!$G:$G,CPU!$A:$A,PEREIRO!$C26,CPU!$H:$H,"ss")+SUMIFS(CPU!$G:$G,CPU!$A:$A,PEREIRO!$C26,CPU!$H:$H,"mdo")+SUMIF('Comp SINAPI PE 04-2025 Onerado'!B:B,PEREIRO!C26,'Comp SINAPI PE 04-2025 Onerado'!E:E)+SUMIF('Ins SINAPI PE 04-2025 Onerado'!B:B,PEREIRO!C26,'Ins SINAPI PE 04-2025 Onerado'!F:F)),2) -> 7.81 | H26: =TRUNC(G26*(1+$H$5),2) -> 9.83 | I26: =TRUNC(F26*H26,2) -> 121340.53
A27: 3.1.2 | B27: PRÓPRIA | C27: CPU.05 | D27: Corte de tronco e remoção de raiz | E27: =(VLOOKUP(C27,CPU!B3:D$434,3,0)) -> un | F27: 50 | G27: =TRUNC((1-$H$9)*(SUMIFS(CPU!$G:$G,CPU!$A:$A,PEREIRO!$C27,CPU!$H:$H,"ss")+SUMIFS(CPU!$G:$G,CPU!$A:$A,PEREIRO!$C27,CPU!$H:$H,"mdo")+SUMIF('Comp SINAPI PE 04-2025 Onerado'!B:B,PEREIRO!C27,'Comp SINAPI PE 04-2025 Onerado'!E:E)+SUMIF('Ins SINAPI PE 04-2025 Onerado'!B:B,PEREIRO!C27,'Ins SINAPI PE 04-2025 Onerado'!F:F)),2) -> 425.89 | H27: =TRUNC(G27*(1+$H$5),2) -> 536.23 | I27: =TRUNC(F27*H27,2) -> 26811.5
A29: 4 | D29: RECUPERAÇÃO DO MACIÇO | I29: =SUM(I30,I32) -> 9130.47
A30: 4.1 | D30: Recomposição das Erosões (erosões locais nas ombreiras e aterro), trincas e buracos | I30: =I31 -> 8447.8
A31: 4.1.1 | B31: PRÓPRIA | C31: CPU.13 | D31: Recomposição das erosões, inclusive, regularização da superfície e reaterro | E31: =(VLOOKUP(C31,CPU!B4:D$434,3,0)) -> m3 | F31: 20 | G31: =TRUNC((1-$H$9)*(SUMIFS(CPU!$G:$G,CPU!$A:$A,PEREIRO!$C31,CPU!$H:$H,"ss")+SUMIFS(CPU!$G:$G,CPU!$A:$A,PEREIRO!$C31,CPU!$H:$H,"mdo")+SUMIF('Comp SINAPI PE 04-2025 Onerado'!B:B,PEREIRO!C31,'Comp SINAPI PE 04-2025 Onerado'!E:E)+SUMIF('Ins SINAPI PE 04-2025 Onerado'!B:B,PEREIRO!C31,'Ins SINAPI PE 04-2025 Onerado'!F:F)),2) -> 335.47 | H31: =TRUNC(G31*(1+$H$5),2) -> 422.39 | I31: =TRUNC(F31*H31,2) -> 8447.8
A32: 4.2 | D32: Injeção de nata de cimento em buracos | I32: =SUM(I33:I33) -> 682.67
A33: 4.2.1 | B33: PRÓPRIA | C33: CPU.26 | D33: Injeção de nata de cimento em buracos | E33: =(VLOOKUP(C33,CPU!B6:D$434,3,0)) -> m3 | F33: 0.5 | G33: =TRUNC((1-$H$9)*(SUMIFS(CPU!$G:$G,CPU!$A:$A,PEREIRO!$C33,CPU!$H:$H,"ss")+SUMIFS(CPU!$G:$G,CPU!$A:$A,PEREIRO!$C33,CPU!$H:$H,"mdo")+SUMIF('Comp SINAPI PE 04-2025 Onerado'!B:B,PEREIRO!C33,'Comp SINAPI PE 04-2025 Onerado'!E:E)+SUMIF('Ins SINAPI PE 04-2025 Onerado'!B:B,PEREIRO!C33,'Ins SINAPI PE 04-2025 Onerado'!F:F)),2) -> 1084.39 | H33: =TRUNC(G33*(1+$H$5),2) -> 1365.35 | I33: =TRUNC(F33*H33,2) -> 682.67
A35: 5 | D35: REGULARIZAÇÃO E PAVIMENTAÇÃO DA CRISTA | I35: =SUM(I36,I38,I41) -> 172534.42
A36: 5.1 | D36: Limpeza e Regularização da Crista | I36: =SUM(I37:I37) -> 3146.4
A37: 5.1.2 | B37: PRÓPRIA | C37: CPU.14 | D37: =(VLOOKUP(C37,CPU!B10:C328,2,0)) -> Regularização e compactação da crista | E37: =(VLOOKUP(C37,CPU!B10:D328,3,0)) -> m2 | F37: 1035 | G37: =TRUNC((1-$H$9)*(SUMIFS(CPU!$G:$G,CPU!$A:$A,PEREIRO!$C37,CPU!$H:$H,"ss")+SUMIFS(CPU!$G:$G,CPU!$A:$A,PEREIRO!$C37,CPU!$H:$H,"mdo")+SUMIF('Comp SINAPI PE 04-2025 Onerado'!B:B,PEREIRO!C37,'Comp SINAPI PE 04-2025 Onerado'!E:E)+SUMIF('Ins SINAPI PE 04-2025 Onerado'!B:B,PEREIRO!C37,'Ins SINAPI PE 04-2025 Onerado'!F:F)),2) -> 2.42 | H37: =TRUNC(G37*(1+$H$5),2) -> 3.04 | I37: =TRUNC(F37*H37,2) -> 3146.4
A38: 5.2 | D38: Instalação de meio-fio e sarjeta em ambos os lados da crista | I38: =SUM(I39:I40) -> 95999.8
A39: 5.2.1 | B39: PRÓPRIA | C39: CPU.19 | D39: =(VLOOKUP(C39,CPU!B12:C330,2,0)) -> Demolição e remoção de guias e sarjetas e/ou canaletas | E39: =(VLOOKUP(C39,CPU!B12:D330,3,0)) -> m | F39: 400 | G39: =TRUNC((1-$H$9)*(SUMIFS(CPU!$G:$G,CPU!$A:$A,PEREIRO!$C39,CPU!$H:$H,"ss")+SUMIFS(CPU!$G:$G,CPU!$A:$A,PEREIRO!$C39,CPU!$H:$H,"mdo")+SUMIF('Comp SINAPI PE 04-2025 Onerado'!B:B,PEREIRO!C39,'Comp SINAPI PE 04-2025 Onerado'!E:E)+SUMIF('Ins SINAPI PE 04-2025 Onerado'!B:B,PEREIRO!C39,'Ins SINAPI PE 04-2025 Onerado'!F:F)),2) -> 34.13 | H39: =TRUNC(G39*(1+$H$5),2) -> 42.97 | I39: =TRUNC(F39*H39,2) -> 17188
A40: 5.2.2 | B40: PRÓPRIA | C40: CPU.20 | D40: =(VLOOKUP(C40,CPU!B13:C331,2,0)) -> Guia (meio-fio) e sarjeta conjudados de concreto, moldada In Loco, 45cm base (15 cm Base da Guia +30 cm Base da Sarjeta) x 22 cm Altura | E40: =(VLOOKUP(C40,CPU!B13:D331,3,0)) -> m | F40: 690 | G40: =TRUNC((1-$H$9)*(SUMIFS(CPU!$G:$G,CPU!$A:$A,PEREIRO!$C40,CPU!$H:$H,"ss")+SUMIFS(CPU!$G:$G,CPU!$A:$A,PEREIRO!$C40,CPU!$H:$H,"mdo")+SUMIF('Comp SINAPI PE 04-2025 Onerado'!B:B,PEREIRO!C40,'Comp SINAPI PE 04-2025 Onerado'!E:E)+SUMIF('Ins SINAPI PE 04-2025 Onerado'!B:B,PEREIRO!C40,'Ins SINAPI PE 04-2025 Onerado'!F:F)),2) -> 90.72 | H40: =TRUNC(G40*(1+$H$5),2) -> 114.22 | I40: =TRUNC(F40*H40,2) -> 78811.8
A41: 5.3 | D41: Pavimentação da Crista | I41: =SUM(I42:I42) -> 73388.22
A42: 5.3.1 | B42: PRÓPRIA | C42: CPU.15 | D42: =(VLOOKUP(C42,CPU!B14:C332,2,0)) -> Execução de Revestimento com BGTC | E42: =(VLOOKUP(C42,CPU!B14:D332,3,0)) -> m3 | F42: =F37*0.15 -> 155.25 | G42: =TRUNC((1-$H$9)*(SUMIFS(CPU!$G:$G,CPU!$A:$A,PEREIRO!$C42,CPU!$H:$H,"ss")+SUMIFS(CPU!$G:$G,CPU!$A:$A,PEREIRO!$C42,CPU!$H:$H,"mdo")+SUMIF('Comp SINAPI PE 04-2025 Onerado'!B:B,PEREIRO!C42,'Comp SINAPI PE 04-2025 Onerado'!E:E)+SUMIF('Ins SINAPI PE 04-2025 Onerado'!B:B,PEREIRO!C42,'Ins SINAPI PE 04-2025 Onerado'!F:F)),2) -> 375.44 | H42: =TRUNC(G42*(1+$H$5),2) -> 472.71 | I42: =TRUNC(F42*H42,2) -> 73388.22
A44: 6 | D44: DRENAGEM SUPERFICIAL DO TALUDE DE JUSANTE | I44: =SUM(I45,I48) -> 26951.31
A45: 6.2 | D45: Canaleta para descida d'água | I45: =SUM(I46:I47) -> 24498.75
A46: 6.2.1 | B46: PRÓPRIA | C46: CPU.19 | D46: =(VLOOKUP(C46,CPU!B17:C335,2,0)) -> Demolição e remoção de guias e sarjetas e/ou canaletas | E46: =(VLOOKUP(C46,CPU!B17:D335,3,0)) -> m | F46: 50 | G46: =TRUNC((1-$H$9)*(SUMIFS(CPU!$G:$G,CPU!$A:$A,PEREIRO!$C46,CPU!$H:$H,"ss")+SUMIFS(CPU!$G:$G,CPU!$A:$A,PEREIRO!$C46,CPU!$H:$H,"mdo")+SUMIF('Comp SINAPI PE 04-2025 Onerado'!B:B,PEREIRO!C46,'Comp SINAPI PE 04-2025 Onerado'!E:E)+SUMIF('Ins SINAPI PE 04-2025 Onerado'!B:B,PEREIRO!C46,'Ins SINAPI PE 04-2025 Onerado'!F:F)),2) -> 34.13 | H46: =TRUNC(G46*(1+$H$5),2) -> 42.97 | I46: =TRUNC(F46*H46,2) -> 2148.5
A47: 6.2.1 | B47: PRÓPRIA | C47: CPU.08 | D47: =(VLOOKUP(C47,CPU!B18:C336,2,0)) -> Canaleta meia cana de concreto (D=30cm) - Fornecimento e instalação | E47: =(VLOOKUP(C47,CPU!B18:D336,3,0)) -> m | F47: 115 | G47: =TRUNC((1-$H$9)*(SUMIFS(CPU!$G:$G,CPU!$A:$A,PEREIRO!$C47,CPU!$H:$H,"ss")+SUMIFS(CPU!$G:$G,CPU!$A:$A,PEREIRO!$C47,CPU!$H:$H,"mdo")+SUMIF('Comp SINAPI PE 04-2025 Onerado'!B:B,PEREIRO!C47,'Comp SINAPI PE 04-2025 Onerado'!E:E)+SUMIF('Ins SINAPI PE 04-2025 Onerado'!B:B,PEREIRO!C47,'Ins SINAPI PE 04-2025 Onerado'!F:F)),2) -> 154.36 | H47: =TRUNC(G47*(1+$H$5),2) -> 194.35 | I47: =TRUNC(F47*H47,2) -> 22350.25
A48: 6.3 | D48: Entrada para descida d'água | I48: =I49 -> 2452.56
A49: 6.3.1 | B49: PRÓPRIA | C49: CPU.09 | D49: =(VLOOKUP(C49,CPU!B20:C338,2,0)) -> Entrada para descida d'água | E49: =(VLOOKUP(C49,CPU!B20:D434,3,0)) -> un | F49: 12 | G49: =TRUNC((1-$H$9)*(SUMIFS(CPU!$G:$G,CPU!$A:$A,PEREIRO!$C49,CPU!$H:$H,"ss")+SUMIFS(CPU!$G:$G,CPU!$A:$A,PEREIRO!$C49,CPU!$H:$H,"mdo")+SUMIF('Comp SINAPI PE 04-2025 Onerado'!B:B,PEREIRO!C49,'Comp SINAPI PE 04-2025 Onerado'!E:E)+SUMIF('Ins SINAPI PE 04-2025 Onerado'!B:B,PEREIRO!C49,'Ins SINAPI PE 04-2025 Onerado'!F:F)),2) -> 162.33 | H49: =TRUNC(G49*(1+$H$5),2) -> 204.38 | I49: =TRUNC(F49*H49,2) -> 2452.56
A51: 7 | D51: MANUTENÇÃO NO TALUDE DE MONTANTE | I51: =SUM(I52) -> 7185.6
A52: 7.1 | D52: Enrocamento com pedra de mão para proteção do talude | I52: =SUM(I53:I53) -> 7185.6
A53: 7.1.1 | B53: PRÓPRIA | C53: CPU.07 | D53: =(VLOOKUP(C53,CPU!B24:C342,2,0)) -> Enrocamento c/ pedra de mão c/ fornecimento e assentamento | E53: =(VLOOKUP(C53,CPU!B24:D434,3,0)) -> m3 | F53: 20 | G53: =TRUNC((1-$H$9)*(SUMIFS(CPU!$G:$G,CPU!$A:$A,PEREIRO!$C53,CPU!$H:$H,"ss")+SUMIFS(CPU!$G:$G,CPU!$A:$A,PEREIRO!$C53,CPU!$H:$H,"mdo")+SUMIF('Comp SINAPI PE 04-2025 Onerado'!B:B,PEREIRO!C53,'Comp SINAPI PE 04-2025 Onerado'!E:E)+SUMIF('Ins SINAPI PE 04-2025 Onerado'!B:B,PEREIRO!C53,'Ins SINAPI PE 04-2025 Onerado'!F:F)),2) -> 285.35 | H53: =TRUNC(G53*(1+$H$5),2) -> 359.28 | I53: =TRUNC(F53*H53,2) -> 7185.6
A55: 8 | D55: PROTEÇÃO SUPERFICIAL DO TALUDE DE JUSANTE | I55: =SUM(I56) -> 19700.7
A56: 8.1 | D56: Proteção vegetal | I56: =SUM(I57:I57) -> 19700.7
A57: 8.1.1 | B57: PRÓPRIA | C57: CPU.10 | D57: =(VLOOKUP(C57,CPU!B28:C346,2,0)) -> Plantio de vegetação para proteção de talude com hidrossemeadura, inclusive adubação e transporte | E57: =(VLOOKUP(C57,CPU!B28:D434,3,0)) -> m2 | F57: 1455 | G57: =TRUNC((1-$H$9)*(SUMIFS(CPU!$G:$G,CPU!$A:$A,PEREIRO!$C57,CPU!$H:$H,"ss")+SUMIFS(CPU!$G:$G,CPU!$A:$A,PEREIRO!$C57,CPU!$H:$H,"mdo")+SUMIF('Comp SINAPI PE 04-2025 Onerado'!B:B,PEREIRO!C57,'Comp SINAPI PE 04-2025 Onerado'!E:E)+SUMIF('Ins SINAPI PE 04-2025 Onerado'!B:B,PEREIRO!C57,'Ins SINAPI PE 04-2025 Onerado'!F:F)),2) -> 10.76 | H57: =TRUNC(G57*(1+$H$5),2) -> 13.54 | I57: =TRUNC(F57*H57,2) -> 19700.7
A59: 9 | D59: RESTAURAÇÃO DA SOLEIRA DO VERTEDOURO | I59: =SUM(I60) -> 22569.3
A60: 9.1 | D60: Restauração da soleira do vertedouro | I60: =SUM(I61:I63) -> 22569.3
A61: 9.1.1 | B61: PRÓPRIA | C61: CPU.24 | D61: =(VLOOKUP(C61,CPU!B32:C350,2,0)) -> Limpeza da superfície | E61: =(VLOOKUP(C61,CPU!B32:D446,3,0)) -> m2 | F61: 500 | G61: =TRUNC((1-$H$9)*(SUMIFS(CPU!$G:$G,CPU!$A:$A,PEREIRO!$C61,CPU!$H:$H,"ss")+SUMIFS(CPU!$G:$G,CPU!$A:$A,PEREIRO!$C61,CPU!$H:$H,"mdo")+SUMIF('Comp SINAPI PE 04-2025 Onerado'!B:B,PEREIRO!C61,'Comp SINAPI PE 04-2025 Onerado'!E:E)+SUMIF('Ins SINAPI PE 04-2025 Onerado'!B:B,PEREIRO!C61,'Ins SINAPI PE 04-2025 Onerado'!F:F)),2) -> 7.54 | H61: =TRUNC(G61*(1+$H$5),2) -> 9.49 | I61: =TRUNC(F61*H61,2) -> 4745
A62: 9.1.2 | B62: PRÓPRIA | C62: CPU.22 | D62: =(VLOOKUP(C62,CPU!B32:C350,2,0)) -> Tratamento de fissuras com injeção de adesivo estrutural à base de resina epóxi de baixa viscosidade - fornecimento e aplicação mecanizada | E62: =(VLOOKUP(C62,CPU!B32:D446,3,0)) -> kg | F62: 10 | G62: =TRUNC((1-$H$9)*(SUMIFS(CPU!$G:$G,CPU!$A:$A,PEREIRO!$C62,CPU!$H:$H,"ss")+SUMIFS(CPU!$G:$G,CPU!$A:$A,PEREIRO!$C62,CPU!$H:$H,"mdo")+SUMIF('Comp SINAPI PE 04-2025 Onerado'!B:B,PEREIRO!C62,'Comp SINAPI PE 04-2025 Onerado'!E:E)+SUMIF('Ins SINAPI PE 04-2025 Onerado'!B:B,PEREIRO!C62,'Ins SINAPI PE 04-2025 Onerado'!F:F)),2) -> 387.05 | H62: =TRUNC(G62*(1+$H$5),2) -> 487.33 | I62: =TRUNC(F62*H62,2) -> 4873.3
A63: 9.1.3 | B63: PRÓPRIA | C63: CPU.23 | D63: =(VLOOKUP(C63,CPU!B33:C351,2,0)) -> Emboço ou massa única em argamassa | E63: =(VLOOKUP(C63,CPU!B33:D447,3,0)) -> m2 | F63: 100 | G63: =TRUNC((1-$H$9)*(SUMIFS(CPU!$G:$G,CPU!$A:$A,PEREIRO!$C63,CPU!$H:$H,"ss")+SUMIFS(CPU!$G:$G,CPU!$A:$A,PEREIRO!$C63,CPU!$H:$H,"mdo")+SUMIF('Comp SINAPI PE 04-2025 Onerado'!B:B,PEREIRO!C63,'Comp SINAPI PE 04-2025 Onerado'!E:E)+SUMIF('Ins SINAPI PE 04-2025 Onerado'!B:B,PEREIRO!C63,'Ins SINAPI PE 04-2025 Onerado'!F:F)),2) -> 102.86 | H63: =TRUNC(G63*(1+$H$5),2) -> 129.51 | I63: =TRUNC(F63*H63,2) -> 12951
A65: 10 | D65: RESTAURAÇÃO DO MURO LATERAL | I65: =SUM(I66,) -> 1769.6
A66: 10.1 | D66: Restauração do muro lateral | I66: =SUM(I67:I68) -> 1769.6
A67: 10.1.1 | B67: PRÓPRIA | C67: CPU.24 | D67: =(VLOOKUP(C67,CPU!B37:C355,2,0)) -> Limpeza da superfície | E67: =(VLOOKUP(C67,CPU!B37:D451,3,0)) -> m2 | F67: 50 | G67: =TRUNC((1-$H$9)*(SUMIFS(CPU!$G:$G,CPU!$A:$A,PEREIRO!$C67,CPU!$H:$H,"ss")+SUMIFS(CPU!$G:$G,CPU!$A:$A,PEREIRO!$C67,CPU!$H:$H,"mdo")+SUMIF('Comp SINAPI PE 04-2025 Onerado'!B:B,PEREIRO!C67,'Comp SINAPI PE 04-2025 Onerado'!E:E)+SUMIF('Ins SINAPI PE 04-2025 Onerado'!B:B,PEREIRO!C67,'Ins SINAPI PE 04-2025 Onerado'!F:F)),2) -> 7.54 | H67: =TRUNC(G67*(1+$H$5),2) -> 9.49 | I67: =TRUNC(F67*H67,2) -> 474.5
A68: 10.1.3 | B68: PRÓPRIA | C68: CPU.23 | D68: =(VLOOKUP(C68,CPU!B39:C357,2,0)) -> Emboço ou massa única em argamassa | E68: =(VLOOKUP(C68,CPU!B38:D452,3,0)) -> m2 | F68: 10 | G68: =TRUNC((1-$H$9)*(SUMIFS(CPU!$G:$G,CPU!$A:$A,PEREIRO!$C68,CPU!$H:$H,"ss")+SUMIFS(CPU!$G:$G,CPU!$A:$A,PEREIRO!$C68,CPU!$H:$H,"mdo")+SUMIF('Comp SINAPI PE 04-2025 Onerado'!B:B,PEREIRO!C68,'Comp SINAPI PE 04-2025 Onerado'!E:E)+SUMIF('Ins SINAPI PE 04-2025 Onerado'!B:B,PEREIRO!C68,'Ins SINAPI PE 04-2025 Onerado'!F:F)),2) -> 102.86 | H68: =TRUNC(G68*(1+$H$5),2) -> 129.51 | I68: =TRUNC(F68*H68,2) -> 1295.1
A70: 11 | D70: CONTENÇÃO DO PROCESSO EROSIVO NA OMBREIRA | I70: =SUM(I71) -> 4183.6
A71: 11.1 | D71: Tratamento da erosão na ombreira | I71: =SUM(I72:I72) -> 4183.6
A72: 11.1.1 | B72: PRÓPRIA | C72: CPU.12 | D72: =(VLOOKUP(C72,CPU!B43:C361,2,0)) -> Enrocamento ARCO tipo rachão reciclado cinza classe A jogado com fornecimento | E72: =(VLOOKUP(C72,CPU!B42:D456,3,0)) -> m3 | F72: 20 | G72: =TRUNC((1-$H$9)*(SUMIFS(CPU!$G:$G,CPU!$A:$A,PEREIRO!$C72,CPU!$H:$H,"ss")+SUMIFS(CPU!$G:$G,CPU!$A:$A,PEREIRO!$C72,CPU!$H:$H,"mdo")+SUMIF('Comp SINAPI PE 04-2025 Onerado'!B:B,PEREIRO!C72,'Comp SINAPI PE 04-2025 Onerado'!E:E)+SUMIF('Ins SINAPI PE 04-2025 Onerado'!B:B,PEREIRO!C72,'Ins SINAPI PE 04-2025 Onerado'!F:F)),2) -> 166.14 | H72: =TRUNC(G72*(1+$H$5),2) -> 209.18 | I72: =TRUNC(F72*H72,2) -> 4183.6
A74: 12 | D74: SERVIÇOS COMPLEMENTARES | I74: =SUM(I75,I77) -> 12267.53
A75: 12.1 | D75: Instalação de placas de aviso | I75: =SUM(I76:I76) -> 2357.32
A76: 12.1.1 | B76: SINAPI | C76: 103689 | D76: =IF(J76="ca",VLOOKUP(C76,'Comp SINAPI PE 04-2025 Onerado'!$B$11:$C$9004,2,0),VLOOKUP(C76,'Ins SINAPI PE 04-2025 Onerado'!$B$10:$C$9004,2,0)) -> FORNECIMENTO E INSTALAÇÃO DE PLACA DE OBRA COM CHAPA GALVANIZADA E ESTRUTURA DE MADEIRA. AF_03/2022_PS | E76: =IF(J76="ca",VLOOKUP(C76,'Comp SINAPI PE 04-2025 Onerado'!$B$11:$D$9004,3,0),VLOOKUP(C76,'Ins SINAPI PE 04-2025 Onerado'!$B$11:$D$9004,3,0)) -> M2 | F76: 4 | G76: =TRUNC((1-$H$9)*(SUMIFS(CPU!$G:$G,CPU!$A:$A,PEREIRO!$C76,CPU!$H:$H,"ss")+SUMIFS(CPU!$G:$G,CPU!$A:$A,PEREIRO!$C76,CPU!$H:$H,"mdo")+SUMIF('Comp SINAPI PE 04-2025 Onerado'!B:B,PEREIRO!C76,'Comp SINAPI PE 04-2025 Onerado'!E:E)+SUMIF('Ins SINAPI PE 04-2025 Onerado'!B:B,PEREIRO!C76,'Ins SINAPI PE 04-2025 Onerado'!F:F)),2) -> 468.06 | H76: =TRUNC(G76*(1+$H$5),2) -> 589.33 | I76: =TRUNC(F76*H76,2) -> 2357.32 | J76: ca
A77: 12.2 | D77: Régua Linimétrica Padrão “ANA”, Aço Carbono - 2 X 70 X 1000 mm (Fornecimento e Instalação) | I77: =SUM(I78:I78) -> 9910.21
A78: 12.2.1 | B78: PRÓPRIA | C78: CPU.18 | D78: Régua Linimétrica Padrão “ANA”, Aço Carbono - 2 X 70 X 1000 mm (Fornecimento e Instalação) | E78: un | F78: 19 | G78: =TRUNC((1-$H$9)*(SUMIFS(CPU!$G:$G,CPU!$A:$A,PEREIRO!$C78,CPU!$H:$H,"ss")+SUMIFS(CPU!$G:$G,CPU!$A:$A,PEREIRO!$C78,CPU!$H:$H,"mdo")+SUMIF('Comp SINAPI PE 04-2025 Onerado'!B:B,PEREIRO!C78,'Comp SINAPI PE 04-2025 Onerado'!E:E)+SUMIF('Ins SINAPI PE 04-2025 Onerado'!B:B,PEREIRO!C78,'Ins SINAPI PE 04-2025 Onerado'!F:F)),2) -> 414.26 | H78: =TRUNC(G78*(1+$H$5),2) -> 521.59 | I78: =TRUNC(F78*H78,2) -> 9910.21
A80: 13 | D80: PROJETO "AS IS" | I80: =SUM(I81) -> 16258.43
A81: 13.1 | D81: Levantamento topógrafico e "AS IS" | I81: =SUM(I82:I83) -> 16258.43
A82: 13.1.1 | B82: ORSE | C82: 9346 | D82: Levantamento topográfico planimétrico cadastral | E82: m2 | F82: =F26 -> 12343.9 | G82: =TRUNC(0.35*(1-$H$9),2) -> 0.35 | H82: =TRUNC(G82*(1+$H$5),2) -> 0.44 | I82: =TRUNC(F82*H82,2) -> 5431.31
A83: 13.1.2 | B83: PRÓPRIA | C83: CPU.25 | D83: Projeto Geométrico | E83: un | F83: 1 | G83: =TRUNC((1-$H$9)*(SUMIFS(CPU!$G:$G,CPU!$A:$A,PEREIRO!$C83,CPU!$H:$H,"ss")+SUMIFS(CPU!$G:$G,CPU!$A:$A,PEREIRO!$C83,CPU!$H:$H,"mdo")+SUMIF('Comp SINAPI PE 04-2025 Onerado'!B:B,PEREIRO!C83,'Comp SINAPI PE 04-2025 Onerado'!E:E)+SUMIF('Ins SINAPI PE 04-2025 Onerado'!B:B,PEREIRO!C83,'Ins SINAPI PE 04-2025 Onerado'!F:F)),2) -> 8599.1 | H83: =TRUNC(G83*(1+$H$5),2) -> 10827.12 | I83: =TRUNC(F83*H83,2) -> 10827.12
A85: 14 | D85: FISCALIZAÇÃO E ACOMPANHAMENTO | I85: =SUM(I86) -> 2152.68
A86: 14.1 | D86: Disponibilidade de velículo para apoio a fiscalização | I86: =SUM(I87:I88) -> 2152.68
A87: 14.1.1 | B87: PRÓPRIA | C87: CPU.30 | D87: =(VLOOKUP(C87,CPU!B57:C375,2,0)) -> Disponibilidade de veículo para apoio a fiscalização, inclusive combustível | E87: un | F87: 6 | G87: =TRUNC((1-$H$9)*(SUMIFS(CPU!$G:$G,CPU!$A:$A,PEREIRO!$C87,CPU!$H:$H,"ss")+SUMIFS(CPU!$G:$G,CPU!$A:$A,PEREIRO!$C87,CPU!$H:$H,"mdo")+SUMIF('Comp SINAPI PE 04-2025 Onerado'!B:B,PEREIRO!C87,'Comp SINAPI PE 04-2025 Onerado'!E:E)+SUMIF('Ins SINAPI PE 04-2025 Onerado'!B:B,PEREIRO!C87,'Ins SINAPI PE 04-2025 Onerado'!F:F)),2) -> 284.95 | H87: =TRUNC(G87*(1+$H$5),2) -> 358.78 | I87: =TRUNC(F87*H87,2) -> 2152.68
D89: TOTAL (Custo): | I89: =TRUNC(SUMPRODUCT(F13:F88,G13:G88),2) -> 487439.29
D90: BDI e Encargos Sociais: | I90: =I91-I89 -> 126214.23
D91: TOTAL GERAL COM BDI: | I91: =SUM(I12,I16,I24,I29,I35,I51,I44,I55,I59,I65,I70,I74,I80,I85) -> 613653.52 | L91: =TRUNC(SUMPRODUCT(F13:F88,H13:H88),2) -> 613653.55

Sheet BARRA FRANCA
A1: Ministério da Integração e do Desenvolvimento Regional
A2: Companhia de Desenvolvimento dos Vales do São Francisco e do Parnaíba
A4: PLANILHA ORÇAMENTÁRIA - ORÇAMENTO NÃO DESONERADO
A5: OBRA: | B5: =Resumo!B5 -> Execução de Manutenção e Obras Civis nas Barragens de Pereiro, Cal, Soledade, Mudubim, Barra Franca, Baixa Alegre e Açude da Roça, localizadas no estado de Pernambuco. | G5: BDI (serv.): | H5: ='BDI serv'!D23 -> 0.2591 | I5: Bancos de dados:
A6: LOCAL: | B6: =Resumo!B6 -> BARRAGENS DE PERNAMBUCO | G6: BDI (forn.): | H6: ='BDI forn'!D23 -> 0 | I6: =Resumo!G6 -> MAI/25 - SINAPI
A7: DATA BASE: | B7: =Resumo!B7 -> 2025-04-01 | E7: Encargos sociais - Horistas: | H7: ='Encargos Sociais'!E49 -> 1.1384 | I7: =Resumo!G7 -> MAR/25 - ORSE
A8: PRAZO: | B8: 120 dias | E8: Encargos sociais - Mensalista: | H8: ='Encargos Sociais'!F49 -> 0.7011 | I8: =Resumo!G8 -> JAN/25 - SETOP
B9: =Resumo!B15 -> Barra Franca | G9: Desconto: | H9: 0 | I9: =Resumo!G10 -> JAN/2025 - SICRO3
A10: ITEM | B10: REFERÊNCIA | D10: DESCRIÇÃO | E10: UNID. | F10: QUANT. | G10: CUSTO UNITÁRIO | H10: PREÇO UNITÁRIO | I10: PREÇO TOTAL
B11: FONTE | C11: CÓDIGO
A12: 1 | D12: ADMINISTRAÇÃO DA OBRA | I12: =SUM(I13) -> 140311.08
A13: 1.1 | D13: Administração da Obra | I13: =SUM(I14:I14) -> 140311.08
A14: 1.1.1 | B14: PRÓPRIA | C14: CPU.01 | D14: Administração Local | E14: mês | F14: 4 | G14: =TRUNC((1-$H$9)*(SUMIFS(CPU!$G:$G,CPU!$A:$A,'BARRA FRANCA'!$C14,CPU!$H:$H,"ss")+SUMIFS(CPU!$G:$G,CPU!$A:$A,'BARRA FRANCA'!$C14,CPU!$H:$H,"mdo")+SUMIF('Comp SINAPI PE 04-2025 Onerado'!B:B,'BARRA FRANCA'!C14,'Comp SINAPI PE 04-2025 Onerado'!E:E)+SUMIF('Ins SINAPI PE 04-2025 Onerado'!B:B,'BARRA FRANCA'!C14,'Ins SINAPI PE 04-2025 Onerado'!F:F)),2) -> 27859.4 | H14: =TRUNC(G14*(1+$H$5),2) -> 35077.77 | I14: =TRUNC(F14*H14,2) -> 140311.08
A16: 2 | D16: SERVIÇOS PRELIMINARES | I16: =SUM(I17,I19,I21) -> 30486.77
A17: 2.1 | D17: Mobilização e desmobilização | I17: =SUM(I18) -> 2799.41
A18: 2.1.1 | B18: PRÓPRIA | C18: CPU.02 | D18: Mobilização e desmobilização de instalação do canteiro | E18: un | F18: 1 | G18: =TRUNC((1-$H$9)*(SUMIFS(CPU!$G:$G,CPU!$A:$A,'BARRA FRANCA'!$C18,CPU!$H:$H,"ss")+SUMIFS(CPU!$G:$G,CPU!$A:$A,'BARRA FRANCA'!$C18,CPU!$H:$H,"mdo")+SUMIF('Comp SINAPI PE 04-2025 Onerado'!B:B,'BARRA FRANCA'!C18,'Comp SINAPI PE 04-2025 Onerado'!E:E)+SUMIF('Ins SINAPI PE 04-2025 Onerado'!B:B,'BARRA FRANCA'!C18,'Ins SINAPI PE 04-2025 Onerado'!F:F)),2) -> 2223.35 | H18: =TRUNC(G18*(1+$H$5),2) -> 2799.41 | I18: =TRUNC(F18*H18,2) -> 2799.41
A19: 2.2 | D19: Canteiro de obras | I19: =SUM(I20) -> 26508.7
A20: 2.2.1 | B20: PRÓPRIA | C20: CPU.03 | D20: Execução de canteiro de obras, inclusive, limpeza, refeitório, sanitários e central de formas | E20: m2 | F20: 28.5 | G20: =TRUNC((1-$H$9)*(SUMIFS(CPU!$G:$G,CPU!$A:$A,'BARRA FRANCA'!$C20,CPU!$H:$H,"ss")+SUMIFS(CPU!$G:$G,CPU!$A:$A,'BARRA FRANCA'!$C20,CPU!$H:$H,"mdo")+SUMIF('Comp SINAPI PE 04-2025 Onerado'!B:B,'BARRA FRANCA'!C20,'Comp SINAPI PE 04-2025 Onerado'!E:E)+SUMIF('Ins SINAPI PE 04-2025 Onerado'!B:B,'BARRA FRANCA'!C20,'Ins SINAPI PE 04-2025 Onerado'!F:F)),2) -> 738.73 | H20: =TRUNC(G20*(1+$H$5),2) -> 930.13 | I20: =TRUNC(F20*H20,2) -> 26508.7
A21: 2.3 | D21: Sinalização | I21: =SUM(I22:I22) -> 1178.66
A22: 2.3.1 | B22: SINAPI | C22: 103689 | D22: =IF(J22="ca",VLOOKUP(C22,'Comp SINAPI PE 04-2025 Onerado'!$B$11:$C$9004,2,0),VLOOKUP(C22,'Ins SINAPI PE 04-2025 Onerado'!$B$10:$C$9004,2,0)) -> FORNECIMENTO E INSTALAÇÃO DE PLACA DE OBRA COM CHAPA GALVANIZADA E ESTRUTURA DE MADEIRA. AF_03/2022_PS | E22: =IF(J22="ca",VLOOKUP(C22,'Comp SINAPI PE 04-2025 Onerado'!$B$11:$D$9004,3,0),VLOOKUP(C22,'Ins SINAPI PE 04-2025 Onerado'!$B$11:$D$9004,3,0)) -> M2 | F22: 2 | G22: =TRUNC((1-$H$9)*(SUMIFS(CPU!$G:$G,CPU!$A:$A,'BARRA FRANCA'!$C22,CPU!$H:$H,"ss")+SUMIFS(CPU!$G:$G,CPU!$A:$A,'BARRA FRANCA'!$C22,CPU!$H:$H,"mdo")+SUMIF('Comp SINAPI PE 04-2025 Onerado'!B:B,'BARRA FRANCA'!C22,'Comp SINAPI PE 04-2025 Onerado'!E:E)+SUMIF('Ins SINAPI PE 04-2025 Onerado'!B:B,'BARRA FRANCA'!C22,'Ins SINAPI PE 04-2025 Onerado'!F:F)),2) -> 468.06 | H22: =TRUNC(G22*(1+$H$5),2) -> 589.33 | I22: =TRUNC(F22*H22,2) -> 1178.66 | J22: ca
A24: 3 | D24: CORTE DA VEGETAÇÃO E REMOÇÃO DAS RAIZES | I24: =SUM(I25) -> 151629.98
A25: 3.1 | D25: Remoção da vegetação | I25: =SUM(I26:I27) -> 151629.98
A26: 3.1.1 | B26: PRÓPRIA | C26: CPU.04 | D26: Limpeza de vegetação | E26: =(VLOOKUP(C26,CPU!B2:D$434,3,0)) -> m2 | F26: 14334.22 | G26: =TRUNC((1-$H$9)*(SUMIFS(CPU!$G:$G,CPU!$A:$A,'BARRA FRANCA'!$C26,CPU!$H:$H,"ss")+SUMIFS(CPU!$G:$G,CPU!$A:$A,'BARRA FRANCA'!$C26,CPU!$H:$H,"mdo")+SUMIF('Comp SINAPI PE 04-2025 Onerado'!B:B,'BARRA FRANCA'!C26,'Comp SINAPI PE 04-2025 Onerado'!E:E)+SUMIF('Ins SINAPI PE 04-2025 Onerado'!B:B,'BARRA FRANCA'!C26,'Ins SINAPI PE 04-2025 Onerado'!F:F)),2) -> 7.81 | H26: =TRUNC(G26*(1+$H$5),2) -> 9.83 | I26: =TRUNC(F26*H26,2) -> 140905.38
A27: 3.1.2 | B27: PRÓPRIA | C27: CPU.05 | D27: Corte de tronco e remoção de raiz | E27: =(VLOOKUP(C27,CPU!B3:D$434,3,0)) -> un | F27: 20 | G27: =TRUNC((1-$H$9)*(SUMIFS(CPU!$G:$G,CPU!$A:$A,'BARRA FRANCA'!$C27,CPU!$H:$H,"ss")+SUMIFS(CPU!$G:$G,CPU!$A:$A,'BARRA FRANCA'!$C27,CPU!$H:$H,"mdo")+SUMIF('Comp SINAPI PE 04-2025 Onerado'!B:B,'BARRA FRANCA'!C27,'Comp SINAPI PE 04-2025 Onerado'!E:E)+SUMIF('Ins SINAPI PE 04-2025 Onerado'!B:B,'BARRA FRANCA'!C27,'Ins SINAPI PE 04-2025 Onerado'!F:F)),2) -> 425.89 | H27: =TRUNC(G27*(1+$H$5),2) -> 536.23 | I27: =TRUNC(F27*H27,2) -> 10724.6
A29: 4 | D29: RECUPERAÇÃO DO MACIÇO | I29: =SUM(I30,I32) -> 4061.79
A30: 4.1 | D30: Recomposição das Erosões (erosões locais nas ombreiras e aterro), trincas e buracos | I30: =I31 -> 3379.12
A31: 4.1.1 | B31: PRÓPRIA | C31: CPU.13 | D31: Recomposição das erosões, inclusive, regularização da superfície e reaterro | E31: =(VLOOKUP(C31,CPU!B4:D$434,3,0)) -> m3 | F31: 8 | G31: =TRUNC((1-$H$9)*(SUMIFS(CPU!$G:$G,CPU!$A:$A,'BARRA FRANCA'!$C31,CPU!$H:$H,"ss")+SUMIFS(CPU!$G:$G,CPU!$A:$A,'BARRA FRANCA'!$C31,CPU!$H:$H,"mdo")+SUMIF('Comp SINAPI PE 04-2025 Onerado'!B:B,'BARRA FRANCA'!C31,'Comp SINAPI PE 04-2025 Onerado'!E:E)+SUMIF('Ins SINAPI PE 04-2025 Onerado'!B:B,'BARRA FRANCA'!C31,'Ins SINAPI PE 04-2025 Onerado'!F:F)),2) -> 335.47 | H31: =TRUNC(G31*(1+$H$5),2) -> 422.39 | I31: =TRUNC(F31*H31,2) -> 3379.12
A32: 4.2 | D32: Injeção de nata de cimento em buracos | I32: =SUM(I33:I33) -> 682.67
A33: 4.2.1 | B33: PRÓPRIA | C33: CPU.26 | D33: Injeção de nata de cimento em buracos | E33: =(VLOOKUP(C33,CPU!B6:D$434,3,0)) -> m3 | F33: 0.5 | G33: =TRUNC((1-$H$9)*(SUMIFS(CPU!$G:$G,CPU!$A:$A,'BARRA FRANCA'!$C33,CPU!$H:$H,"ss")+SUMIFS(CPU!$G:$G,CPU!$A:$A,'BARRA FRANCA'!$C33,CPU!$H:$H,"mdo")+SUMIF('Comp SINAPI PE 04-2025 Onerado'!B:B,'BARRA FRANCA'!C33,'Comp SINAPI PE 04-2025 Onerado'!E:E)+SUMIF('Ins SINAPI PE 04-2025 Onerado'!B:B,'BARRA FRANCA'!C33,'Ins SINAPI PE 04-2025 Onerado'!F:F)),2) -> 1084.39 | H33: =TRUNC(G33*(1+$H$5),2) -> 1365.35 | I33: =TRUNC(F33*H33,2) -> 682.67
A35: 5 | D35: REGULARIZAÇÃO E PAVIMENTAÇÃO DA CRISTA | I35: =SUM(I36,I38,I40) -> 146552.26
A36: 5.1 | D36: Limpeza e Regularização da Crista | I36: =SUM(I37:I37) -> 3724
A37: 5.1.2 | B37: PRÓPRIA | C37: CPU.14 | D37: =(VLOOKUP(C37,CPU!B10:C328,2,0)) -> Regularização e compactação da crista | E37: =(VLOOKUP(C37,CPU!B10:D328,3,0)) -> m2 | F37: 1225 | G37: =TRUNC((1-$H$9)*(SUMIFS(CPU!$G:$G,CPU!$A:$A,'BARRA FRANCA'!$C37,CPU!$H:$H,"ss")+SUMIFS(CPU!$G:$G,CPU!$A:$A,'BARRA FRANCA'!$C37,CPU!$H:$H,"mdo")+SUMIF('Comp SINAPI PE 04-2025 Onerado'!B:B,'BARRA FRANCA'!C37,'Comp SINAPI PE 04-2025 Onerado'!E:E)+SUMIF('Ins SINAPI PE 04-2025 Onerado'!B:B,'BARRA FRANCA'!C37,'Ins SINAPI PE 04-2025 Onerado'!F:F)),2) -> 2.42 | H37: =TRUNC(G37*(1+$H$5),2) -> 3.04 | I37: =TRUNC(F37*H37,2) -> 3724
A38: 5.2 | D38: Instalação de meio-fio e sarjeta em ambos os lados da crista | I38: =SUM(I39:I39) -> 55967.8
A39: 5.2.1 | B39: PRÓPRIA | C39: CPU.20 | D39: =(VLOOKUP(C39,CPU!B12:C330,2,0)) -> Guia (meio-fio) e sarjeta conjudados de concreto, moldada In Loco, 45cm base (15 cm Base da Guia +30 cm Base da Sarjeta) x 22 cm Altura | E39: =(VLOOKUP(C39,CPU!B12:D330,3,0)) -> m | F39: 490 | G39: =TRUNC((1-$H$9)*(SUMIFS(CPU!$G:$G,CPU!$A:$A,'BARRA FRANCA'!$C39,CPU!$H:$H,"ss")+SUMIFS(CPU!$G:$G,CPU!$A:$A,'BARRA FRANCA'!$C39,CPU!$H:$H,"mdo")+SUMIF('Comp SINAPI PE 04-2025 Onerado'!B:B,'BARRA FRANCA'!C39,'Comp SINAPI PE 04-2025 Onerado'!E:E)+SUMIF('Ins SINAPI PE 04-2025 Onerado'!B:B,'BARRA FRANCA'!C39,'Ins SINAPI PE 04-2025 Onerado'!F:F)),2) -> 90.72 | H39: =TRUNC(G39*(1+$H$5),2) -> 114.22 | I39: =TRUNC(F39*H39,2) -> 55967.8
A40: 5.3 | D40: Pavimentação da Crista | I40: =SUM(I41:I41) -> 86860.46
A41: 5.3.1 | B41: PRÓPRIA | C41: CPU.15 | D41: =(VLOOKUP(C41,CPU!B14:C332,2,0)) -> Execução de Revestimento com BGTC | E41: =(VLOOKUP(C41,CPU!B14:D332,3,0)) -> m3 | F41: =F37*0.15 -> 183.75 | G41: =TRUNC((1-$H$9)*(SUMIFS(CPU!$G:$G,CPU!$A:$A,'BARRA FRANCA'!$C41,CPU!$H:$H,"ss")+SUMIFS(CPU!$G:$G,CPU!$A:$A,'BARRA FRANCA'!$C41,CPU!$H:$H,"mdo")+SUMIF('Comp SINAPI PE 04-2025 Onerado'!B:B,'BARRA FRANCA'!C41,'Comp SINAPI PE 04-2025 Onerado'!E:E)+SUMIF('Ins SINAPI PE 04-2025 Onerado'!B:B,'BARRA FRANCA'!C41,'Ins SINAPI PE 04-2025 Onerado'!F:F)),2) -> 375.44 | H41: =TRUNC(G41*(1+$H$5),2) -> 472.71 | I41: =TRUNC(F41*H41,2) -> 86860.46
A43: 6 | D43: DRENAGEM SUPERFICIAL DO TALUDE DE JUSANTE | I43: =SUM(I44,I46) -> 17571.74
A44: 6.2 | D44: Canaleta para descida d'água | I44: =I45 -> 15936.7
A45: 6.2.1 | B45: PRÓPRIA | C45: CPU.08 | D45: =(VLOOKUP(C45,CPU!B18:C336,2,0)) -> Canaleta meia cana de concreto (D=30cm) - Fornecimento e instalação | E45: =(VLOOKUP(C45,CPU!B18:D336,3,0)) -> m | F45: 82 | G45: =TRUNC((1-$H$9)*(SUMIFS(CPU!$G:$G,CPU!$A:$A,'BARRA FRANCA'!$C45,CPU!$H:$H,"ss")+SUMIFS(CPU!$G:$G,CPU!$A:$A,'BARRA FRANCA'!$C45,CPU!$H:$H,"mdo")+SUMIF('Comp SINAPI PE 04-2025 Onerado'!B:B,'BARRA FRANCA'!C45,'Comp SINAPI PE 04-2025 Onerado'!E:E)+SUMIF('Ins SINAPI PE 04-2025 Onerado'!B:B,'BARRA FRANCA'!C45,'Ins SINAPI PE 04-2025 Onerado'!F:F)),2) -> 154.36 | H45: =TRUNC(G45*(1+$H$5),2) -> 194.35 | I45: =TRUNC(F45*H45,2) -> 15936.7
A46: 6.3 | D46: Entrada para descida d'água | I46: =I47 -> 1635.04
A47: 6.3.1 | B47: PRÓPRIA | C47: CPU.09 | D47: =(VLOOKUP(C47,CPU!B20:C338,2,0)) -> Entrada para descida d'água | E47: =(VLOOKUP(C47,CPU!B20:D434,3,0)) -> un | F47: 8 | G47: =TRUNC((1-$H$9)*(SUMIFS(CPU!$G:$G,CPU!$A:$A,'BARRA FRANCA'!$C47,CPU!$H:$H,"ss")+SUMIFS(CPU!$G:$G,CPU!$A:$A,'BARRA FRANCA'!$C47,CPU!$H:$H,"mdo")+SUMIF('Comp SINAPI PE 04-2025 Onerado'!B:B,'BARRA FRANCA'!C47,'Comp SINAPI PE 04-2025 Onerado'!E:E)+SUMIF('Ins SINAPI PE 04-2025 Onerado'!B:B,'BARRA FRANCA'!C47,'Ins SINAPI PE 04-2025 Onerado'!F:F)),2) -> 162.33 | H47: =TRUNC(G47*(1+$H$5),2) -> 204.38 | I47: =TRUNC(F47*H47,2) -> 1635.04
A49: 7 | D49: MANUTENÇÃO NO TALUDE DE MONTANTE | I49: =SUM(I50) -> 45628.56
A50: 7.1 | D50: Enrocamento com pedra de mão para proteção do talude | I50: =SUM(I51:I51) -> 45628.56
A51: 7.1.1 | B51: PRÓPRIA | C51: CPU.07 | D51: =(VLOOKUP(C51,CPU!B24:C342,2,0)) -> Enrocamento c/ pedra de mão c/ fornecimento e assentamento | E51: =(VLOOKUP(C51,CPU!B24:D434,3,0)) -> m3 | F51: 127 | G51: =TRUNC((1-$H$9)*(SUMIFS(CPU!$G:$G,CPU!$A:$A,'BARRA FRANCA'!$C51,CPU!$H:$H,"ss")+SUMIFS(CPU!$G:$G,CPU!$A:$A,'BARRA FRANCA'!$C51,CPU!$H:$H,"mdo")+SUMIF('Comp SINAPI PE 04-2025 Onerado'!B:B,'BARRA FRANCA'!C51,'Comp SINAPI PE 04-2025 Onerado'!E:E)+SUMIF('Ins SINAPI PE 04-2025 Onerado'!B:B,'BARRA FRANCA'!C51,'Ins SINAPI PE 04-2025 Onerado'!F:F)),2) -> 285.35 | H51: =TRUNC(G51*(1+$H$5),2) -> 359.28 | I51: =TRUNC(F51*H51,2) -> 45628.56
A53: 8 | D53: PROTEÇÃO SUPERFICIAL DO TALUDE DE JUSANTE | I53: =SUM(I54) -> 59738.48
A54: 8.1 | D54: Proteção vegetal | I54: =SUM(I55:I55) -> 59738.48
A55: 8.1.1 | B55: PRÓPRIA | C55: CPU.10 | D55: =(VLOOKUP(C55,CPU!B28:C346,2,0)) -> Plantio de vegetação para proteção de talude com hidrossemeadura, inclusive adubação e transporte | E55: =(VLOOKUP(C55,CPU!B28:D434,3,0)) -> m2 | F55: 4412 | G55: =TRUNC((1-$H$9)*(SUMIFS(CPU!$G:$G,CPU!$A:$A,'BARRA FRANCA'!$C55,CPU!$H:$H,"ss")+SUMIFS(CPU!$G:$G,CPU!$A:$A,'BARRA FRANCA'!$C55,CPU!$H:$H,"mdo")+SUMIF('Comp SINAPI PE 04-2025 Onerado'!B:B,'BARRA FRANCA'!C55,'Comp SINAPI PE 04-2025 Onerado'!E:E)+SUMIF('Ins SINAPI PE 04-2025 Onerado'!B:B,'BARRA FRANCA'!C55,'Ins SINAPI PE 04-2025 Onerado'!F:F)),2) -> 10.76 | H55: =TRUNC(G55*(1+$H$5),2) -> 13.54 | I55: =TRUNC(F55*H55,2) -> 59738.48
A57: 9 | D57: RESTAURAÇÃO DA SOLEIRA DO VERTEDOURO | I57: =SUM(I58) -> 11413.05
A58: 9.1 | D58: Restauração da soleira do vertedouro | I58: =SUM(I59:I61) -> 11413.05
A59: 9.1.1 | B59: PRÓPRIA | C59: CPU.24 | D59: =(VLOOKUP(C59,CPU!B32:C350,2,0)) -> Limpeza da superfície | E59: =(VLOOKUP(C59,CPU!B32:D446,3,0)) -> m2 | F59: 400 | G59: =TRUNC((1-$H$9)*(SUMIFS(CPU!$G:$G,CPU!$A:$A,'BARRA FRANCA'!$C59,CPU!$H:$H,"ss")+SUMIFS(CPU!$G:$G,CPU!$A:$A,'BARRA FRANCA'!$C59,CPU!$H:$H,"mdo")+SUMIF('Comp SINAPI PE 04-2025 Onerado'!B:B,'BARRA FRANCA'!C59,'Comp SINAPI PE 04-2025 Onerado'!E:E)+SUMIF('Ins SINAPI PE 04-2025 Onerado'!B:B,'BARRA FRANCA'!C59,'Ins SINAPI PE 04-2025 Onerado'!F:F)),2) -> 7.54 | H59: =TRUNC(G59*(1+$H$5),2) -> 9.49 | I59: =TRUNC(F59*H59,2) -> 3796
A60: 9.1.2 | B60: PRÓPRIA | C60: CPU.22 | D60: =(VLOOKUP(C60,CPU!B32:C350,2,0)) -> Tratamento de fissuras com injeção de adesivo estrutural à base de resina epóxi de baixa viscosidade - fornecimento e aplicação mecanizada | E60: =(VLOOKUP(C60,CPU!B32:D446,3,0)) -> kg | F60: 5 | G60: =TRUNC((1-$H$9)*(SUMIFS(CPU!$G:$G,CPU!$A:$A,'BARRA FRANCA'!$C60,CPU!$H:$H,"ss")+SUMIFS(CPU!$G:$G,CPU!$A:$A,'BARRA FRANCA'!$C60,CPU!$H:$H,"mdo")+SUMIF('Comp SINAPI PE 04-2025 Onerado'!B:B,'BARRA FRANCA'!C60,'Comp SINAPI PE 04-2025 Onerado'!E:E)+SUMIF('Ins SINAPI PE 04-2025 Onerado'!B:B,'BARRA FRANCA'!C60,'Ins SINAPI PE 04-2025 Onerado'!F:F)),2) -> 387.05 | H60: =TRUNC(G60*(1+$H$5),2) -> 487.33 | I60: =TRUNC(F60*H60,2) -> 2436.65
A61: 9.1.3 | B61: PRÓPRIA | C61: CPU.23 | D61: =(VLOOKUP(C61,CPU!B33:C351,2,0)) -> Emboço ou massa única em argamassa | E61: =(VLOOKUP(C61,CPU!B33:D447,3,0)) -> m2 | F61: 40 | G61: =TRUNC((1-$H$9)*(SUMIFS(CPU!$G:$G,CPU!$A:$A,'BARRA FRANCA'!$C61,CPU!$H:$H,"ss")+SUMIFS(CPU!$G:$G,CPU!$A:$A,'BARRA FRANCA'!$C61,CPU!$H:$H,"mdo")+SUMIF('Comp SINAPI PE 04-2025 Onerado'!B:B,'BARRA FRANCA'!C61,'Comp SINAPI PE 04-2025 Onerado'!E:E)+SUMIF('Ins SINAPI PE 04-2025 Onerado'!B:B,'BARRA FRANCA'!C61,'Ins SINAPI PE 04-2025 Onerado'!F:F)),2) -> 102.86 | H61: =TRUNC(G61*(1+$H$5),2) -> 129.51 | I61: =TRUNC(F61*H61,2) -> 5180.4
A63: 10 | D63: RESTAURAÇÃO DO MURO LATERAL | I63: =SUM(I64) -> 3303.32
A64: 10.1 | D64: Restauração do muro lateral | I64: =SUM(I65:I67) -> 3303.32
A65: 10.1.1 | B65: PRÓPRIA | C65: CPU.24 | D65: =(VLOOKUP(C65,CPU!B37:C355,2,0)) -> Limpeza da superfície | E65: =(VLOOKUP(C65,CPU!B37:D451,3,0)) -> m2 | F65: 15 | G65: =TRUNC((1-$H$9)*(SUMIFS(CPU!$G:$G,CPU!$A:$A,'BARRA FRANCA'!$C65,CPU!$H:$H,"ss")+SUMIFS(CPU!$G:$G,CPU!$A:$A,'BARRA FRANCA'!$C65,CPU!$H:$H,"mdo")+SUMIF('Comp SINAPI PE 04-2025 Onerado'!B:B,'BARRA FRANCA'!C65,'Comp SINAPI PE 04-2025 Onerado'!E:E)+SUMIF('Ins SINAPI PE 04-2025 Onerado'!B:B,'BARRA FRANCA'!C65,'Ins SINAPI PE 04-2025 Onerado'!F:F)),2) -> 7.54 | H65: =TRUNC(G65*(1+$H$5),2) -> 9.49 | I65: =TRUNC(F65*H65,2) -> 142.35
A66: 10.1.2 | B66: PRÓPRIA | C66: CPU.22 | D66: =(VLOOKUP(C66,CPU!B37:C355,2,0)) -> Tratamento de fissuras com injeção de adesivo estrutural à base de resina epóxi de baixa viscosidade - fornecimento e aplicação mecanizada | E66: =(VLOOKUP(C66,CPU!B36:D450,3,0)) -> kg | F66: 2.5 | G66: =TRUNC((1-$H$9)*(SUMIFS(CPU!$G:$G,CPU!$A:$A,'BARRA FRANCA'!$C66,CPU!$H:$H,"ss")+SUMIFS(CPU!$G:$G,CPU!$A:$A,'BARRA FRANCA'!$C66,CPU!$H:$H,"mdo")+SUMIF('Comp SINAPI PE 04-2025 Onerado'!B:B,'BARRA FRANCA'!C66,'Comp SINAPI PE 04-2025 Onerado'!E:E)+SUMIF('Ins SINAPI PE 04-2025 Onerado'!B:B,'BARRA FRANCA'!C66,'Ins SINAPI PE 04-2025 Onerado'!F:F)),2) -> 387.05 | H66: =TRUNC(G66*(1+$H$5),2) -> 487.33 | I66: =TRUNC(F66*H66,2) -> 1218.32
A67: 10.1.3 | B67: PRÓPRIA | C67: CPU.23 | D67: =(VLOOKUP(C67,CPU!B39:C357,2,0)) -> Emboço ou massa única em argamassa | E67: =(VLOOKUP(C67,CPU!B38:D452,3,0)) -> m2 | F67: 15 | G67: =TRUNC((1-$H$9)*(SUMIFS(CPU!$G:$G,CPU!$A:$A,'BARRA FRANCA'!$C67,CPU!$H:$H,"ss")+SUMIFS(CPU!$G:$G,CPU!$A:$A,'BARRA FRANCA'!$C67,CPU!$H:$H,"mdo")+SUMIF('Comp SINAPI PE 04-2025 Onerado'!B:B,'BARRA FRANCA'!C67,'Comp SINAPI PE 04-2025 Onerado'!E:E)+SUMIF('Ins SINAPI PE 04-2025 Onerado'!B:B,'BARRA FRANCA'!C67,'Ins SINAPI PE 04-2025 Onerado'!F:F)),2) -> 102.86 | H67: =TRUNC(G67*(1+$H$5),2) -> 129.51 | I67: =TRUNC(F67*H67,2) -> 1942.65
A69: 11 | D69: SERVIÇOS COMPLEMENTARES | I69: =SUM(I70,I72) -> 10702.76
A70: 11.1 | D70: Instalação de placas de aviso | I70: =SUM(I71:I71) -> 2357.32
A71: 11.1.1 | B71: SINAPI | C71: 103689 | D71: =IF(J71="ca",VLOOKUP(C71,'Comp SINAPI PE 04-2025 Onerado'!$B$11:$C$9004,2,0),VLOOKUP(C71,'Ins SINAPI PE 04-2025 Onerado'!$B$10:$C$9004,2,0)) -> FORNECIMENTO E INSTALAÇÃO DE PLACA DE OBRA COM CHAPA GALVANIZADA E ESTRUTURA DE MADEIRA. AF_03/2022_PS | E71: =IF(J71="ca",VLOOKUP(C71,'Comp SINAPI PE 04-2025 Onerado'!$B$11:$D$9004,3,0),VLOOKUP(C71,'Ins SINAPI PE 04-2025 Onerado'!$B$11:$D$9004,3,0)) -> M2 | F71: 4 | G71: =TRUNC((1-$H$9)*(SUMIFS(CPU!$G:$G,CPU!$A:$A,'BARRA FRANCA'!$C71,CPU!$H:$H,"ss")+SUMIFS(CPU!$G:$G,CPU!$A:$A,'BARRA FRANCA'!$C71,CPU!$H:$H,"mdo")+SUMIF('Comp SINAPI PE 04-2025 Onerado'!B:B,'BARRA FRANCA'!C71,'Comp SINAPI PE 04-2025 Onerado'!E:E)+SUMIF('Ins SINAPI PE 04-2025 Onerado'!B:B,'BARRA FRANCA'!C71,'Ins SINAPI PE 04-2025 Onerado'!F:F)),2) -> 468.06 | H71: =TRUNC(G71*(1+$H$5),2) -> 589.33 | I71: =TRUNC(F71*H71,2) -> 2357.32 | J71: ca
A72: 11.2 | D72: Régua Linimétrica Padrão “ANA”, Aço Carbono - 2 X 70 X 1000 mm (Fornecimento e Instalação) | I72: =SUM(I73:I73) -> 8345.44
A73: 11.2.1 | B73: PRÓPRIA | C73: CPU.18 | D73: =(VLOOKUP(C73,CPU!B45:C363,2,0)) -> Régua Linimétrica Padrão “ANA”, Aço Carbono - 2 X 70 X 1000 mm (Fornecimento e Instalação) | E73: un | F73: 16 | G73: =TRUNC((1-$H$9)*(SUMIFS(CPU!$G:$G,CPU!$A:$A,'BARRA FRANCA'!$C73,CPU!$H:$H,"ss")+SUMIFS(CPU!$G:$G,CPU!$A:$A,'BARRA FRANCA'!$C73,CPU!$H:$H,"mdo")+SUMIF('Comp SINAPI PE 04-2025 Onerado'!B:B,'BARRA FRANCA'!C73,'Comp SINAPI PE 04-2025 Onerado'!E:E)+SUMIF('Ins SINAPI PE 04-2025 Onerado'!B:B,'BARRA FRANCA'!C73,'Ins SINAPI PE 04-2025 Onerado'!F:F)),2) -> 414.26 | H73: =TRUNC(G73*(1+$H$5),2) -> 521.59 | I73: =TRUNC(F73*H73,2) -> 8345.44
A75: 12 | D75: PROJETO "AS IS" | I75: =SUM(I76) -> 17134.17
A76: 12.1 | D76: Levantamento topógrafico e "AS IS" | I76: =SUM(I77:I78) -> 17134.17
A77: 12.1.1 | B77: ORSE | C77: 9346 | D77: Levantamento topográfico planimétrico cadastral | E77: m2 | F77: =F26 -> 14334.22 | G77: =TRUNC(0.35*(1-$H$9),2) -> 0.35 | H77: =TRUNC(G77*(1+$H$5),2) -> 0.44 | I77: =TRUNC(F77*H77,2) -> 6307.05
A78: 12.1.2 | B78: PRÓPRIA | C78: CPU.25 | D78: =(VLOOKUP(C78,CPU!B50:C368,2,0)) -> Projeto geométrico | E78: un | F78: 1 | G78: =TRUNC((1-$H$9)*(SUMIFS(CPU!$G:$G,CPU!$A:$A,'BARRA FRANCA'!$C78,CPU!$H:$H,"ss")+SUMIFS(CPU!$G:$G,CPU!$A:$A,'BARRA FRANCA'!$C78,CPU!$H:$H,"mdo")+SUMIF('Comp SINAPI PE 04-2025 Onerado'!B:B,'BARRA FRANCA'!C78,'Comp SINAPI PE 04-2025 Onerado'!E:E)+SUMIF('Ins SINAPI PE 04-2025 Onerado'!B:B,'BARRA FRANCA'!C78,'Ins SINAPI PE 04-2025 Onerado'!F:F)),2) -> 8599.1 | H78: =TRUNC(G78*(1+$H$5),2) -> 10827.12 | I78: =TRUNC(F78*H78,2) -> 10827.12
A80: 13 | D80: FISCALIZAÇÃO E ACOMPANHAMENTO | I80: =SUM(I81) -> 2152.68
A81: 13.1 | D81: Disponibilidade de velículo para apoio a fiscalização | I81: =SUM(I82:I83) -> 2152.68
A82: 13.1.1 | B82: PRÓPRIA | C82: CPU.30 | D82: =(VLOOKUP(C82,CPU!B54:C372,2,0)) -> Disponibilidade de veículo para apoio a fiscalização, inclusive combustível | E82: un | F82: 6 | G82: =TRUNC((1-$H$9)*(SUMIFS(CPU!$G:$G,CPU!$A:$A,'BARRA FRANCA'!$C82,CPU!$H:$H,"ss")+SUMIFS(CPU!$G:$G,CPU!$A:$A,'BARRA FRANCA'!$C82,CPU!$H:$H,"mdo")+SUMIF('Comp SINAPI PE 04-2025 Onerado'!B:B,'BARRA FRANCA'!C82,'Comp SINAPI PE 04-2025 Onerado'!E:E)+SUMIF('Ins SINAPI PE 04-2025 Onerado'!B:B,'BARRA FRANCA'!C82,'Ins SINAPI PE 04-2025 Onerado'!F:F)),2) -> 284.95 | H82: =TRUNC(G82*(1+$H$5),2) -> 358.78 | I82: =TRUNC(F82*H82,2) -> 2152.68
D84: TOTAL (Custo): | I84: =TRUNC(SUMPRODUCT(F13:F83,G13:G83),2) -> 508933.47
D85: BDI e Encargos Sociais: | I85: =I86-I84 -> 131753.17
D86: TOTAL GERAL COM BDI: | I86: =SUM(I12,I16,I24,I29,I35,I49,I43,I53,I57,I63,I69,I75,I80) -> 640686.64

Sheet BAIXA ALEGRE
A1: Ministério da Integração e do Desenvolvimento Regional
A2: Companhia de Desenvolvimento dos Vales do São Francisco e do Parnaíba
A4: PLANILHA ORÇAMENTÁRIA - ORÇAMENTO NÃO DESONERADO
A5: OBRA: | B5: =Resumo!B5 -> Execução de Manutenção e Obras Civis nas Barragens de Pereiro, Cal, Soledade, Mudubim, Barra Franca, Baixa Alegre e Açude da Roça, localizadas no estado de Pernambuco. | G5: BDI (serv.): | H5: ='BDI serv'!D23 -> 0.2591 | I5: Bancos de dados:
A6: LOCAL: | B6: =Resumo!B6 -> BARRAGENS DE PERNAMBUCO | G6: BDI (forn.): | H6: ='BDI forn'!D23 -> 0 | I6: =Resumo!G6 -> MAI/25 - SINAPI
A7: DATA BASE: | B7: =Resumo!B7 -> 2025-04-01 | E7: Encargos sociais - Horistas: | H7: ='Encargos Sociais'!E49 -> 1.1384 | I7: =Resumo!G7 -> MAR/25 - ORSE
A8: PRAZO: | B8: 120 dias | E8: Encargos sociais - Mensalista: | H8: ='Encargos Sociais'!F49 -> 0.7011 | I8: =Resumo!G8 -> JAN/25 - SETOP
B9: =Resumo!B16 -> Baixa Alegre | G9: Desconto: | H9: 0 | I9: =Resumo!G10 -> JAN/2025 - SICRO3
A10: ITEM | B10: REFERÊNCIA | D10: DESCRIÇÃO | E10: UNID. | F10: QUANT. | G10: CUSTO UNITÁRIO | H10: PREÇO UNITÁRIO | I10: PREÇO TOTAL
B11: FONTE | C11: CÓDIGO
A12: 1 | D12: ADMINISTRAÇÃO DA OBRA | I12: =SUM(I13) -> 140311.08
A13: 1.1 | D13: Administração da Obra | I13: =SUM(I14:I14) -> 140311.08
A14: 1.1.1 | B14: PRÓPRIA | C14: CPU.01 | D14: Administração Local | E14: mês | F14: 4 | G14: =TRUNC((1-$H$9)*(SUMIFS(CPU!$G:$G,CPU!$A:$A,'BAIXA ALEGRE'!$C14,CPU!$H:$H,"ss")+SUMIFS(CPU!$G:$G,CPU!$A:$A,'BAIXA ALEGRE'!$C14,CPU!$H:$H,"mdo")+SUMIF('Comp SINAPI PE 04-2025 Onerado'!B:B,'BAIXA ALEGRE'!C14,'Comp SINAPI PE 04-2025 Onerado'!E:E)+SUMIF('Ins SINAPI PE 04-2025 Onerado'!B:B,'BAIXA ALEGRE'!C14,'Ins SINAPI PE 04-2025 Onerado'!F:F)),2) -> 27859.4 | H14: =TRUNC(G14*(1+$H$5),2) -> 35077.77 | I14: =TRUNC(F14*H14,2) -> 140311.08
A16: 2 | D16: SERVIÇOS PRELIMINARES | I16: =SUM(I17,I19,I21) -> 30486.77
A17: 2.1 | D17: Mobilização e desmobilização | I17: =SUM(I18) -> 2799.41
A18: 2.1.1 | B18: PRÓPRIA | C18: CPU.02 | D18: Mobilização e desmobilização de instalação do canteiro | E18: un | F18: 1 | G18: =TRUNC((1-$H$9)*(SUMIFS(CPU!$G:$G,CPU!$A:$A,'BAIXA ALEGRE'!$C18,CPU!$H:$H,"ss")+SUMIFS(CPU!$G:$G,CPU!$A:$A,'BAIXA ALEGRE'!$C18,CPU!$H:$H,"mdo")+SUMIF('Comp SINAPI PE 04-2025 Onerado'!B:B,'BAIXA ALEGRE'!C18,'Comp SINAPI PE 04-2025 Onerado'!E:E)+SUMIF('Ins SINAPI PE 04-2025 Onerado'!B:B,'BAIXA ALEGRE'!C18,'Ins SINAPI PE 04-2025 Onerado'!F:F)),2) -> 2223.35 | H18: =TRUNC(G18*(1+$H$5),2) -> 2799.41 | I18: =TRUNC(F18*H18,2) -> 2799.41
A19: 2.2 | D19: Canteiro de obras | I19: =SUM(I20) -> 26508.7
A20: 2.2.1 | B20: PRÓPRIA | C20: CPU.03 | D20: Execução de canteiro de obras, inclusive, limpeza, refeitório, sanitários e central de formas | E20: m2 | F20: 28.5 | G20: =TRUNC((1-$H$9)*(SUMIFS(CPU!$G:$G,CPU!$A:$A,'BAIXA ALEGRE'!$C20,CPU!$H:$H,"ss")+SUMIFS(CPU!$G:$G,CPU!$A:$A,'BAIXA ALEGRE'!$C20,CPU!$H:$H,"mdo")+SUMIF('Comp SINAPI PE 04-2025 Onerado'!B:B,'BAIXA ALEGRE'!C20,'Comp SINAPI PE 04-2025 Onerado'!E:E)+SUMIF('Ins SINAPI PE 04-2025 Onerado'!B:B,'BAIXA ALEGRE'!C20,'Ins SINAPI PE 04-2025 Onerado'!F:F)),2) -> 738.73 | H20: =TRUNC(G20*(1+$H$5),2) -> 930.13 | I20: =TRUNC(F20*H20,2) -> 26508.7
A21: 2.3 | D21: Sinalização | I21: =SUM(I22:I22) -> 1178.66
A22: 2.3.1 | B22: SINAPI | C22: 103689 | D22: =IF(J22="ca",VLOOKUP(C22,'Comp SINAPI PE 04-2025 Onerado'!$B$11:$C$9004,2,0),VLOOKUP(C22,'Ins SINAPI PE 04-2025 Onerado'!$B$10:$C$9004,2,0)) -> FORNECIMENTO E INSTALAÇÃO DE PLACA DE OBRA COM CHAPA GALVANIZADA E ESTRUTURA DE MADEIRA. AF_03/2022_PS | E22: =IF(J22="ca",VLOOKUP(C22,'Comp SINAPI PE 04-2025 Onerado'!$B$11:$D$9004,3,0),VLOOKUP(C22,'Ins SINAPI PE 04-2025 Onerado'!$B$11:$D$9004,3,0)) -> M2 | F22: 2 | G22: =TRUNC((1-$H$9)*(SUMIFS(CPU!$G:$G,CPU!$A:$A,'BAIXA ALEGRE'!$C22,CPU!$H:$H,"ss")+SUMIFS(CPU!$G:$G,CPU!$A:$A,'BAIXA ALEGRE'!$C22,CPU!$H:$H,"mdo")+SUMIF('Comp SINAPI PE 04-2025 Onerado'!B:B,'BAIXA ALEGRE'!C22,'Comp SINAPI PE 04-2025 Onerado'!E:E)+SUMIF('Ins SINAPI PE 04-2025 Onerado'!B:B,'BAIXA ALEGRE'!C22,'Ins SINAPI PE 04-2025 Onerado'!F:F)),2) -> 468.06 | H22: =TRUNC(G22*(1+$H$5),2) -> 589.33 | I22: =TRUNC(F22*H22,2) -> 1178.66 | J22: ca
A24: 3 | D24: CORTE DA VEGETAÇÃO E REMOÇÃO DAS RAIZES | I24: =SUM(I25) -> 129707.5
A25: 3.1 | D25: Remoção da vegetação | I25: =SUM(I26:I27) -> 129707.5
A26: 3.1.1 | B26: PRÓPRIA | C26: CPU.04 | D26: Limpeza de vegetação | E26: =(VLOOKUP(C26,CPU!B2:D$434,3,0)) -> m2 | F26: 12104.06 | G26: =TRUNC((1-$H$9)*(SUMIFS(CPU!$G:$G,CPU!$A:$A,'BAIXA ALEGRE'!$C26,CPU!$H:$H,"ss")+SUMIFS(CPU!$G:$G,CPU!$A:$A,'BAIXA ALEGRE'!$C26,CPU!$H:$H,"mdo")+SUMIF('Comp SINAPI PE 04-2025 Onerado'!B:B,'BAIXA ALEGRE'!C26,'Comp SINAPI PE 04-2025 Onerado'!E:E)+SUMIF('Ins SINAPI PE 04-2025 Onerado'!B:B,'BAIXA ALEGRE'!C26,'Ins SINAPI PE 04-2025 Onerado'!F:F)),2) -> 7.81 | H26: =TRUNC(G26*(1+$H$5),2) -> 9.83 | I26: =TRUNC(F26*H26,2) -> 118982.9
A27: 3.1.2 | B27: PRÓPRIA | C27: CPU.05 | D27: Corte de tronco e remoção de raiz | E27: =(VLOOKUP(C27,CPU!B3:D$434,3,0)) -> un | F27: 20 | G27: =TRUNC((1-$H$9)*(SUMIFS(CPU!$G:$G,CPU!$A:$A,'BAIXA ALEGRE'!$C27,CPU!$H:$H,"ss")+SUMIFS(CPU!$G:$G,CPU!$A:$A,'BAIXA ALEGRE'!$C27,CPU!$H:$H,"mdo")+SUMIF('Comp SINAPI PE 04-2025 Onerado'!B:B,'BAIXA ALEGRE'!C27,'Comp SINAPI PE 04-2025 Onerado'!E:E)+SUMIF('Ins SINAPI PE 04-2025 Onerado'!B:B,'BAIXA ALEGRE'!C27,'Ins SINAPI PE 04-2025 Onerado'!F:F)),2) -> 425.89 | H27: =TRUNC(G27*(1+$H$5),2) -> 536.23 | I27: =TRUNC(F27*H27,2) -> 10724.6
A29: 4 | D29: RECUPERAÇÃO DO MACIÇO | I29: =SUM(I30,I32) -> 7713.98
A30: 4.1 | D30: Recomposição das Erosões (erosões locais nas ombreiras e aterro), trincas e buracos | I30: =I31 -> 6758.24
A31: 4.1.1 | B31: PRÓPRIA | C31: CPU.13 | D31: Recomposição das erosões, inclusive, regularização da superfície e reaterro | E31: =(VLOOKUP(C31,CPU!B4:D$434,3,0)) -> m3 | F31: 16 | G31: =TRUNC((1-$H$9)*(SUMIFS(CPU!$G:$G,CPU!$A:$A,'BAIXA ALEGRE'!$C31,CPU!$H:$H,"ss")+SUMIFS(CPU!$G:$G,CPU!$A:$A,'BAIXA ALEGRE'!$C31,CPU!$H:$H,"mdo")+SUMIF('Comp SINAPI PE 04-2025 Onerado'!B:B,'BAIXA ALEGRE'!C31,'Comp SINAPI PE 04-2025 Onerado'!E:E)+SUMIF('Ins SINAPI PE 04-2025 Onerado'!B:B,'BAIXA ALEGRE'!C31,'Ins SINAPI PE 04-2025 Onerado'!F:F)),2) -> 335.47 | H31: =TRUNC(G31*(1+$H$5),2) -> 422.39 | I31: =TRUNC(F31*H31,2) -> 6758.24
A32: 4.2 | D32: Injeção de nata de cimento em buracos | I32: =SUM(I33:I33) -> 955.74
A33: 4.2.1 | B33: PRÓPRIA | C33: CPU.26 | D33: Injeção de nata de cimento em buracos | E33: =(VLOOKUP(C33,CPU!B6:D$434,3,0)) -> m3 | F33: 0.7 | G33: =TRUNC((1-$H$9)*(SUMIFS(CPU!$G:$G,CPU!$A:$A,'BAIXA ALEGRE'!$C33,CPU!$H:$H,"ss")+SUMIFS(CPU!$G:$G,CPU!$A:$A,'BAIXA ALEGRE'!$C33,CPU!$H:$H,"mdo")+SUMIF('Comp SINAPI PE 04-2025 Onerado'!B:B,'BAIXA ALEGRE'!C33,'Comp SINAPI PE 04-2025 Onerado'!E:E)+SUMIF('Ins SINAPI PE 04-2025 Onerado'!B:B,'BAIXA ALEGRE'!C33,'Ins SINAPI PE 04-2025 Onerado'!F:F)),2) -> 1084.39 | H33: =TRUNC(G33*(1+$H$5),2) -> 1365.35 | I33: =TRUNC(F33*H33,2) -> 955.74
A35: 5 | D35: REGULARIZAÇÃO E PAVIMENTAÇÃO DA CRISTA | I35: =SUM(I36,I38,I41) -> 59606.03
A36: 5.1 | D36: Limpeza e Regularização da Crista | I36: =SUM(I37:I37) -> 1748
A37: 5.1.2 | B37: PRÓPRIA | C37: CPU.14 | D37: =(VLOOKUP(C37,CPU!B10:C328,2,0)) -> Regularização e compactação da crista | E37: =(VLOOKUP(C37,CPU!B10:D328,3,0)) -> m2 | F37: 575 | G37: =TRUNC((1-$H$9)*(SUMIFS(CPU!$G:$G,CPU!$A:$A,'BAIXA ALEGRE'!$C37,CPU!$H:$H,"ss")+SUMIFS(CPU!$G:$G,CPU!$A:$A,'BAIXA ALEGRE'!$C37,CPU!$H:$H,"mdo")+SUMIF('Comp SINAPI PE 04-2025 Onerado'!B:B,'BAIXA ALEGRE'!C37,'Comp SINAPI PE 04-2025 Onerado'!E:E)+SUMIF('Ins SINAPI PE 04-2025 Onerado'!B:B,'BAIXA ALEGRE'!C37,'Ins SINAPI PE 04-2025 Onerado'!F:F)),2) -> 2.42 | H37: =TRUNC(G37*(1+$H$5),2) -> 3.04 | I37: =TRUNC(F37*H37,2) -> 1748
A38: 5.2 | D38: Instalação de meio-fio e sarjeta em ambos os lados da crista | I38: =SUM(I39:I40) -> 17086.8
A39: 5.2.1 | B39: PRÓPRIA | C39: CPU.28 | D39: =(VLOOKUP(C39,CPU!B12:C330,2,0)) -> Recuperação e Reassentamento do meio-fio com reaproveitamento | E39: =(VLOOKUP(C39,CPU!B12:D330,3,0)) -> M | F39: =230-F40 -> 210 | G39: =TRUNC((1-$H$9)*(SUMIFS(CPU!$G:$G,CPU!$A:$A,'BAIXA ALEGRE'!$C39,CPU!$H:$H,"ss")+SUMIFS(CPU!$G:$G,CPU!$A:$A,'BAIXA ALEGRE'!$C39,CPU!$H:$H,"mdo")+SUMIF('Comp SINAPI PE 04-2025 Onerado'!B:B,'BAIXA ALEGRE'!C39,'Comp SINAPI PE 04-2025 Onerado'!E:E)+SUMIF('Ins SINAPI PE 04-2025 Onerado'!B:B,'BAIXA ALEGRE'!C39,'Ins SINAPI PE 04-2025 Onerado'!F:F)),2) -> 57.76 | H39: =TRUNC(G39*(1+$H$5),2) -> 72.72 | I39: =TRUNC(F39*H39,2) -> 15271.2
A40: 5.2.2 | B40: PRÓPRIA | C40: CPU.29 | D40: =(VLOOKUP(C40,CPU!B13:C331,2,0)) -> Fornecimento e Assentamento de Guia (meio-fio) Pré-fabricado, dimensões 100x15x20 cm (comprimento x base x altura) | E40: =(VLOOKUP(C40,CPU!B13:D331,3,0)) -> M | F40: 20 | G40: =TRUNC((1-$H$9)*(SUMIFS(CPU!$G:$G,CPU!$A:$A,'BAIXA ALEGRE'!$C40,CPU!$H:$H,"ss")+SUMIFS(CPU!$G:$G,CPU!$A:$A,'BAIXA ALEGRE'!$C40,CPU!$H:$H,"mdo")+SUMIF('Comp SINAPI PE 04-2025 Onerado'!B:B,'BAIXA ALEGRE'!C40,'Comp SINAPI PE 04-2025 Onerado'!E:E)+SUMIF('Ins SINAPI PE 04-2025 Onerado'!B:B,'BAIXA ALEGRE'!C40,'Ins SINAPI PE 04-2025 Onerado'!F:F)),2) -> 72.1 | H40: =TRUNC(G40*(1+$H$5),2) -> 90.78 | I40: =TRUNC(F40*H40,2) -> 1815.6
A41: 5.3 | D41: Pavimentação da Crista | I41: =SUM(I42:I42) -> 40771.23
A42: 5.3.1 | B42: PRÓPRIA | C42: CPU.15 | D42: =(VLOOKUP(C42,CPU!B14:C332,2,0)) -> Execução de Revestimento com BGTC | E42: =(VLOOKUP(C42,CPU!B14:D332,3,0)) -> m3 | F42: =F37*0.15 -> 86.25 | G42: =TRUNC((1-$H$9)*(SUMIFS(CPU!$G:$G,CPU!$A:$A,'BAIXA ALEGRE'!$C42,CPU!$H:$H,"ss")+SUMIFS(CPU!$G:$G,CPU!$A:$A,'BAIXA ALEGRE'!$C42,CPU!$H:$H,"mdo")+SUMIF('Comp SINAPI PE 04-2025 Onerado'!B:B,'BAIXA ALEGRE'!C42,'Comp SINAPI PE 04-2025 Onerado'!E:E)+SUMIF('Ins SINAPI PE 04-2025 Onerado'!B:B,'BAIXA ALEGRE'!C42,'Ins SINAPI PE 04-2025 Onerado'!F:F)),2) -> 375.44 | H42: =TRUNC(G42*(1+$H$5),2) -> 472.71 | I42: =TRUNC(F42*H42,2) -> 40771.23
A44: 6 | D44: DRENAGEM SUPERFICIAL DO TALUDE DE JUSANTE | I44: =SUM(I45,I47) -> 19475.12
A45: 6.2 | D45: Canaleta para descida d'água | I45: =I46 -> 18657.6
A46: 6.2.1 | B46: PRÓPRIA | C46: CPU.08 | D46: =(VLOOKUP(C46,CPU!B18:C336,2,0)) -> Canaleta meia cana de concreto (D=30cm) - Fornecimento e instalação | E46: =(VLOOKUP(C46,CPU!B18:D336,3,0)) -> m | F46: 96 | G46: =TRUNC((1-$H$9)*(SUMIFS(CPU!$G:$G,CPU!$A:$A,'BAIXA ALEGRE'!$C46,CPU!$H:$H,"ss")+SUMIFS(CPU!$G:$G,CPU!$A:$A,'BAIXA ALEGRE'!$C46,CPU!$H:$H,"mdo")+SUMIF('Comp SINAPI PE 04-2025 Onerado'!B:B,'BAIXA ALEGRE'!C46,'Comp SINAPI PE 04-2025 Onerado'!E:E)+SUMIF('Ins SINAPI PE 04-2025 Onerado'!B:B,'BAIXA ALEGRE'!C46,'Ins SINAPI PE 04-2025 Onerado'!F:F)),2) -> 154.36 | H46: =TRUNC(G46*(1+$H$5),2) -> 194.35 | I46: =TRUNC(F46*H46,2) -> 18657.6
A47: 6.3 | D47: Entrada para descida d'água | I47: =I48 -> 817.52
A48: 6.3.1 | B48: PRÓPRIA | C48: CPU.09 | D48: =(VLOOKUP(C48,CPU!B20:C338,2,0)) -> Entrada para descida d'água | E48: =(VLOOKUP(C48,CPU!B20:D434,3,0)) -> un | F48: 4 | G48: =TRUNC((1-$H$9)*(SUMIFS(CPU!$G:$G,CPU!$A:$A,'BAIXA ALEGRE'!$C48,CPU!$H:$H,"ss")+SUMIFS(CPU!$G:$G,CPU!$A:$A,'BAIXA ALEGRE'!$C48,CPU!$H:$H,"mdo")+SUMIF('Comp SINAPI PE 04-2025 Onerado'!B:B,'BAIXA ALEGRE'!C48,'Comp SINAPI PE 04-2025 Onerado'!E:E)+SUMIF('Ins SINAPI PE 04-2025 Onerado'!B:B,'BAIXA ALEGRE'!C48,'Ins SINAPI PE 04-2025 Onerado'!F:F)),2) -> 162.33 | H48: =TRUNC(G48*(1+$H$5),2) -> 204.38 | I48: =TRUNC(F48*H48,2) -> 817.52
A50: 7 | D50: MANUTENÇÃO NO TALUDE DE MONTANTE | I50: =SUM(I51) -> 26586.72
A51: 7.1 | D51: Enrocamento com pedra de mão para proteção do talude | I51: =SUM(I52:I52) -> 26586.72
A52: 7.1.1 | B52: PRÓPRIA | C52: CPU.07 | D52: =(VLOOKUP(C52,CPU!B24:C342,2,0)) -> Enrocamento c/ pedra de mão c/ fornecimento e assentamento | E52: =(VLOOKUP(C52,CPU!B24:D434,3,0)) -> m3 | F52: 74 | G52: =TRUNC((1-$H$9)*(SUMIFS(CPU!$G:$G,CPU!$A:$A,'BAIXA ALEGRE'!$C52,CPU!$H:$H,"ss")+SUMIFS(CPU!$G:$G,CPU!$A:$A,'BAIXA ALEGRE'!$C52,CPU!$H:$H,"mdo")+SUMIF('Comp SINAPI PE 04-2025 Onerado'!B:B,'BAIXA ALEGRE'!C52,'Comp SINAPI PE 04-2025 Onerado'!E:E)+SUMIF('Ins SINAPI PE 04-2025 Onerado'!B:B,'BAIXA ALEGRE'!C52,'Ins SINAPI PE 04-2025 Onerado'!F:F)),2) -> 285.35 | H52: =TRUNC(G52*(1+$H$5),2) -> 359.28 | I52: =TRUNC(F52*H52,2) -> 26586.72
A54: 8 | D54: PROTEÇÃO SUPERFICIAL DO TALUDE DE JUSANTE | I54: =SUM(I55) -> 27377.88
A55: 8.1 | D55: Proteção vegetal | I55: =SUM(I56:I56) -> 27377.88
A56: 8.1.1 | B56: PRÓPRIA | C56: CPU.10 | D56: =(VLOOKUP(C56,CPU!B28:C346,2,0)) -> Plantio de vegetação para proteção de talude com hidrossemeadura, inclusive adubação e transporte | E56: =(VLOOKUP(C56,CPU!B28:D434,3,0)) -> m2 | F56: 2022 | G56: =TRUNC((1-$H$9)*(SUMIFS(CPU!$G:$G,CPU!$A:$A,'BAIXA ALEGRE'!$C56,CPU!$H:$H,"ss")+SUMIFS(CPU!$G:$G,CPU!$A:$A,'BAIXA ALEGRE'!$C56,CPU!$H:$H,"mdo")+SUMIF('Comp SINAPI PE 04-2025 Onerado'!B:B,'BAIXA ALEGRE'!C56,'Comp SINAPI PE 04-2025 Onerado'!E:E)+SUMIF('Ins SINAPI PE 04-2025 Onerado'!B:B,'BAIXA ALEGRE'!C56,'Ins SINAPI PE 04-2025 Onerado'!F:F)),2) -> 10.76 | H56: =TRUNC(G56*(1+$H$5),2) -> 13.54 | I56: =TRUNC(F56*H56,2) -> 27377.88
A58: 9 | D58: RESTAURAÇÃO DA SOLEIRA DO VERTEDOURO | I58: =SUM(I59) -> 18143.13
A59: 9.1 | D59: Restauração da soleira do vertedouro | I59: =SUM(I60:I62) -> 18143.13
A60: 9.1.1 | B60: PRÓPRIA | C60: CPU.24 | D60: =(VLOOKUP(C60,CPU!B32:C350,2,0)) -> Limpeza da superfície | E60: =(VLOOKUP(C60,CPU!B32:D446,3,0)) -> m2 | F60: 1000 | G60: =TRUNC((1-$H$9)*(SUMIFS(CPU!$G:$G,CPU!$A:$A,'BAIXA ALEGRE'!$C60,CPU!$H:$H,"ss")+SUMIFS(CPU!$G:$G,CPU!$A:$A,'BAIXA ALEGRE'!$C60,CPU!$H:$H,"mdo")+SUMIF('Comp SINAPI PE 04-2025 Onerado'!B:B,'BAIXA ALEGRE'!C60,'Comp SINAPI PE 04-2025 Onerado'!E:E)+SUMIF('Ins SINAPI PE 04-2025 Onerado'!B:B,'BAIXA ALEGRE'!C60,'Ins SINAPI PE 04-2025 Onerado'!F:F)),2) -> 7.54 | H60: =TRUNC(G60*(1+$H$5),2) -> 9.49 | I60: =TRUNC(F60*H60,2) -> 9490
A61: 9.1.2 | B61: PRÓPRIA | C61: CPU.22 | D61: =(VLOOKUP(C61,CPU!B32:C350,2,0)) -> Tratamento de fissuras com injeção de adesivo estrutural à base de resina epóxi de baixa viscosidade - fornecimento e aplicação mecanizada | E61: =(VLOOKUP(C61,CPU!B32:D446,3,0)) -> kg | F61: 5 | G61: =TRUNC((1-$H$9)*(SUMIFS(CPU!$G:$G,CPU!$A:$A,'BAIXA ALEGRE'!$C61,CPU!$H:$H,"ss")+SUMIFS(CPU!$G:$G,CPU!$A:$A,'BAIXA ALEGRE'!$C61,CPU!$H:$H,"mdo")+SUMIF('Comp SINAPI PE 04-2025 Onerado'!B:B,'BAIXA ALEGRE'!C61,'Comp SINAPI PE 04-2025 Onerado'!E:E)+SUMIF('Ins SINAPI PE 04-2025 Onerado'!B:B,'BAIXA ALEGRE'!C61,'Ins SINAPI PE 04-2025 Onerado'!F:F)),2) -> 387.05 | H61: =TRUNC(G61*(1+$H$5),2) -> 487.33 | I61: =TRUNC(F61*H61,2) -> 2436.65
A62: 9.1.3 | B62: PRÓPRIA | C62: CPU.23 | D62: =(VLOOKUP(C62,CPU!B33:C351,2,0)) -> Emboço ou massa única em argamassa | E62: =(VLOOKUP(C62,CPU!B33:D447,3,0)) -> m2 | F62: 48 | G62: =TRUNC((1-$H$9)*(SUMIFS(CPU!$G:$G,CPU!$A:$A,'BAIXA ALEGRE'!$C62,CPU!$H:$H,"ss")+SUMIFS(CPU!$G:$G,CPU!$A:$A,'BAIXA ALEGRE'!$C62,CPU!$H:$H,"mdo")+SUMIF('Comp SINAPI PE 04-2025 Onerado'!B:B,'BAIXA ALEGRE'!C62,'Comp SINAPI PE 04-2025 Onerado'!E:E)+SUMIF('Ins SINAPI PE 04-2025 Onerado'!B:B,'BAIXA ALEGRE'!C62,'Ins SINAPI PE 04-2025 Onerado'!F:F)),2) -> 102.86 | H62: =TRUNC(G62*(1+$H$5),2) -> 129.51 | I62: =TRUNC(F62*H62,2) -> 6216.48
A64: 10 | D64: RESTAURAÇÃO DO MURO LATERAL | I64: =SUM(I65,I69) -> 8345.91
A65: 10.1 | D65: Restauração do muro lateral | I65: =SUM(I66:I68) -> 4693.32
A66: 10.1.1 | B66: PRÓPRIA | C66: CPU.24 | D66: =(VLOOKUP(C66,CPU!B37:C355,2,0)) -> Limpeza da superfície | E66: =(VLOOKUP(C66,CPU!B37:D451,3,0)) -> m2 | F66: 25 | G66: =TRUNC((1-$H$9)*(SUMIFS(CPU!$G:$G,CPU!$A:$A,'BAIXA ALEGRE'!$C66,CPU!$H:$H,"ss")+SUMIFS(CPU!$G:$G,CPU!$A:$A,'BAIXA ALEGRE'!$C66,CPU!$H:$H,"mdo")+SUMIF('Comp SINAPI PE 04-2025 Onerado'!B:B,'BAIXA ALEGRE'!C66,'Comp SINAPI PE 04-2025 Onerado'!E:E)+SUMIF('Ins SINAPI PE 04-2025 Onerado'!B:B,'BAIXA ALEGRE'!C66,'Ins SINAPI PE 04-2025 Onerado'!F:F)),2) -> 7.54 | H66: =TRUNC(G66*(1+$H$5),2) -> 9.49 | I66: =TRUNC(F66*H66,2) -> 237.25
A67: 10.1.2 | B67: PRÓPRIA | C67: CPU.22 | D67: =(VLOOKUP(C67,CPU!B37:C355,2,0)) -> Tratamento de fissuras com injeção de adesivo estrutural à base de resina epóxi de baixa viscosidade - fornecimento e aplicação mecanizada | E67: =(VLOOKUP(C67,CPU!B36:D450,3,0)) -> kg | F67: 2.5 | G67: =TRUNC((1-$H$9)*(SUMIFS(CPU!$G:$G,CPU!$A:$A,'BAIXA ALEGRE'!$C67,CPU!$H:$H,"ss")+SUMIFS(CPU!$G:$G,CPU!$A:$A,'BAIXA ALEGRE'!$C67,CPU!$H:$H,"mdo")+SUMIF('Comp SINAPI PE 04-2025 Onerado'!B:B,'BAIXA ALEGRE'!C67,'Comp SINAPI PE 04-2025 Onerado'!E:E)+SUMIF('Ins SINAPI PE 04-2025 Onerado'!B:B,'BAIXA ALEGRE'!C67,'Ins SINAPI PE 04-2025 Onerado'!F:F)),2) -> 387.05 | H67: =TRUNC(G67*(1+$H$5),2) -> 487.33 | I67: =TRUNC(F67*H67,2) -> 1218.32
A68: 10.1.3 | B68: PRÓPRIA | C68: CPU.23 | D68: =(VLOOKUP(C68,CPU!B39:C357,2,0)) -> Emboço ou massa única em argamassa | E68: =(VLOOKUP(C68,CPU!B38:D452,3,0)) -> m2 | F68: 25 | G68: =TRUNC((1-$H$9)*(SUMIFS(CPU!$G:$G,CPU!$A:$A,'BAIXA ALEGRE'!$C68,CPU!$H:$H,"ss")+SUMIFS(CPU!$G:$G,CPU!$A:$A,'BAIXA ALEGRE'!$C68,CPU!$H:$H,"mdo")+SUMIF('Comp SINAPI PE 04-2025 Onerado'!B:B,'BAIXA ALEGRE'!C68,'Comp SINAPI PE 04-2025 Onerado'!E:E)+SUMIF('Ins SINAPI PE 04-2025 Onerado'!B:B,'BAIXA ALEGRE'!C68,'Ins SINAPI PE 04-2025 Onerado'!F:F)),2) -> 102.86 | H68: =TRUNC(G68*(1+$H$5),2) -> 129.51 | I68: =TRUNC(F68*H68,2) -> 3237.75
A69: 10.2 | D69: Preenchimento de descalçamento do pé do vertedouro | I69: =I70 -> 3652.59
A70: 10.2.1 | B70: PRÓPRIA | C70: CPU.17 | D70: =(VLOOKUP(C70,CPU!B30:C348,2,0)) -> Restauração com uso de Pedra Argamassada | E70: =(VLOOKUP(C70,CPU!B35:D449,3,0)) -> m3 | F70: 3 | G70: =TRUNC((1-$H$9)*(SUMIFS(CPU!$G:$G,CPU!$A:$A,'BAIXA ALEGRE'!$C70,CPU!$H:$H,"ss")+SUMIFS(CPU!$G:$G,CPU!$A:$A,'BAIXA ALEGRE'!$C70,CPU!$H:$H,"mdo")+SUMIF('Comp SINAPI PE 04-2025 Onerado'!B:B,'BAIXA ALEGRE'!C70,'Comp SINAPI PE 04-2025 Onerado'!E:E)+SUMIF('Ins SINAPI PE 04-2025 Onerado'!B:B,'BAIXA ALEGRE'!C70,'Ins SINAPI PE 04-2025 Onerado'!F:F)),2) -> 966.99 | H70: =TRUNC(G70*(1+$H$5),2) -> 1217.53 | I70: =TRUNC(F70*H70,2) -> 3652.59
A72: 11 | D72: SERVIÇOS COMPLEMENTARES | I72: =SUM(I73,I75) -> 5486.86
A73: 11.1 | D73: Instalação de placas de aviso | I73: =SUM(I74:I74) -> 2357.32
A74: 11.1.1 | B74: SINAPI | C74: 103689 | D74: =IF(J74="ca",VLOOKUP(C74,'Comp SINAPI PE 04-2025 Onerado'!$B$11:$C$9004,2,0),VLOOKUP(C74,'Ins SINAPI PE 04-2025 Onerado'!$B$10:$C$9004,2,0)) -> FORNECIMENTO E INSTALAÇÃO DE PLACA DE OBRA COM CHAPA GALVANIZADA E ESTRUTURA DE MADEIRA. AF_03/2022_PS | E74: =IF(J74="ca",VLOOKUP(C74,'Comp SINAPI PE 04-2025 Onerado'!$B$11:$D$9004,3,0),VLOOKUP(C74,'Ins SINAPI PE 04-2025 Onerado'!$B$11:$D$9004,3,0)) -> M2 | F74: 4 | G74: =TRUNC((1-$H$9)*(SUMIFS(CPU!$G:$G,CPU!$A:$A,'BAIXA ALEGRE'!$C74,CPU!$H:$H,"ss")+SUMIFS(CPU!$G:$G,CPU!$A:$A,'BAIXA ALEGRE'!$C74,CPU!$H:$H,"mdo")+SUMIF('Comp SINAPI PE 04-2025 Onerado'!B:B,'BAIXA ALEGRE'!C74,'Comp SINAPI PE 04-2025 Onerado'!E:E)+SUMIF('Ins SINAPI PE 04-2025 Onerado'!B:B,'BAIXA ALEGRE'!C74,'Ins SINAPI PE 04-2025 Onerado'!F:F)),2) -> 468.06 | H74: =TRUNC(G74*(1+$H$5),2) -> 589.33 | I74: =TRUNC(F74*H74,2) -> 2357.32 | J74: ca
A75: 11.2 | D75: Régua Linimétrica Padrão “ANA”, Aço Carbono - 2 X 70 X 1000 mm (Fornecimento e Instalação) | I75: =SUM(I76:I76) -> 3129.54
A76: 11.2.1 | B76: PRÓPRIA | C76: CPU.18 | D76: Régua Linimétrica Padrão “ANA”, Aço Carbono - 2 X 70 X 1000 mm (Fornecimento e Instalação) | E76: un | F76: 6 | G76: =TRUNC((1-$H$9)*(SUMIFS(CPU!$G:$G,CPU!$A:$A,'BAIXA ALEGRE'!$C76,CPU!$H:$H,"ss")+SUMIFS(CPU!$G:$G,CPU!$A:$A,'BAIXA ALEGRE'!$C76,CPU!$H:$H,"mdo")+SUMIF('Comp SINAPI PE 04-2025 Onerado'!B:B,'BAIXA ALEGRE'!C76,'Comp SINAPI PE 04-2025 Onerado'!E:E)+SUMIF('Ins SINAPI PE 04-2025 Onerado'!B:B,'BAIXA ALEGRE'!C76,'Ins SINAPI PE 04-2025 Onerado'!F:F)),2) -> 414.26 | H76: =TRUNC(G76*(1+$H$5),2) -> 521.59 | I76: =TRUNC(F76*H76,2) -> 3129.54
A78: 12 | D78: PROJETO "AS IS" | I78: =SUM(I79) -> 16152.9
A79: 12.1 | D79: Levantamento topógrafico e "AS IS" | I79: =SUM(I80:I81) -> 16152.9
A80: 12.1.1 | B80: ORSE | C80: 9346 | D80: Levantamento topográfico planimétrico cadastral | E80: m2 | F80: =F26 -> 12104.06 | G80: =TRUNC(0.35*(1-$H$9),2) -> 0.35 | H80: =TRUNC(G80*(1+$H$5),2) -> 0.44 | I80: =TRUNC(F80*H80,2) -> 5325.78
A81: 12.1.2 | B81: PRÓPRIA | C81: CPU.25 | D81: Projeto Geométrico | E81: un | F81: 1 | G81: =TRUNC((1-$H$9)*(SUMIFS(CPU!$G:$G,CPU!$A:$A,'BAIXA ALEGRE'!$C81,CPU!$H:$H,"ss")+SUMIFS(CPU!$G:$G,CPU!$A:$A,'BAIXA ALEGRE'!$C81,CPU!$H:$H,"mdo")+SUMIF('Comp SINAPI PE 04-2025 Onerado'!B:B,'BAIXA ALEGRE'!C81,'Comp SINAPI PE 04-2025 Onerado'!E:E)+SUMIF('Ins SINAPI PE 04-2025 Onerado'!B:B,'BAIXA ALEGRE'!C81,'Ins SINAPI PE 04-2025 Onerado'!F:F)),2) -> 8599.1 | H81: =TRUNC(G81*(1+$H$5),2) -> 10827.12 | I81: =TRUNC(F81*H81,2) -> 10827.12
A83: 13 | D83: FISCALIZAÇÃO E ACOMPANHAMENTO | I83: =SUM(I84) -> 2152.68
A84: 13.1 | D84: Disponibilidade de velículo para apoio a fiscalização | I84: =SUM(I85:I86) -> 2152.68
A85: 13.1.1 | B85: PRÓPRIA | C85: CPU.30 | D85: =(VLOOKUP(C85,CPU!B57:C375,2,0)) -> Disponibilidade de veículo para apoio a fiscalização, inclusive combustível | E85: un | F85: 6 | G85: =TRUNC((1-$H$9)*(SUMIFS(CPU!$G:$G,CPU!$A:$A,'BAIXA ALEGRE'!$C85,CPU!$H:$H,"ss")+SUMIFS(CPU!$G:$G,CPU!$A:$A,'BAIXA ALEGRE'!$C85,CPU!$H:$H,"mdo")+SUMIF('Comp SINAPI PE 04-2025 Onerado'!B:B,'BAIXA ALEGRE'!C85,'Comp SINAPI PE 04-2025 Onerado'!E:E)+SUMIF('Ins SINAPI PE 04-2025 Onerado'!B:B,'BAIXA ALEGRE'!C85,'Ins SINAPI PE 04-2025 Onerado'!F:F)),2) -> 284.95 | H85: =TRUNC(G85*(1+$H$5),2) -> 358.78 | I85: =TRUNC(F85*H85,2) -> 2152.68
D87: TOTAL (Custo): | I87: =TRUNC(SUMPRODUCT(F13:F86,G13:G86),2) -> 390457.42
D88: BDI e Encargos Sociais: | I88: =I89-I87 -> 101089.14
D89: TOTAL GERAL COM BDI: | I89: =SUM(I12,I16,I24,I29,I35,I50,I44,I54,I58,I64,I72,I78,I83) -> 491546.56

Sheet CAL
A1: Ministério da Integração e do Desenvolvimento Regional
A2: Companhia de Desenvolvimento dos Vales do São Francisco e do Parnaíba
A4: PLANILHA ORÇAMENTÁRIA - ORÇAMENTO NÃO DESONERADO
A5: OBRA: | B5: =Resumo!B5 -> Execução de Manutenção e Obras Civis nas Barragens de Pereiro, Cal, Soledade, Mudubim, Barra Franca, Baixa Alegre e Açude da Roça, localizadas no estado de Pernambuco. | G5: BDI (serv.): | H5: ='BDI serv'!D23 -> 0.2591 | I5: Bancos de dados:
A6: LOCAL: | B6: =Resumo!B6 -> BARRAGENS DE PERNAMBUCO | G6: BDI (forn.): | H6: ='BDI forn'!D23 -> 0 | I6: =Resumo!G6 -> MAI/25 - SINAPI
A7: DATA BASE: | B7: =Resumo!B7 -> 2025-04-01 | E7: Encargos sociais - Horistas: | H7: ='Encargos Sociais'!E49 -> 1.1384 | I7: =Resumo!G7 -> MAR/25 - ORSE
A8: PRAZO: | B8: 120 dias | E8: Encargos sociais - Mensalista: | H8: ='Encargos Sociais'!F49 -> 0.7011 | I8: =Resumo!G8 -> JAN/25 - SETOP
B9: =Resumo!B17 -> Cal | G9: Desconto: | H9: 0 | I9: =Resumo!G10 -> JAN/2025 - SICRO3
A10: ITEM | B10: REFERÊNCIA | D10: DESCRIÇÃO | E10: UNID. | F10: QUANT. | G10: CUSTO UNITÁRIO | H10: PREÇO UNITÁRIO | I10: PREÇO TOTAL
B11: FONTE | C11: CÓDIGO
A12: 1 | D12: ADMINISTRAÇÃO DA OBRA | I12: =SUM(I13) -> 140311.08
A13: 1.1 | D13: Administração da Obra | I13: =SUM(I14:I14) -> 140311.08
A14: 1.1.1 | B14: PRÓPRIA | C14: CPU.01 | D14: Administração Local | E14: mês | F14: 4 | G14: =TRUNC((1-$H$9)*(SUMIFS(CPU!$G:$G,CPU!$A:$A,CAL!$C14,CPU!$H:$H,"ss")+SUMIFS(CPU!$G:$G,CPU!$A:$A,CAL!$C14,CPU!$H:$H,"mdo")+SUMIF('Comp SINAPI PE 04-2025 Onerado'!B:B,CAL!C14,'Comp SINAPI PE 04-2025 Onerado'!E:E)+SUMIF('Ins SINAPI PE 04-2025 Onerado'!B:B,CAL!C14,'Ins SINAPI PE 04-2025 Onerado'!F:F)),2) -> 27859.4 | H14: =TRUNC(G14*(1+$H$5),2) -> 35077.77 | I14: =TRUNC(F14*H14,2) -> 140311.08
A16: 2 | D16: SERVIÇOS PRELIMINARES | I16: =SUM(I17,I19,I21) -> 30486.77
A17: 2.1 | D17: Mobilização e desmobilização | I17: =SUM(I18) -> 2799.41
A18: 2.1.1 | B18: PRÓPRIA | C18: CPU.02 | D18: Mobilização e desmobilização de instalação do canteiro | E18: un | F18: 1 | G18: =TRUNC((1-$H$9)*(SUMIFS(CPU!$G:$G,CPU!$A:$A,CAL!$C18,CPU!$H:$H,"ss")+SUMIFS(CPU!$G:$G,CPU!$A:$A,CAL!$C18,CPU!$H:$H,"mdo")+SUMIF('Comp SINAPI PE 04-2025 Onerado'!B:B,CAL!C18,'Comp SINAPI PE 04-2025 Onerado'!E:E)+SUMIF('Ins SINAPI PE 04-2025 Onerado'!B:B,CAL!C18,'Ins SINAPI PE 04-2025 Onerado'!F:F)),2) -> 2223.35 | H18: =TRUNC(G18*(1+$H$5),2) -> 2799.41 | I18: =TRUNC(F18*H18,2) -> 2799.41
A19: 2.2 | D19: Canteiro de obras | I19: =SUM(I20) -> 26508.7
A20: 2.2.1 | B20: PRÓPRIA | C20: CPU.03 | D20: Execução de canteiro de obras, inclusive, limpeza, refeitório, sanitários e central de formas | E20: m2 | F20: 28.5 | G20: =TRUNC((1-$H$9)*(SUMIFS(CPU!$G:$G,CPU!$A:$A,CAL!$C20,CPU!$H:$H,"ss")+SUMIFS(CPU!$G:$G,CPU!$A:$A,CAL!$C20,CPU!$H:$H,"mdo")+SUMIF('Comp SINAPI PE 04-2025 Onerado'!B:B,CAL!C20,'Comp SINAPI PE 04-2025 Onerado'!E:E)+SUMIF('Ins SINAPI PE 04-2025 Onerado'!B:B,CAL!C20,'Ins SINAPI PE 04-2025 Onerado'!F:F)),2) -> 738.73 | H20: =TRUNC(G20*(1+$H$5),2) -> 930.13 | I20: =TRUNC(F20*H20,2) -> 26508.7
A21: 2.3 | D21: Sinalização | I21: =SUM(I22:I22) -> 1178.66
A22: 2.3.1 | B22: SINAPI | C22: 103689 | D22: =IF(J22="ca",VLOOKUP(C22,'Comp SINAPI PE 04-2025 Onerado'!$B$11:$C$9004,2,0),VLOOKUP(C22,'Ins SINAPI PE 04-2025 Onerado'!$B$10:$C$9004,2,0)) -> FORNECIMENTO E INSTALAÇÃO DE PLACA DE OBRA COM CHAPA GALVANIZADA E ESTRUTURA DE MADEIRA. AF_03/2022_PS | E22: =IF(J22="ca",VLOOKUP(C22,'Comp SINAPI PE 04-2025 Onerado'!$B$11:$D$9004,3,0),VLOOKUP(C22,'Ins SINAPI PE 04-2025 Onerado'!$B$11:$D$9004,3,0)) -> M2 | F22: 2 | G22: =TRUNC((1-$H$9)*(SUMIFS(CPU!$G:$G,CPU!$A:$A,CAL!$C22,CPU!$H:$H,"ss")+SUMIFS(CPU!$G:$G,CPU!$A:$A,CAL!$C22,CPU!$H:$H,"mdo")+SUMIF('Comp SINAPI PE 04-2025 Onerado'!B:B,CAL!C22,'Comp SINAPI PE 04-2025 Onerado'!E:E)+SUMIF('Ins SINAPI PE 04-2025 Onerado'!B:B,CAL!C22,'Ins SINAPI PE 04-2025 Onerado'!F:F)),2) -> 468.06 | H22: =TRUNC(G22*(1+$H$5),2) -> 589.33 | I22: =TRUNC(F22*H22,2) -> 1178.66 | J22: ca
A24: 3 | D24: CORTE DA VEGETAÇÃO E REMOÇÃO DAS RAIZES | I24: =SUM(I25) -> 77935.94
A25: 3.1 | D25: Remoção da vegetação | I25: =SUM(I26:I27) -> 77935.94
A26: 3.1.1 | B26: PRÓPRIA | C26: CPU.04 | D26: Limpeza de vegetação | E26: =(VLOOKUP(C26,CPU!B2:D$434,3,0)) -> m2 | F26: 6837.37 | G26: =TRUNC((1-$H$9)*(SUMIFS(CPU!$G:$G,CPU!$A:$A,CAL!$C26,CPU!$H:$H,"ss")+SUMIFS(CPU!$G:$G,CPU!$A:$A,CAL!$C26,CPU!$H:$H,"mdo")+SUMIF('Comp SINAPI PE 04-2025 Onerado'!B:B,CAL!C26,'Comp SINAPI PE 04-2025 Onerado'!E:E)+SUMIF('Ins SINAPI PE 04-2025 Onerado'!B:B,CAL!C26,'Ins SINAPI PE 04-2025 Onerado'!F:F)),2) -> 7.81 | H26: =TRUNC(G26*(1+$H$5),2) -> 9.83 | I26: =TRUNC(F26*H26,2) -> 67211.34
A27: 3.1.2 | B27: PRÓPRIA | C27: CPU.05 | D27: Corte de tronco e remoção de raiz | E27: =(VLOOKUP(C27,CPU!B3:D$434,3,0)) -> un | F27: 20 | G27: =TRUNC((1-$H$9)*(SUMIFS(CPU!$G:$G,CPU!$A:$A,CAL!$C27,CPU!$H:$H,"ss")+SUMIFS(CPU!$G:$G,CPU!$A:$A,CAL!$C27,CPU!$H:$H,"mdo")+SUMIF('Comp SINAPI PE 04-2025 Onerado'!B:B,CAL!C27,'Comp SINAPI PE 04-2025 Onerado'!E:E)+SUMIF('Ins SINAPI PE 04-2025 Onerado'!B:B,CAL!C27,'Ins SINAPI PE 04-2025 Onerado'!F:F)),2) -> 425.89 | H27: =TRUNC(G27*(1+$H$5),2) -> 536.23 | I27: =TRUNC(F27*H27,2) -> 10724.6
A29: 4 | D29: RECUPERAÇÃO DO MACIÇO | I29: =SUM(I30,I33) -> 10167.38
A30: 4.1 | D30: Recomposição das Erosões (erosões locais nas ombreiras e aterro), trincas e buracos | I30: =SUM(I31:I32) -> 10030.85
A31: 4.1.1 | B31: PRÓPRIA | C31: CPU.27 | D31: Recuperação com escavação e reaterro de aberturas na crista (Rachaduras, trincas e burcacos (Sinkholes)) | E31: =(VLOOKUP(C31,CPU!B3:D$434,3,0)) -> m3 | F31: 5 | G31: =TRUNC((1-$H$9)*(SUMIFS(CPU!$G:$G,CPU!$A:$A,CAL!$C31,CPU!$H:$H,"ss")+SUMIFS(CPU!$G:$G,CPU!$A:$A,CAL!$C31,CPU!$H:$H,"mdo")+SUMIF('Comp SINAPI PE 04-2025 Onerado'!B:B,CAL!C31,'Comp SINAPI PE 04-2025 Onerado'!E:E)+SUMIF('Ins SINAPI PE 04-2025 Onerado'!B:B,CAL!C31,'Ins SINAPI PE 04-2025 Onerado'!F:F)),2) -> 251.46 | H31: =TRUNC(G31*(1+$H$5),2) -> 316.61 | I31: =TRUNC(F31*H31,2) -> 1583.05
A32: 4.1.1 | B32: PRÓPRIA | C32: CPU.13 | D32: Recomposição das erosões, inclusive, regularização da superfície e reaterro | E32: =(VLOOKUP(C32,CPU!B4:D$434,3,0)) -> m3 | F32: 20 | G32: =TRUNC((1-$H$9)*(SUMIFS(CPU!$G:$G,CPU!$A:$A,CAL!$C32,CPU!$H:$H,"ss")+SUMIFS(CPU!$G:$G,CPU!$A:$A,CAL!$C32,CPU!$H:$H,"mdo")+SUMIF('Comp SINAPI PE 04-2025 Onerado'!B:B,CAL!C32,'Comp SINAPI PE 04-2025 Onerado'!E:E)+SUMIF('Ins SINAPI PE 04-2025 Onerado'!B:B,CAL!C32,'Ins SINAPI PE 04-2025 Onerado'!F:F)),2) -> 335.47 | H32: =TRUNC(G32*(1+$H$5),2) -> 422.39 | I32: =TRUNC(F32*H32,2) -> 8447.8
A33: 4.2 | D33: Injeção de nata de cimento em buracos | I33: =SUM(I34:I34) -> 136.53
A34: 4.2.1 | B34: PRÓPRIA | C34: CPU.26 | D34: Injeção de nata de cimento em buracos | E34: =(VLOOKUP(C34,CPU!B6:D$434,3,0)) -> m3 | F34: 0.1 | G34: =TRUNC((1-$H$9)*(SUMIFS(CPU!$G:$G,CPU!$A:$A,CAL!$C34,CPU!$H:$H,"ss")+SUMIFS(CPU!$G:$G,CPU!$A:$A,CAL!$C34,CPU!$H:$H,"mdo")+SUMIF('Comp SINAPI PE 04-2025 Onerado'!B:B,CAL!C34,'Comp SINAPI PE 04-2025 Onerado'!E:E)+SUMIF('Ins SINAPI PE 04-2025 Onerado'!B:B,CAL!C34,'Ins SINAPI PE 04-2025 Onerado'!F:F)),2) -> 1084.39 | H34: =TRUNC(G34*(1+$H$5),2) -> 1365.35 | I34: =TRUNC(F34*H34,2) -> 136.53
A36: 5 | D36: REGULARIZAÇÃO E PAVIMENTAÇÃO DA CRISTA | I36: =SUM(I37,I39,I41) -> 59732.68
A37: 5.1 | D37: Regularização da Crista | I37: =SUM(I38:I38) -> 1216
A38: 5.1.1 | B38: PRÓPRIA | C38: CPU.14 | D38: =(VLOOKUP(C38,CPU!B10:C328,2,0)) -> Regularização e compactação da crista | E38: =(VLOOKUP(C38,CPU!B10:D328,3,0)) -> m2 | F38: 400 | G38: =TRUNC((1-$H$9)*(SUMIFS(CPU!$G:$G,CPU!$A:$A,CAL!$C38,CPU!$H:$H,"ss")+SUMIFS(CPU!$G:$G,CPU!$A:$A,CAL!$C38,CPU!$H:$H,"mdo")+SUMIF('Comp SINAPI PE 04-2025 Onerado'!B:B,CAL!C38,'Comp SINAPI PE 04-2025 Onerado'!E:E)+SUMIF('Ins SINAPI PE 04-2025 Onerado'!B:B,CAL!C38,'Ins SINAPI PE 04-2025 Onerado'!F:F)),2) -> 2.42 | H38: =TRUNC(G38*(1+$H$5),2) -> 3.04 | I38: =TRUNC(F38*H38,2) -> 1216
A39: 5.2 | D39: Instalação de meio-fio e sarjeta em ambos os lados da crista | I39: =SUM(I40:I40) -> 30154.08
A40: 5.2.1 | B40: PRÓPRIA | C40: CPU.20 | D40: =(VLOOKUP(C40,CPU!B12:C330,2,0)) -> Guia (meio-fio) e sarjeta conjudados de concreto, moldada In Loco, 45cm base (15 cm Base da Guia +30 cm Base da Sarjeta) x 22 cm Altura | E40: =(VLOOKUP(C40,CPU!B12:D330,3,0)) -> m | F40: 264 | G40: =TRUNC((1-$H$9)*(SUMIFS(CPU!$G:$G,CPU!$A:$A,CAL!$C40,CPU!$H:$H,"ss")+SUMIFS(CPU!$G:$G,CPU!$A:$A,CAL!$C40,CPU!$H:$H,"mdo")+SUMIF('Comp SINAPI PE 04-2025 Onerado'!B:B,CAL!C40,'Comp SINAPI PE 04-2025 Onerado'!E:E)+SUMIF('Ins SINAPI PE 04-2025 Onerado'!B:B,CAL!C40,'Ins SINAPI PE 04-2025 Onerado'!F:F)),2) -> 90.72 | H40: =TRUNC(G40*(1+$H$5),2) -> 114.22 | I40: =TRUNC(F40*H40,2) -> 30154.08
A41: 5.3 | D41: Pavimentação da Crista | I41: =SUM(I42:I42) -> 28362.6
A42: 5.3.1 | B42: PRÓPRIA | C42: CPU.15 | D42: =(VLOOKUP(C42,CPU!B14:C332,2,0)) -> Execução de Revestimento com BGTC | E42: =(VLOOKUP(C42,CPU!B14:D332,3,0)) -> m3 | F42: =F38*0.15 -> 60 | G42: =TRUNC((1-$H$9)*(SUMIFS(CPU!$G:$G,CPU!$A:$A,CAL!$C42,CPU!$H:$H,"ss")+SUMIFS(CPU!$G:$G,CPU!$A:$A,CAL!$C42,CPU!$H:$H,"mdo")+SUMIF('Comp SINAPI PE 04-2025 Onerado'!B:B,CAL!C42,'Comp SINAPI PE 04-2025 Onerado'!E:E)+SUMIF('Ins SINAPI PE 04-2025 Onerado'!B:B,CAL!C42,'Ins SINAPI PE 04-2025 Onerado'!F:F)),2) -> 375.44 | H42: =TRUNC(G42*(1+$H$5),2) -> 472.71 | I42: =TRUNC(F42*H42,2) -> 28362.6
A44: 6 | D44: DRENAGEM SUPERFICIAL DO TALUDE DE JUSANTE | I44: =SUM(I45,I47) -> 13849
A45: 6.1 | D45: Canaleta para descida d'água | I45: =SUM(I46:I46) -> 12827.1
A46: 6.1.1 | B46: PRÓPRIA | C46: CPU.08 | D46: =(VLOOKUP(C46,CPU!B18:C336,2,0)) -> Canaleta meia cana de concreto (D=30cm) - Fornecimento e instalação | E46: =(VLOOKUP(C46,CPU!B18:D336,3,0)) -> m | F46: 66 | G46: =TRUNC((1-$H$9)*(SUMIFS(CPU!$G:$G,CPU!$A:$A,CAL!$C46,CPU!$H:$H,"ss")+SUMIFS(CPU!$G:$G,CPU!$A:$A,CAL!$C46,CPU!$H:$H,"mdo")+SUMIF('Comp SINAPI PE 04-2025 Onerado'!B:B,CAL!C46,'Comp SINAPI PE 04-2025 Onerado'!E:E)+SUMIF('Ins SINAPI PE 04-2025 Onerado'!B:B,CAL!C46,'Ins SINAPI PE 04-2025 Onerado'!F:F)),2) -> 154.36 | H46: =TRUNC(G46*(1+$H$5),2) -> 194.35 | I46: =TRUNC(F46*H46,2) -> 12827.1
A47: 6.2 | D47: Entrada para descida d'água | I47: =SUM(I48:I48) -> 1021.9
A48: 6.2.1 | B48: PRÓPRIA | C48: CPU.09 | D48: =(VLOOKUP(C48,CPU!B20:C338,2,0)) -> Entrada para descida d'água | E48: =(VLOOKUP(C48,CPU!B20:D434,3,0)) -> un | F48: 5 | G48: =TRUNC((1-$H$9)*(SUMIFS(CPU!$G:$G,CPU!$A:$A,CAL!$C48,CPU!$H:$H,"ss")+SUMIFS(CPU!$G:$G,CPU!$A:$A,CAL!$C48,CPU!$H:$H,"mdo")+SUMIF('Comp SINAPI PE 04-2025 Onerado'!B:B,CAL!C48,'Comp SINAPI PE 04-2025 Onerado'!E:E)+SUMIF('Ins SINAPI PE 04-2025 Onerado'!B:B,CAL!C48,'Ins SINAPI PE 04-2025 Onerado'!F:F)),2) -> 162.33 | H48: =TRUNC(G48*(1+$H$5),2) -> 204.38 | I48: =TRUNC(F48*H48,2) -> 1021.9
A50: 7 | D50: MANUTENÇÃO NO TALUDE DE MONTANTE | I50: =SUM(I51) -> 26586.72
A51: 7.1 | D51: Enrocamento com pedra de mão para proteção do talude | I51: =SUM(I52:I52) -> 26586.72
A52: 7.1.1 | B52: PRÓPRIA | C52: CPU.07 | D52: =(VLOOKUP(C52,CPU!B24:C342,2,0)) -> Enrocamento c/ pedra de mão c/ fornecimento e assentamento | E52: =(VLOOKUP(C52,CPU!B24:D434,3,0)) -> m3 | F52: 74 | G52: =TRUNC((1-$H$9)*(SUMIFS(CPU!$G:$G,CPU!$A:$A,CAL!$C52,CPU!$H:$H,"ss")+SUMIFS(CPU!$G:$G,CPU!$A:$A,CAL!$C52,CPU!$H:$H,"mdo")+SUMIF('Comp SINAPI PE 04-2025 Onerado'!B:B,CAL!C52,'Comp SINAPI PE 04-2025 Onerado'!E:E)+SUMIF('Ins SINAPI PE 04-2025 Onerado'!B:B,CAL!C52,'Ins SINAPI PE 04-2025 Onerado'!F:F)),2) -> 285.35 | H52: =TRUNC(G52*(1+$H$5),2) -> 359.28 | I52: =TRUNC(F52*H52,2) -> 26586.72
A54: 8 | D54: PROTEÇÃO SUPERFICIAL DO TALUDE DE JUSANTE | I54: =SUM(I55) -> 14081.6
A55: 8.1 | D55: Proteção vegetal | I55: =SUM(I56:I56) -> 14081.6
A56: 8.1.1 | B56: PRÓPRIA | C56: CPU.10 | D56: =(VLOOKUP(C56,CPU!B28:C346,2,0)) -> Plantio de vegetação para proteção de talude com hidrossemeadura, inclusive adubação e transporte | E56: =(VLOOKUP(C56,CPU!B28:D434,3,0)) -> m2 | F56: 1040 | G56: =TRUNC((1-$H$9)*(SUMIFS(CPU!$G:$G,CPU!$A:$A,CAL!$C56,CPU!$H:$H,"ss")+SUMIFS(CPU!$G:$G,CPU!$A:$A,CAL!$C56,CPU!$H:$H,"mdo")+SUMIF('Comp SINAPI PE 04-2025 Onerado'!B:B,CAL!C56,'Comp SINAPI PE 04-2025 Onerado'!E:E)+SUMIF('Ins SINAPI PE 04-2025 Onerado'!B:B,CAL!C56,'Ins SINAPI PE 04-2025 Onerado'!F:F)),2) -> 10.76 | H56: =TRUNC(G56*(1+$H$5),2) -> 13.54 | I56: =TRUNC(F56*H56,2) -> 14081.6
A58: 9 | D58: RESTAURAÇÃO DO MURO LATERAL | I58: =SUM(I59,I62) -> 25810.3
A59: 9.1 | D59: Restauração do muro lateral | I59: =SUM(I60:I61) -> 6950
A60: 9.1.1 | B60: PRÓPRIA | C60: CPU.24 | D60: Limpeza da superfície | E60: =(VLOOKUP(C60,CPU!B32:D434,3,0)) -> m2 | F60: 50 | G60: =TRUNC((1-$H$9)*(SUMIFS(CPU!$G:$G,CPU!$A:$A,CAL!$C60,CPU!$H:$H,"ss")+SUMIFS(CPU!$G:$G,CPU!$A:$A,CAL!$C60,CPU!$H:$H,"mdo")+SUMIF('Comp SINAPI PE 04-2025 Onerado'!B:B,CAL!C60,'Comp SINAPI PE 04-2025 Onerado'!E:E)+SUMIF('Ins SINAPI PE 04-2025 Onerado'!B:B,CAL!C60,'Ins SINAPI PE 04-2025 Onerado'!F:F)),2) -> 7.54 | H60: =TRUNC(G60*(1+$H$5),2) -> 9.49 | I60: =TRUNC(F60*H60,2) -> 474.5
A61: 9.1.2 | B61: PRÓPRIA | C61: CPU.23 | D61: Emboço ou massa única em argamassa | E61: =(VLOOKUP(C61,CPU!B33:D434,3,0)) -> m2 | F61: 50 | G61: =TRUNC((1-$H$9)*(SUMIFS(CPU!$G:$G,CPU!$A:$A,CAL!$C61,CPU!$H:$H,"ss")+SUMIFS(CPU!$G:$G,CPU!$A:$A,CAL!$C61,CPU!$H:$H,"mdo")+SUMIF('Comp SINAPI PE 04-2025 Onerado'!B:B,CAL!C61,'Comp SINAPI PE 04-2025 Onerado'!E:E)+SUMIF('Ins SINAPI PE 04-2025 Onerado'!B:B,CAL!C61,'Ins SINAPI PE 04-2025 Onerado'!F:F)),2) -> 102.86 | H61: =TRUNC(G61*(1+$H$5),2) -> 129.51 | I61: =TRUNC(F61*H61,2) -> 6475.5
A62: 9.2 | D62: Preenchimento de descalçamento do muro | I62: =I63 -> 18860.3
A63: 9.2.1 | B63: PRÓPRIA | C63: CPU.16 | D63: =(VLOOKUP(C63,CPU!B35:C353,2,0)) -> Restauração com uso de concreto | E63: =(VLOOKUP(C63,CPU!B35:D353,3,0)) -> m3 | F63: =20*0.1*5 -> 10 | G63: =TRUNC((1-$H$9)*(SUMIFS(CPU!$G:$G,CPU!$A:$A,CAL!$C63,CPU!$H:$H,"ss")+SUMIFS(CPU!$G:$G,CPU!$A:$A,CAL!$C63,CPU!$H:$H,"mdo")+SUMIF('Comp SINAPI PE 04-2025 Onerado'!B:B,CAL!C63,'Comp SINAPI PE 04-2025 Onerado'!E:E)+SUMIF('Ins SINAPI PE 04-2025 Onerado'!B:B,CAL!C63,'Ins SINAPI PE 04-2025 Onerado'!F:F)),2) -> 1497.92 | H63: =TRUNC(G63*(1+$H$5),2) -> 1886.03 | I63: =TRUNC(F63*H63,2) -> 18860.3
A65: 10 | D65: CONTENÇÃO DO PROCESSO EROSIVO NA OMBREIRA | I65: =SUM(I66) -> 8367.2
A66: 10.1 | D66: Tratamento da erosão na ombreira | I66: =SUM(I67:I67) -> 8367.2
A67: 10.1.1 | B67: PRÓPRIA | C67: CPU.12 | D67: Enrocamento ARCO tipo rachão reciclado cinza classe A jogado com fornecimento | E67: =(VLOOKUP(C67,CPU!B39:D357,3,0)) -> m3 | F67: 40 | G67: =TRUNC((1-$H$9)*(SUMIFS(CPU!$G:$G,CPU!$A:$A,CAL!$C67,CPU!$H:$H,"ss")+SUMIFS(CPU!$G:$G,CPU!$A:$A,CAL!$C67,CPU!$H:$H,"mdo")+SUMIF('Comp SINAPI PE 04-2025 Onerado'!B:B,CAL!C67,'Comp SINAPI PE 04-2025 Onerado'!E:E)+SUMIF('Ins SINAPI PE 04-2025 Onerado'!B:B,CAL!C67,'Ins SINAPI PE 04-2025 Onerado'!F:F)),2) -> 166.14 | H67: =TRUNC(G67*(1+$H$5),2) -> 209.18 | I67: =TRUNC(F67*H67,2) -> 8367.2
A69: 11 | D69: SERVIÇOS COMPLEMENTARES | I69: =SUM(I70,I72) -> 6530.04
A70: 11.1 | D70: Instalação de placas de aviso | I70: =SUM(I71:I71) -> 2357.32
A71: 11.1.1 | B71: SINAPI | C71: 103689 | D71: =IF(J71="ca",VLOOKUP(C71,'Comp SINAPI PE 04-2025 Onerado'!$B$11:$C$9004,2,0),VLOOKUP(C71,'Ins SINAPI PE 04-2025 Onerado'!$B$10:$C$9004,2,0)) -> FORNECIMENTO E INSTALAÇÃO DE PLACA DE OBRA COM CHAPA GALVANIZADA E ESTRUTURA DE MADEIRA. AF_03/2022_PS | E71: =IF(J71="ca",VLOOKUP(C71,'Comp SINAPI PE 04-2025 Onerado'!$B$11:$D$9004,3,0),VLOOKUP(C71,'Ins SINAPI PE 04-2025 Onerado'!$B$11:$D$9004,3,0)) -> M2 | F71: 4 | G71: =TRUNC((1-$H$9)*(SUMIFS(CPU!$G:$G,CPU!$A:$A,CAL!$C71,CPU!$H:$H,"ss")+SUMIFS(CPU!$G:$G,CPU!$A:$A,CAL!$C71,CPU!$H:$H,"mdo")+SUMIF('Comp SINAPI PE 04-2025 Onerado'!B:B,CAL!C71,'Comp SINAPI PE 04-2025 Onerado'!E:E)+SUMIF('Ins SINAPI PE 04-2025 Onerado'!B:B,CAL!C71,'Ins SINAPI PE 04-2025 Onerado'!F:F)),2) -> 468.06 | H71: =TRUNC(G71*(1+$H$5),2) -> 589.33 | I71: =TRUNC(F71*H71,2) -> 2357.32 | J71: ca
A72: 11.2 | D72: Régua Linimétrica Padrão “ANA”, Aço Carbono - 2 X 70 X 1000 mm (Fornecimento e Instalação) | I72: =SUM(I73:I73) -> 4172.72
A73: 11.2.1 | B73: PRÓPRIA | C73: CPU.18 | D73: Régua Linimétrica Padrão “ANA”, Aço Carbono - 2 X 70 X 1000 mm (Fornecimento e Instalação) | E73: un | F73: 8 | G73: =TRUNC((1-$H$9)*(SUMIFS(CPU!$G:$G,CPU!$A:$A,CAL!$C73,CPU!$H:$H,"ss")+SUMIFS(CPU!$G:$G,CPU!$A:$A,CAL!$C73,CPU!$H:$H,"mdo")+SUMIF('Comp SINAPI PE 04-2025 Onerado'!B:B,CAL!C73,'Comp SINAPI PE 04-2025 Onerado'!E:E)+SUMIF('Ins SINAPI PE 04-2025 Onerado'!B:B,CAL!C73,'Ins SINAPI PE 04-2025 Onerado'!F:F)),2) -> 414.26 | H73: =TRUNC(G73*(1+$H$5),2) -> 521.59 | I73: =TRUNC(F73*H73,2) -> 4172.72
A75: 12 | D75: PROJETO "AS IS" | I75: =SUM(I76) -> 13835.56
A76: 12.1 | D76: Levantamento topógrafico e "AS IS" | I76: =SUM(I77:I78) -> 13835.56
A77: 12.1.1 | B77: ORSE | C77: 9346 | D77: Levantamento topográfico planimétrico cadastral | E77: m2 | F77: =F26 -> 6837.37 | G77: =TRUNC(0.35*(1-$H$9),2) -> 0.35 | H77: =TRUNC(G77*(1+$H$5),2) -> 0.44 | I77: =TRUNC(F77*H77,2) -> 3008.44
A78: 12.1.2 | B78: PRÓPRIA | C78: CPU.25 | D78: Projeto Geométrico | E78: un | F78: 1 | G78: =TRUNC((1-$H$9)*(SUMIFS(CPU!$G:$G,CPU!$A:$A,CAL!$C78,CPU!$H:$H,"ss")+SUMIFS(CPU!$G:$G,CPU!$A:$A,CAL!$C78,CPU!$H:$H,"mdo")+SUMIF('Comp SINAPI PE 04-2025 Onerado'!B:B,CAL!C78,'Comp SINAPI PE 04-2025 Onerado'!E:E)+SUMIF('Ins SINAPI PE 04-2025 Onerado'!B:B,CAL!C78,'Ins SINAPI PE 04-2025 Onerado'!F:F)),2) -> 8599.1 | H78: =TRUNC(G78*(1+$H$5),2) -> 10827.12 | I78: =TRUNC(F78*H78,2) -> 10827.12
A80: 13 | D80: FISCALIZAÇÃO E ACOMPANHAMENTO | I80: =SUM(I81) -> 2152.68
A81: 13.1 | D81: Disponibilidade de velículo para apoio a fiscalização | I81: =SUM(I82:I83) -> 2152.68
A82: 13.1.1 | B82: PRÓPRIA | C82: CPU.30 | D82: =(VLOOKUP(C82,CPU!B54:C372,2,0)) -> Disponibilidade de veículo para apoio a fiscalização, inclusive combustível | E82: un | F82: 6 | G82: =TRUNC((1-$H$9)*(SUMIFS(CPU!$G:$G,CPU!$A:$A,CAL!$C82,CPU!$H:$H,"ss")+SUMIFS(CPU!$G:$G,CPU!$A:$A,CAL!$C82,CPU!$H:$H,"mdo")+SUMIF('Comp SINAPI PE 04-2025 Onerado'!B:B,CAL!C82,'Comp SINAPI PE 04-2025 Onerado'!E:E)+SUMIF('Ins SINAPI PE 04-2025 Onerado'!B:B,CAL!C82,'Ins SINAPI PE 04-2025 Onerado'!F:F)),2) -> 284.95 | H82: =TRUNC(G82*(1+$H$5),2) -> 358.78 | I82: =TRUNC(F82*H82,2) -> 2152.68
D84: TOTAL (Custo): | I84: =TRUNC(SUMPRODUCT(F13:F83,G13:G83),2) -> 341426.86
D85: BDI e Encargos Sociais: | I85: =I86-I84 -> 88420.09
D86: TOTAL GERAL COM BDI: | I86: =SUM(I12,I16,I24,I29,I36,I50,I44,I54,I58,I65,I69,I75,I80) -> 429846.95

Sheet SOLEDADE
A1: Ministério da Integração e do Desenvolvimento Regional
A2: Companhia de Desenvolvimento dos Vales do São Francisco e do Parnaíba
A4: PLANILHA ORÇAMENTÁRIA - ORÇAMENTO NÃO DESONERADO
A5: OBRA: | B5: =Resumo!B5 -> Execução de Manutenção e Obras Civis nas Barragens de Pereiro, Cal, Soledade, Mudubim, Barra Franca, Baixa Alegre e Açude da Roça, localizadas no estado de Pernambuco. | G5: BDI (serv.): | H5: ='BDI serv'!D23 -> 0.2591 | I5: Bancos de dados:
A6: LOCAL: | B6: =Resumo!B6 -> BARRAGENS DE PERNAMBUCO | G6: BDI (forn.): | H6: ='BDI forn'!D23 -> 0 | I6: =Resumo!G6 -> MAI/25 - SINAPI
A7: DATA BASE: | B7: =Resumo!B7 -> 2025-04-01 | E7: Encargos sociais - Horistas: | H7: ='Encargos Sociais'!E49 -> 1.1384 | I7: =Resumo!G7 -> MAR/25 - ORSE
A8: PRAZO: | B8: 120 dias | E8: Encargos sociais - Mensalista: | H8: ='Encargos Sociais'!F49 -> 0.7011 | I8: =Resumo!G8 -> JAN/25 - SETOP
B9: =Resumo!B18 -> Soledade | G9: Desconto: | H9: 0 | I9: =Resumo!G10 -> JAN/2025 - SICRO3
A10: ITEM | B10: REFERÊNCIA | D10: DESCRIÇÃO | E10: UNID. | F10: QUANT. | G10: CUSTO UNITÁRIO | H10: PREÇO UNITÁRIO | I10: PREÇO TOTAL
B11: FONTE | C11: CÓDIGO
A12: 1 | D12: ADMINISTRAÇÃO DA OBRA | I12: =SUM(I13) -> 140311.08
A13: 1.1 | D13: Administração da Obra | I13: =SUM(I14:I14) -> 140311.08
A14: 1.1.1 | B14: PRÓPRIA | C14: CPU.01 | D14: Administração Local | E14: mês | F14: 4 | G14: =TRUNC((1-$H$9)*(SUMIFS(CPU!$G:$G,CPU!$A:$A,SOLEDADE!$C14,CPU!$H:$H,"ss")+SUMIFS(CPU!$G:$G,CPU!$A:$A,SOLEDADE!$C14,CPU!$H:$H,"mdo")+SUMIF('Comp SINAPI PE 04-2025 Onerado'!B:B,SOLEDADE!C14,'Comp SINAPI PE 04-2025 Onerado'!E:E)+SUMIF('Ins SINAPI PE 04-2025 Onerado'!B:B,SOLEDADE!C14,'Ins SINAPI PE 04-2025 Onerado'!F:F)),2) -> 27859.4 | H14: =TRUNC(G14*(1+$H$5),2) -> 35077.77 | I14: =TRUNC(F14*H14,2) -> 140311.08
A16: 2 | D16: SERVIÇOS PRELIMINARES | I16: =SUM(I17,I19,I21) -> 30486.77
A17: 2.1 | D17: Mobilização e desmobilização | I17: =SUM(I18) -> 2799.41
A18: 2.1.1 | B18: PRÓPRIA | C18: CPU.02 | D18: Mobilização e desmobilização de instalação do canteiro | E18: un | F18: 1 | G18: =TRUNC((1-$H$9)*(SUMIFS(CPU!$G:$G,CPU!$A:$A,SOLEDADE!$C18,CPU!$H:$H,"ss")+SUMIFS(CPU!$G:$G,CPU!$A:$A,SOLEDADE!$C18,CPU!$H:$H,"mdo")+SUMIF('Comp SINAPI PE 04-2025 Onerado'!B:B,SOLEDADE!C18,'Comp SINAPI PE 04-2025 Onerado'!E:E)+SUMIF('Ins SINAPI PE 04-2025 Onerado'!B:B,SOLEDADE!C18,'Ins SINAPI PE 04-2025 Onerado'!F:F)),2) -> 2223.35 | H18: =TRUNC(G18*(1+$H$5),2) -> 2799.41 | I18: =TRUNC(F18*H18,2) -> 2799.41
A19: 2.2 | D19: Canteiro de obras | I19: =SUM(I20) -> 26508.7
A20: 2.2.1 | B20: PRÓPRIA | C20: CPU.03 | D20: Execução de canteiro de obras, inclusive, limpeza, refeitório, sanitários e central de formas | E20: m2 | F20: 28.5 | G20: =TRUNC((1-$H$9)*(SUMIFS(CPU!$G:$G,CPU!$A:$A,SOLEDADE!$C20,CPU!$H:$H,"ss")+SUMIFS(CPU!$G:$G,CPU!$A:$A,SOLEDADE!$C20,CPU!$H:$H,"mdo")+SUMIF('Comp SINAPI PE 04-2025 Onerado'!B:B,SOLEDADE!C20,'Comp SINAPI PE 04-2025 Onerado'!E:E)+SUMIF('Ins SINAPI PE 04-2025 Onerado'!B:B,SOLEDADE!C20,'Ins SINAPI PE 04-2025 Onerado'!F:F)),2) -> 738.73 | H20: =TRUNC(G20*(1+$H$5),2) -> 930.13 | I20: =TRUNC(F20*H20,2) -> 26508.7
A21: 2.3 | D21: Sinalização | I21: =SUM(I22:I22) -> 1178.66
A22: 2.3.1 | B22: SINAPI | C22: 103689 | D22: =IF(J22="ca",VLOOKUP(C22,'Comp SINAPI PE 04-2025 Onerado'!$B$11:$C$9004,2,0),VLOOKUP(C22,'Ins SINAPI PE 04-2025 Onerado'!$B$10:$C$9004,2,0)) -> FORNECIMENTO E INSTALAÇÃO DE PLACA DE OBRA COM CHAPA GALVANIZADA E ESTRUTURA DE MADEIRA. AF_03/2022_PS | E22: =IF(J22="ca",VLOOKUP(C22,'Comp SINAPI PE 04-2025 Onerado'!$B$11:$D$9004,3,0),VLOOKUP(C22,'Ins SINAPI PE 04-2025 Onerado'!$B$11:$D$9004,3,0)) -> M2 | F22: 2 | G22: =TRUNC((1-$H$9)*(SUMIFS(CPU!$G:$G,CPU!$A:$A,SOLEDADE!$C22,CPU!$H:$H,"ss")+SUMIFS(CPU!$G:$G,CPU!$A:$A,SOLEDADE!$C22,CPU!$H:$H,"mdo")+SUMIF('Comp SINAPI PE 04-2025 Onerado'!B:B,SOLEDADE!C22,'Comp SINAPI PE 04-2025 Onerado'!E:E)+SUMIF('Ins SINAPI PE 04-2025 Onerado'!B:B,SOLEDADE!C22,'Ins SINAPI PE 04-2025 Onerado'!F:F)),2) -> 468.06 | H22: =TRUNC(G22*(1+$H$5),2) -> 589.33 | I22: =TRUNC(F22*H22,2) -> 1178.66 | J22: ca
A24: 3 | D24: CORTE DA VEGETAÇÃO E REMOÇÃO DAS RAIZES | I24: =SUM(I25) -> 160260.62
A25: 3.1 | D25: Remoção da vegetação | I25: =SUM(I26:I27) -> 160260.62
A26: 3.1.1 | B26: PRÓPRIA | C26: CPU.04 | D26: Limpeza de vegetação | E26: =(VLOOKUP(C26,CPU!B2:D$434,3,0)) -> m2 | F26: 15212.21 | G26: =TRUNC((1-$H$9)*(SUMIFS(CPU!$G:$G,CPU!$A:$A,SOLEDADE!$C26,CPU!$H:$H,"ss")+SUMIFS(CPU!$G:$G,CPU!$A:$A,SOLEDADE!$C26,CPU!$H:$H,"mdo")+SUMIF('Comp SINAPI PE 04-2025 Onerado'!B:B,SOLEDADE!C26,'Comp SINAPI PE 04-2025 Onerado'!E:E)+SUMIF('Ins SINAPI PE 04-2025 Onerado'!B:B,SOLEDADE!C26,'Ins SINAPI PE 04-2025 Onerado'!F:F)),2) -> 7.81 | H26: =TRUNC(G26*(1+$H$5),2) -> 9.83 | I26: =TRUNC(F26*H26,2) -> 149536.02
A27: 3.1.2 | B27: PRÓPRIA | C27: CPU.05 | D27: Corte de tronco e remoção de raiz | E27: =(VLOOKUP(C27,CPU!B3:D$434,3,0)) -> un | F27: 20 | G27: =TRUNC((1-$H$9)*(SUMIFS(CPU!$G:$G,CPU!$A:$A,SOLEDADE!$C27,CPU!$H:$H,"ss")+SUMIFS(CPU!$G:$G,CPU!$A:$A,SOLEDADE!$C27,CPU!$H:$H,"mdo")+SUMIF('Comp SINAPI PE 04-2025 Onerado'!B:B,SOLEDADE!C27,'Comp SINAPI PE 04-2025 Onerado'!E:E)+SUMIF('Ins SINAPI PE 04-2025 Onerado'!B:B,SOLEDADE!C27,'Ins SINAPI PE 04-2025 Onerado'!F:F)),2) -> 425.89 | H27: =TRUNC(G27*(1+$H$5),2) -> 536.23 | I27: =TRUNC(F27*H27,2) -> 10724.6
A29: 4 | D29: RECUPERAÇÃO DO MACIÇO | I29: =SUM(I30,I33) -> 10060.87
A30: 4.1 | D30: Recomposição das Erosões (erosões locais nas ombreiras e aterro), trincas e buracos | I30: =SUM(I31:I32) -> 9924.34
A31: 4.1.1 | B31: PRÓPRIA | C31: CPU.27 | D31: Recuperação com escavação e reaterro de aberturas na crista (Rachaduras, trincas e burcacos (Sinkholes)) | E31: =(VLOOKUP(C31,CPU!B3:D$434,3,0)) -> m3 | F31: 10 | G31: =TRUNC((1-$H$9)*(SUMIFS(CPU!$G:$G,CPU!$A:$A,SOLEDADE!$C31,CPU!$H:$H,"ss")+SUMIFS(CPU!$G:$G,CPU!$A:$A,SOLEDADE!$C31,CPU!$H:$H,"mdo")+SUMIF('Comp SINAPI PE 04-2025 Onerado'!B:B,SOLEDADE!C31,'Comp SINAPI PE 04-2025 Onerado'!E:E)+SUMIF('Ins SINAPI PE 04-2025 Onerado'!B:B,SOLEDADE!C31,'Ins SINAPI PE 04-2025 Onerado'!F:F)),2) -> 251.46 | H31: =TRUNC(G31*(1+$H$5),2) -> 316.61 | I31: =TRUNC(F31*H31,2) -> 3166.1
A32: 4.1.1 | B32: PRÓPRIA | C32: CPU.13 | D32: Recomposição das erosões, inclusive, regularização da superfície e reaterro | E32: =(VLOOKUP(C32,CPU!B4:D$434,3,0)) -> m3 | F32: 16 | G32: =TRUNC((1-$H$9)*(SUMIFS(CPU!$G:$G,CPU!$A:$A,SOLEDADE!$C32,CPU!$H:$H,"ss")+SUMIFS(CPU!$G:$G,CPU!$A:$A,SOLEDADE!$C32,CPU!$H:$H,"mdo")+SUMIF('Comp SINAPI PE 04-2025 Onerado'!B:B,SOLEDADE!C32,'Comp SINAPI PE 04-2025 Onerado'!E:E)+SUMIF('Ins SINAPI PE 04-2025 Onerado'!B:B,SOLEDADE!C32,'Ins SINAPI PE 04-2025 Onerado'!F:F)),2) -> 335.47 | H32: =TRUNC(G32*(1+$H$5),2) -> 422.39 | I32: =TRUNC(F32*H32,2) -> 6758.24
A33: 4.2 | D33: Injeção de nata de cimento em buracos | I33: =SUM(I34:I34) -> 136.53
A34: 4.2.1 | B34: PRÓPRIA | C34: CPU.26 | D34: Injeção de nata de cimento em buracos | E34: =(VLOOKUP(C34,CPU!B6:D$434,3,0)) -> m3 | F34: 0.1 | G34: =TRUNC((1-$H$9)*(SUMIFS(CPU!$G:$G,CPU!$A:$A,SOLEDADE!$C34,CPU!$H:$H,"ss")+SUMIFS(CPU!$G:$G,CPU!$A:$A,SOLEDADE!$C34,CPU!$H:$H,"mdo")+SUMIF('Comp SINAPI PE 04-2025 Onerado'!B:B,SOLEDADE!C34,'Comp SINAPI PE 04-2025 Onerado'!E:E)+SUMIF('Ins SINAPI PE 04-2025 Onerado'!B:B,SOLEDADE!C34,'Ins SINAPI PE 04-2025 Onerado'!F:F)),2) -> 1084.39 | H34: =TRUNC(G34*(1+$H$5),2) -> 1365.35 | I34: =TRUNC(F34*H34,2) -> 136.53
A36: 5 | D36: REGULARIZAÇÃO E PAVIMENTAÇÃO DA CRISTA | I36: =SUM(I37,I39,I42) -> 124871.04
A37: 5.1 | D37: Limpeza e Regularização da Crista | I37: =SUM(I38:I38) -> 3277.12
A38: 5.1.2 | B38: PRÓPRIA | C38: CPU.14 | D38: =(VLOOKUP(C38,CPU!B10:C328,2,0)) -> Regularização e compactação da crista | E38: =(VLOOKUP(C38,CPU!B10:D328,3,0)) -> m2 | F38: 1078 | G38: =TRUNC((1-$H$9)*(SUMIFS(CPU!$G:$G,CPU!$A:$A,SOLEDADE!$C38,CPU!$H:$H,"ss")+SUMIFS(CPU!$G:$G,CPU!$A:$A,SOLEDADE!$C38,CPU!$H:$H,"mdo")+SUMIF('Comp SINAPI PE 04-2025 Onerado'!B:B,SOLEDADE!C38,'Comp SINAPI PE 04-2025 Onerado'!E:E)+SUMIF('Ins SINAPI PE 04-2025 Onerado'!B:B,SOLEDADE!C38,'Ins SINAPI PE 04-2025 Onerado'!F:F)),2) -> 2.42 | H38: =TRUNC(G38*(1+$H$5),2) -> 3.04 | I38: =TRUNC(F38*H38,2) -> 3277.12
A39: 5.2 | D39: Instalação de meio-fio e sarjeta em ambos os lados da crista | I39: =SUM(I40:I41) -> 45156.72
A40: 5.2.2 | B40: PRÓPRIA | C40: CPU.28 | D40: =(VLOOKUP(C40,CPU!B12:C330,2,0)) -> Recuperação e Reassentamento do meio-fio com reaproveitamento | E40: =(VLOOKUP(C40,CPU!B12:D330,3,0)) -> M | F40: =616-F41 -> 596 | G40: =TRUNC((1-$H$9)*(SUMIFS(CPU!$G:$G,CPU!$A:$A,SOLEDADE!$C40,CPU!$H:$H,"ss")+SUMIFS(CPU!$G:$G,CPU!$A:$A,SOLEDADE!$C40,CPU!$H:$H,"mdo")+SUMIF('Comp SINAPI PE 04-2025 Onerado'!B:B,SOLEDADE!C40,'Comp SINAPI PE 04-2025 Onerado'!E:E)+SUMIF('Ins SINAPI PE 04-2025 Onerado'!B:B,SOLEDADE!C40,'Ins SINAPI PE 04-2025 Onerado'!F:F)),2) -> 57.76 | H40: =TRUNC(G40*(1+$H$5),2) -> 72.72 | I40: =TRUNC(F40*H40,2) -> 43341.12
A41: 5.2.3 | B41: PRÓPRIA | C41: CPU.29 | D41: =(VLOOKUP(C41,CPU!B13:C331,2,0)) -> Fornecimento e Assentamento de Guia (meio-fio) Pré-fabricado, dimensões 100x15x20 cm (comprimento x base x altura) | E41: =(VLOOKUP(C41,CPU!B13:D331,3,0)) -> M | F41: 20 | G41: =TRUNC((1-$H$9)*(SUMIFS(CPU!$G:$G,CPU!$A:$A,SOLEDADE!$C41,CPU!$H:$H,"ss")+SUMIFS(CPU!$G:$G,CPU!$A:$A,SOLEDADE!$C41,CPU!$H:$H,"mdo")+SUMIF('Comp SINAPI PE 04-2025 Onerado'!B:B,SOLEDADE!C41,'Comp SINAPI PE 04-2025 Onerado'!E:E)+SUMIF('Ins SINAPI PE 04-2025 Onerado'!B:B,SOLEDADE!C41,'Ins SINAPI PE 04-2025 Onerado'!F:F)),2) -> 72.1 | H41: =TRUNC(G41*(1+$H$5),2) -> 90.78 | I41: =TRUNC(F41*H41,2) -> 1815.6
A42: 5.3 | D42: Pavimentação da Crista | I42: =SUM(I43:I43) -> 76437.2
A43: 5.3.1 | B43: PRÓPRIA | C43: CPU.15 | D43: =(VLOOKUP(C43,CPU!B14:C332,2,0)) -> Execução de Revestimento com BGTC | E43: =(VLOOKUP(C43,CPU!B14:D332,3,0)) -> m3 | F43: =F38*0.15 -> 161.7 | G43: =TRUNC((1-$H$9)*(SUMIFS(CPU!$G:$G,CPU!$A:$A,SOLEDADE!$C43,CPU!$H:$H,"ss")+SUMIFS(CPU!$G:$G,CPU!$A:$A,SOLEDADE!$C43,CPU!$H:$H,"mdo")+SUMIF('Comp SINAPI PE 04-2025 Onerado'!B:B,SOLEDADE!C43,'Comp SINAPI PE 04-2025 Onerado'!E:E)+SUMIF('Ins SINAPI PE 04-2025 Onerado'!B:B,SOLEDADE!C43,'Ins SINAPI PE 04-2025 Onerado'!F:F)),2) -> 375.44 | H43: =TRUNC(G43*(1+$H$5),2) -> 472.71 | I43: =TRUNC(F43*H43,2) -> 76437.2
A45: 6 | D45: DRENAGEM SUPERFICIAL DO TALUDE DE JUSANTE | I45: =SUM(I46,I48,I50) -> 26358.85
A46: 6.1 | D46: Remoção das canaletas danificadas | I46: =I47 -> 4297
A47: 6.1.1 | B47: PRÓPRIA | C47: CPU.19 | D47: =(VLOOKUP(C47,CPU!B16:C334,2,0)) -> Demolição e remoção de guias e sarjetas e/ou canaletas | E47: =(VLOOKUP(C47,CPU!B16:D334,3,0)) -> m | F47: 100 | G47: =TRUNC((1-$H$9)*(SUMIFS(CPU!$G:$G,CPU!$A:$A,SOLEDADE!$C47,CPU!$H:$H,"ss")+SUMIFS(CPU!$G:$G,CPU!$A:$A,SOLEDADE!$C47,CPU!$H:$H,"mdo")+SUMIF('Comp SINAPI PE 04-2025 Onerado'!B:B,SOLEDADE!C47,'Comp SINAPI PE 04-2025 Onerado'!E:E)+SUMIF('Ins SINAPI PE 04-2025 Onerado'!B:B,SOLEDADE!C47,'Ins SINAPI PE 04-2025 Onerado'!F:F)),2) -> 34.13 | H47: =TRUNC(G47*(1+$H$5),2) -> 42.97 | I47: =TRUNC(F47*H47,2) -> 4297
A48: 6.2 | D48: Canaleta para descida d'água | I48: =I49 -> 20018.05
A49: 6.2.1 | B49: PRÓPRIA | C49: CPU.08 | D49: =(VLOOKUP(C49,CPU!B18:C336,2,0)) -> Canaleta meia cana de concreto (D=30cm) - Fornecimento e instalação | E49: =(VLOOKUP(C49,CPU!B18:D336,3,0)) -> m | F49: 103 | G49: =TRUNC((1-$H$9)*(SUMIFS(CPU!$G:$G,CPU!$A:$A,SOLEDADE!$C49,CPU!$H:$H,"ss")+SUMIFS(CPU!$G:$G,CPU!$A:$A,SOLEDADE!$C49,CPU!$H:$H,"mdo")+SUMIF('Comp SINAPI PE 04-2025 Onerado'!B:B,SOLEDADE!C49,'Comp SINAPI PE 04-2025 Onerado'!E:E)+SUMIF('Ins SINAPI PE 04-2025 Onerado'!B:B,SOLEDADE!C49,'Ins SINAPI PE 04-2025 Onerado'!F:F)),2) -> 154.36 | H49: =TRUNC(G49*(1+$H$5),2) -> 194.35 | I49: =TRUNC(F49*H49,2) -> 20018.05
A50: 6.3 | D50: Entrada para descida d'água | I50: =I51 -> 2043.8
A51: 6.3.1 | B51: PRÓPRIA | C51: CPU.09 | D51: =(VLOOKUP(C51,CPU!B20:C338,2,0)) -> Entrada para descida d'água | E51: =(VLOOKUP(C51,CPU!B20:D434,3,0)) -> un | F51: 10 | G51: =TRUNC((1-$H$9)*(SUMIFS(CPU!$G:$G,CPU!$A:$A,SOLEDADE!$C51,CPU!$H:$H,"ss")+SUMIFS(CPU!$G:$G,CPU!$A:$A,SOLEDADE!$C51,CPU!$H:$H,"mdo")+SUMIF('Comp SINAPI PE 04-2025 Onerado'!B:B,SOLEDADE!C51,'Comp SINAPI PE 04-2025 Onerado'!E:E)+SUMIF('Ins SINAPI PE 04-2025 Onerado'!B:B,SOLEDADE!C51,'Ins SINAPI PE 04-2025 Onerado'!F:F)),2) -> 162.33 | H51: =TRUNC(G51*(1+$H$5),2) -> 204.38 | I51: =TRUNC(F51*H51,2) -> 2043.8
A53: 7 | D53: MANUTENÇÃO NO TALUDE DE MONTANTE | I53: =SUM(I54) -> 37365.12
A54: 7.1 | D54: Enrocamento com pedra de mão para proteção do talude | I54: =SUM(I55:I55) -> 37365.12
A55: 7.1.1 | B55: PRÓPRIA | C55: CPU.07 | D55: =(VLOOKUP(C55,CPU!B24:C342,2,0)) -> Enrocamento c/ pedra de mão c/ fornecimento e assentamento | E55: =(VLOOKUP(C55,CPU!B24:D434,3,0)) -> m3 | F55: 104 | G55: =TRUNC((1-$H$9)*(SUMIFS(CPU!$G:$G,CPU!$A:$A,SOLEDADE!$C55,CPU!$H:$H,"ss")+SUMIFS(CPU!$G:$G,CPU!$A:$A,SOLEDADE!$C55,CPU!$H:$H,"mdo")+SUMIF('Comp SINAPI PE 04-2025 Onerado'!B:B,SOLEDADE!C55,'Comp SINAPI PE 04-2025 Onerado'!E:E)+SUMIF('Ins SINAPI PE 04-2025 Onerado'!B:B,SOLEDADE!C55,'Ins SINAPI PE 04-2025 Onerado'!F:F)),2) -> 285.35 | H55: =TRUNC(G55*(1+$H$5),2) -> 359.28 | I55: =TRUNC(F55*H55,2) -> 37365.12
A57: 8 | D57: PROTEÇÃO SUPERFICIAL DO TALUDE DE JUSANTE | I57: =SUM(I58) -> 44302.88
A58: 8.1 | D58: Proteção vegetal | I58: =SUM(I59:I59) -> 44302.88
A59: 8.1.1 | B59: PRÓPRIA | C59: CPU.10 | D59: =(VLOOKUP(C59,CPU!B28:C346,2,0)) -> Plantio de vegetação para proteção de talude com hidrossemeadura, inclusive adubação e transporte | E59: =(VLOOKUP(C59,CPU!B28:D434,3,0)) -> m2 | F59: 3272 | G59: =TRUNC((1-$H$9)*(SUMIFS(CPU!$G:$G,CPU!$A:$A,SOLEDADE!$C59,CPU!$H:$H,"ss")+SUMIFS(CPU!$G:$G,CPU!$A:$A,SOLEDADE!$C59,CPU!$H:$H,"mdo")+SUMIF('Comp SINAPI PE 04-2025 Onerado'!B:B,SOLEDADE!C59,'Comp SINAPI PE 04-2025 Onerado'!E:E)+SUMIF('Ins SINAPI PE 04-2025 Onerado'!B:B,SOLEDADE!C59,'Ins SINAPI PE 04-2025 Onerado'!F:F)),2) -> 10.76 | H59: =TRUNC(G59*(1+$H$5),2) -> 13.54 | I59: =TRUNC(F59*H59,2) -> 44302.88
A61: 9 | D61: RESTAURAÇÃO DA SOLEIRA DO VERTEDOURO | I61: =SUM(I62,I66) -> 47474.22
A62: 9.1 | D62: Restauração da soleira do vertedouro | I62: =SUM(I63:I65) -> 10948.32
A63: 9.1.1 | B63: PRÓPRIA | C63: CPU.24 | D63: =(VLOOKUP(C63,CPU!B32:C350,2,0)) -> Limpeza da superfície | E63: =(VLOOKUP(C63,CPU!B32:D446,3,0)) -> m2 | F63: 70 | G63: =TRUNC((1-$H$9)*(SUMIFS(CPU!$G:$G,CPU!$A:$A,SOLEDADE!$C63,CPU!$H:$H,"ss")+SUMIFS(CPU!$G:$G,CPU!$A:$A,SOLEDADE!$C63,CPU!$H:$H,"mdo")+SUMIF('Comp SINAPI PE 04-2025 Onerado'!B:B,SOLEDADE!C63,'Comp SINAPI PE 04-2025 Onerado'!E:E)+SUMIF('Ins SINAPI PE 04-2025 Onerado'!B:B,SOLEDADE!C63,'Ins SINAPI PE 04-2025 Onerado'!F:F)),2) -> 7.54 | H63: =TRUNC(G63*(1+$H$5),2) -> 9.49 | I63: =TRUNC(F63*H63,2) -> 664.3
A64: 9.1.2 | B64: PRÓPRIA | C64: CPU.22 | D64: =(VLOOKUP(C64,CPU!B32:C350,2,0)) -> Tratamento de fissuras com injeção de adesivo estrutural à base de resina epóxi de baixa viscosidade - fornecimento e aplicação mecanizada | E64: =(VLOOKUP(C64,CPU!B32:D446,3,0)) -> kg | F64: 2.5 | G64: =TRUNC((1-$H$9)*(SUMIFS(CPU!$G:$G,CPU!$A:$A,SOLEDADE!$C64,CPU!$H:$H,"ss")+SUMIFS(CPU!$G:$G,CPU!$A:$A,SOLEDADE!$C64,CPU!$H:$H,"mdo")+SUMIF('Comp SINAPI PE 04-2025 Onerado'!B:B,SOLEDADE!C64,'Comp SINAPI PE 04-2025 Onerado'!E:E)+SUMIF('Ins SINAPI PE 04-2025 Onerado'!B:B,SOLEDADE!C64,'Ins SINAPI PE 04-2025 Onerado'!F:F)),2) -> 387.05 | H64: =TRUNC(G64*(1+$H$5),2) -> 487.33 | I64: =TRUNC(F64*H64,2) -> 1218.32
A65: 9.1.3 | B65: PRÓPRIA | C65: CPU.23 | D65: =(VLOOKUP(C65,CPU!B33:C351,2,0)) -> Emboço ou massa única em argamassa | E65: =(VLOOKUP(C65,CPU!B33:D447,3,0)) -> m2 | F65: =F63 -> 70 | G65: =TRUNC((1-$H$9)*(SUMIFS(CPU!$G:$G,CPU!$A:$A,SOLEDADE!$C65,CPU!$H:$H,"ss")+SUMIFS(CPU!$G:$G,CPU!$A:$A,SOLEDADE!$C65,CPU!$H:$H,"mdo")+SUMIF('Comp SINAPI PE 04-2025 Onerado'!B:B,SOLEDADE!C65,'Comp SINAPI PE 04-2025 Onerado'!E:E)+SUMIF('Ins SINAPI PE 04-2025 Onerado'!B:B,SOLEDADE!C65,'Ins SINAPI PE 04-2025 Onerado'!F:F)),2) -> 102.86 | H65: =TRUNC(G65*(1+$H$5),2) -> 129.51 | I65: =TRUNC(F65*H65,2) -> 9065.7
A66: 9.2 | D66: Preenchimento de descalçamento do pé do vertedouro | I66: =I67 -> 36525.9
A67: 9.2.1 | B67: PRÓPRIA | C67: CPU.17 | D67: =(VLOOKUP(C67,CPU!B27:C345,2,0)) -> Restauração com uso de Pedra Argamassada | E67: =(VLOOKUP(C67,CPU!B32:D446,3,0)) -> m3 | F67: 30 | G67: =TRUNC((1-$H$9)*(SUMIFS(CPU!$G:$G,CPU!$A:$A,SOLEDADE!$C67,CPU!$H:$H,"ss")+SUMIFS(CPU!$G:$G,CPU!$A:$A,SOLEDADE!$C67,CPU!$H:$H,"mdo")+SUMIF('Comp SINAPI PE 04-2025 Onerado'!B:B,SOLEDADE!C67,'Comp SINAPI PE 04-2025 Onerado'!E:E)+SUMIF('Ins SINAPI PE 04-2025 Onerado'!B:B,SOLEDADE!C67,'Ins SINAPI PE 04-2025 Onerado'!F:F)),2) -> 966.99 | H67: =TRUNC(G67*(1+$H$5),2) -> 1217.53 | I67: =TRUNC(F67*H67,2) -> 36525.9
A69: 10 | D69: RESTAURAÇÃO DO MURO LATERAL | I69: =SUM(I70,I74) -> 37150.5
A70: 10.1 | D70: Restauração do muro lateral | I70: =SUM(I71:I73) -> 3059.66
A71: 10.1.1 | B71: PRÓPRIA | C71: CPU.24 | D71: =(VLOOKUP(C71,CPU!B37:C355,2,0)) -> Limpeza da superfície | E71: =(VLOOKUP(C71,CPU!B37:D451,3,0)) -> m2 | F71: 15 | G71: =TRUNC((1-$H$9)*(SUMIFS(CPU!$G:$G,CPU!$A:$A,SOLEDADE!$C71,CPU!$H:$H,"ss")+SUMIFS(CPU!$G:$G,CPU!$A:$A,SOLEDADE!$C71,CPU!$H:$H,"mdo")+SUMIF('Comp SINAPI PE 04-2025 Onerado'!B:B,SOLEDADE!C71,'Comp SINAPI PE 04-2025 Onerado'!E:E)+SUMIF('Ins SINAPI PE 04-2025 Onerado'!B:B,SOLEDADE!C71,'Ins SINAPI PE 04-2025 Onerado'!F:F)),2) -> 7.54 | H71: =TRUNC(G71*(1+$H$5),2) -> 9.49 | I71: =TRUNC(F71*H71,2) -> 142.35
A72: 10.1.2 | B72: PRÓPRIA | C72: CPU.22 | D72: =(VLOOKUP(C72,CPU!B37:C355,2,0)) -> Tratamento de fissuras com injeção de adesivo estrutural à base de resina epóxi de baixa viscosidade - fornecimento e aplicação mecanizada | E72: =(VLOOKUP(C72,CPU!B36:D450,3,0)) -> kg | F72: 2 | G72: =TRUNC((1-$H$9)*(SUMIFS(CPU!$G:$G,CPU!$A:$A,SOLEDADE!$C72,CPU!$H:$H,"ss")+SUMIFS(CPU!$G:$G,CPU!$A:$A,SOLEDADE!$C72,CPU!$H:$H,"mdo")+SUMIF('Comp SINAPI PE 04-2025 Onerado'!B:B,SOLEDADE!C72,'Comp SINAPI PE 04-2025 Onerado'!E:E)+SUMIF('Ins SINAPI PE 04-2025 Onerado'!B:B,SOLEDADE!C72,'Ins SINAPI PE 04-2025 Onerado'!F:F)),2) -> 387.05 | H72: =TRUNC(G72*(1+$H$5),2) -> 487.33 | I72: =TRUNC(F72*H72,2) -> 974.66
A73: 10.1.3 | B73: PRÓPRIA | C73: CPU.23 | D73: =(VLOOKUP(C73,CPU!B39:C357,2,0)) -> Emboço ou massa única em argamassa | E73: =(VLOOKUP(C73,CPU!B38:D452,3,0)) -> m2 | F73: =F71 -> 15 | G73: =TRUNC((1-$H$9)*(SUMIFS(CPU!$G:$G,CPU!$A:$A,SOLEDADE!$C73,CPU!$H:$H,"ss")+SUMIFS(CPU!$G:$G,CPU!$A:$A,SOLEDADE!$C73,CPU!$H:$H,"mdo")+SUMIF('Comp SINAPI PE 04-2025 Onerado'!B:B,SOLEDADE!C73,'Comp SINAPI PE 04-2025 Onerado'!E:E)+SUMIF('Ins SINAPI PE 04-2025 Onerado'!B:B,SOLEDADE!C73,'Ins SINAPI PE 04-2025 Onerado'!F:F)),2) -> 102.86 | H73: =TRUNC(G73*(1+$H$5),2) -> 129.51 | I73: =TRUNC(F73*H73,2) -> 1942.65
A74: 10.2 | D74: Preenchimento de descalçamento do muro | I74: =I75 -> 34090.84
A75: 10.2.1 | B75: PRÓPRIA | C75: CPU.17 | D75: =(VLOOKUP(C75,CPU!B35:C353,2,0)) -> Restauração com uso de Pedra Argamassada | E75: =(VLOOKUP(C75,CPU!B40:D454,3,0)) -> m3 | F75: 28 | G75: =TRUNC((1-$H$9)*(SUMIFS(CPU!$G:$G,CPU!$A:$A,SOLEDADE!$C75,CPU!$H:$H,"ss")+SUMIFS(CPU!$G:$G,CPU!$A:$A,SOLEDADE!$C75,CPU!$H:$H,"mdo")+SUMIF('Comp SINAPI PE 04-2025 Onerado'!B:B,SOLEDADE!C75,'Comp SINAPI PE 04-2025 Onerado'!E:E)+SUMIF('Ins SINAPI PE 04-2025 Onerado'!B:B,SOLEDADE!C75,'Ins SINAPI PE 04-2025 Onerado'!F:F)),2) -> 966.99 | H75: =TRUNC(G75*(1+$H$5),2) -> 1217.53 | I75: =TRUNC(F75*H75,2) -> 34090.84
A77: 11 | D77: SERVIÇOS COMPLEMENTARES | I77: =SUM(I78,I80) -> 6530.04
A78: 11.1 | D78: Instalação de placas de aviso | I78: =SUM(I79:I79) -> 2357.32
A79: 11.1.1 | B79: SINAPI | C79: 103689 | D79: =IF(J79="ca",VLOOKUP(C79,'Comp SINAPI PE 04-2025 Onerado'!$B$11:$C$9004,2,0),VLOOKUP(C79,'Ins SINAPI PE 04-2025 Onerado'!$B$10:$C$9004,2,0)) -> FORNECIMENTO E INSTALAÇÃO DE PLACA DE OBRA COM CHAPA GALVANIZADA E ESTRUTURA DE MADEIRA. AF_03/2022_PS | E79: =IF(J79="ca",VLOOKUP(C79,'Comp SINAPI PE 04-2025 Onerado'!$B$11:$D$9004,3,0),VLOOKUP(C79,'Ins SINAPI PE 04-2025 Onerado'!$B$11:$D$9004,3,0)) -> M2 | F79: 4 | G79: =TRUNC((1-$H$9)*(SUMIFS(CPU!$G:$G,CPU!$A:$A,SOLEDADE!$C79,CPU!$H:$H,"ss")+SUMIFS(CPU!$G:$G,CPU!$A:$A,SOLEDADE!$C79,CPU!$H:$H,"mdo")+SUMIF('Comp SINAPI PE 04-2025 Onerado'!B:B,SOLEDADE!C79,'Comp SINAPI PE 04-2025 Onerado'!E:E)+SUMIF('Ins SINAPI PE 04-2025 Onerado'!B:B,SOLEDADE!C79,'Ins SINAPI PE 04-2025 Onerado'!F:F)),2) -> 468.06 | H79: =TRUNC(G79*(1+$H$5),2) -> 589.33 | I79: =TRUNC(F79*H79,2) -> 2357.32 | J79: ca
A80: 11.2 | D80: Régua Linimétrica Padrão “ANA”, Aço Carbono - 2 X 70 X 1000 mm (Fornecimento e Instalação) | I80: =SUM(I81:I81) -> 4172.72
A81: 10.2.1 | B81: PRÓPRIA | C81: CPU.18 | D81: Régua Linimétrica Padrão “ANA”, Aço Carbono - 2 X 70 X 1000 mm (Fornecimento e Instalação) | E81: un | F81: 8 | G81: =TRUNC((1-$H$9)*(SUMIFS(CPU!$G:$G,CPU!$A:$A,SOLEDADE!$C81,CPU!$H:$H,"ss")+SUMIFS(CPU!$G:$G,CPU!$A:$A,SOLEDADE!$C81,CPU!$H:$H,"mdo")+SUMIF('Comp SINAPI PE 04-2025 Onerado'!B:B,SOLEDADE!C81,'Comp SINAPI PE 04-2025 Onerado'!E:E)+SUMIF('Ins SINAPI PE 04-2025 Onerado'!B:B,SOLEDADE!C81,'Ins SINAPI PE 04-2025 Onerado'!F:F)),2) -> 414.26 | H81: =TRUNC(G81*(1+$H$5),2) -> 521.59 | I81: =TRUNC(F81*H81,2) -> 4172.72
A83: 12 | D83: PROJETO "AS IS" | I83: =SUM(I84) -> 17520.49
A84: 12.1 | D84: Levantamento topógrafico e "AS IS" | I84: =SUM(I85:I86) -> 17520.49
A85: 12.1.1 | B85: ORSE | C85: 9346 | D85: Levantamento topográfico planimétrico cadastral | E85: m2 | F85: =F26 -> 15212.21 | G85: =TRUNC(0.35*(1-$H$9),2) -> 0.35 | H85: =TRUNC(G85*(1+$H$5),2) -> 0.44 | I85: =TRUNC(F85*H85,2) -> 6693.37
A86: 12.1.2 | B86: PRÓPRIA | C86: CPU.25 | D86: Projeto Geométrico | E86: un | F86: 1 | G86: =TRUNC((1-$H$9)*(SUMIFS(CPU!$G:$G,CPU!$A:$A,SOLEDADE!$C86,CPU!$H:$H,"ss")+SUMIFS(CPU!$G:$G,CPU!$A:$A,SOLEDADE!$C86,CPU!$H:$H,"mdo")+SUMIF('Comp SINAPI PE 04-2025 Onerado'!B:B,SOLEDADE!C86,'Comp SINAPI PE 04-2025 Onerado'!E:E)+SUMIF('Ins SINAPI PE 04-2025 Onerado'!B:B,SOLEDADE!C86,'Ins SINAPI PE 04-2025 Onerado'!F:F)),2) -> 8599.1 | H86: =TRUNC(G86*(1+$H$5),2) -> 10827.12 | I86: =TRUNC(F86*H86,2) -> 10827.12
A88: 13 | D88: FISCALIZAÇÃO E ACOMPANHAMENTO | I88: =SUM(I89) -> 2152.68
A89: 13.1 | D89: Disponibilidade de velículo para apoio a fiscalização | I89: =SUM(I90:I91) -> 2152.68
A90: 13.1.1 | B90: PRÓPRIA | C90: CPU.30 | D90: =(VLOOKUP(C90,CPU!B62:C380,2,0)) -> Disponibilidade de veículo para apoio a fiscalização, inclusive combustível | E90: un | F90: 6 | G90: =TRUNC((1-$H$9)*(SUMIFS(CPU!$G:$G,CPU!$A:$A,SOLEDADE!$C90,CPU!$H:$H,"ss")+SUMIFS(CPU!$G:$G,CPU!$A:$A,SOLEDADE!$C90,CPU!$H:$H,"mdo")+SUMIF('Comp SINAPI PE 04-2025 Onerado'!B:B,SOLEDADE!C90,'Comp SINAPI PE 04-2025 Onerado'!E:E)+SUMIF('Ins SINAPI PE 04-2025 Onerado'!B:B,SOLEDADE!C90,'Ins SINAPI PE 04-2025 Onerado'!F:F)),2) -> 284.95 | H90: =TRUNC(G90*(1+$H$5),2) -> 358.78 | I90: =TRUNC(F90*H90,2) -> 2152.68
D92: TOTAL (Custo): | I92: =TRUNC(SUMPRODUCT(F13:F91,G13:G91),2) -> 544000
D93: BDI e Encargos Sociais: | I93: =I94-I92 -> 140845.16
D94: TOTAL GERAL COM BDI: | I94: =SUM(I12,I16,I24,I29,I36,I53,I45,I57,I61,I69,I77,I83,I88) -> 684845.16

Sheet MUDUBIM
A1: Ministério da Integração e do Desenvolvimento Regional
A2: Companhia de Desenvolvimento dos Vales do São Francisco e do Parnaíba
A4: PLANILHA ORÇAMENTÁRIA - ORÇAMENTO NÃO DESONERADO
A5: OBRA: | B5: =Resumo!B5 -> Execução de Manutenção e Obras Civis nas Barragens de Pereiro, Cal, Soledade, Mudubim, Barra Franca, Baixa Alegre e Açude da Roça, localizadas no estado de Pernambuco. | G5: BDI (serv.): | H5: ='BDI serv'!D23 -> 0.2591 | I5: Bancos de dados:
A6: LOCAL: | B6: =Resumo!B6 -> BARRAGENS DE PERNAMBUCO | G6: BDI (forn.): | H6: ='BDI forn'!D23 -> 0 | I6: =Resumo!G6 -> MAI/25 - SINAPI
A7: DATA BASE: | B7: =Resumo!B7 -> 2025-04-01 | E7: Encargos sociais - Horistas: | H7: ='Encargos Sociais'!E49 -> 1.1384 | I7: =Resumo!G7 -> MAR/25 - ORSE
A8: PRAZO: | B8: 120 dias | E8: Encargos sociais - Mensalista: | H8: ='Encargos Sociais'!F49 -> 0.7011 | I8: =Resumo!G8 -> JAN/25 - SETOP
B9: =Resumo!B19 -> Mudubim | G9: Desconto: | H9: 0 | I9: =Resumo!G10 -> JAN/2025 - SICRO3
A10: ITEM | B10: REFERÊNCIA | D10: DESCRIÇÃO | E10: UNID. | F10: QUANT. | G10: CUSTO UNITÁRIO | H10: PREÇO UNITÁRIO | I10: PREÇO TOTAL
B11: FONTE | C11: CÓDIGO
A12: 1 | D12: ADMINISTRAÇÃO DA OBRA | I12: =SUM(I13) -> 140311.08
A13: 1.1 | D13: Administração da Obra | I13: =SUM(I14:I14) -> 140311.08
A14: 1.1.1 | B14: PRÓPRIA | C14: CPU.01 | D14: Administração Local | E14: mês | F14: 4 | G14: =TRUNC((1-$H$9)*(SUMIFS(CPU!$G:$G,CPU!$A:$A,MUDUBIM!$C14,CPU!$H:$H,"ss")+SUMIFS(CPU!$G:$G,CPU!$A:$A,MUDUBIM!$C14,CPU!$H:$H,"mdo")+SUMIF('Comp SINAPI PE 04-2025 Onerado'!B:B,MUDUBIM!C14,'Comp SINAPI PE 04-2025 Onerado'!E:E)+SUMIF('Ins SINAPI PE 04-2025 Onerado'!B:B,MUDUBIM!C14,'Ins SINAPI PE 04-2025 Onerado'!F:F)),2) -> 27859.4 | H14: =TRUNC(G14*(1+$H$5),2) -> 35077.77 | I14: =TRUNC(F14*H14,2) -> 140311.08
A16: 2 | D16: SERVIÇOS PRELIMINARES | I16: =SUM(I17,I19,I21) -> 30486.77
A17: 2.1 | D17: Mobilização e desmobilização | I17: =SUM(I18) -> 2799.41
A18: 2.1.1 | B18: PRÓPRIA | C18: CPU.02 | D18: Mobilização e desmobilização de instalação do canteiro | E18: un | F18: 1 | G18: =TRUNC((1-$H$9)*(SUMIFS(CPU!$G:$G,CPU!$A:$A,MUDUBIM!$C18,CPU!$H:$H,"ss")+SUMIFS(CPU!$G:$G,CPU!$A:$A,MUDUBIM!$C18,CPU!$H:$H,"mdo")+SUMIF('Comp SINAPI PE 04-2025 Onerado'!B:B,MUDUBIM!C18,'Comp SINAPI PE 04-2025 Onerado'!E:E)+SUMIF('Ins SINAPI PE 04-2025 Onerado'!B:B,MUDUBIM!C18,'Ins SINAPI PE 04-2025 Onerado'!F:F)),2) -> 2223.35 | H18: =TRUNC(G18*(1+$H$5),2) -> 2799.41 | I18: =TRUNC(F18*H18,2) -> 2799.41
A19: 2.2 | D19: Canteiro de obras | I19: =SUM(I20) -> 26508.7
A20: 2.2.1 | B20: PRÓPRIA | C20: CPU.03 | D20: Execução de canteiro de obras, inclusive, limpeza, refeitório, sanitários e central de formas | E20: m2 | F20: 28.5 | G20: =TRUNC((1-$H$9)*(SUMIFS(CPU!$G:$G,CPU!$A:$A,MUDUBIM!$C20,CPU!$H:$H,"ss")+SUMIFS(CPU!$G:$G,CPU!$A:$A,MUDUBIM!$C20,CPU!$H:$H,"mdo")+SUMIF('Comp SINAPI PE 04-2025 Onerado'!B:B,MUDUBIM!C20,'Comp SINAPI PE 04-2025 Onerado'!E:E)+SUMIF('Ins SINAPI PE 04-2025 Onerado'!B:B,MUDUBIM!C20,'Ins SINAPI PE 04-2025 Onerado'!F:F)),2) -> 738.73 | H20: =TRUNC(G20*(1+$H$5),2) -> 930.13 | I20: =TRUNC(F20*H20,2) -> 26508.7
A21: 2.3 | D21: Sinalização | I21: =SUM(I22:I22) -> 1178.66
A22: 2.3.1 | B22: SINAPI | C22: 103689 | D22: =IF(J22="ca",VLOOKUP(C22,'Comp SINAPI PE 04-2025 Onerado'!$B$11:$C$9004,2,0),VLOOKUP(C22,'Ins SINAPI PE 04-2025 Onerado'!$B$10:$C$9004,2,0)) -> FORNECIMENTO E INSTALAÇÃO DE PLACA DE OBRA COM CHAPA GALVANIZADA E ESTRUTURA DE MADEIRA. AF_03/2022_PS | E22: =IF(J22="ca",VLOOKUP(C22,'Comp SINAPI PE 04-2025 Onerado'!$B$11:$D$9004,3,0),VLOOKUP(C22,'Ins SINAPI PE 04-2025 Onerado'!$B$11:$D$9004,3,0)) -> M2 | F22: 2 | G22: =TRUNC((1-$H$9)*(SUMIFS(CPU!$G:$G,CPU!$A:$A,MUDUBIM!$C22,CPU!$H:$H,"ss")+SUMIFS(CPU!$G:$G,CPU!$A:$A,MUDUBIM!$C22,CPU!$H:$H,"mdo")+SUMIF('Comp SINAPI PE 04-2025 Onerado'!B:B,MUDUBIM!C22,'Comp SINAPI PE 04-2025 Onerado'!E:E)+SUMIF('Ins SINAPI PE 04-2025 Onerado'!B:B,MUDUBIM!C22,'Ins SINAPI PE 04-2025 Onerado'!F:F)),2) -> 468.06 | H22: =TRUNC(G22*(1+$H$5),2) -> 589.33 | I22: =TRUNC(F22*H22,2) -> 1178.66 | J22: ca
A24: 3 | D24: CORTE DA VEGETAÇÃO E REMOÇÃO DAS RAIZES | I24: =SUM(I25) -> 191592.6
A25: 3.1 | D25: Remoção da vegetação | I25: =SUM(I26:I27) -> 191592.6
A26: 3.1.1 | B26: PRÓPRIA | C26: CPU.04 | D26: Limpeza de vegetação | E26: =(VLOOKUP(C26,CPU!B2:D$434,3,0)) -> m2 | F26: 17854.09 | G26: =TRUNC((1-$H$9)*(SUMIFS(CPU!$G:$G,CPU!$A:$A,MUDUBIM!$C26,CPU!$H:$H,"ss")+SUMIFS(CPU!$G:$G,CPU!$A:$A,MUDUBIM!$C26,CPU!$H:$H,"mdo")+SUMIF('Comp SINAPI PE 04-2025 Onerado'!B:B,MUDUBIM!C26,'Comp SINAPI PE 04-2025 Onerado'!E:E)+SUMIF('Ins SINAPI PE 04-2025 Onerado'!B:B,MUDUBIM!C26,'Ins SINAPI PE 04-2025 Onerado'!F:F)),2) -> 7.81 | H26: =TRUNC(G26*(1+$H$5),2) -> 9.83 | I26: =TRUNC(F26*H26,2) -> 175505.7
A27: 3.1.2 | B27: PRÓPRIA | C27: CPU.05 | D27: Corte de tronco e remoção de raiz | E27: =(VLOOKUP(C27,CPU!B3:D$434,3,0)) -> un | F27: 30 | G27: =TRUNC((1-$H$9)*(SUMIFS(CPU!$G:$G,CPU!$A:$A,MUDUBIM!$C27,CPU!$H:$H,"ss")+SUMIFS(CPU!$G:$G,CPU!$A:$A,MUDUBIM!$C27,CPU!$H:$H,"mdo")+SUMIF('Comp SINAPI PE 04-2025 Onerado'!B:B,MUDUBIM!C27,'Comp SINAPI PE 04-2025 Onerado'!E:E)+SUMIF('Ins SINAPI PE 04-2025 Onerado'!B:B,MUDUBIM!C27,'Ins SINAPI PE 04-2025 Onerado'!F:F)),2) -> 425.89 | H27: =TRUNC(G27*(1+$H$5),2) -> 536.23 | I27: =TRUNC(F27*H27,2) -> 16086.9
A29: 4 | D29: RECUPERAÇÃO DO MACIÇO | I29: =SUM(I30,I32) -> 7440.91
A30: 4.1 | D30: Recomposição das Erosões (erosões locais nas ombreiras e aterro), trincas e buracos | I30: =I31 -> 6758.24
A31: 4.1.1 | B31: PRÓPRIA | C31: CPU.13 | D31: Recomposição das erosões, inclusive, regularização da superfície e reaterro | E31: =(VLOOKUP(C31,CPU!B4:D$434,3,0)) -> m3 | F31: 16 | G31: =TRUNC((1-$H$9)*(SUMIFS(CPU!$G:$G,CPU!$A:$A,MUDUBIM!$C31,CPU!$H:$H,"ss")+SUMIFS(CPU!$G:$G,CPU!$A:$A,MUDUBIM!$C31,CPU!$H:$H,"mdo")+SUMIF('Comp SINAPI PE 04-2025 Onerado'!B:B,MUDUBIM!C31,'Comp SINAPI PE 04-2025 Onerado'!E:E)+SUMIF('Ins SINAPI PE 04-2025 Onerado'!B:B,MUDUBIM!C31,'Ins SINAPI PE 04-2025 Onerado'!F:F)),2) -> 335.47 | H31: =TRUNC(G31*(1+$H$5),2) -> 422.39 | I31: =TRUNC(F31*H31,2) -> 6758.24
A32: 4.2 | D32: Injeção de nata de cimento em buracos | I32: =SUM(I33:I33) -> 682.67
A33: 4.2.1 | B33: PRÓPRIA | C33: CPU.26 | D33: Injeção de nata de cimento em buracos | E33: =(VLOOKUP(C33,CPU!B6:D$434,3,0)) -> m3 | F33: 0.5 | G33: =TRUNC((1-$H$9)*(SUMIFS(CPU!$G:$G,CPU!$A:$A,MUDUBIM!$C33,CPU!$H:$H,"ss")+SUMIFS(CPU!$G:$G,CPU!$A:$A,MUDUBIM!$C33,CPU!$H:$H,"mdo")+SUMIF('Comp SINAPI PE 04-2025 Onerado'!B:B,MUDUBIM!C33,'Comp SINAPI PE 04-2025 Onerado'!E:E)+SUMIF('Ins SINAPI PE 04-2025 Onerado'!B:B,MUDUBIM!C33,'Ins SINAPI PE 04-2025 Onerado'!F:F)),2) -> 1084.39 | H33: =TRUNC(G33*(1+$H$5),2) -> 1365.35 | I33: =TRUNC(F33*H33,2) -> 682.67
A35: 5 | D35: REGULARIZAÇÃO E PAVIMENTAÇÃO DA CRISTA | I35: =SUM(I36,I38,I41) -> 180204.79
A36: 5.1 | D36: Limpeza e Regularização da Crista | I36: =SUM(I37:I37) -> 4523.52
A37: 5.1.2 | B37: PRÓPRIA | C37: CPU.14 | D37: =(VLOOKUP(C37,CPU!B10:C328,2,0)) -> Regularização e compactação da crista | E37: =(VLOOKUP(C37,CPU!B10:D328,3,0)) -> m2 | F37: 1488 | G37: =TRUNC((1-$H$9)*(SUMIFS(CPU!$G:$G,CPU!$A:$A,MUDUBIM!$C37,CPU!$H:$H,"ss")+SUMIFS(CPU!$G:$G,CPU!$A:$A,MUDUBIM!$C37,CPU!$H:$H,"mdo")+SUMIF('Comp SINAPI PE 04-2025 Onerado'!B:B,MUDUBIM!C37,'Comp SINAPI PE 04-2025 Onerado'!E:E)+SUMIF('Ins SINAPI PE 04-2025 Onerado'!B:B,MUDUBIM!C37,'Ins SINAPI PE 04-2025 Onerado'!F:F)),2) -> 2.42 | H37: =TRUNC(G37*(1+$H$5),2) -> 3.04 | I37: =TRUNC(F37*H37,2) -> 4523.52
A38: 5.2 | D38: Instalação de meio-fio e sarjeta em ambos os lados da crista | I38: =SUM(I39:I40) -> 70172.4
A39: 5.2.1 | B39: PRÓPRIA | C39: CPU.28 | D39: =(VLOOKUP(C39,CPU!B11:C329,2,0)) -> Recuperação e Reassentamento do meio-fio com reaproveitamento | E39: =(VLOOKUP(C39,CPU!B11:D329,3,0)) -> M | F39: =960-F40 -> 940 | G39: =TRUNC((1-$H$9)*(SUMIFS(CPU!$G:$G,CPU!$A:$A,MUDUBIM!$C39,CPU!$H:$H,"ss")+SUMIFS(CPU!$G:$G,CPU!$A:$A,MUDUBIM!$C39,CPU!$H:$H,"mdo")+SUMIF('Comp SINAPI PE 04-2025 Onerado'!B:B,MUDUBIM!C39,'Comp SINAPI PE 04-2025 Onerado'!E:E)+SUMIF('Ins SINAPI PE 04-2025 Onerado'!B:B,MUDUBIM!C39,'Ins SINAPI PE 04-2025 Onerado'!F:F)),2) -> 57.76 | H39: =TRUNC(G39*(1+$H$5),2) -> 72.72 | I39: =TRUNC(F39*H39,2) -> 68356.8
A40: 5.2.1 | B40: PRÓPRIA | C40: CPU.29 | D40: =(VLOOKUP(C40,CPU!B12:C330,2,0)) -> Fornecimento e Assentamento de Guia (meio-fio) Pré-fabricado, dimensões 100x15x20 cm (comprimento x base x altura) | E40: =(VLOOKUP(C40,CPU!B12:D330,3,0)) -> M | F40: 20 | G40: =TRUNC((1-$H$9)*(SUMIFS(CPU!$G:$G,CPU!$A:$A,MUDUBIM!$C40,CPU!$H:$H,"ss")+SUMIFS(CPU!$G:$G,CPU!$A:$A,MUDUBIM!$C40,CPU!$H:$H,"mdo")+SUMIF('Comp SINAPI PE 04-2025 Onerado'!B:B,MUDUBIM!C40,'Comp SINAPI PE 04-2025 Onerado'!E:E)+SUMIF('Ins SINAPI PE 04-2025 Onerado'!B:B,MUDUBIM!C40,'Ins SINAPI PE 04-2025 Onerado'!F:F)),2) -> 72.1 | H40: =TRUNC(G40*(1+$H$5),2) -> 90.78 | I40: =TRUNC(F40*H40,2) -> 1815.6
A41: 5.3 | D41: Pavimentação da Crista | I41: =SUM(I42:I42) -> 105508.87
A42: 5.3.1 | B42: PRÓPRIA | C42: CPU.15 | D42: =(VLOOKUP(C42,CPU!B14:C332,2,0)) -> Execução de Revestimento com BGTC | E42: =(VLOOKUP(C42,CPU!B14:D332,3,0)) -> m3 | F42: =F37*0.15 -> 223.2 | G42: =TRUNC((1-$H$9)*(SUMIFS(CPU!$G:$G,CPU!$A:$A,MUDUBIM!$C42,CPU!$H:$H,"ss")+SUMIFS(CPU!$G:$G,CPU!$A:$A,MUDUBIM!$C42,CPU!$H:$H,"mdo")+SUMIF('Comp SINAPI PE 04-2025 Onerado'!B:B,MUDUBIM!C42,'Comp SINAPI PE 04-2025 Onerado'!E:E)+SUMIF('Ins SINAPI PE 04-2025 Onerado'!B:B,MUDUBIM!C42,'Ins SINAPI PE 04-2025 Onerado'!F:F)),2) -> 375.44 | H42: =TRUNC(G42*(1+$H$5),2) -> 472.71 | I42: =TRUNC(F42*H42,2) -> 105508.87
A44: 6 | D44: DRENAGEM SUPERFICIAL DO TALUDE DE JUSANTE | I44: =SUM(I45,I47) -> 34366.08
A45: 6.2 | D45: Canaleta para descida d'água | I45: =I46 -> 31096
A46: 6.2.1 | B46: PRÓPRIA | C46: CPU.08 | D46: =(VLOOKUP(C46,CPU!B18:C336,2,0)) -> Canaleta meia cana de concreto (D=30cm) - Fornecimento e instalação | E46: =(VLOOKUP(C46,CPU!B18:D336,3,0)) -> m | F46: 160 | G46: =TRUNC((1-$H$9)*(SUMIFS(CPU!$G:$G,CPU!$A:$A,MUDUBIM!$C46,CPU!$H:$H,"ss")+SUMIFS(CPU!$G:$G,CPU!$A:$A,MUDUBIM!$C46,CPU!$H:$H,"mdo")+SUMIF('Comp SINAPI PE 04-2025 Onerado'!B:B,MUDUBIM!C46,'Comp SINAPI PE 04-2025 Onerado'!E:E)+SUMIF('Ins SINAPI PE 04-2025 Onerado'!B:B,MUDUBIM!C46,'Ins SINAPI PE 04-2025 Onerado'!F:F)),2) -> 154.36 | H46: =TRUNC(G46*(1+$H$5),2) -> 194.35 | I46: =TRUNC(F46*H46,2) -> 31096
A47: 6.3 | D47: Entrada para descida d'água | I47: =I48 -> 3270.08
A48: 6.3.1 | B48: PRÓPRIA | C48: CPU.09 | D48: =(VLOOKUP(C48,CPU!B20:C338,2,0)) -> Entrada para descida d'água | E48: =(VLOOKUP(C48,CPU!B20:D434,3,0)) -> un | F48: 16 | G48: =TRUNC((1-$H$9)*(SUMIFS(CPU!$G:$G,CPU!$A:$A,MUDUBIM!$C48,CPU!$H:$H,"ss")+SUMIFS(CPU!$G:$G,CPU!$A:$A,MUDUBIM!$C48,CPU!$H:$H,"mdo")+SUMIF('Comp SINAPI PE 04-2025 Onerado'!B:B,MUDUBIM!C48,'Comp SINAPI PE 04-2025 Onerado'!E:E)+SUMIF('Ins SINAPI PE 04-2025 Onerado'!B:B,MUDUBIM!C48,'Ins SINAPI PE 04-2025 Onerado'!F:F)),2) -> 162.33 | H48: =TRUNC(G48*(1+$H$5),2) -> 204.38 | I48: =TRUNC(F48*H48,2) -> 3270.08
A50: 7 | D50: MANUTENÇÃO NO TALUDE DE MONTANTE | I50: =SUM(I51) -> 73293.12
A51: 7.1 | D51: Enrocamento com pedra de mão para proteção do talude | I51: =SUM(I52:I52) -> 73293.12
A52: 7.1.1 | B52: PRÓPRIA | C52: CPU.07 | D52: =(VLOOKUP(C52,CPU!B24:C342,2,0)) -> Enrocamento c/ pedra de mão c/ fornecimento e assentamento | E52: =(VLOOKUP(C52,CPU!B24:D434,3,0)) -> m3 | F52: 204 | G52: =TRUNC((1-$H$9)*(SUMIFS(CPU!$G:$G,CPU!$A:$A,MUDUBIM!$C52,CPU!$H:$H,"ss")+SUMIFS(CPU!$G:$G,CPU!$A:$A,MUDUBIM!$C52,CPU!$H:$H,"mdo")+SUMIF('Comp SINAPI PE 04-2025 Onerado'!B:B,MUDUBIM!C52,'Comp SINAPI PE 04-2025 Onerado'!E:E)+SUMIF('Ins SINAPI PE 04-2025 Onerado'!B:B,MUDUBIM!C52,'Ins SINAPI PE 04-2025 Onerado'!F:F)),2) -> 285.35 | H52: =TRUNC(G52*(1+$H$5),2) -> 359.28 | I52: =TRUNC(F52*H52,2) -> 73293.12
A54: 8 | D54: PROTEÇÃO SUPERFICIAL DO TALUDE DE JUSANTE | I54: =SUM(I55) -> 38981.66
A55: 8.1 | D55: Proteção vegetal | I55: =SUM(I56:I56) -> 38981.66
A56: 8.1.1 | B56: PRÓPRIA | C56: CPU.10 | D56: =(VLOOKUP(C56,CPU!B28:C346,2,0)) -> Plantio de vegetação para proteção de talude com hidrossemeadura, inclusive adubação e transporte | E56: =(VLOOKUP(C56,CPU!B28:D434,3,0)) -> m2 | F56: 2879 | G56: =TRUNC((1-$H$9)*(SUMIFS(CPU!$G:$G,CPU!$A:$A,MUDUBIM!$C56,CPU!$H:$H,"ss")+SUMIFS(CPU!$G:$G,CPU!$A:$A,MUDUBIM!$C56,CPU!$H:$H,"mdo")+SUMIF('Comp SINAPI PE 04-2025 Onerado'!B:B,MUDUBIM!C56,'Comp SINAPI PE 04-2025 Onerado'!E:E)+SUMIF('Ins SINAPI PE 04-2025 Onerado'!B:B,MUDUBIM!C56,'Ins SINAPI PE 04-2025 Onerado'!F:F)),2) -> 10.76 | H56: =TRUNC(G56*(1+$H$5),2) -> 13.54 | I56: =TRUNC(F56*H56,2) -> 38981.66
A58: 9 | D58: RESTAURAÇÃO DA SOLEIRA DO VERTEDOURO | I58: =SUM(I59) -> 9386.65
A59: 9.1 | D59: Restauração da soleira do vertedouro | I59: =SUM(I60:I62) -> 9386.65
A60: 9.1.1 | B60: PRÓPRIA | C60: CPU.24 | D60: =(VLOOKUP(C60,CPU!B32:C350,2,0)) -> Limpeza da superfície | E60: =(VLOOKUP(C60,CPU!B32:D446,3,0)) -> m2 | F60: 50 | G60: =TRUNC((1-$H$9)*(SUMIFS(CPU!$G:$G,CPU!$A:$A,MUDUBIM!$C60,CPU!$H:$H,"ss")+SUMIFS(CPU!$G:$G,CPU!$A:$A,MUDUBIM!$C60,CPU!$H:$H,"mdo")+SUMIF('Comp SINAPI PE 04-2025 Onerado'!B:B,MUDUBIM!C60,'Comp SINAPI PE 04-2025 Onerado'!E:E)+SUMIF('Ins SINAPI PE 04-2025 Onerado'!B:B,MUDUBIM!C60,'Ins SINAPI PE 04-2025 Onerado'!F:F)),2) -> 7.54 | H60: =TRUNC(G60*(1+$H$5),2) -> 9.49 | I60: =TRUNC(F60*H60,2) -> 474.5
A61: 9.1.2 | B61: PRÓPRIA | C61: CPU.22 | D61: =(VLOOKUP(C61,CPU!B32:C350,2,0)) -> Tratamento de fissuras com injeção de adesivo estrutural à base de resina epóxi de baixa viscosidade - fornecimento e aplicação mecanizada | E61: =(VLOOKUP(C61,CPU!B32:D446,3,0)) -> kg | F61: 5 | G61: =TRUNC((1-$H$9)*(SUMIFS(CPU!$G:$G,CPU!$A:$A,MUDUBIM!$C61,CPU!$H:$H,"ss")+SUMIFS(CPU!$G:$G,CPU!$A:$A,MUDUBIM!$C61,CPU!$H:$H,"mdo")+SUMIF('Comp SINAPI PE 04-2025 Onerado'!B:B,MUDUBIM!C61,'Comp SINAPI PE 04-2025 Onerado'!E:E)+SUMIF('Ins SINAPI PE 04-2025 Onerado'!B:B,MUDUBIM!C61,'Ins SINAPI PE 04-2025 Onerado'!F:F)),2) -> 387.05 | H61: =TRUNC(G61*(1+$H$5),2) -> 487.33 | I61: =TRUNC(F61*H61,2) -> 2436.65
A62: 9.1.3 | B62: PRÓPRIA | C62: CPU.23 | D62: =(VLOOKUP(C62,CPU!B33:C351,2,0)) -> Emboço ou massa única em argamassa | E62: =(VLOOKUP(C62,CPU!B33:D447,3,0)) -> m2 | F62: 50 | G62: =TRUNC((1-$H$9)*(SUMIFS(CPU!$G:$G,CPU!$A:$A,MUDUBIM!$C62,CPU!$H:$H,"ss")+SUMIFS(CPU!$G:$G,CPU!$A:$A,MUDUBIM!$C62,CPU!$H:$H,"mdo")+SUMIF('Comp SINAPI PE 04-2025 Onerado'!B:B,MUDUBIM!C62,'Comp SINAPI PE 04-2025 Onerado'!E:E)+SUMIF('Ins SINAPI PE 04-2025 Onerado'!B:B,MUDUBIM!C62,'Ins SINAPI PE 04-2025 Onerado'!F:F)),2) -> 102.86 | H62: =TRUNC(G62*(1+$H$5),2) -> 129.51 | I62: =TRUNC(F62*H62,2) -> 6475.5
A64: 10 | D64: RESTAURAÇÃO DO MURO LATERAL | I64: =SUM(I65,I69) -> 6605.85
A65: 10.1 | D65: Restauração do muro lateral | I65: =SUM(I66:I68) -> 5388.32
A66: 10.1.1 | B66: PRÓPRIA | C66: CPU.24 | D66: =(VLOOKUP(C66,CPU!B37:C355,2,0)) -> Limpeza da superfície | E66: =(VLOOKUP(C66,CPU!B37:D451,3,0)) -> m2 | F66: 30 | G66: =TRUNC((1-$H$9)*(SUMIFS(CPU!$G:$G,CPU!$A:$A,MUDUBIM!$C66,CPU!$H:$H,"ss")+SUMIFS(CPU!$G:$G,CPU!$A:$A,MUDUBIM!$C66,CPU!$H:$H,"mdo")+SUMIF('Comp SINAPI PE 04-2025 Onerado'!B:B,MUDUBIM!C66,'Comp SINAPI PE 04-2025 Onerado'!E:E)+SUMIF('Ins SINAPI PE 04-2025 Onerado'!B:B,MUDUBIM!C66,'Ins SINAPI PE 04-2025 Onerado'!F:F)),2) -> 7.54 | H66: =TRUNC(G66*(1+$H$5),2) -> 9.49 | I66: =TRUNC(F66*H66,2) -> 284.7
A67: 10.1.2 | B67: PRÓPRIA | C67: CPU.22 | D67: =(VLOOKUP(C67,CPU!B37:C355,2,0)) -> Tratamento de fissuras com injeção de adesivo estrutural à base de resina epóxi de baixa viscosidade - fornecimento e aplicação mecanizada | E67: =(VLOOKUP(C67,CPU!B36:D450,3,0)) -> kg | F67: 2.5 | G67: =TRUNC((1-$H$9)*(SUMIFS(CPU!$G:$G,CPU!$A:$A,MUDUBIM!$C67,CPU!$H:$H,"ss")+SUMIFS(CPU!$G:$G,CPU!$A:$A,MUDUBIM!$C67,CPU!$H:$H,"mdo")+SUMIF('Comp SINAPI PE 04-2025 Onerado'!B:B,MUDUBIM!C67,'Comp SINAPI PE 04-2025 Onerado'!E:E)+SUMIF('Ins SINAPI PE 04-2025 Onerado'!B:B,MUDUBIM!C67,'Ins SINAPI PE 04-2025 Onerado'!F:F)),2) -> 387.05 | H67: =TRUNC(G67*(1+$H$5),2) -> 487.33 | I67: =TRUNC(F67*H67,2) -> 1218.32
A68: 10.1.3 | B68: PRÓPRIA | C68: CPU.23 | D68: =(VLOOKUP(C68,CPU!B39:C357,2,0)) -> Emboço ou massa única em argamassa | E68: =(VLOOKUP(C68,CPU!B38:D452,3,0)) -> m2 | F68: 30 | G68: =TRUNC((1-$H$9)*(SUMIFS(CPU!$G:$G,CPU!$A:$A,MUDUBIM!$C68,CPU!$H:$H,"ss")+SUMIFS(CPU!$G:$G,CPU!$A:$A,MUDUBIM!$C68,CPU!$H:$H,"mdo")+SUMIF('Comp SINAPI PE 04-2025 Onerado'!B:B,MUDUBIM!C68,'Comp SINAPI PE 04-2025 Onerado'!E:E)+SUMIF('Ins SINAPI PE 04-2025 Onerado'!B:B,MUDUBIM!C68,'Ins SINAPI PE 04-2025 Onerado'!F:F)),2) -> 102.86 | H68: =TRUNC(G68*(1+$H$5),2) -> 129.51 | I68: =TRUNC(F68*H68,2) -> 3885.3
A69: 10.2 | D69: Recuperação do muro (Preenchimento de erosão e construção) | I69: =I70 -> 1217.53
A70: 10.2.1 | B70: PRÓPRIA | C70: CPU.17 | D70: =(VLOOKUP(C70,CPU!B35:C353,2,0)) -> Restauração com uso de Pedra Argamassada | E70: =(VLOOKUP(C70,CPU!B40:D454,3,0)) -> m3 | F70: 1 | G70: =TRUNC((1-$H$9)*(SUMIFS(CPU!$G:$G,CPU!$A:$A,MUDUBIM!$C70,CPU!$H:$H,"ss")+SUMIFS(CPU!$G:$G,CPU!$A:$A,MUDUBIM!$C70,CPU!$H:$H,"mdo")+SUMIF('Comp SINAPI PE 04-2025 Onerado'!B:B,MUDUBIM!C70,'Comp SINAPI PE 04-2025 Onerado'!E:E)+SUMIF('Ins SINAPI PE 04-2025 Onerado'!B:B,MUDUBIM!C70,'Ins SINAPI PE 04-2025 Onerado'!F:F)),2) -> 966.99 | H70: =TRUNC(G70*(1+$H$5),2) -> 1217.53 | I70: =TRUNC(F70*H70,2) -> 1217.53
A72: 11 | D72: SERVIÇOS COMPLEMENTARES | I72: =SUM(I73,I75) -> 6530.04
A73: 11.1 | D73: Instalação de placas de aviso | I73: =SUM(I74:I74) -> 2357.32
A74: 11.1.1 | B74: SINAPI | C74: 103689 | D74: =IF(J74="ca",VLOOKUP(C74,'Comp SINAPI PE 04-2025 Onerado'!$B$11:$C$9004,2,0),VLOOKUP(C74,'Ins SINAPI PE 04-2025 Onerado'!$B$10:$C$9004,2,0)) -> FORNECIMENTO E INSTALAÇÃO DE PLACA DE OBRA COM CHAPA GALVANIZADA E ESTRUTURA DE MADEIRA. AF_03/2022_PS | E74: =IF(J74="ca",VLOOKUP(C74,'Comp SINAPI PE 04-2025 Onerado'!$B$11:$D$9004,3,0),VLOOKUP(C74,'Ins SINAPI PE 04-2025 Onerado'!$B$11:$D$9004,3,0)) -> M2 | F74: 4 | G74: =TRUNC((1-$H$9)*(SUMIFS(CPU!$G:$G,CPU!$A:$A,MUDUBIM!$C74,CPU!$H:$H,"ss")+SUMIFS(CPU!$G:$G,CPU!$A:$A,MUDUBIM!$C74,CPU!$H:$H,"mdo")+SUMIF('Comp SINAPI PE 04-2025 Onerado'!B:B,MUDUBIM!C74,'Comp SINAPI PE 04-2025 Onerado'!E:E)+SUMIF('Ins SINAPI PE 04-2025 Onerado'!B:B,MUDUBIM!C74,'Ins SINAPI PE 04-2025 Onerado'!F:F)),2) -> 468.06 | H74: =TRUNC(G74*(1+$H$5),2) -> 589.33 | I74: =TRUNC(F74*H74,2) -> 2357.32 | J74: ca
A75: 11.2 | D75: Régua Linimétrica Padrão “ANA”, Aço Carbono - 2 X 70 X 1000 mm (Fornecimento e Instalação) | I75: =SUM(I76:I76) -> 4172.72
A76: 11.2.1 | B76: PRÓPRIA | C76: CPU.18 | D76: Régua Linimétrica Padrão “ANA”, Aço Carbono - 2 X 70 X 1000 mm (Fornecimento e Instalação) | E76: un | F76: 8 | G76: =TRUNC((1-$H$9)*(SUMIFS(CPU!$G:$G,CPU!$A:$A,MUDUBIM!$C76,CPU!$H:$H,"ss")+SUMIFS(CPU!$G:$G,CPU!$A:$A,MUDUBIM!$C76,CPU!$H:$H,"mdo")+SUMIF('Comp SINAPI PE 04-2025 Onerado'!B:B,MUDUBIM!C76,'Comp SINAPI PE 04-2025 Onerado'!E:E)+SUMIF('Ins SINAPI PE 04-2025 Onerado'!B:B,MUDUBIM!C76,'Ins SINAPI PE 04-2025 Onerado'!F:F)),2) -> 414.26 | H76: =TRUNC(G76*(1+$H$5),2) -> 521.59 | I76: =TRUNC(F76*H76,2) -> 4172.72
A78: 12 | D78: PROJETO "AS IS" | I78: =SUM(I79) -> 18682.91
A79: 12.1 | D79: Levantamento topógrafico e "AS IS" | I79: =SUM(I80:I81) -> 18682.91
A80: 12.1.1 | B80: ORSE | C80: 9346 | D80: Levantamento topográfico planimétrico cadastral | E80: m2 | F80: =F26 -> 17854.09 | G80: =TRUNC(0.35*(1-$H$9),2) -> 0.35 | H80: =TRUNC(G80*(1+$H$5),2) -> 0.44 | I80: =TRUNC(F80*H80,2) -> 7855.79
A81: 12.1.2 | B81: PRÓPRIA | C81: CPU.25 | D81: Projeto Geométrico | E81: un | F81: 1 | G81: =TRUNC((1-$H$9)*(SUMIFS(CPU!$G:$G,CPU!$A:$A,MUDUBIM!$C81,CPU!$H:$H,"ss")+SUMIFS(CPU!$G:$G,CPU!$A:$A,MUDUBIM!$C81,CPU!$H:$H,"mdo")+SUMIF('Comp SINAPI PE 04-2025 Onerado'!B:B,MUDUBIM!C81,'Comp SINAPI PE 04-2025 Onerado'!E:E)+SUMIF('Ins SINAPI PE 04-2025 Onerado'!B:B,MUDUBIM!C81,'Ins SINAPI PE 04-2025 Onerado'!F:F)),2) -> 8599.1 | H81: =TRUNC(G81*(1+$H$5),2) -> 10827.12 | I81: =TRUNC(F81*H81,2) -> 10827.12
A83: 13 | D83: FISCALIZAÇÃO E ACOMPANHAMENTO | I83: =SUM(I84) -> 2152.68
A84: 13.1 | D84: Disponibilidade de velículo para apoio a fiscalização | I84: =SUM(I85:I86) -> 2152.68
A85: 13.1.1 | B85: PRÓPRIA | C85: CPU.30 | D85: =(VLOOKUP(C85,CPU!B62:C380,2,0)) -> Disponibilidade de veículo para apoio a fiscalização, inclusive combustível | E85: un | F85: 6 | G85: =TRUNC((1-$H$9)*(SUMIFS(CPU!$G:$G,CPU!$A:$A,MUDUBIM!$C85,CPU!$H:$H,"ss")+SUMIFS(CPU!$G:$G,CPU!$A:$A,MUDUBIM!$C85,CPU!$H:$H,"mdo")+SUMIF('Comp SINAPI PE 04-2025 Onerado'!B:B,MUDUBIM!C85,'Comp SINAPI PE 04-2025 Onerado'!E:E)+SUMIF('Ins SINAPI PE 04-2025 Onerado'!B:B,MUDUBIM!C85,'Ins SINAPI PE 04-2025 Onerado'!F:F)),2) -> 284.95 | H85: =TRUNC(G85*(1+$H$5),2) -> 358.78 | I85: =TRUNC(F85*H85,2) -> 2152.68
D87: TOTAL (Custo): | I87: =TRUNC(SUMPRODUCT(F13:F86,G13:G86),2) -> 587843.53
D88: BDI e Encargos Sociais: | I88: =I89-I87 -> 152191.61
D89: TOTAL GERAL COM BDI: | I89: =SUM(I12,I16,I24,I29,I35,I50,I44,I54,I58,I64,I72,I78,I83) -> 740035.14

Sheet AÇUDE DA ROÇA
A1: Ministério da Integração e do Desenvolvimento Regional
A2: Companhia de Desenvolvimento dos Vales do São Francisco e do Parnaíba
A4: PLANILHA ORÇAMENTÁRIA - ORÇAMENTO NÃO DESONERADO
A5: OBRA: | B5: =Resumo!B5 -> Execução de Manutenção e Obras Civis nas Barragens de Pereiro, Cal, Soledade, Mudubim, Barra Franca, Baixa Alegre e Açude da Roça, localizadas no estado de Pernambuco. | G5: BDI (serv.): | H5: ='BDI serv'!D23 -> 0.2591 | I5: Bancos de dados:
A6: LOCAL: | B6: =Resumo!B6 -> BARRAGENS DE PERNAMBUCO | G6: BDI (forn.): | H6: ='BDI forn'!D23 -> 0 | I6: =Resumo!G6 -> MAI/25 - SINAPI
A7: DATA BASE: | B7: =Resumo!B7 -> 2025-04-01 | E7: Encargos sociais - Horistas: | H7: ='Encargos Sociais'!E49 -> 1.1384 | I7: =Resumo!G7 -> MAR/25 - ORSE
A8: PRAZO: | B8: 120 dias | E8: Encargos sociais - Mensalista: | H8: ='Encargos Sociais'!F49 -> 0.7011 | I8: =Resumo!G8 -> JAN/25 - SETOP
B9: =Resumo!B20 -> Açude da Roça | G9: Desconto: | H9: 0 | I9: =Resumo!G10 -> JAN/2025 - SICRO3
A10: ITEM | B10: REFERÊNCIA | D10: DESCRIÇÃO | E10: UNID. | F10: QUANT. | G10: CUSTO UNITÁRIO | H10: PREÇO UNITÁRIO | I10: PREÇO TOTAL
B11: FONTE | C11: CÓDIGO
A12: 1 | D12: ADMINISTRAÇÃO DA OBRA | I12: =SUM(I13) -> 140311.08
A13: 1.1 | D13: Administração da Obra | I13: =SUM(I14:I14) -> 140311.08
A14: 1.1.1 | B14: PRÓPRIA | C14: CPU.01 | D14: Administração Local | E14: mês | F14: 4 | G14: =TRUNC((1-$H$9)*(SUMIFS(CPU!$G:$G,CPU!$A:$A,'AÇUDE DA ROÇA'!$C14,CPU!$H:$H,"ss")+SUMIFS(CPU!$G:$G,CPU!$A:$A,'AÇUDE DA ROÇA'!$C14,CPU!$H:$H,"mdo")+SUMIF('Comp SINAPI PE 04-2025 Onerado'!B:B,'AÇUDE DA ROÇA'!C14,'Comp SINAPI PE 04-2025 Onerado'!E:E)+SUMIF('Ins SINAPI PE 04-2025 Onerado'!B:B,'AÇUDE DA ROÇA'!C14,'Ins SINAPI PE 04-2025 Onerado'!F:F)),2) -> 27859.4 | H14: =TRUNC(G14*(1+$H$5),2) -> 35077.77 | I14: =TRUNC(F14*H14,2) -> 140311.08
A16: 2 | D16: SERVIÇOS PRELIMINARES | I16: =SUM(I17,I19,I21) -> 30486.77
A17: 2.1 | D17: Mobilização e desmobilização | I17: =SUM(I18) -> 2799.41
A18: 2.1.1 | B18: PRÓPRIA | C18: CPU.02 | D18: Mobilização e desmobilização de instalação do canteiro | E18: un | F18: 1 | G18: =TRUNC((1-$H$9)*(SUMIFS(CPU!$G:$G,CPU!$A:$A,'AÇUDE DA ROÇA'!$C18,CPU!$H:$H,"ss")+SUMIFS(CPU!$G:$G,CPU!$A:$A,'AÇUDE DA ROÇA'!$C18,CPU!$H:$H,"mdo")+SUMIF('Comp SINAPI PE 04-2025 Onerado'!B:B,'AÇUDE DA ROÇA'!C18,'Comp SINAPI PE 04-2025 Onerado'!E:E)+SUMIF('Ins SINAPI PE 04-2025 Onerado'!B:B,'AÇUDE DA ROÇA'!C18,'Ins SINAPI PE 04-2025 Onerado'!F:F)),2) -> 2223.35 | H18: =TRUNC(G18*(1+$H$5),2) -> 2799.41 | I18: =TRUNC(F18*H18,2) -> 2799.41
A19: 2.2 | D19: Canteiro de obras | I19: =SUM(I20) -> 26508.7
A20: 2.2.1 | B20: PRÓPRIA | C20: CPU.03 | D20: Execução de canteiro de obras, inclusive, limpeza, refeitório, sanitários e central de formas | E20: m2 | F20: 28.5 | G20: =TRUNC((1-$H$9)*(SUMIFS(CPU!$G:$G,CPU!$A:$A,'AÇUDE DA ROÇA'!$C20,CPU!$H:$H,"ss")+SUMIFS(CPU!$G:$G,CPU!$A:$A,'AÇUDE DA ROÇA'!$C20,CPU!$H:$H,"mdo")+SUMIF('Comp SINAPI PE 04-2025 Onerado'!B:B,'AÇUDE DA ROÇA'!C20,'Comp SINAPI PE 04-2025 Onerado'!E:E)+SUMIF('Ins SINAPI PE 04-2025 Onerado'!B:B,'AÇUDE DA ROÇA'!C20,'Ins SINAPI PE 04-2025 Onerado'!F:F)),2) -> 738.73 | H20: =TRUNC(G20*(1+$H$5),2) -> 930.13 | I20: =TRUNC(F20*H20,2) -> 26508.7
A21: 2.3 | D21: Sinalização | I21: =SUM(I22:I22) -> 1178.66
A22: 2.3.1 | B22: SINAPI | C22: 103689 | D22: =IF(J22="ca",VLOOKUP(C22,'Comp SINAPI PE 04-2025 Onerado'!$B$11:$C$9004,2,0),VLOOKUP(C22,'Ins SINAPI PE 04-2025 Onerado'!$B$10:$C$9004,2,0)) -> FORNECIMENTO E INSTALAÇÃO DE PLACA DE OBRA COM CHAPA GALVANIZADA E ESTRUTURA DE MADEIRA. AF_03/2022_PS | E22: =IF(J22="ca",VLOOKUP(C22,'Comp SINAPI PE 04-2025 Onerado'!$B$11:$D$9004,3,0),VLOOKUP(C22,'Ins SINAPI PE 04-2025 Onerado'!$B$11:$D$9004,3,0)) -> M2 | F22: 2 | G22: =TRUNC((1-$H$9)*(SUMIFS(CPU!$G:$G,CPU!$A:$A,'AÇUDE DA ROÇA'!$C22,CPU!$H:$H,"ss")+SUMIFS(CPU!$G:$G,CPU!$A:$A,'AÇUDE DA ROÇA'!$C22,CPU!$H:$H,"mdo")+SUMIF('Comp SINAPI PE 04-2025 Onerado'!B:B,'AÇUDE DA ROÇA'!C22,'Comp SINAPI PE 04-2025 Onerado'!E:E)+SUMIF('Ins SINAPI PE 04-2025 Onerado'!B:B,'AÇUDE DA ROÇA'!C22,'Ins SINAPI PE 04-2025 Onerado'!F:F)),2) -> 468.06 | H22: =TRUNC(G22*(1+$H$5),2) -> 589.33 | I22: =TRUNC(F22*H22,2) -> 1178.66 | J22: ca
A24: 3 | D24: CORTE DA VEGETAÇÃO E REMOÇÃO DAS RAIZES | I24: =SUM(I25) -> 292309.47
A25: 3.1 | D25: Remoção da vegetação | I25: =SUM(I26:I27) -> 292309.47
A26: 3.1.1 | B26: PRÓPRIA | C26: CPU.04 | D26: Limpeza de vegetação | E26: =(VLOOKUP(C26,CPU!B2:D$434,3,0)) -> m2 | F26: 27008.95 | G26: =TRUNC((1-$H$9)*(SUMIFS(CPU!$G:$G,CPU!$A:$A,'AÇUDE DA ROÇA'!$C26,CPU!$H:$H,"ss")+SUMIFS(CPU!$G:$G,CPU!$A:$A,'AÇUDE DA ROÇA'!$C26,CPU!$H:$H,"mdo")+SUMIF('Comp SINAPI PE 04-2025 Onerado'!B:B,'AÇUDE DA ROÇA'!C26,'Comp SINAPI PE 04-2025 Onerado'!E:E)+SUMIF('Ins SINAPI PE 04-2025 Onerado'!B:B,'AÇUDE DA ROÇA'!C26,'Ins SINAPI PE 04-2025 Onerado'!F:F)),2) -> 7.81 | H26: =TRUNC(G26*(1+$H$5),2) -> 9.83 | I26: =TRUNC(F26*H26,2) -> 265497.97
A27: 3.1.2 | B27: PRÓPRIA | C27: CPU.05 | D27: Corte de tronco e remoção de raiz | E27: =(VLOOKUP(C27,CPU!B3:D$434,3,0)) -> un | F27: 50 | G27: =TRUNC((1-$H$9)*(SUMIFS(CPU!$G:$G,CPU!$A:$A,'AÇUDE DA ROÇA'!$C27,CPU!$H:$H,"ss")+SUMIFS(CPU!$G:$G,CPU!$A:$A,'AÇUDE DA ROÇA'!$C27,CPU!$H:$H,"mdo")+SUMIF('Comp SINAPI PE 04-2025 Onerado'!B:B,'AÇUDE DA ROÇA'!C27,'Comp SINAPI PE 04-2025 Onerado'!E:E)+SUMIF('Ins SINAPI PE 04-2025 Onerado'!B:B,'AÇUDE DA ROÇA'!C27,'Ins SINAPI PE 04-2025 Onerado'!F:F)),2) -> 425.89 | H27: =TRUNC(G27*(1+$H$5),2) -> 536.23 | I27: =TRUNC(F27*H27,2) -> 26811.5
A29: 4 | D29: RECUPERAÇÃO DO MACIÇO | I29: =SUM(I30,I33) -> 8074.13
A30: 4.1 | D30: Recomposição das Erosões (erosões locais nas ombreiras e aterro), trincas e buracos | I30: =SUM(I31:I32) -> 7391.46
A31: 4.1.1 | B31: PRÓPRIA | C31: CPU.27 | D31: =(VLOOKUP(C31,CPU!B3:C321,2,0)) -> Recuperação com escavação e reaterro de aberturas na crista (Rachaduras, trincas e burcacos (Sinkholes)) | E31: =(VLOOKUP(C31,CPU!B3:D$434,3,0)) -> m3 | F31: 2 | G31: =TRUNC((1-$H$9)*(SUMIFS(CPU!$G:$G,CPU!$A:$A,'AÇUDE DA ROÇA'!$C31,CPU!$H:$H,"ss")+SUMIFS(CPU!$G:$G,CPU!$A:$A,'AÇUDE DA ROÇA'!$C31,CPU!$H:$H,"mdo")+SUMIF('Comp SINAPI PE 04-2025 Onerado'!B:B,'AÇUDE DA ROÇA'!C31,'Comp SINAPI PE 04-2025 Onerado'!E:E)+SUMIF('Ins SINAPI PE 04-2025 Onerado'!B:B,'AÇUDE DA ROÇA'!C31,'Ins SINAPI PE 04-2025 Onerado'!F:F)),2) -> 251.46 | H31: =TRUNC(G31*(1+$H$5),2) -> 316.61 | I31: =TRUNC(F31*H31,2) -> 633.22
A32: 4.1.2 | B32: PRÓPRIA | C32: CPU.13 | D32: =(VLOOKUP(C32,CPU!B4:C322,2,0)) -> Recomposição das erosões, inclusive, regularização da superfície e reaterro | E32: =(VLOOKUP(C32,CPU!B4:D$434,3,0)) -> m3 | F32: 16 | G32: =TRUNC((1-$H$9)*(SUMIFS(CPU!$G:$G,CPU!$A:$A,'AÇUDE DA ROÇA'!$C32,CPU!$H:$H,"ss")+SUMIFS(CPU!$G:$G,CPU!$A:$A,'AÇUDE DA ROÇA'!$C32,CPU!$H:$H,"mdo")+SUMIF('Comp SINAPI PE 04-2025 Onerado'!B:B,'AÇUDE DA ROÇA'!C32,'Comp SINAPI PE 04-2025 Onerado'!E:E)+SUMIF('Ins SINAPI PE 04-2025 Onerado'!B:B,'AÇUDE DA ROÇA'!C32,'Ins SINAPI PE 04-2025 Onerado'!F:F)),2) -> 335.47 | H32: =TRUNC(G32*(1+$H$5),2) -> 422.39 | I32: =TRUNC(F32*H32,2) -> 6758.24
A33: 4.2 | D33: Injeção de nata de cimento em buracos | I33: =SUM(I34:I34) -> 682.67
A34: 4.2.1 | B34: PRÓPRIA | C34: CPU.26 | D34: Injeção de nata de cimento em buracos | E34: =(VLOOKUP(C34,CPU!B6:D$434,3,0)) -> m3 | F34: 0.5 | G34: =TRUNC((1-$H$9)*(SUMIFS(CPU!$G:$G,CPU!$A:$A,'AÇUDE DA ROÇA'!$C34,CPU!$H:$H,"ss")+SUMIFS(CPU!$G:$G,CPU!$A:$A,'AÇUDE DA ROÇA'!$C34,CPU!$H:$H,"mdo")+SUMIF('Comp SINAPI PE 04-2025 Onerado'!B:B,'AÇUDE DA ROÇA'!C34,'Comp SINAPI PE 04-2025 Onerado'!E:E)+SUMIF('Ins SINAPI PE 04-2025 Onerado'!B:B,'AÇUDE DA ROÇA'!C34,'Ins SINAPI PE 04-2025 Onerado'!F:F)),2) -> 1084.39 | H34: =TRUNC(G34*(1+$H$5),2) -> 1365.35 | I34: =TRUNC(F34*H34,2) -> 682.67
A36: 5 | D36: REGULARIZAÇÃO E PAVIMENTAÇÃO DA CRISTA | I36: =SUM(I37,I39,I41) -> 201635.7
A37: 5.1 | D37: Limpeza e Regularização da Crista | I37: =SUM(I38:I38) -> 5472
A38: 5.1.2 | B38: PRÓPRIA | C38: CPU.14 | D38: =(VLOOKUP(C38,CPU!B10:C328,2,0)) -> Regularização e compactação da crista | E38: =(VLOOKUP(C38,CPU!B10:D328,3,0)) -> m2 | F38: 1800 | G38: =TRUNC((1-$H$9)*(SUMIFS(CPU!$G:$G,CPU!$A:$A,'AÇUDE DA ROÇA'!$C38,CPU!$H:$H,"ss")+SUMIFS(CPU!$G:$G,CPU!$A:$A,'AÇUDE DA ROÇA'!$C38,CPU!$H:$H,"mdo")+SUMIF('Comp SINAPI PE 04-2025 Onerado'!B:B,'AÇUDE DA ROÇA'!C38,'Comp SINAPI PE 04-2025 Onerado'!E:E)+SUMIF('Ins SINAPI PE 04-2025 Onerado'!B:B,'AÇUDE DA ROÇA'!C38,'Ins SINAPI PE 04-2025 Onerado'!F:F)),2) -> 2.42 | H38: =TRUNC(G38*(1+$H$5),2) -> 3.04 | I38: =TRUNC(F38*H38,2) -> 5472
A39: 5.2 | D39: Instalação de meio-fio e sarjeta em ambos os lados da crista | I39: =SUM(I40:I40) -> 68532
A40: 5.2.1 | B40: PRÓPRIA | C40: CPU.20 | D40: =(VLOOKUP(C40,CPU!B12:C330,2,0)) -> Guia (meio-fio) e sarjeta conjudados de concreto, moldada In Loco, 45cm base (15 cm Base da Guia +30 cm Base da Sarjeta) x 22 cm Altura | E40: =(VLOOKUP(C40,CPU!B12:D330,3,0)) -> m | F40: 600 | G40: =TRUNC((1-$H$9)*(SUMIFS(CPU!$G:$G,CPU!$A:$A,'AÇUDE DA ROÇA'!$C40,CPU!$H:$H,"ss")+SUMIFS(CPU!$G:$G,CPU!$A:$A,'AÇUDE DA ROÇA'!$C40,CPU!$H:$H,"mdo")+SUMIF('Comp SINAPI PE 04-2025 Onerado'!B:B,'AÇUDE DA ROÇA'!C40,'Comp SINAPI PE 04-2025 Onerado'!E:E)+SUMIF('Ins SINAPI PE 04-2025 Onerado'!B:B,'AÇUDE DA ROÇA'!C40,'Ins SINAPI PE 04-2025 Onerado'!F:F)),2) -> 90.72 | H40: =TRUNC(G40*(1+$H$5),2) -> 114.22 | I40: =TRUNC(F40*H40,2) -> 68532
A41: 5.3 | D41: Pavimentação da Crista | I41: =SUM(I42:I42) -> 127631.7
A42: 5.3.1 | B42: PRÓPRIA | C42: CPU.15 | D42: =(VLOOKUP(C42,CPU!B14:C332,2,0)) -> Execução de Revestimento com BGTC | E42: =(VLOOKUP(C42,CPU!B14:D332,3,0)) -> m3 | F42: =F38*0.15 -> 270 | G42: =TRUNC((1-$H$9)*(SUMIFS(CPU!$G:$G,CPU!$A:$A,'AÇUDE DA ROÇA'!$C42,CPU!$H:$H,"ss")+SUMIFS(CPU!$G:$G,CPU!$A:$A,'AÇUDE DA ROÇA'!$C42,CPU!$H:$H,"mdo")+SUMIF('Comp SINAPI PE 04-2025 Onerado'!B:B,'AÇUDE DA ROÇA'!C42,'Comp SINAPI PE 04-2025 Onerado'!E:E)+SUMIF('Ins SINAPI PE 04-2025 Onerado'!B:B,'AÇUDE DA ROÇA'!C42,'Ins SINAPI PE 04-2025 Onerado'!F:F)),2) -> 375.44 | H42: =TRUNC(G42*(1+$H$5),2) -> 472.71 | I42: =TRUNC(F42*H42,2) -> 127631.7
A44: 6 | D44: DRENAGEM SUPERFICIAL DO TALUDE DE JUSANTE | I44: =SUM(I45,I47) -> 50631.3
A45: 6.2 | D45: Canaleta para descida d'água | I45: =I46 -> 48587.5
A46: 6.2.1 | B46: PRÓPRIA | C46: CPU.08 | D46: =(VLOOKUP(C46,CPU!B18:C336,2,0)) -> Canaleta meia cana de concreto (D=30cm) - Fornecimento e instalação | E46: =(VLOOKUP(C46,CPU!B18:D336,3,0)) -> m | F46: 250 | G46: =TRUNC((1-$H$9)*(SUMIFS(CPU!$G:$G,CPU!$A:$A,'AÇUDE DA ROÇA'!$C46,CPU!$H:$H,"ss")+SUMIFS(CPU!$G:$G,CPU!$A:$A,'AÇUDE DA ROÇA'!$C46,CPU!$H:$H,"mdo")+SUMIF('Comp SINAPI PE 04-2025 Onerado'!B:B,'AÇUDE DA ROÇA'!C46,'Comp SINAPI PE 04-2025 Onerado'!E:E)+SUMIF('Ins SINAPI PE 04-2025 Onerado'!B:B,'AÇUDE DA ROÇA'!C46,'Ins SINAPI PE 04-2025 Onerado'!F:F)),2) -> 154.36 | H46: =TRUNC(G46*(1+$H$5),2) -> 194.35 | I46: =TRUNC(F46*H46,2) -> 48587.5
A47: 6.3 | D47: Entrada para descida d'água | I47: =I48 -> 2043.8
A48: 6.3.1 | B48: PRÓPRIA | C48: CPU.09 | D48: =(VLOOKUP(C48,CPU!B20:C338,2,0)) -> Entrada para descida d'água | E48: =(VLOOKUP(C48,CPU!B20:D434,3,0)) -> un | F48: 10 | G48: =TRUNC((1-$H$9)*(SUMIFS(CPU!$G:$G,CPU!$A:$A,'AÇUDE DA ROÇA'!$C48,CPU!$H:$H,"ss")+SUMIFS(CPU!$G:$G,CPU!$A:$A,'AÇUDE DA ROÇA'!$C48,CPU!$H:$H,"mdo")+SUMIF('Comp SINAPI PE 04-2025 Onerado'!B:B,'AÇUDE DA ROÇA'!C48,'Comp SINAPI PE 04-2025 Onerado'!E:E)+SUMIF('Ins SINAPI PE 04-2025 Onerado'!B:B,'AÇUDE DA ROÇA'!C48,'Ins SINAPI PE 04-2025 Onerado'!F:F)),2) -> 162.33 | H48: =TRUNC(G48*(1+$H$5),2) -> 204.38 | I48: =TRUNC(F48*H48,2) -> 2043.8
A50: 7 | D50: MANUTENÇÃO NO TALUDE DE MONTANTE | I50: =SUM(I51) -> 30179.52
A51: 7.1 | D51: Enrocamento com pedra de mão para proteção do talude | I51: =SUM(I52:I52) -> 30179.52
A52: 7.1.1 | B52: PRÓPRIA | C52: CPU.07 | D52: =(VLOOKUP(C52,CPU!B24:C342,2,0)) -> Enrocamento c/ pedra de mão c/ fornecimento e assentamento | E52: =(VLOOKUP(C52,CPU!B24:D434,3,0)) -> m3 | F52: 84 | G52: =TRUNC((1-$H$9)*(SUMIFS(CPU!$G:$G,CPU!$A:$A,'AÇUDE DA ROÇA'!$C52,CPU!$H:$H,"ss")+SUMIFS(CPU!$G:$G,CPU!$A:$A,'AÇUDE DA ROÇA'!$C52,CPU!$H:$H,"mdo")+SUMIF('Comp SINAPI PE 04-2025 Onerado'!B:B,'AÇUDE DA ROÇA'!C52,'Comp SINAPI PE 04-2025 Onerado'!E:E)+SUMIF('Ins SINAPI PE 04-2025 Onerado'!B:B,'AÇUDE DA ROÇA'!C52,'Ins SINAPI PE 04-2025 Onerado'!F:F)),2) -> 285.35 | H52: =TRUNC(G52*(1+$H$5),2) -> 359.28 | I52: =TRUNC(F52*H52,2) -> 30179.52
A54: 8 | D54: PROTEÇÃO SUPERFICIAL DO TALUDE DE JUSANTE | I54: =SUM(I55) -> 99871.04
A55: 8.1 | D55: Proteção vegetal | I55: =SUM(I56:I56) -> 99871.04
A56: 8.1.1 | B56: PRÓPRIA | C56: CPU.10 | D56: =(VLOOKUP(C56,CPU!B28:C346,2,0)) -> Plantio de vegetação para proteção de talude com hidrossemeadura, inclusive adubação e transporte | E56: =(VLOOKUP(C56,CPU!B28:D434,3,0)) -> m2 | F56: 7376 | G56: =TRUNC((1-$H$9)*(SUMIFS(CPU!$G:$G,CPU!$A:$A,'AÇUDE DA ROÇA'!$C56,CPU!$H:$H,"ss")+SUMIFS(CPU!$G:$G,CPU!$A:$A,'AÇUDE DA ROÇA'!$C56,CPU!$H:$H,"mdo")+SUMIF('Comp SINAPI PE 04-2025 Onerado'!B:B,'AÇUDE DA ROÇA'!C56,'Comp SINAPI PE 04-2025 Onerado'!E:E)+SUMIF('Ins SINAPI PE 04-2025 Onerado'!B:B,'AÇUDE DA ROÇA'!C56,'Ins SINAPI PE 04-2025 Onerado'!F:F)),2) -> 10.76 | H56: =TRUNC(G56*(1+$H$5),2) -> 13.54 | I56: =TRUNC(F56*H56,2) -> 99871.04
A58: 9 | D58: RESTAURAÇÃO DO MURO LATERAL | I58: =SUM(I59) -> 23225.25
A59: 9.1 | D59: Restauração do muro lateral | I59: =SUM(I60:I62) -> 23225.25
A60: 9.1.1 | B60: PRÓPRIA | C60: CPU.24 | D60: =(VLOOKUP(C60,CPU!B37:C355,2,0)) -> Limpeza da superfície | E60: =(VLOOKUP(C60,CPU!B37:D451,3,0)) -> m2 | F60: =140*2 -> 280 | G60: =TRUNC((1-$H$9)*(SUMIFS(CPU!$G:$G,CPU!$A:$A,'AÇUDE DA ROÇA'!$C60,CPU!$H:$H,"ss")+SUMIFS(CPU!$G:$G,CPU!$A:$A,'AÇUDE DA ROÇA'!$C60,CPU!$H:$H,"mdo")+SUMIF('Comp SINAPI PE 04-2025 Onerado'!B:B,'AÇUDE DA ROÇA'!C60,'Comp SINAPI PE 04-2025 Onerado'!E:E)+SUMIF('Ins SINAPI PE 04-2025 Onerado'!B:B,'AÇUDE DA ROÇA'!C60,'Ins SINAPI PE 04-2025 Onerado'!F:F)),2) -> 7.54 | H60: =TRUNC(G60*(1+$H$5),2) -> 9.49 | I60: =TRUNC(F60*H60,2) -> 2657.2
A61: 9.1.2 | B61: PRÓPRIA | C61: CPU.22 | D61: =(VLOOKUP(C61,CPU!B37:C355,2,0)) -> Tratamento de fissuras com injeção de adesivo estrutural à base de resina epóxi de baixa viscosidade - fornecimento e aplicação mecanizada | E61: =(VLOOKUP(C61,CPU!B36:D450,3,0)) -> kg | F61: 5 | G61: =TRUNC((1-$H$9)*(SUMIFS(CPU!$G:$G,CPU!$A:$A,'AÇUDE DA ROÇA'!$C61,CPU!$H:$H,"ss")+SUMIFS(CPU!$G:$G,CPU!$A:$A,'AÇUDE DA ROÇA'!$C61,CPU!$H:$H,"mdo")+SUMIF('Comp SINAPI PE 04-2025 Onerado'!B:B,'AÇUDE DA ROÇA'!C61,'Comp SINAPI PE 04-2025 Onerado'!E:E)+SUMIF('Ins SINAPI PE 04-2025 Onerado'!B:B,'AÇUDE DA ROÇA'!C61,'Ins SINAPI PE 04-2025 Onerado'!F:F)),2) -> 387.05 | H61: =TRUNC(G61*(1+$H$5),2) -> 487.33 | I61: =TRUNC(F61*H61,2) -> 2436.65
A62: 9.1.3 | B62: PRÓPRIA | C62: CPU.23 | D62: =(VLOOKUP(C62,CPU!B39:C357,2,0)) -> Emboço ou massa única em argamassa | E62: =(VLOOKUP(C62,CPU!B38:D452,3,0)) -> m2 | F62: 140 | G62: =TRUNC((1-$H$9)*(SUMIFS(CPU!$G:$G,CPU!$A:$A,'AÇUDE DA ROÇA'!$C62,CPU!$H:$H,"ss")+SUMIFS(CPU!$G:$G,CPU!$A:$A,'AÇUDE DA ROÇA'!$C62,CPU!$H:$H,"mdo")+SUMIF('Comp SINAPI PE 04-2025 Onerado'!B:B,'AÇUDE DA ROÇA'!C62,'Comp SINAPI PE 04-2025 Onerado'!E:E)+SUMIF('Ins SINAPI PE 04-2025 Onerado'!B:B,'AÇUDE DA ROÇA'!C62,'Ins SINAPI PE 04-2025 Onerado'!F:F)),2) -> 102.86 | H62: =TRUNC(G62*(1+$H$5),2) -> 129.51 | I62: =TRUNC(F62*H62,2) -> 18131.4
A64: 10 | D64: SERVIÇOS COMPLEMENTARES | I64: =SUM(I65,I67) -> 11224.35
A65: 10.1 | D65: Instalação de placas de aviso | I65: =SUM(I66:I66) -> 2357.32
A66: 10.1.1 | B66: SINAPI | C66: 103689 | D66: =IF(J66="ca",VLOOKUP(C66,'Comp SINAPI PE 04-2025 Onerado'!$B$11:$C$9004,2,0),VLOOKUP(C66,'Ins SINAPI PE 04-2025 Onerado'!$B$10:$C$9004,2,0)) -> FORNECIMENTO E INSTALAÇÃO DE PLACA DE OBRA COM CHAPA GALVANIZADA E ESTRUTURA DE MADEIRA. AF_03/2022_PS | E66: =IF(J66="ca",VLOOKUP(C66,'Comp SINAPI PE 04-2025 Onerado'!$B$11:$D$9004,3,0),VLOOKUP(C66,'Ins SINAPI PE 04-2025 Onerado'!$B$11:$D$9004,3,0)) -> M2 | F66: 4 | G66: =TRUNC((1-$H$9)*(SUMIFS(CPU!$G:$G,CPU!$A:$A,'AÇUDE DA ROÇA'!$C66,CPU!$H:$H,"ss")+SUMIFS(CPU!$G:$G,CPU!$A:$A,'AÇUDE DA ROÇA'!$C66,CPU!$H:$H,"mdo")+SUMIF('Comp SINAPI PE 04-2025 Onerado'!B:B,'AÇUDE DA ROÇA'!C66,'Comp SINAPI PE 04-2025 Onerado'!E:E)+SUMIF('Ins SINAPI PE 04-2025 Onerado'!B:B,'AÇUDE DA ROÇA'!C66,'Ins SINAPI PE 04-2025 Onerado'!F:F)),2) -> 468.06 | H66: =TRUNC(G66*(1+$H$5),2) -> 589.33 | I66: =TRUNC(F66*H66,2) -> 2357.32 | J66: ca
A67: 10.2 | D67: Régua Linimétrica Padrão “ANA”, Aço Carbono - 2 X 70 X 1000 mm (Fornecimento e Instalação) | I67: =SUM(I68:I68) -> 8867.03
A68: 10.2.1 | B68: PRÓPRIA | C68: CPU.18 | D68: Régua Linimétrica Padrão “ANA”, Aço Carbono - 2 X 70 X 1000 mm (Fornecimento e Instalação) | E68: un | F68: 17 | G68: =TRUNC((1-$H$9)*(SUMIFS(CPU!$G:$G,CPU!$A:$A,'AÇUDE DA ROÇA'!$C68,CPU!$H:$H,"ss")+SUMIFS(CPU!$G:$G,CPU!$A:$A,'AÇUDE DA ROÇA'!$C68,CPU!$H:$H,"mdo")+SUMIF('Comp SINAPI PE 04-2025 Onerado'!B:B,'AÇUDE DA ROÇA'!C68,'Comp SINAPI PE 04-2025 Onerado'!E:E)+SUMIF('Ins SINAPI PE 04-2025 Onerado'!B:B,'AÇUDE DA ROÇA'!C68,'Ins SINAPI PE 04-2025 Onerado'!F:F)),2) -> 414.26 | H68: =TRUNC(G68*(1+$H$5),2) -> 521.59 | I68: =TRUNC(F68*H68,2) -> 8867.03
A70: 11 | D70: PROJETO "AS IS" | I70: =SUM(I71) -> 22711.05
A71: 11.1 | D71: Levantamento topógrafico e "AS IS" | I71: =SUM(I72:I73) -> 22711.05
A72: 11.1.1 | B72: ORSE | C72: 9346 | D72: Levantamento topográfico planimétrico cadastral | E72: m2 | F72: =F26 -> 27008.95 | G72: =TRUNC(0.35*(1-$H$9),2) -> 0.35 | H72: =TRUNC(G72*(1+$H$5),2) -> 0.44 | I72: =TRUNC(F72*H72,2) -> 11883.93
A73: 11.1.2 | B73: PRÓPRIA | C73: CPU.25 | D73: Projeto Geométrico | E73: un | F73: 1 | G73: =TRUNC((1-$H$9)*(SUMIFS(CPU!$G:$G,CPU!$A:$A,'AÇUDE DA ROÇA'!$C73,CPU!$H:$H,"ss")+SUMIFS(CPU!$G:$G,CPU!$A:$A,'AÇUDE DA ROÇA'!$C73,CPU!$H:$H,"mdo")+SUMIF('Comp SINAPI PE 04-2025 Onerado'!B:B,'AÇUDE DA ROÇA'!C73,'Comp SINAPI PE 04-2025 Onerado'!E:E)+SUMIF('Ins SINAPI PE 04-2025 Onerado'!B:B,'AÇUDE DA ROÇA'!C73,'Ins SINAPI PE 04-2025 Onerado'!F:F)),2) -> 8599.1 | H73: =TRUNC(G73*(1+$H$5),2) -> 10827.12 | I73: =TRUNC(F73*H73,2) -> 10827.12
A75: 12 | D75: FISCALIZAÇÃO E ACOMPANHAMENTO | I75: =SUM(I76) -> 2152.68
A76: 12.1 | D76: Disponibilidade de velículo para apoio a fiscalização | I76: =SUM(I77:I78) -> 2152.68
A77: 12.1.1 | B77: PRÓPRIA | C77: CPU.30 | D77: =(VLOOKUP(C77,CPU!B49:C367,2,0)) -> Disponibilidade de veículo para apoio a fiscalização, inclusive combustível | E77: un | F77: 6 | G77: =TRUNC((1-$H$9)*(SUMIFS(CPU!$G:$G,CPU!$A:$A,'AÇUDE DA ROÇA'!$C77,CPU!$H:$H,"ss")+SUMIFS(CPU!$G:$G,CPU!$A:$A,'AÇUDE DA ROÇA'!$C77,CPU!$H:$H,"mdo")+SUMIF('Comp SINAPI PE 04-2025 Onerado'!B:B,'AÇUDE DA ROÇA'!C77,'Comp SINAPI PE 04-2025 Onerado'!E:E)+SUMIF('Ins SINAPI PE 04-2025 Onerado'!B:B,'AÇUDE DA ROÇA'!C77,'Ins SINAPI PE 04-2025 Onerado'!F:F)),2) -> 284.95 | H77: =TRUNC(G77*(1+$H$5),2) -> 358.78 | I77: =TRUNC(F77*H77,2) -> 2152.68
D79: TOTAL (Custo): | I79: =TRUNC(SUMPRODUCT(F13:F78,G13:G78),2) -> 725126.61
D80: BDI e Encargos Sociais: | I80: =I81-I79 -> 187685.73
D81: TOTAL GERAL COM BDI: | I81: =SUM(I12,I16,I24,I29,I36,I50,I44,I54,I58,I64,I70,I75) -> 912812.34

Sheet CPU
A1: Ministério da Integração e do Desenvolvimento Regional
A2: Companhia de Desenvolvimento dos Vales do São Francisco e do Parnaíba
A4: COMPOSIÇÕES DE PREÇOS UNITÁRIOS - ORÇAMENTO NÃO DESONERADO
A5: =Resumo!A5 -> OBRA: | B5: =Resumo!B5 -> Execução de Manutenção e Obras Civis nas Barragens de Pereiro, Cal, Soledade, Mudubim, Barra Franca, Baixa Alegre e Açude da Roça, localizadas no estado de Pernambuco.
A6: =Resumo!A6 -> LOCAL: | B6: =Resumo!B6 -> BARRAGENS DE PERNAMBUCO
A7: =Resumo!A7 -> DATA BASE: | B7: =Resumo!B7 -> 2025-04-01
A9: REFERÊNCIA | B9: CÓDIGO | C9: DESCRIÇÃO | D9: UNIDADE | E9: ÍNDICE | F9: CUSTO UNITÁRIO | G9: CUSTO TOTAL
B10: CPU.01 | C10: Administração Local | D10: mês | E10: 1 | G10: =SUM(G14,G13,G12,G11) -> 27859.4 | H10: S | I10: COMENTÁRIOS
A11: =B10 -> CPU.01 | C11: MATERIAL | G11: 0 | H11: ss
A12: =B10 -> CPU.01 | C12: EQUIPAMENTOS | G12: 0 | H12: ss
A13: =B10 -> CPU.01 | C13: SERVIÇOS | G13: 0 | H13: ss
A14: =B10 -> CPU.01 | C14: MÃO DE OBRA | G14: =SUM(G15:G17) -> 27859.4 | H14: mdo
A15: SINAPI | B15: 90778 | C15: =PROPER(IF(H15="i",VLOOKUP(B15,'Ins SINAPI PE 04-2025 Onerado'!$B$11:$F$50003,2,0),VLOOKUP(B15,'Comp SINAPI PE 04-2025 Onerado'!$B$11:$C$50004,2,0))) -> Engenheiro Civil De Obra Pleno Com Encargos Complementares | D15: =IF(H15="i",VLOOKUP(B15,'Ins SINAPI PE 04-2025 Onerado'!$B$11:$F$50003,2,0),VLOOKUP(B15,'Comp SINAPI PE 04-2025 Onerado'!$B$11:$H$50004,3,0)) -> H | E15: =1.5*5*4 -> 30 | F15: =IF(H15="i",VLOOKUP(B15,'Ins SINAPI PE 04-2025 Onerado'!$B$11:$F$50003,5,0),VLOOKUP(B15,'Comp SINAPI PE 04-2025 Onerado'!$B$11:$E$50004,4,0)) -> 135.86 | G15: =TRUNC(E15*F15,2) -> 4075.8 | H15: ca
A16: SINAPI | B16: 93572 | C16: =PROPER(IF(H16="i",VLOOKUP(B16,'Ins SINAPI PE 04-2025 Onerado'!$B$11:$F$50003,2,0),VLOOKUP(B16,'Comp SINAPI PE 04-2025 Onerado'!$B$11:$C$50004,2,0))) -> Encarregado Geral De Obras Com Encargos Complementares | D16: =IF(H16="i",VLOOKUP(B16,'Ins SINAPI PE 04-2025 Onerado'!$B$11:$F$50003,2,0),VLOOKUP(B16,'Comp SINAPI PE 04-2025 Onerado'!$B$11:$H$50004,3,0)) -> MES | E16: 0.8 | F16: =IF(H16="i",VLOOKUP(B16,'Ins SINAPI PE 04-2025 Onerado'!$B$11:$F$50003,5,0),VLOOKUP(B16,'Comp SINAPI PE 04-2025 Onerado'!$B$11:$E$50004,4,0)) -> 6345.55 | G16: =TRUNC(E16*F16,2) -> 5076.44 | H16: ca
A17: EMBASA | B17: 74.13.43 | C17: VIGIA - AN | D17: MES | E17: 4 | F17: 4676.79 | G17: =TRUNC(E17*F17,2) -> 18707.16 | H17: ca | I17: considerando 4 vigias intercalando em dupla na jornada de 12/36
B19: CPU.02 | C19: Mobilização e desmobilização de instalação do canteiro | D19: un | E19: 1 | G19: =SUM(G27,G26,G21,G20) -> 2223.35 | H19: S | I19: mobilização e desmobilização de Petrolina a barragem | M19: 2 dias
A20: =B19 -> CPU.02 | C20: MATERIAL | G20: 0 | H20: ss
A21: =B19 -> CPU.02 | C21: EQUIPAMENTOS | G21: =SUM(G22:G25) -> 2223.35 | H21: ss
A22: PRÓPRIA | B22: CODE | C22: Veículo tipo pick-up, cabine dupla - 2.0 16V 4x4 diesel Aut. | D22: dia | E22: 2 | F22: ='CPU-VEICULO_PickUp1'!C11 -> 284.9581094 | G22: =TRUNC(E22*F22,2) -> 569.91 | H22: ca
A23: SINAPI | B23: 100946 | C23: =PROPER(IF(H23="i",VLOOKUP(B23,'Ins SINAPI PE 04-2025 Onerado'!$B$11:$F$50003,2,0),VLOOKUP(B23,'Comp SINAPI PE 04-2025 Onerado'!$B$11:$C$50004,2,0))) -> Transporte Com Caminhão Carroceria 9T, Em Via Urbana Em Revestimento Primário (Unidade: Txkm). Af_07/2020 | D23: =IF(H23="i",VLOOKUP(B23,'Ins SINAPI PE 04-2025 Onerado'!$B$11:$F$50003,2,0),VLOOKUP(B23,'Comp SINAPI PE 04-2025 Onerado'!$B$11:$H$50004,3,0)) -> TXKM | E23: ='Memorial de cálculo'!H18 -> 157.1428571 | F23: =IF(H23="i",VLOOKUP(B23,'Ins SINAPI PE 04-2025 Onerado'!$B$11:$F$50003,5,0),VLOOKUP(B23,'Comp SINAPI PE 04-2025 Onerado'!$B$11:$E$50004,4,0)) -> 2.44 | G23: =TRUNC(E23*F23,2) -> 383.42 | H23: ca | I23: considerando 5 toneladas de carga
A24: SINAPI | B24: 100947 | C24: =PROPER(IF(H24="i",VLOOKUP(B24,'Ins SINAPI PE 04-2025 Onerado'!$B$11:$F$50003,2,0),VLOOKUP(B24,'Comp SINAPI PE 04-2025 Onerado'!$B$11:$C$50004,2,0))) -> Transporte Com Caminhão Carroceria 9T, Em Via Urbana Pavimentada, Dmt Até 30Km (Unidade: Txkm). Af_07/2020 | D24: =IF(H24="i",VLOOKUP(B24,'Ins SINAPI PE 04-2025 Onerado'!$B$11:$F$50003,2,0),VLOOKUP(B24,'Comp SINAPI PE 04-2025 Onerado'!$B$11:$H$50004,3,0)) -> TXKM | E24: ='Memorial de cálculo'!H21 -> 300 | F24: =IF(H24="i",VLOOKUP(B24,'Ins SINAPI PE 04-2025 Onerado'!$B$11:$F$50003,5,0),VLOOKUP(B24,'Comp SINAPI PE 04-2025 Onerado'!$B$11:$E$50004,4,0)) -> 2.25 | G24: =TRUNC(E24*F24,2) -> 675 | H24: ca
A25: SINAPI | B25: 100948 | C25: =PROPER(IF(H25="i",VLOOKUP(B25,'Ins SINAPI PE 04-2025 Onerado'!$B$11:$F$50003,2,0),VLOOKUP(B25,'Comp SINAPI PE 04-2025 Onerado'!$B$11:$C$50004,2,0))) -> Transporte Com Caminhão Carroceria 9T, Em Via Urbana Pavimentada, Adicional Para Dmt Excedente A 30 Km (Unidade: Txkm). Af_07/2020 | D25: =IF(H25="i",VLOOKUP(B25,'Ins SINAPI PE 04-2025 Onerado'!$B$11:$F$50003,2,0),VLOOKUP(B25,'Comp SINAPI PE 04-2025 Onerado'!$B$11:$H$50004,3,0)) -> TXKM | E25: ='Memorial de cálculo'!H24 -> 668.5714286 | F25: =IF(H25="i",VLOOKUP(B25,'Ins SINAPI PE 04-2025 Onerado'!$B$11:$F$50003,5,0),VLOOKUP(B25,'Comp SINAPI PE 04-2025 Onerado'!$B$11:$E$50004,4,0)) -> 0.89 | G25: =TRUNC(E25*F25,2) -> 595.02 | H25: ca
A26: =B19 -> CPU.02 | C26: SERVIÇOS | G26: 0 | H26: ss
A27: =B19 -> CPU.02 | C27: MÃO DE OBRA | G27: 0 | H27: mdo
B29: CPU.03 | C29: Execução de canteiro de obras, inclusive, limpeza, refeitório, sanitários e central de formas | D29: m2 | E29: 1 | G29: =SUM(G38,G32,G31,G30) -> 738.73 | H29: S
A30: =B29 -> CPU.03 | C30: MATERIAL | G30: 0 | H30: ss
A31: =B29 -> CPU.03 | C31: EQUIPAMENTOS | G31: 0 | H31: ss
A32: =B29 -> CPU.03 | C32: SERVIÇOS | G32: =SUM(G33:G37) -> 738.73 | H32: ss
A33: SINAPI | B33: 98524 | C33: =PROPER(IF(H33="i",VLOOKUP(B33,'Ins SINAPI PE 04-2025 Onerado'!$B$11:$F$50003,2,0),VLOOKUP(B33,'Comp SINAPI PE 04-2025 Onerado'!$B$11:$C$50004,2,0))) -> Limpeza Manual De Vegetação Em Terreno Com Enxada. Af_03/2024 | D33: =IF(H33="i",VLOOKUP(B33,'Ins SINAPI PE 04-2025 Onerado'!$B$11:$F$50003,2,0),VLOOKUP(B33,'Comp SINAPI PE 04-2025 Onerado'!$B$11:$H$50004,3,0)) -> M2 | E33: 1 | F33: =IF(H33="i",VLOOKUP(B33,'Ins SINAPI PE 04-2025 Onerado'!$B$11:$F$50003,5,0),VLOOKUP(B33,'Comp SINAPI PE 04-2025 Onerado'!$B$11:$E$50004,4,0)) -> 5.13 | G33: =TRUNC(E33*F33,2) -> 5.13 | H33: ca
A34: PRÓPRIA | B34: 93210-ADAPTADO | C34: ='[52]COMPOSICÕES MODIFICADAS'!D149 -> EXECUÇÃO DE REFEITÓRIO EM CANTEIRO DE OBRA EM CHAPA DE MADEIRA COMPENSADA, NÃO INCLUSO MOBILIÁRIO E EQUIPAMENTOS. AF_02/2016 | D34: m2 | E34: ='Memorial de cálculo'!H29/'Memorial de cálculo'!H28 -> 0.2631578947 | F34: ='COMPOSICÕES MODIFICADAS'!D154 -> 599.503077 | G34: =TRUNC(E34*F34,2) -> 157.76 | H34: ca
A35: PRÓPRIA | B35: 93212-ADAPTADO | C35: EXECUÇÃO DE SANITÁRIO E VESTIÁRIO EM CANTEIRO DE OBRA EM CHAPA DE MADEIRA COMPENSADA, NÃO INCLUSO MOBILIÁRIO. AF_02/2016 | D35: m2 | E35: ='Memorial de cálculo'!H30/'Memorial de cálculo'!H28 -> 0.3157894737 | F35: ='COMPOSICÕES MODIFICADAS'!D9 -> 974.76 | G35: =TRUNC(E35*F35,2) -> 307.81 | H35: ca
A36: PRÓPRIA | B36: 93583-ADAPTADO | C36: ='[52]COMPOSICÕES MODIFICADAS'!D109 -> EXECUÇÃO DE CENTRAL DE FÔRMAS, PRODUÇÃO DE ARGAMASSA OU CONCRETO EM CANTEIRO DE OBRA, NÃO INCLUSO MOBILIÁRIO E EQUIPAMENTOS. AF_04/2016 | D36: m2 | E36: ='Memorial de cálculo'!H31/'Memorial de cálculo'!H28 -> 0.4210526316 | F36: ='COMPOSICÕES MODIFICADAS'!D114 -> 571.86 | G36: =TRUNC(E36*F36,2) -> 240.78 | H36: ca
A37: PRÓPRIA | B37: CODE | C37: HOSPEDAGEM | D37: un | E37: ='Memorial de cálculo'!D33*'Memorial de cálculo'!H33 -> 0.1394375 | F37: ='CPU HOSPEDAGEM'!C19 -> 195.4321212 | G37: =TRUNC(E37*F37,2) -> 27.25 | H37: ca
A38: =B29 -> CPU.03 | C38: MÃO DE OBRA | G38: 0 | H38: mdo
B40: CPU.04 | C40: Limpeza de vegetação | D40: m2 | E40: 1 | G40: =SUM(G48,G43,G42,G41) -> 7.81 | H40: S | J40: =G40*14000 -> 109340
A41: =B40 -> CPU.04 | C41: MATERIAL | G41: 0 | H41: ss
A42: =B40 -> CPU.04 | C42: EQUIPAMENTOS | G42: 0 | H42: ss
A43: =B40 -> CPU.04 | C43: SERVIÇOS | G43: =SUM(G44:G47) -> 7.81 | H43: ss
A44: SINAPI | B44: 98524 | C44: =PROPER(IF(H44="i",VLOOKUP(B44,'Ins SINAPI PE 04-2025 Onerado'!$B$11:$F$50003,2,0),VLOOKUP(B44,'Comp SINAPI PE 04-2025 Onerado'!$B$11:$C$50004,2,0))) -> Limpeza Manual De Vegetação Em Terreno Com Enxada. Af_03/2024 | D44: =IF(H44="i",VLOOKUP(B44,'Ins SINAPI PE 04-2025 Onerado'!$B$11:$F$50003,2,0),VLOOKUP(B44,'Comp SINAPI PE 04-2025 Onerado'!$B$11:$H$50004,3,0)) -> M2 | E44: 1 | F44: =IF(H44="i",VLOOKUP(B44,'Ins SINAPI PE 04-2025 Onerado'!$B$11:$F$50003,5,0),VLOOKUP(B44,'Comp SINAPI PE 04-2025 Onerado'!$B$11:$E$50004,4,0)) -> 5.13 | G44: =TRUNC(E44*F44,2) -> 5.13 | H44: ca
A45: PRÓPRIA | B45: CODE | C45: Hospedagem | D45: un | E45: ='Memorial de cálculo'!D37*'Memorial de cálculo'!H37 -> 0.0025 | F45: ='CPU HOSPEDAGEM'!C19 -> 195.4321212 | G45: =TRUNC(E45*F45,2) -> 0.48 | H45: ca
A46: PRÓPRIA | B46: CODE | C46: Veículo tipo pick-up, cabine dupla - 2.0 16V 4x4 diesel Aut. | D46: dia | E46: ='Memorial de cálculo'!H37 -> 0.000625 | F46: ='CPU-VEICULO_PickUp1'!C11 -> 284.9581094 | G46: =TRUNC(E46*F46,2) -> 0.17 | H46: ca
A47: SINAPI | B47: 93589 | C47: =PROPER(IF(H47="i",VLOOKUP(B47,'Ins SINAPI PE 04-2025 Onerado'!$B$11:$F$50003,2,0),VLOOKUP(B47,'Comp SINAPI PE 04-2025 Onerado'!$B$11:$C$50004,2,0))) -> Transporte Com Caminhão Basculante De 10 M³, Em Via Urbana Em Revestimento Primário (Unidade: M3Xkm). Af_07/2020 | D47: =IF(H47="i",VLOOKUP(B47,'Ins SINAPI PE 04-2025 Onerado'!$B$11:$F$50003,2,0),VLOOKUP(B47,'Comp SINAPI PE 04-2025 Onerado'!$B$11:$H$50004,3,0)) -> M3XKM | E47: =15*0.05 -> 0.75 | F47: =IF(H47="i",VLOOKUP(B47,'Ins SINAPI PE 04-2025 Onerado'!$B$11:$F$50003,5,0),VLOOKUP(B47,'Comp SINAPI PE 04-2025 Onerado'!$B$11:$E$50004,4,0)) -> 2.71 | G47: =TRUNC(E47*F47,2) -> 2.03 | H47: ca | I47: considerando 5 cm de altura da vegetação e 15 km para bota-fora
A48: =B40 -> CPU.04 | C48: MÃO DE OBRA | G48: 0 | H48: mdo
B50: CPU.05 | C50: Corte de tronco e remoção de raiz | D50: un | E50: 1 | G50: =SUM(G61,G53,G52,G51) -> 425.89 | H50: S
A51: =B50 -> CPU.05 | C51: MATERIAL | G51: 0 | H51: ss
A52: =B50 -> CPU.05 | C52: EQUIPAMENTOS | G52: 0 | H52: ss
A53: =B50 -> CPU.05 | C53: SERVIÇOS | G53: =SUM(G54:G60) -> 425.89 | H53: ss
A54: SINAPI | B54: 98529 | C54: =PROPER(IF(H54="i",VLOOKUP(B54,'Ins SINAPI PE 04-2025 Onerado'!$B$11:$F$50003,2,0),VLOOKUP(B54,'Comp SINAPI PE 04-2025 Onerado'!$B$11:$C$50004,2,0))) -> Corte Raso E Recorte De Árvore Com Diâmetro De Tronco Maior Ou Igual A 0,20 M E Menor Que 0,40 M. Af_03/2024 | D54: =IF(H54="i",VLOOKUP(B54,'Ins SINAPI PE 04-2025 Onerado'!$B$11:$F$50003,2,0),VLOOKUP(B54,'Comp SINAPI PE 04-2025 Onerado'!$B$11:$H$50004,3,0)) -> UN | E54: 1 | F54: =IF(H54="i",VLOOKUP(B54,'Ins SINAPI PE 04-2025 Onerado'!$B$11:$F$50003,5,0),VLOOKUP(B54,'Comp SINAPI PE 04-2025 Onerado'!$B$11:$E$50004,4,0)) -> 81.17 | G54: =TRUNC(E54*F54,2) -> 81.17 | H54: ca
A55: SINAPI | B55: 98526 | C55: =PROPER(IF(H55="i",VLOOKUP(B55,'Ins SINAPI PE 04-2025 Onerado'!$B$11:$F$50003,2,0),VLOOKUP(B55,'Comp SINAPI PE 04-2025 Onerado'!$B$11:$C$50004,2,0))) -> Remoção De Raízes Remanescentes De Tronco De Árvore Com Diâmetro Maior Ou Igual A 0,20 M E Menor Que 0,40 M. Af_03/2024 | D55: =IF(H55="i",VLOOKUP(B55,'Ins SINAPI PE 04-2025 Onerado'!$B$11:$F$50003,2,0),VLOOKUP(B55,'Comp SINAPI PE 04-2025 Onerado'!$B$11:$H$50004,3,0)) -> UN | E55: 1 | F55: =IF(H55="i",VLOOKUP(B55,'Ins SINAPI PE 04-2025 Onerado'!$B$11:$F$50003,5,0),VLOOKUP(B55,'Comp SINAPI PE 04-2025 Onerado'!$B$11:$E$50004,4,0)) -> 130.96 | G55: 130.96 | H55: ca
A56: SINAPI | B56: 6081 | C56: =PROPER(IF(H56="i",VLOOKUP(B56,'Ins SINAPI PE 04-2025 Onerado'!$B$11:$F$50003,2,0),VLOOKUP(B56,'Comp SINAPI PE 04-2025 Onerado'!$G$11:$H$50004,2,0))) -> Argila Ou Barro Para Aterro/Reaterro (Com Transporte Ate 10 Km) | D56: =IF(H56="i",VLOOKUP(B56,'Ins SINAPI PE 04-2025 Onerado'!$B$11:$F$50003,3,0),VLOOKUP(B56,'Comp SINAPI PE 04-2025 Onerado'!$G$11:$H$50004,3,0)) -> M3 | E56: 0.5 | F56: 115 | G56: 57.5 | H56: i | I56: considerando 0,5 m3 por árvore
A57: SINAPI | B57: 93382 | C57: =PROPER(IF(H57="i",VLOOKUP(B57,'Ins SINAPI PE 04-2025 Onerado'!$B$11:$F$50003,2,0),VLOOKUP(B57,'Comp SINAPI PE 04-2025 Onerado'!$B$11:$C$50004,2,0))) -> Reaterro Manual De Valas, Com Compactador De Solos De Percussão. Af_08/2023 | D57: =IF(H57="i",VLOOKUP(B57,'Ins SINAPI PE 04-2025 Onerado'!$B$11:$F$50003,2,0),VLOOKUP(B57,'Comp SINAPI PE 04-2025 Onerado'!$B$11:$H$50004,3,0)) -> M3 | E57: 0.5 | F57: =IF(H57="i",VLOOKUP(B57,'Ins SINAPI PE 04-2025 Onerado'!$B$11:$F$50003,5,0),VLOOKUP(B57,'Comp SINAPI PE 04-2025 Onerado'!$B$11:$E$50004,4,0)) -> 27.42 | G57: 13.71 | H57: ca
A58: PRÓPRIA | B58: CODE | C58: HOSPEDAGEM | D58: un | E58: ='Memorial de cálculo'!D41*'Memorial de cálculo'!H41+'Memorial de cálculo'!D42*'Memorial de cálculo'!H42 -> 0.41525 | F58: ='CPU HOSPEDAGEM'!C19 -> 195.4321212 | G58: 81.15 | H58: ca
A59: PRÓPRIA | B59: CODE | C59: Veículo tipo pick-up, cabine dupla - 2.0 16V 4x4 diesel Aut. | D59: dia | E59: =LARGE('Memorial de cálculo'!H41:H42,1) -> 0.1441875 | F59: ='CPU-VEICULO_PickUp1'!C11 -> 284.9581094 | G59: 41.08 | H59: ca
A60: SINAPI | B60: 93589 | C60: =PROPER(IF(H60="i",VLOOKUP(B60,'Ins SINAPI PE 04-2025 Onerado'!$B$11:$F$50003,2,0),VLOOKUP(B60,'Comp SINAPI PE 04-2025 Onerado'!$B$11:$C$50004,2,0))) -> Transporte Com Caminhão Basculante De 10 M³, Em Via Urbana Em Revestimento Primário (Unidade: M3Xkm). Af_07/2020 | D60: =IF(H60="i",VLOOKUP(B60,'Ins SINAPI PE 04-2025 Onerado'!$B$11:$F$50003,2,0),VLOOKUP(B60,'Comp SINAPI PE 04-2025 Onerado'!$B$11:$H$50004,3,0)) -> M3XKM | E60: =15*0.5 -> 7.5 | F60: =IF(H60="i",VLOOKUP(B60,'Ins SINAPI PE 04-2025 Onerado'!$B$11:$F$50003,5,0),VLOOKUP(B60,'Comp SINAPI PE 04-2025 Onerado'!$B$11:$E$50004,4,0)) -> 2.71 | G60: 20.32 | H60: ca | I60: considerando 0,5 m3 por árvore e 15 km para bota-fora
A61: =B50 -> CPU.05 | C61: MÃO DE OBRA | G61: 0 | H61: mdo
B63: CPU.07 | C63: Enrocamento c/ pedra de mão c/ fornecimento e assentamento | D63: m3 | E63: 1 | G63: =SUM(G74,G67,G66,G64) -> 285.35 | H63: S
A64: =B63 -> CPU.07 | C64: MATERIAL | G64: =SUM(G65) -> 94.56 | H64: ss
A65: SINAPI | B65: 4730 | C65: =PROPER(IF(H65="i",VLOOKUP(B65,'Ins SINAPI PE 04-2025 Onerado'!$B$11:$F$50003,2,0),VLOOKUP(B65,'Comp SINAPI PE 04-2025 Onerado'!$G$11:$H$50004,2,0))) -> Pedra De Mao Ou Pedra Rachao Para Arrimo/Fundacao (Posto Pedreira/Fornecedor, Sem Frete) | D65: =IF(H65="i",VLOOKUP(B65,'Ins SINAPI PE 04-2025 Onerado'!$B$11:$F$50003,3,0),VLOOKUP(B65,'Comp SINAPI PE 04-2025 Onerado'!$G$11:$H$50004,3,0)) -> M3 | E65: 1 | F65: =IF(H65="i",VLOOKUP(B65,'Ins SINAPI PE 04-2025 Onerado'!$B$11:$F$50003,5,0),VLOOKUP(B65,'Comp SINAPI PE 04-2025 Onerado'!$G$11:$H$50004,5,0)) -> 94.56 | G65: =TRUNC(E65*F65,2) -> 94.56 | H65: i
A66: =B63 -> CPU.07 | C66: EQUIPAMENTOS | G66: 0 | H66: ss
A67: =B63 -> CPU.07 | C67: SERVIÇOS | G67: =SUM(G68:G73) -> 180.01 | H67: ss
A68: SINAPI | B68: 93592 | C68: =PROPER(IF(H68="i",VLOOKUP(B68,'Ins SINAPI PE 04-2025 Onerado'!$B$11:$F$50003,2,0),VLOOKUP(B68,'Comp SINAPI PE 04-2025 Onerado'!$B$11:$C$50004,2,0))) -> Transporte Com Caminhão Basculante De 14 M³, Em Via Urbana Em Revestimento Primário (Unidade: M3Xkm). Af_07/2020 | D68: =IF(H68="i",VLOOKUP(B68,'Ins SINAPI PE 04-2025 Onerado'!$B$11:$F$50003,2,0),VLOOKUP(B68,'Comp SINAPI PE 04-2025 Onerado'!$B$11:$H$50004,3,0)) -> M3XKM | E68: ='Memorial de cálculo'!H8 -> 15.71428571 | F68: =IF(H68="i",VLOOKUP(B68,'Ins SINAPI PE 04-2025 Onerado'!$B$11:$F$50003,5,0),VLOOKUP(B68,'Comp SINAPI PE 04-2025 Onerado'!$B$11:$E$50004,4,0)) -> 2.32 | G68: =TRUNC(E68*F68,2) -> 36.45 | H68: ca
A69: SINAPI | B69: 95876 | C69: =PROPER(IF(H69="i",VLOOKUP(B69,'Ins SINAPI PE 04-2025 Onerado'!$B$11:$F$50003,2,0),VLOOKUP(B69,'Comp SINAPI PE 04-2025 Onerado'!$B$11:$C$50004,2,0))) -> Transporte Com Caminhão Basculante De 14 M³, Em Via Urbana Pavimentada, Dmt Até 30 Km (Unidade: M3Xkm). Af_07/2020 | D69: =IF(H69="i",VLOOKUP(B69,'Ins SINAPI PE 04-2025 Onerado'!$B$11:$F$50003,2,0),VLOOKUP(B69,'Comp SINAPI PE 04-2025 Onerado'!$B$11:$H$50004,3,0)) -> M3XKM | E69: =30 -> 30 | F69: =IF(H69="i",VLOOKUP(B69,'Ins SINAPI PE 04-2025 Onerado'!$B$11:$F$50003,5,0),VLOOKUP(B69,'Comp SINAPI PE 04-2025 Onerado'!$B$11:$E$50004,4,0)) -> 2.11 | G69: 63.3 | H69: ca
A70: SINAPI | B70: 93593 | C70: =PROPER(IF(H70="i",VLOOKUP(B70,'Ins SINAPI PE 04-2025 Onerado'!$B$11:$F$50003,2,0),VLOOKUP(B70,'Comp SINAPI PE 04-2025 Onerado'!$B$11:$C$50004,2,0))) -> Transporte Com Caminhão Basculante De 14 M³, Em Via Urbana Pavimentada, Adicional Para Dmt Excedente A 30 Km (Unidade: M3Xkm). Af_07/2020 | D70: =IF(H70="i",VLOOKUP(B70,'Ins SINAPI PE 04-2025 Onerado'!$B$11:$F$50003,2,0),VLOOKUP(B70,'Comp SINAPI PE 04-2025 Onerado'!$B$11:$H$50004,3,0)) -> M3XKM | E70: ='Memorial de cálculo'!H7-30 -> 66.85714286 | F70: =IF(H70="i",VLOOKUP(B70,'Ins SINAPI PE 04-2025 Onerado'!$B$11:$F$50003,5,0),VLOOKUP(B70,'Comp SINAPI PE 04-2025 Onerado'!$B$11:$E$50004,4,0)) -> 0.85 | G70: 56.82 | H70: ca
A71: SINAPI | B71: 100979 | C71: =PROPER(IF(H71="i",VLOOKUP(B71,'Ins SINAPI PE 04-2025 Onerado'!$B$11:$F$50003,2,0),VLOOKUP(B71,'Comp SINAPI PE 04-2025 Onerado'!$B$11:$C$50004,2,0))) -> Carga, Manobra E Descarga De Solos E Materiais Granulares Em Caminhão Basculante 14 M³ - Carga Com Escavadeira Hidráulica (Caçamba De 1,20 M³ / 155 Hp) E Descarga Livre (Unidade: M3). Af_07/2020 | D71: =IF(H71="i",VLOOKUP(B71,'Ins SINAPI PE 04-2025 Onerado'!$B$11:$F$50003,2,0),VLOOKUP(B71,'Comp SINAPI PE 04-2025 Onerado'!$B$11:$H$50004,3,0)) -> M3 | E71: 1 | F71: =IF(H71="i",VLOOKUP(B71,'Ins SINAPI PE 04-2025 Onerado'!$B$11:$F$50003,5,0),VLOOKUP(B71,'Comp SINAPI PE 04-2025 Onerado'!$B$11:$E$50004,4,0)) -> 6.55 | G71: 6.55 | H71: ca
A72: PRÓPRIA | B72: CODE | C72: Hospedagem | D72: un | E72: ='Memorial de cálculo'!D46*'Memorial de cálculo'!H46+'Memorial de cálculo'!D47*'Memorial de cálculo'!H47 -> 0.05 | F72: ='CPU HOSPEDAGEM'!$C$19 -> 195.4321212 | G72: 9.77 | H72: ca
A73: PRÓPRIA | B73: CODE | C73: Veículo tipo pick-up, cabine dupla - 2.0 16V 4x4 diesel Aut. | D73: dia | E73: =LARGE('Memorial de cálculo'!H46:H47,1) -> 0.025 | F73: ='CPU-VEICULO_PickUp1'!$C$11 -> 284.9581094 | G73: 7.12 | H73: ca
A74: =B63 -> CPU.07 | C74: MÃO DE OBRA | G74: =SUM(G75:G76) -> 10.78 | H74: mdo
A75: SINAPI | B75: 88309 | C75: =PROPER(IF(H75="i",VLOOKUP(B75,'Ins SINAPI PE 04-2025 Onerado'!$B$11:$F$50003,2,0),VLOOKUP(B75,'Comp SINAPI PE 04-2025 Onerado'!$B$11:$C$50004,2,0))) -> Pedreiro Com Encargos Complementares | D75: =IF(H75="i",VLOOKUP(B75,'Ins SINAPI PE 04-2025 Onerado'!$B$11:$F$50003,2,0),VLOOKUP(B75,'Comp SINAPI PE 04-2025 Onerado'!$B$11:$H$50004,3,0)) -> H | E75: 0.2 | F75: =IF(H75="i",VLOOKUP(B75,'Ins SINAPI PE 04-2025 Onerado'!$B$11:$F$50003,5,0),VLOOKUP(B75,'Comp SINAPI PE 04-2025 Onerado'!$B$11:$E$50004,4,0)) -> 29.85 | G75: 5.97 | H75: ca
A76: SINAPI | B76: 88316 | C76: =PROPER(IF(H76="i",VLOOKUP(B76,'Ins SINAPI PE 04-2025 Onerado'!$B$11:$F$50003,2,0),VLOOKUP(B76,'Comp SINAPI PE 04-2025 Onerado'!$B$11:$C$50004,2,0))) -> Servente Com Encargos Complementares | D76: =IF(H76="i",VLOOKUP(B76,'Ins SINAPI PE 04-2025 Onerado'!$B$11:$F$50003,2,0),VLOOKUP(B76,'Comp SINAPI PE 04-2025 Onerado'!$B$11:$H$50004,3,0)) -> H | E76: 0.2 | F76: =IF(H76="i",VLOOKUP(B76,'Ins SINAPI PE 04-2025 Onerado'!$B$11:$F$50003,5,0),VLOOKUP(B76,'Comp SINAPI PE 04-2025 Onerado'!$B$11:$E$50004,4,0)) -> 24.08 | G76: 4.81 | H76: ca
B78: CPU.08 | C78: Canaleta meia cana de concreto (D=30cm) - Fornecimento e instalação | D78: m | E78: 1 | G78: =SUM(G90,G81,G80,G79) -> 154.36 | H78: S
A79: =B78 -> CPU.08 | C79: MATERIAL | G79: 0 | H79: ss
A80: =B78 -> CPU.08 | C80: EQUIPAMENTOS | G80: 0 | H80: ss
A81: =B78 -> CPU.08 | C81: SERVIÇOS | G81: =SUM(G82:G89) -> 154.36 | H81: ss
A82: SINAPI | B82: 93358 | C82: =PROPER(IF(H82="i",VLOOKUP(B82,'Ins SINAPI PE 04-2025 Onerado'!$B$11:$F$50003,2,0),VLOOKUP(B82,'Comp SINAPI PE 04-2025 Onerado'!$B$11:$C$50004,2,0))) -> Escavação Manual De Vala. Af_09/2024 | D82: =IF(H82="i",VLOOKUP(B82,'Ins SINAPI PE 04-2025 Onerado'!$B$11:$F$50003,2,0),VLOOKUP(B82,'Comp SINAPI PE 04-2025 Onerado'!$B$11:$H$50004,3,0)) -> M3 | E82: 0.1188 | F82: =IF(H82="i",VLOOKUP(B82,'Ins SINAPI PE 04-2025 Onerado'!$B$11:$F$50003,5,0),VLOOKUP(B82,'Comp SINAPI PE 04-2025 Onerado'!$B$11:$E$50004,4,0)) -> 95.25 | G82: =TRUNC(E82*F82,2) -> 11.31 | H82: ca | I82: Indice com base na composição ED-48552 - do SBC
A83: SETOP | B83: ED-51093 | C83: APILOAMENTO E REGULARIZACAO MANUAL DE FUNDO DE CAVAS | D83: M2 | E83: 0.36 | F83: 26.06 | G83: =TRUNC(E83*F83,2) -> 9.38 | I83: Indice com base na composição ED-48552 - do SBC
A84: SINAPI | B84: 102990 | C84: =PROPER(IF(H84="i",VLOOKUP(B84,'Ins SINAPI PE 04-2025 Onerado'!$B$11:$F$50003,2,0),VLOOKUP(B84,'Comp SINAPI PE 04-2025 Onerado'!$B$11:$C$50004,2,0))) -> Canaleta Meia Cana Pré-Moldada De Concreto (D = 30 Cm) - Fornecimento E Instalação. Af_05/2025 | D84: =IF(H84="i",VLOOKUP(B84,'Ins SINAPI PE 04-2025 Onerado'!$B$11:$F$50003,2,0),VLOOKUP(B84,'Comp SINAPI PE 04-2025 Onerado'!$B$11:$H$50004,3,0)) -> M | E84: 1 | F84: =IF(H84="i",VLOOKUP(B84,'Ins SINAPI PE 04-2025 Onerado'!$B$11:$F$50003,5,0),VLOOKUP(B84,'Comp SINAPI PE 04-2025 Onerado'!$B$11:$E$50004,4,0)) -> 53.25 | G84: =TRUNC(E84*F84,2) -> 53.25 | H84: ca
A85: SINAPI | B85: 100946 | C85: =PROPER(IF(H85="i",VLOOKUP(B85,'Ins SINAPI PE 04-2025 Onerado'!$B$11:$F$50003,2,0),VLOOKUP(B85,'Comp SINAPI PE 04-2025 Onerado'!$B$11:$C$50004,2,0))) -> Transporte Com Caminhão Carroceria 9T, Em Via Urbana Em Revestimento Primário (Unidade: Txkm). Af_07/2020 | D85: =IF(H85="i",VLOOKUP(B85,'Ins SINAPI PE 04-2025 Onerado'!$B$11:$F$50003,2,0),VLOOKUP(B85,'Comp SINAPI PE 04-2025 Onerado'!$B$11:$H$50004,3,0)) -> TXKM | E85: =0.052*'Memorial de cálculo'!H8 -> 0.8171428571 | F85: =IF(H85="i",VLOOKUP(B85,'Ins SINAPI PE 04-2025 Onerado'!$B$11:$F$50003,5,0),VLOOKUP(B85,'Comp SINAPI PE 04-2025 Onerado'!$B$11:$E$50004,4,0)) -> 2.44 | G85: 1.99 | H85: ca | I85: considerando 52 kg por metro de canaleta
A86: SINAPI | B86: 100947 | C86: =PROPER(IF(H86="i",VLOOKUP(B86,'Ins SINAPI PE 04-2025 Onerado'!$B$11:$F$50003,2,0),VLOOKUP(B86,'Comp SINAPI PE 04-2025 Onerado'!$B$11:$C$50004,2,0))) -> Transporte Com Caminhão Carroceria 9T, Em Via Urbana Pavimentada, Dmt Até 30Km (Unidade: Txkm). Af_07/2020 | D86: =IF(H86="i",VLOOKUP(B86,'Ins SINAPI PE 04-2025 Onerado'!$B$11:$F$50003,2,0),VLOOKUP(B86,'Comp SINAPI PE 04-2025 Onerado'!$B$11:$H$50004,3,0)) -> TXKM | E86: =0.052*30 -> 1.56 | F86: =IF(H86="i",VLOOKUP(B86,'Ins SINAPI PE 04-2025 Onerado'!$B$11:$F$50003,5,0),VLOOKUP(B86,'Comp SINAPI PE 04-2025 Onerado'!$B$11:$E$50004,4,0)) -> 2.25 | G86: 3.51 | H86: ca
A87: SINAPI | B87: 100948 | C87: =PROPER(IF(H87="i",VLOOKUP(B87,'Ins SINAPI PE 04-2025 Onerado'!$B$11:$F$50003,2,0),VLOOKUP(B87,'Comp SINAPI PE 04-2025 Onerado'!$B$11:$C$50004,2,0))) -> Transporte Com Caminhão Carroceria 9T, Em Via Urbana Pavimentada, Adicional Para Dmt Excedente A 30 Km (Unidade: Txkm). Af_07/2020 | D87: =IF(H87="i",VLOOKUP(B87,'Ins SINAPI PE 04-2025 Onerado'!$B$11:$F$50003,2,0),VLOOKUP(B87,'Comp SINAPI PE 04-2025 Onerado'!$B$11:$H$50004,3,0)) -> TXKM | E87: =0.052*('Memorial de cálculo'!H7-30) -> 3.476571429 | F87: =IF(H87="i",VLOOKUP(B87,'Ins SINAPI PE 04-2025 Onerado'!$B$11:$F$50003,5,0),VLOOKUP(B87,'Comp SINAPI PE 04-2025 Onerado'!$B$11:$E$50004,4,0)) -> 0.89 | G87: 3.09 | H87: ca
A88: PRÓPRIA | B88: CODE | C88: HOSPEDAGEM | D88: un | E88: ='Memorial de cálculo'!D51*'Memorial de cálculo'!G51+'Memorial de cálculo'!D52*'Memorial de cálculo'!H52 -> 0.31635 | F88: ='CPU HOSPEDAGEM'!$C$19 -> 195.4321212 | G88: 61.82 | H88: ca
A89: PRÓPRIA | B89: CODE | C89: Veículo tipo pick-up, cabine dupla - 2.0 16V 4x4 diesel Aut. | D89: dia | E89: =LARGE('Memorial de cálculo'!H51:H52,1) -> 0.03515 | F89: ='CPU-VEICULO_PickUp1'!$C$11 -> 284.9581094 | G89: 10.01 | H89: ca
A90: =B78 -> CPU.08 | C90: MÃO DE OBRA | G90: 0 | H90: mdo
B92: CPU.09 | C92: Entrada para descida d'água | D92: un | E92: 1 | G92: =SUM(G100,G95,G94,G93) -> 162.33 | H92: S
A93: =B110 | C93: MATERIAL | G93: 0 | H93: ss
A94: =B92 -> CPU.09 | C94: EQUIPAMENTOS | G94: 0 | H94: ss
A95: =B92 -> CPU.09 | C95: SERVIÇOS | G95: =SUM(G96:G99) -> 162.33 | H95: ss
A96: SINAPI | B96: 94964 | C96: =PROPER(IF(H96="i",VLOOKUP(B96,'Ins SINAPI PE 04-2025 Onerado'!$B$11:$F$50003,2,0),VLOOKUP(B96,'Comp SINAPI PE 04-2025 Onerado'!$B$11:$C$50004,2,0))) -> Concreto Fck = 20Mpa, Traço 1:2,7:3 (Em Massa Seca De Cimento/ Areia Média/ Brita 1) - Preparo Mecânico Com Betoneira 400 L. Af_05/2021 | D96: =IF(H96="i",VLOOKUP(B96,'Ins SINAPI PE 04-2025 Onerado'!$B$11:$F$50003,2,0),VLOOKUP(B96,'Comp SINAPI PE 04-2025 Onerado'!$B$11:$H$50004,3,0)) -> M3 | E96: =2*1*0.3*0.1 -> 0.06 | F96: =IF(H96="i",VLOOKUP(B96,'Ins SINAPI PE 04-2025 Onerado'!$B$11:$F$50003,5,0),VLOOKUP(B96,'Comp SINAPI PE 04-2025 Onerado'!$B$11:$E$50004,4,0)) -> 483.17 | G96: =TRUNC(E96*F96,2) -> 28.99 | H96: ca | I96: comprimento 1 m, altura 0,30 m e espessura 0,10 m
A97: SINAPI | B97: 92268 | C97: =PROPER(IF(H97="i",VLOOKUP(B97,'Ins SINAPI PE 04-2025 Onerado'!$B$11:$F$50003,2,0),VLOOKUP(B97,'Comp SINAPI PE 04-2025 Onerado'!$B$11:$C$50004,2,0))) -> Fabricação De Fôrma Para Lajes, Em Chapa De Madeira Compensada Plastificada, E = 18 Mm. Af_09/2020 | D97: =IF(H97="i",VLOOKUP(B97,'Ins SINAPI PE 04-2025 Onerado'!$B$11:$F$50003,2,0),VLOOKUP(B97,'Comp SINAPI PE 04-2025 Onerado'!$B$11:$H$50004,3,0)) -> M2 | E97: =2*1*0.3 -> 0.6 | F97: =IF(H97="i",VLOOKUP(B97,'Ins SINAPI PE 04-2025 Onerado'!$B$11:$F$50003,5,0),VLOOKUP(B97,'Comp SINAPI PE 04-2025 Onerado'!$B$11:$E$50004,4,0)) -> 80.19 | G97: =TRUNC(E97*F97,2) -> 48.11 | H97: ca | I97: comprimento 1 m, altura 0,30 m
A98: PRÓPRIA | B98: CODE | C98: HOSPEDAGEM | D98: un | E98: ='Memorial de cálculo'!D59*'Memorial de cálculo'!H59+'Memorial de cálculo'!D60*'Memorial de cálculo'!H60+'Memorial de cálculo'!D56*'Memorial de cálculo'!H56+'Memorial de cálculo'!D57*'Memorial de cálculo'!H57 -> 0.2330095 | F98: ='CPU HOSPEDAGEM'!$C$19 -> 195.4321212 | G98: =TRUNC(E98*F98,2) -> 45.53 | H98: ca
A99: PRÓPRIA | B99: CODE | C99: Veículo tipo pick-up, cabine dupla - 2.0 16V 4x4 diesel Aut. | D99: dia | E99: =LARGE('Memorial de cálculo'!H56:H60,1) -> 0.1393315 | F99: ='CPU-VEICULO_PickUp1'!$C$11 -> 284.9581094 | G99: =TRUNC(E99*F99,2) -> 39.7 | H99: ca
A100: =B92 -> CPU.09 | C100: MÃO DE OBRA | G100: 0 | H100: mdo
B102: CPU.10 | C102: Plantio de vegetação para proteção de talude com hidrossemeadura, inclusive adubação e transporte | D102: m2 | E102: 1 | G102: =SUM(G112,G105,G104,G103) -> 10.76 | H102: S
A103: =B120 | C103: MATERIAL | G103: 0 | H103: ss
A104: =B102 -> CPU.10 | C104: EQUIPAMENTOS | G104: 0 | H104: ss
A105: =B102 -> CPU.10 | C105: SERVIÇOS | G105: =SUM(G106:G111) -> 10.76 | H105: ss
A106: SICRO | B106: 4413905 | C106: Hidrossemeadura | D106: M2 | E106: 1 | F106: 6.31 | G106: =TRUNC(E106*F106,2) -> 6.31 | H106: ca
A107: SINAPI | B107: 100946 | C107: =PROPER(IF(H107="i",VLOOKUP(B107,'Ins SINAPI PE 04-2025 Onerado'!$B$11:$F$50003,2,0),VLOOKUP(B107,'Comp SINAPI PE 04-2025 Onerado'!$B$11:$C$50004,2,0))) -> Transporte Com Caminhão Carroceria 9T, Em Via Urbana Em Revestimento Primário (Unidade: Txkm). Af_07/2020 | D107: =IF(H107="i",VLOOKUP(B107,'Ins SINAPI PE 04-2025 Onerado'!$B$11:$F$50003,2,0),VLOOKUP(B107,'Comp SINAPI PE 04-2025 Onerado'!$B$11:$H$50004,3,0)) -> TXKM | E107: ='Memorial de cálculo'!H8*0.02 -> 0.3142857143 | F107: =IF(H107="i",VLOOKUP(B107,'Ins SINAPI PE 04-2025 Onerado'!$B$11:$F$50003,5,0),VLOOKUP(B107,'Comp SINAPI PE 04-2025 Onerado'!$B$11:$E$50004,4,0)) -> 2.44 | G107: 0.76 | H107: ca | I107: 1m² de tapete pesa 20 kg
A108: SINAPI | B108: 100947 | C108: =PROPER(IF(H108="i",VLOOKUP(B108,'Ins SINAPI PE 04-2025 Onerado'!$B$11:$F$50003,2,0),VLOOKUP(B108,'Comp SINAPI PE 04-2025 Onerado'!$B$11:$C$50004,2,0))) -> Transporte Com Caminhão Carroceria 9T, Em Via Urbana Pavimentada, Dmt Até 30Km (Unidade: Txkm). Af_07/2020 | D108: =IF(H108="i",VLOOKUP(B108,'Ins SINAPI PE 04-2025 Onerado'!$B$11:$F$50003,2,0),VLOOKUP(B108,'Comp SINAPI PE 04-2025 Onerado'!$B$11:$H$50004,3,0)) -> TXKM | E108: =30*0.02 -> 0.6 | F108: =IF(H108="i",VLOOKUP(B108,'Ins SINAPI PE 04-2025 Onerado'!$B$11:$F$50003,5,0),VLOOKUP(B108,'Comp SINAPI PE 04-2025 Onerado'!$B$11:$E$50004,4,0)) -> 2.25 | G108: 1.35 | H108: ca
A109: SINAPI | B109: 100948 | C109: =PROPER(IF(H109="i",VLOOKUP(B109,'Ins SINAPI PE 04-2025 Onerado'!$B$11:$F$50003,2,0),VLOOKUP(B109,'Comp SINAPI PE 04-2025 Onerado'!$B$11:$C$50004,2,0))) -> Transporte Com Caminhão Carroceria 9T, Em Via Urbana Pavimentada, Adicional Para Dmt Excedente A 30 Km (Unidade: Txkm). Af_07/2020 | D109: =IF(H109="i",VLOOKUP(B109,'Ins SINAPI PE 04-2025 Onerado'!$B$11:$F$50003,2,0),VLOOKUP(B109,'Comp SINAPI PE 04-2025 Onerado'!$B$11:$H$50004,3,0)) -> TXKM | E109: =('Memorial de cálculo'!H7-30)*0.02 -> 1.337142857 | F109: =IF(H109="i",VLOOKUP(B109,'Ins SINAPI PE 04-2025 Onerado'!$B$11:$F$50003,5,0),VLOOKUP(B109,'Comp SINAPI PE 04-2025 Onerado'!$B$11:$E$50004,4,0)) -> 0.89 | G109: 1.19 | H109: ca
A110: PRÓPRIA | B110: CODE | C110: HOSPEDAGEM | D110: un | E110: ='Memorial de cálculo'!D64*'Memorial de cálculo'!H64 -> 0.002409638554 | F110: ='CPU HOSPEDAGEM'!$C$19 -> 195.4321212 | G110: 0.47 | H110: ca
A111: PRÓPRIA | B111: CODE | C111: Veículo tipo pick-up, cabine dupla - 2.0 16V 4x4 diesel Aut. | D111: dia | E111: =LARGE('Memorial de cálculo'!H64:H64,1) -> 0.002409638554 | F111: ='CPU-VEICULO_PickUp1'!$C$11 -> 284.9581094 | G111: 0.68 | H111: ca
A112: =B102 -> CPU.10 | C112: MÃO DE OBRA | G112: 0 | H112: mdo
B114: CPU.12 | C114: Enrocamento ARCO tipo rachão reciclado cinza classe A jogado com fornecimento | D114: m3 | E114: 1 | G114: =SUM(G125,G118,G117,G115) -> 166.14 | H114: S
A115: =B114 -> CPU.12 | C115: MATERIAL | G115: =SUM(G116) -> 0 | H115: ss
A116: SINAPI | B116: 40553 | C116: =PROPER(IF(H116="i",VLOOKUP(B116,'Ins SINAPI PE 04-2025 Onerado'!$B$11:$F$50003,2,0),VLOOKUP(B116,'Comp SINAPI PE 04-2025 Onerado'!$G$11:$H$50004,2,0))) -> Agregado Reciclado, Tipo Rachao Reciclado Cinza, Classe A | D116: =IF(H116="i",VLOOKUP(B116,'Ins SINAPI PE 04-2025 Onerado'!$B$11:$F$50003,3,0),VLOOKUP(B116,'Comp SINAPI PE 04-2025 Onerado'!$G$11:$H$50004,3,0)) -> M3 | E116: 1 | F116: =IF(H116="i",VLOOKUP(B116,'Ins SINAPI PE 04-2025 Onerado'!$B$11:$F$50003,5,0),VLOOKUP(B116,'Comp SINAPI PE 04-2025 Onerado'!$G$11:$H$50004,5,0)) -> 0 | G116: =TRUNC(E116*F116,2) -> 0 | H116: i
A117: =B114 -> CPU.12 | C117: EQUIPAMENTOS | G117: 0 | H117: ss
A118: =B114 -> CPU.12 | C118: SERVIÇOS | G118: =SUM(G119:G124) -> 165.61 | H118: ss
A119: SINAPI | B119: 93592 | C119: =PROPER(IF(H119="i",VLOOKUP(B119,'Ins SINAPI PE 04-2025 Onerado'!$B$11:$F$50003,2,0),VLOOKUP(B119,'Comp SINAPI PE 04-2025 Onerado'!$B$11:$C$50004,2,0))) -> Transporte Com Caminhão Basculante De 14 M³, Em Via Urbana Em Revestimento Primário (Unidade: M3Xkm). Af_07/2020 | D119: =IF(H119="i",VLOOKUP(B119,'Ins SINAPI PE 04-2025 Onerado'!$B$11:$F$50003,2,0),VLOOKUP(B119,'Comp SINAPI PE 04-2025 Onerado'!$B$11:$H$50004,3,0)) -> M3XKM | E119: ='Memorial de cálculo'!H8 -> 15.71428571 | F119: =IF(H119="i",VLOOKUP(B119,'Ins SINAPI PE 04-2025 Onerado'!$B$11:$F$50003,5,0),VLOOKUP(B119,'Comp SINAPI PE 04-2025 Onerado'!$B$11:$E$50004,4,0)) -> 2.32 | G119: =TRUNC(E119*F119,2) -> 36.45 | H119: ca
A120: SINAPI | B120: 95876 | C120: =PROPER(IF(H120="i",VLOOKUP(B120,'Ins SINAPI PE 04-2025 Onerado'!$B$11:$F$50003,2,0),VLOOKUP(B120,'Comp SINAPI PE 04-2025 Onerado'!$B$11:$C$50004,2,0))) -> Transporte Com Caminhão Basculante De 14 M³, Em Via Urbana Pavimentada, Dmt Até 30 Km (Unidade: M3Xkm). Af_07/2020 | D120: =IF(H120="i",VLOOKUP(B120,'Ins SINAPI PE 04-2025 Onerado'!$B$11:$F$50003,2,0),VLOOKUP(B120,'Comp SINAPI PE 04-2025 Onerado'!$B$11:$H$50004,3,0)) -> M3XKM | E120: 30 | F120: =IF(H120="i",VLOOKUP(B120,'Ins SINAPI PE 04-2025 Onerado'!$B$11:$F$50003,5,0),VLOOKUP(B120,'Comp SINAPI PE 04-2025 Onerado'!$B$11:$E$50004,4,0)) -> 2.11 | G120: 63.3 | H120: ca
A121: SINAPI | B121: 93593 | C121: =PROPER(IF(H121="i",VLOOKUP(B121,'Ins SINAPI PE 04-2025 Onerado'!$B$11:$F$50003,2,0),VLOOKUP(B121,'Comp SINAPI PE 04-2025 Onerado'!$B$11:$C$50004,2,0))) -> Transporte Com Caminhão Basculante De 14 M³, Em Via Urbana Pavimentada, Adicional Para Dmt Excedente A 30 Km (Unidade: M3Xkm). Af_07/2020 | D121: =IF(H121="i",VLOOKUP(B121,'Ins SINAPI PE 04-2025 Onerado'!$B$11:$F$50003,2,0),VLOOKUP(B121,'Comp SINAPI PE 04-2025 Onerado'!$B$11:$H$50004,3,0)) -> M3XKM | E121: ='Memorial de cálculo'!H7-30 -> 66.85714286 | F121: =IF(H121="i",VLOOKUP(B121,'Ins SINAPI PE 04-2025 Onerado'!$B$11:$F$50003,5,0),VLOOKUP(B121,'Comp SINAPI PE 04-2025 Onerado'!$B$11:$E$50004,4,0)) -> 0.85 | G121: 56.82 | H121: ca
A122: SINAPI | B122: 100976 | C122: =PROPER(IF(H122="i",VLOOKUP(B122,'Ins SINAPI PE 04-2025 Onerado'!$B$11:$F$50003,2,0),VLOOKUP(B122,'Comp SINAPI PE 04-2025 Onerado'!$B$11:$C$50004,2,0))) -> Carga, Manobra E Descarga De Solos E Materiais Granulares Em Caminhão Basculante 18 M³ - Carga Com Pá Carregadeira (Caçamba De 1,7 A 2,8 M³ / 128 Hp) E Descarga Livre (Unidade: M3). Af_07/2020 | D122: =IF(H122="i",VLOOKUP(B122,'Ins SINAPI PE 04-2025 Onerado'!$B$11:$F$50003,2,0),VLOOKUP(B122,'Comp SINAPI PE 04-2025 Onerado'!$B$11:$H$50004,3,0)) -> M3 | E122: 1 | F122: =IF(H122="i",VLOOKUP(B122,'Ins SINAPI PE 04-2025 Onerado'!$B$11:$F$50003,5,0),VLOOKUP(B122,'Comp SINAPI PE 04-2025 Onerado'!$B$11:$E$50004,4,0)) -> 8.21 | G122: 8.21 | H122: ca
A123: PRÓPRIA | B123: CODE | C123: HOSPEDAGEM | D123: un | E123: ='Memorial de cálculo'!D68*'Memorial de cálculo'!H68+'Memorial de cálculo'!D69*'Memorial de cálculo'!H69 -> 0.0025 | F123: ='CPU HOSPEDAGEM'!$C$19 -> 195.4321212 | G123: 0.48 | H123: ca
A124: PRÓPRIA | B124: CODE | C124: Veículo tipo pick-up, cabine dupla - 2.0 16V 4x4 diesel Aut. | D124: dia | E124: =LARGE('Memorial de cálculo'!H68:H69,1) -> 0.00125 | F124: ='CPU-VEICULO_PickUp1'!$C$11 -> 284.9581094 | G124: 0.35 | H124: ca
A125: =B114 -> CPU.12 | C125: MÃO DE OBRA | G125: =SUM(G126:G127) -> 0.53 | H125: mdo
A126: SINAPI | B126: 88309 | C126: =PROPER(IF(H126="i",VLOOKUP(B126,'Ins SINAPI PE 04-2025 Onerado'!$B$11:$F$50003,2,0),VLOOKUP(B126,'Comp SINAPI PE 04-2025 Onerado'!$B$11:$C$50004,2,0))) -> Pedreiro Com Encargos Complementares | D126: =IF(H126="i",VLOOKUP(B126,'Ins SINAPI PE 04-2025 Onerado'!$B$11:$F$50003,2,0),VLOOKUP(B126,'Comp SINAPI PE 04-2025 Onerado'!$B$11:$H$50004,3,0)) -> H | E126: 0.01 | F126: =IF(H126="i",VLOOKUP(B126,'Ins SINAPI PE 04-2025 Onerado'!$B$11:$F$50003,5,0),VLOOKUP(B126,'Comp SINAPI PE 04-2025 Onerado'!$B$11:$E$50004,4,0)) -> 29.85 | G126: 0.29 | H126: ca
A127: SINAPI | B127: 88316 | C127: =PROPER(IF(H127="i",VLOOKUP(B127,'Ins SINAPI PE 04-2025 Onerado'!$B$11:$F$50003,2,0),VLOOKUP(B127,'Comp SINAPI PE 04-2025 Onerado'!$B$11:$C$50004,2,0))) -> Servente Com Encargos Complementares | D127: =IF(H127="i",VLOOKUP(B127,'Ins SINAPI PE 04-2025 Onerado'!$B$11:$F$50003,2,0),VLOOKUP(B127,'Comp SINAPI PE 04-2025 Onerado'!$B$11:$H$50004,3,0)) -> H | E127: 0.01 | F127: =IF(H127="i",VLOOKUP(B127,'Ins SINAPI PE 04-2025 Onerado'!$B$11:$F$50003,5,0),VLOOKUP(B127,'Comp SINAPI PE 04-2025 Onerado'!$B$11:$E$50004,4,0)) -> 24.08 | G127: 0.24 | H127: ca
B129: CPU.13 | C129: Recomposição das erosões, inclusive, regularização da superfície e reaterro | D129: m3 | E129: 1 | G129: =SUM(G145,G133,G132,G130) -> 335.47 | H129: S
A130: =B129 -> CPU.13 | C130: MATERIAL | G130: =SUM(G131) -> 115 | H130: ss
A131: SINAPI | B131: 6081 | C131: =PROPER(IF(H131="i",VLOOKUP(B131,'Ins SINAPI PE 04-2025 Onerado'!$B$11:$F$50003,2,0),VLOOKUP(B131,'Comp SINAPI PE 04-2025 Onerado'!$G$11:$H$50004,2,0))) -> Argila Ou Barro Para Aterro/Reaterro (Com Transporte Ate 10 Km) | D131: =IF(H131="i",VLOOKUP(B131,'Ins SINAPI PE 04-2025 Onerado'!$B$11:$F$50003,3,0),VLOOKUP(B131,'Comp SINAPI PE 04-2025 Onerado'!$G$11:$H$50004,3,0)) -> M3 | E131: 1 | F131: =$F$56 -> 115 | G131: =TRUNC(E131*F131,2) -> 115 | H131: i
A132: =B129 -> CPU.13 | C132: EQUIPAMENTOS | G132: 0 | H132: ss
A133: =B129 -> CPU.13 | C133: SERVIÇOS | G133: =SUM(G134:G144) -> 220.47 | H133: ss
A134: SINAPI | B134: 101230 | C134: =PROPER(IF(H134="i",VLOOKUP(B134,'Ins SINAPI PE 04-2025 Onerado'!$B$11:$F$50003,2,0),VLOOKUP(B134,'Comp SINAPI PE 04-2025 Onerado'!$B$11:$C$50004,2,0))) -> Escavação Vertical Para Infraestrutura, Com Carga, Descarga E Transporte De Solo De 1ª Categoria, Com Escavadeira Hidráulica (Caçamba: 0,8 M³ / 111 Hp), Frota De 3 Caminhões Basculantes De 14 M³, Dmt Até 1 Km E Velocidade Média14 Km/H. Af_05/2020 | D134: =IF(H134="i",VLOOKUP(B134,'Ins SINAPI PE 04-2025 Onerado'!$B$11:$F$50003,2,0),VLOOKUP(B134,'Comp SINAPI PE 04-2025 Onerado'!$B$11:$H$50004,3,0)) -> M3 | E134: 0.1 | F134: =IF(H134="i",VLOOKUP(B134,'Ins SINAPI PE 04-2025 Onerado'!$B$11:$F$50003,5,0),VLOOKUP(B134,'Comp SINAPI PE 04-2025 Onerado'!$B$11:$E$50004,4,0)) -> 10.95 | G134: =TRUNC(E134*F134,2) -> 1.09 | H134: ca | I134: Preparação da superfície 10%
A135: SINAPI | B135: 93589 | C135: =PROPER(IF(H135="i",VLOOKUP(B135,'Ins SINAPI PE 04-2025 Onerado'!$B$11:$F$50003,2,0),VLOOKUP(B135,'Comp SINAPI PE 04-2025 Onerado'!$B$11:$C$50004,2,0))) -> Transporte Com Caminhão Basculante De 10 M³, Em Via Urbana Em Revestimento Primário (Unidade: M3Xkm). Af_07/2020 | D135: =IF(H135="i",VLOOKUP(B135,'Ins SINAPI PE 04-2025 Onerado'!$B$11:$F$50003,2,0),VLOOKUP(B135,'Comp SINAPI PE 04-2025 Onerado'!$B$11:$H$50004,3,0)) -> M3XKM | E135: ='Memorial de cálculo'!$H$8-10 -> 5.714285714 | F135: =IF(H135="i",VLOOKUP(B135,'Ins SINAPI PE 04-2025 Onerado'!$B$11:$F$50003,5,0),VLOOKUP(B135,'Comp SINAPI PE 04-2025 Onerado'!$B$11:$E$50004,4,0)) -> 2.71 | G135: 15.48 | H135: ca | I135: Transporte da argila
A136: SINAPI | B136: 95875 | C136: =PROPER(IF(H136="i",VLOOKUP(B136,'Ins SINAPI PE 04-2025 Onerado'!$B$11:$F$50003,2,0),VLOOKUP(B136,'Comp SINAPI PE 04-2025 Onerado'!$B$11:$C$50004,2,0))) -> Transporte Com Caminhão Basculante De 10 M³, Em Via Urbana Pavimentada, Dmt Até 30 Km (Unidade: M3Xkm). Af_07/2020 | D136: =IF(H136="i",VLOOKUP(B136,'Ins SINAPI PE 04-2025 Onerado'!$B$11:$F$50003,2,0),VLOOKUP(B136,'Comp SINAPI PE 04-2025 Onerado'!$B$11:$H$50004,3,0)) -> M3XKM | E136: =30 -> 30 | F136: =IF(H136="i",VLOOKUP(B136,'Ins SINAPI PE 04-2025 Onerado'!$B$11:$F$50003,5,0),VLOOKUP(B136,'Comp SINAPI PE 04-2025 Onerado'!$B$11:$E$50004,4,0)) -> 2.49 | G136: 74.7 | H136: ca
A137: SINAPI | B137: 93590 | C137: =PROPER(IF(H137="i",VLOOKUP(B137,'Ins SINAPI PE 04-2025 Onerado'!$B$11:$F$50003,2,0),VLOOKUP(B137,'Comp SINAPI PE 04-2025 Onerado'!$B$11:$C$50004,2,0))) -> Transporte Com Caminhão Basculante De 10 M³, Em Via Urbana Pavimentada, Adicional Para Dmt Excedente A 30 Km (Unidade: M3Xkm). Af_07/2020 | D137: =IF(H137="i",VLOOKUP(B137,'Ins SINAPI PE 04-2025 Onerado'!$B$11:$F$50003,2,0),VLOOKUP(B137,'Comp SINAPI PE 04-2025 Onerado'!$B$11:$H$50004,3,0)) -> M3XKM | E137: ='Memorial de cálculo'!$H$7-30 -> 66.85714286 | F137: =IF(H137="i",VLOOKUP(B137,'Ins SINAPI PE 04-2025 Onerado'!$B$11:$F$50003,5,0),VLOOKUP(B137,'Comp SINAPI PE 04-2025 Onerado'!$B$11:$E$50004,4,0)) -> 0.98 | G137: 65.52 | H137: ca
A138: SINAPI | B138: 100976 | C138: =PROPER(IF(H138="i",VLOOKUP(B138,'Ins SINAPI PE 04-2025 Onerado'!$B$11:$F$50003,2,0),VLOOKUP(B138,'Comp SINAPI PE 04-2025 Onerado'!$B$11:$C$50004,2,0))) -> Carga, Manobra E Descarga De Solos E Materiais Granulares Em Caminhão Basculante 18 M³ - Carga Com Pá Carregadeira (Caçamba De 1,7 A 2,8 M³ / 128 Hp) E Descarga Livre (Unidade: M3). Af_07/2020 | D138: =IF(H138="i",VLOOKUP(B138,'Ins SINAPI PE 04-2025 Onerado'!$B$11:$F$50003,2,0),VLOOKUP(B138,'Comp SINAPI PE 04-2025 Onerado'!$B$11:$H$50004,3,0)) -> M3 | E138: 1 | F138: =IF(H138="i",VLOOKUP(B138,'Ins SINAPI PE 04-2025 Onerado'!$B$11:$F$50003,5,0),VLOOKUP(B138,'Comp SINAPI PE 04-2025 Onerado'!$B$11:$E$50004,4,0)) -> 8.21 | G138: 8.21 | H138: ca
A139: SINAPI | B139: 100951 | C139: =PROPER(IF(H139="i",VLOOKUP(B139,'Ins SINAPI PE 04-2025 Onerado'!$B$11:$F$50003,2,0),VLOOKUP(B139,'Comp SINAPI PE 04-2025 Onerado'!$B$11:$C$50004,2,0))) -> Transporte Com Caminhão Carroceria Com Guindauto (Munck), Momento Máximo De Carga 11,7 Tm, Em Via Urbana Em Revestimento Primário (Unidade: Txkm). Af_07/2020 | D139: =IF(H139="i",VLOOKUP(B139,'Ins SINAPI PE 04-2025 Onerado'!$B$11:$F$50003,2,0),VLOOKUP(B139,'Comp SINAPI PE 04-2025 Onerado'!$B$11:$H$50004,3,0)) -> TXKM | E139: =1.5*'Memorial de cálculo'!$H$8*2/'Memorial de cálculo'!P72 -> 2.946428571 | F139: =IF(H139="i",VLOOKUP(B139,'Ins SINAPI PE 04-2025 Onerado'!$B$11:$F$50003,5,0),VLOOKUP(B139,'Comp SINAPI PE 04-2025 Onerado'!$B$11:$E$50004,4,0)) -> 3.1 | G139: =TRUNC(E139*F139,2) -> 9.13 | H139: ca | I139: Tonelada da máquina | K139: 1.5
A140: SINAPI | B140: 100952 | C140: =PROPER(IF(H140="i",VLOOKUP(B140,'Ins SINAPI PE 04-2025 Onerado'!$B$11:$F$50003,2,0),VLOOKUP(B140,'Comp SINAPI PE 04-2025 Onerado'!$B$11:$C$50004,2,0))) -> Transporte Com Caminhão Carroceria Com Guindauto (Munck), Momento Máximo De Carga 11,7 Tm, Em Via Urbana Pavimentada, Dmt Até 30Km (Unidade: Txkm). Af_07/2020 | D140: =IF(H140="i",VLOOKUP(B140,'Ins SINAPI PE 04-2025 Onerado'!$B$11:$F$50003,2,0),VLOOKUP(B140,'Comp SINAPI PE 04-2025 Onerado'!$B$11:$H$50004,3,0)) -> TXKM | E140: =1.5*30*2/'Memorial de cálculo'!P72 -> 5.625 | F140: =IF(H140="i",VLOOKUP(B140,'Ins SINAPI PE 04-2025 Onerado'!$B$11:$F$50003,5,0),VLOOKUP(B140,'Comp SINAPI PE 04-2025 Onerado'!$B$11:$E$50004,4,0)) -> 2.85 | G140: 16.03 | H140: ca | I140: Tonelada da máquina | K140: 1.5
A141: SINAPI | B141: 100953 | C141: =PROPER(IF(H141="i",VLOOKUP(B141,'Ins SINAPI PE 04-2025 Onerado'!$B$11:$F$50003,2,0),VLOOKUP(B141,'Comp SINAPI PE 04-2025 Onerado'!$B$11:$C$50004,2,0))) -> Transporte Com Caminhão Carroceria Com Guindauto (Munck), Momento Máximo De Carga 11,7 Tm, Em Via Urbana Pavimentada, Adicional Para Dmt Excedente A 30 Km (Unidade: Txkm). Af_07/2020 | D141: =IF(H141="i",VLOOKUP(B141,'Ins SINAPI PE 04-2025 Onerado'!$B$11:$F$50003,2,0),VLOOKUP(B141,'Comp SINAPI PE 04-2025 Onerado'!$B$11:$H$50004,3,0)) -> TXKM | E141: =1.5*('Memorial de cálculo'!$H$7-30)*2/'Memorial de cálculo'!P72 -> 12.53571429 | F141: =IF(H141="i",VLOOKUP(B141,'Ins SINAPI PE 04-2025 Onerado'!$B$11:$F$50003,5,0),VLOOKUP(B141,'Comp SINAPI PE 04-2025 Onerado'!$B$11:$E$50004,4,0)) -> 1.13 | G141: 14.16 | H141: ca | I141: Tonelada da máquina | K141: 1.5
A142: SINAPI | B142: 96385 | C142: =PROPER(IF(H142="i",VLOOKUP(B142,'Ins SINAPI PE 04-2025 Onerado'!$B$11:$F$50003,2,0),VLOOKUP(B142,'Comp SINAPI PE 04-2025 Onerado'!$B$11:$C$50004,2,0))) -> Execução E Compactação De Corpo De Aterro De Aterro (95% De Energia Do Proctor Normal) Com Solo Predominantemente Argiloso Espessura 15 Cm - Exclusive Material, Escavação, Carga E Transporte. Af_09/2024 | D142: =IF(H142="i",VLOOKUP(B142,'Ins SINAPI PE 04-2025 Onerado'!$B$11:$F$50003,2,0),VLOOKUP(B142,'Comp SINAPI PE 04-2025 Onerado'!$B$11:$H$50004,3,0)) -> M3 | E142: 1 | F142: =IF(H142="i",VLOOKUP(B142,'Ins SINAPI PE 04-2025 Onerado'!$B$11:$F$50003,5,0),VLOOKUP(B142,'Comp SINAPI PE 04-2025 Onerado'!$B$11:$E$50004,4,0)) -> 11.46 | G142: 11.46 | H142: ca
A143: PRÓPRIA | B143: CODE | C143: HOSPEDAGEM | D143: un | E143: ='Memorial de cálculo'!D73*'Memorial de cálculo'!H73+'Memorial de cálculo'!D74*'Memorial de cálculo'!H74+'Memorial de cálculo'!D75*'Memorial de cálculo'!H75 -> 0.0153585375 | F143: ='CPU HOSPEDAGEM'!$C$19 -> 195.4321212 | G143: 3 | H143: ca
A144: PRÓPRIA | B144: CODE | C144: Veículo tipo pick-up, cabine dupla - 2.0 16V 4x4 diesel Aut. | D144: dia | E144: =LARGE('Memorial de cálculo'!H73:H75,1) -> 0.0059586125 | F144: ='CPU-VEICULO_PickUp1'!$C$11 -> 284.9581094 | G144: 1.69 | H144: ca
A145: =B129 -> CPU.13 | C145: MÃO DE OBRA | G145: 0 | H145: mdo
B147: CPU.14 | C147: Regularização e compactação da crista | D147: m2 | E147: 1 | G147: =SUM(G154,G150,G149,G148) -> 2.42 | H147: S
A148: =B147 -> CPU.14 | C148: MATERIAL | G148: 0 | H148: ss
A149: =B147 -> CPU.14 | C149: EQUIPAMENTOS | G149: 0 | H149: ss
A150: =B147 -> CPU.14 | C150: SERVIÇOS | G150: =SUM(G151:G153) -> 2.42 | H150: ss
A151: SINAPI | B151: 100576 | C151: =PROPER(IF(H151="i",VLOOKUP(B151,'Ins SINAPI PE 04-2025 Onerado'!$B$11:$F$50003,2,0),VLOOKUP(B151,'Comp SINAPI PE 04-2025 Onerado'!$B$11:$C$50004,2,0))) -> Regularização E Compactação De Subleito De Solo Predominantemente Argiloso, Para Obras De Construção De Pavimentos. Af_09/2024 | D151: =IF(H151="i",VLOOKUP(B151,'Ins SINAPI PE 04-2025 Onerado'!$B$11:$F$50003,2,0),VLOOKUP(B151,'Comp SINAPI PE 04-2025 Onerado'!$B$11:$H$50004,3,0)) -> M2 | E151: 1 | F151: =IF(H151="i",VLOOKUP(B151,'Ins SINAPI PE 04-2025 Onerado'!$B$11:$F$50003,5,0),VLOOKUP(B151,'Comp SINAPI PE 04-2025 Onerado'!$B$11:$E$50004,4,0)) -> 1.91 | G151: =TRUNC(E151*F151,2) -> 1.91 | H151: ca
A152: PRÓPRIA | B152: CODE | C152: HOSPEDAGEM | D152: un | E152: ='Memorial de cálculo'!D79*'Memorial de cálculo'!H79 -> 0.0010769 | F152: ='CPU HOSPEDAGEM'!$C$19 -> 195.4321212 | G152: =TRUNC(E152*F152,2) -> 0.21 | H152: ca
A153: PRÓPRIA | B153: CODE | C153: Veículo tipo pick-up, cabine dupla - 2.0 16V 4x4 diesel Aut. | D153: dia | E153: =LARGE('Memorial de cálculo'!H79,1) -> 0.0010769 | F153: ='CPU-VEICULO_PickUp1'!$C$11 -> 284.9581094 | G153: =TRUNC(E153*F153,2) -> 0.3 | H153: ca
A154: =B147 -> CPU.14 | C154: MÃO DE OBRA | G154: 0 | H154: mdo
B156: CPU.15 | C156: Execução de Revestimento com BGTC | D156: m3 | E156: 1 | G156: =SUM(G167,G159,G158,G157) -> 375.44 | H156: S
A157: =B156 -> CPU.15 | C157: MATERIAL | G157: 0 | H157: ss
A158: =B156 -> CPU.15 | C158: EQUIPAMENTOS | G158: 0 | H158: ss
A159: =B156 -> CPU.15 | C159: SERVIÇOS | G159: =SUM(G160:G166) -> 375.44 | H159: ss
A160: SINAPI | B160: 96397 | C160: =PROPER(IF(H160="i",VLOOKUP(B160,'Ins SINAPI PE 04-2025 Onerado'!$B$11:$F$50003,2,0),VLOOKUP(B160,'Comp SINAPI PE 04-2025 Onerado'!$B$11:$C$50004,2,0))) -> Construção De Base E Sub-Base Para Pavimentação De Brita Graduada Simples Tratada Com Cimento, Com Espessura De 15 Cm - Exclusive Carga E Transporte. Af_09/2024 | D160: =IF(H160="i",VLOOKUP(B160,'Ins SINAPI PE 04-2025 Onerado'!$B$11:$F$50003,2,0),VLOOKUP(B160,'Comp SINAPI PE 04-2025 Onerado'!$B$11:$H$50004,3,0)) -> M3 | E160: 1 | F160: =IF(H160="i",VLOOKUP(B160,'Ins SINAPI PE 04-2025 Onerado'!$B$11:$F$50003,5,0),VLOOKUP(B160,'Comp SINAPI PE 04-2025 Onerado'!$B$11:$E$50004,4,0)) -> 231.67 | G160: =TRUNC(E160*F160,2) -> 231.67 | H160: ca
A161: SINAPI | B161: 93592 | C161: =PROPER(IF(H161="i",VLOOKUP(B161,'Ins SINAPI PE 04-2025 Onerado'!$B$11:$F$50003,2,0),VLOOKUP(B161,'Comp SINAPI PE 04-2025 Onerado'!$B$11:$C$50004,2,0))) -> Transporte Com Caminhão Basculante De 14 M³, Em Via Urbana Em Revestimento Primário (Unidade: M3Xkm). Af_07/2020 | D161: =IF(H161="i",VLOOKUP(B161,'Ins SINAPI PE 04-2025 Onerado'!$B$11:$F$50003,2,0),VLOOKUP(B161,'Comp SINAPI PE 04-2025 Onerado'!$B$11:$H$50004,3,0)) -> M3XKM | E161: ='Memorial de cálculo'!$H$8-10 -> 5.714285714 | F161: =IF(H161="i",VLOOKUP(B161,'Ins SINAPI PE 04-2025 Onerado'!$B$11:$F$50003,5,0),VLOOKUP(B161,'Comp SINAPI PE 04-2025 Onerado'!$B$11:$E$50004,4,0)) -> 2.32 | G161: 13.25 | H161: ca
A162: SINAPI | B162: 95876 | C162: =PROPER(IF(H162="i",VLOOKUP(B162,'Ins SINAPI PE 04-2025 Onerado'!$B$11:$F$50003,2,0),VLOOKUP(B162,'Comp SINAPI PE 04-2025 Onerado'!$B$11:$C$50004,2,0))) -> Transporte Com Caminhão Basculante De 14 M³, Em Via Urbana Pavimentada, Dmt Até 30 Km (Unidade: M3Xkm). Af_07/2020 | D162: =IF(H162="i",VLOOKUP(B162,'Ins SINAPI PE 04-2025 Onerado'!$B$11:$F$50003,2,0),VLOOKUP(B162,'Comp SINAPI PE 04-2025 Onerado'!$B$11:$H$50004,3,0)) -> M3XKM | E162: =30 -> 30 | F162: =IF(H162="i",VLOOKUP(B162,'Ins SINAPI PE 04-2025 Onerado'!$B$11:$F$50003,5,0),VLOOKUP(B162,'Comp SINAPI PE 04-2025 Onerado'!$B$11:$E$50004,4,0)) -> 2.11 | G162: 63.3 | H162: ca
A163: SINAPI | B163: 93593 | C163: =PROPER(IF(H163="i",VLOOKUP(B163,'Ins SINAPI PE 04-2025 Onerado'!$B$11:$F$50003,2,0),VLOOKUP(B163,'Comp SINAPI PE 04-2025 Onerado'!$B$11:$C$50004,2,0))) -> Transporte Com Caminhão Basculante De 14 M³, Em Via Urbana Pavimentada, Adicional Para Dmt Excedente A 30 Km (Unidade: M3Xkm). Af_07/2020 | D163: =IF(H163="i",VLOOKUP(B163,'Ins SINAPI PE 04-2025 Onerado'!$B$11:$F$50003,2,0),VLOOKUP(B163,'Comp SINAPI PE 04-2025 Onerado'!$B$11:$H$50004,3,0)) -> M3XKM | E163: ='Memorial de cálculo'!$H$7-30 -> 66.85714286 | F163: =IF(H163="i",VLOOKUP(B163,'Ins SINAPI PE 04-2025 Onerado'!$B$11:$F$50003,5,0),VLOOKUP(B163,'Comp SINAPI PE 04-2025 Onerado'!$B$11:$E$50004,4,0)) -> 0.85 | G163: 56.82 | H163: ca
A164: SINAPI | B164: 100976 | C164: =PROPER(IF(H164="i",VLOOKUP(B164,'Ins SINAPI PE 04-2025 Onerado'!$B$11:$F$50003,2,0),VLOOKUP(B164,'Comp SINAPI PE 04-2025 Onerado'!$B$11:$C$50004,2,0))) -> Carga, Manobra E Descarga De Solos E Materiais Granulares Em Caminhão Basculante 18 M³ - Carga Com Pá Carregadeira (Caçamba De 1,7 A 2,8 M³ / 128 Hp) E Descarga Livre (Unidade: M3). Af_07/2020 | D164: =IF(H164="i",VLOOKUP(B164,'Ins SINAPI PE 04-2025 Onerado'!$B$11:$F$50003,2,0),VLOOKUP(B164,'Comp SINAPI PE 04-2025 Onerado'!$B$11:$H$50004,3,0)) -> M3 | E164: 1 | F164: =IF(H164="i",VLOOKUP(B164,'Ins SINAPI PE 04-2025 Onerado'!$B$11:$F$50003,5,0),VLOOKUP(B164,'Comp SINAPI PE 04-2025 Onerado'!$B$11:$E$50004,4,0)) -> 8.21 | G164: 8.21 | H164: ca
A165: PRÓPRIA | B165: CODE | C165: HOSPEDAGEM | D165: un | E165: ='Memorial de cálculo'!D83*'Memorial de cálculo'!H83 -> 0.004568675 | F165: ='CPU HOSPEDAGEM'!$C$19 -> 195.4321212 | G165: 0.89 | H165: ca
A166: PRÓPRIA | B166: CODE | C166: Veículo tipo pick-up, cabine dupla - 2.0 16V 4x4 diesel Aut. | D166: dia | E166: =LARGE('Memorial de cálculo'!H83,1) -> 0.004568675 | F166: ='CPU-VEICULO_PickUp1'!$C$11 -> 284.9581094 | G166: 1.3 | H166: ca
A167: =B156 -> CPU.15 | C167: MÃO DE OBRA | G167: 0 | H167: mdo
B169: CPU.16 | C169: Restauração com uso de concreto | D169: m3 | E169: 1 | G169: =SUM(G180,G172,G171,G170) -> 1497.92 | H169: S
A170: =B169 -> CPU.16 | C170: MATERIAL | G170: 0 | H170: ss
A171: =B169 -> CPU.16 | C171: EQUIPAMENTOS | G171: 0 | H171: ss
A172: =B169 -> CPU.16 | C172: SERVIÇOS | G172: =SUM(G173:G179) -> 1497.92 | H172: ss
A173: SINAPI | B173: 94975 | C173: =PROPER(IF(H173="i",VLOOKUP(B173,'Ins SINAPI PE 04-2025 Onerado'!$B$11:$F$50003,2,0),VLOOKUP(B173,'Comp SINAPI PE 04-2025 Onerado'!$B$11:$C$50004,2,0))) -> Concreto Fck = 15Mpa, Traço 1:3,4:3,5 (Em Massa Seca De Cimento/ Areia Média/ Brita 1) - Preparo Manual. Af_05/2021 | D173: =IF(H173="i",VLOOKUP(B173,'Ins SINAPI PE 04-2025 Onerado'!$B$11:$F$50003,2,0),VLOOKUP(B173,'Comp SINAPI PE 04-2025 Onerado'!$B$11:$H$50004,3,0)) -> M3 | E173: 1 | F173: =IF(H173="i",VLOOKUP(B173,'Ins SINAPI PE 04-2025 Onerado'!$B$11:$F$50003,5,0),VLOOKUP(B173,'Comp SINAPI PE 04-2025 Onerado'!$B$11:$E$50004,4,0)) -> 510.97 | G173: =TRUNC(E173*F173,2) -> 510.97 | H173: ca
A174: SINAPI | B174: 93589 | C174: =PROPER(IF(H174="i",VLOOKUP(B174,'Ins SINAPI PE 04-2025 Onerado'!$B$11:$F$50003,2,0),VLOOKUP(B174,'Comp SINAPI PE 04-2025 Onerado'!$B$11:$C$50004,2,0))) -> Transporte Com Caminhão Basculante De 10 M³, Em Via Urbana Em Revestimento Primário (Unidade: M3Xkm). Af_07/2020 | D174: =IF(H174="i",VLOOKUP(B174,'Ins SINAPI PE 04-2025 Onerado'!$B$11:$F$50003,2,0),VLOOKUP(B174,'Comp SINAPI PE 04-2025 Onerado'!$B$11:$H$50004,3,0)) -> M3XKM | E174: ='Memorial de cálculo'!$H$8 -> 15.71428571 | F174: =IF(H174="i",VLOOKUP(B174,'Ins SINAPI PE 04-2025 Onerado'!$B$11:$F$50003,5,0),VLOOKUP(B174,'Comp SINAPI PE 04-2025 Onerado'!$B$11:$E$50004,4,0)) -> 2.71 | G174: 42.58 | H174: ca
A175: SINAPI | B175: 95875 | C175: =PROPER(IF(H175="i",VLOOKUP(B175,'Ins SINAPI PE 04-2025 Onerado'!$B$11:$F$50003,2,0),VLOOKUP(B175,'Comp SINAPI PE 04-2025 Onerado'!$B$11:$C$50004,2,0))) -> Transporte Com Caminhão Basculante De 10 M³, Em Via Urbana Pavimentada, Dmt Até 30 Km (Unidade: M3Xkm). Af_07/2020 | D175: =IF(H175="i",VLOOKUP(B175,'Ins SINAPI PE 04-2025 Onerado'!$B$11:$F$50003,2,0),VLOOKUP(B175,'Comp SINAPI PE 04-2025 Onerado'!$B$11:$H$50004,3,0)) -> M3XKM | E175: =30 -> 30 | F175: =IF(H175="i",VLOOKUP(B175,'Ins SINAPI PE 04-2025 Onerado'!$B$11:$F$50003,5,0),VLOOKUP(B175,'Comp SINAPI PE 04-2025 Onerado'!$B$11:$E$50004,4,0)) -> 2.49 | G175: 74.7 | H175: ca
A176: SINAPI | B176: 95875 | C176: =PROPER(IF(H176="i",VLOOKUP(B176,'Ins SINAPI PE 04-2025 Onerado'!$B$11:$F$50003,2,0),VLOOKUP(B176,'Comp SINAPI PE 04-2025 Onerado'!$B$11:$C$50004,2,0))) -> Transporte Com Caminhão Basculante De 10 M³, Em Via Urbana Pavimentada, Dmt Até 30 Km (Unidade: M3Xkm). Af_07/2020 | D176: =IF(H176="i",VLOOKUP(B176,'Ins SINAPI PE 04-2025 Onerado'!$B$11:$F$50003,2,0),VLOOKUP(B176,'Comp SINAPI PE 04-2025 Onerado'!$B$11:$H$50004,3,0)) -> M3XKM | E176: ='Memorial de cálculo'!$H$7-30 -> 66.85714286 | F176: =IF(H176="i",VLOOKUP(B176,'Ins SINAPI PE 04-2025 Onerado'!$B$11:$F$50003,5,0),VLOOKUP(B176,'Comp SINAPI PE 04-2025 Onerado'!$B$11:$E$50004,4,0)) -> 2.49 | G176: 166.47 | H176: ca
A177: SINAPI | B177: 92268 | C177: =PROPER(IF(H177="i",VLOOKUP(B177,'Ins SINAPI PE 04-2025 Onerado'!$B$11:$F$50003,2,0),VLOOKUP(B177,'Comp SINAPI PE 04-2025 Onerado'!$B$11:$C$50004,2,0))) -> Fabricação De Fôrma Para Lajes, Em Chapa De Madeira Compensada Plastificada, E = 18 Mm. Af_09/2020 | D177: =IF(H177="i",VLOOKUP(B177,'Ins SINAPI PE 04-2025 Onerado'!$B$11:$F$50003,2,0),VLOOKUP(B177,'Comp SINAPI PE 04-2025 Onerado'!$B$11:$H$50004,3,0)) -> M2 | E177: 5.5 | F177: =IF(H177="i",VLOOKUP(B177,'Ins SINAPI PE 04-2025 Onerado'!$B$11:$F$50003,5,0),VLOOKUP(B177,'Comp SINAPI PE 04-2025 Onerado'!$B$11:$E$50004,4,0)) -> 80.19 | G177: 441.04 | H177: ca
A178: PRÓPRIA | B178: CODE | C178: HOSPEDAGEM | D178: un | E178: ='Memorial de cálculo'!D87*'Memorial de cálculo'!H87 -> 0.7758375 | F178: ='CPU HOSPEDAGEM'!$C$19 -> 195.4321212 | G178: 151.62 | H178: ca
A179: PRÓPRIA | B179: CODE | C179: Veículo tipo pick-up, cabine dupla - 2.0 16V 4x4 diesel Aut. | D179: dia | E179: =LARGE('Memorial de cálculo'!H87,1) -> 0.38791875 | F179: ='CPU-VEICULO_PickUp1'!$C$11 -> 284.9581094 | G179: 110.54 | H179: ca
A180: =B169 -> CPU.16 | C180: MÃO DE OBRA | G180: 0 | H180: mdo
B182: CPU.17 | C182: Restauração com uso de Pedra Argamassada | D182: m3 | E182: 1 | G182: =SUM(G192,G185,G184,G183) -> 966.99 | H182: S
A183: =B182 -> CPU.17 | C183: MATERIAL | G183: 0 | H183: ss
A184: =B182 -> CPU.17 | C184: EQUIPAMENTOS | G184: 0 | H184: ss
A185: =B182 -> CPU.17 | C185: SERVIÇOS | G185: =SUM(G186:G191) -> 966.99 | H185: ss
A186: SINAPI | B186: 103800 | C186: =PROPER(IF(H186="i",VLOOKUP(B186,'Ins SINAPI PE 04-2025 Onerado'!$B$11:$F$50003,2,0),VLOOKUP(B186,'Comp SINAPI PE 04-2025 Onerado'!$B$11:$C$50004,2,0))) -> Pedra Argamassada Com Cimento E Areia 1:3, 40% De Argamassa Em Volume - Areia E Pedra De Mão Comerciais - Fornecimento E Assentamento. Af_08/2022 | D186: =IF(H186="i",VLOOKUP(B186,'Ins SINAPI PE 04-2025 Onerado'!$B$11:$F$50003,2,0),VLOOKUP(B186,'Comp SINAPI PE 04-2025 Onerado'!$B$11:$H$50004,3,0)) -> M3 | E186: 1 | F186: =IF(H186="i",VLOOKUP(B186,'Ins SINAPI PE 04-2025 Onerado'!$B$11:$F$50003,5,0),VLOOKUP(B186,'Comp SINAPI PE 04-2025 Onerado'!$B$11:$E$50004,4,0)) -> 528.54 | G186: =TRUNC(E186*F186,2) -> 528.54 | H186: ca
A187: SINAPI | B187: 93589 | C187: =PROPER(IF(H187="i",VLOOKUP(B187,'Ins SINAPI PE 04-2025 Onerado'!$B$11:$F$50003,2,0),VLOOKUP(B187,'Comp SINAPI PE 04-2025 Onerado'!$B$11:$C$50004,2,0))) -> Transporte Com Caminhão Basculante De 10 M³, Em Via Urbana Em Revestimento Primário (Unidade: M3Xkm). Af_07/2020 | D187: =IF(H187="i",VLOOKUP(B187,'Ins SINAPI PE 04-2025 Onerado'!$B$11:$F$50003,2,0),VLOOKUP(B187,'Comp SINAPI PE 04-2025 Onerado'!$B$11:$H$50004,3,0)) -> M3XKM | E187: ='Memorial de cálculo'!$H$8 -> 15.71428571 | F187: =IF(H187="i",VLOOKUP(B187,'Ins SINAPI PE 04-2025 Onerado'!$B$11:$F$50003,5,0),VLOOKUP(B187,'Comp SINAPI PE 04-2025 Onerado'!$B$11:$E$50004,4,0)) -> 2.71 | G187: 42.58 | H187: ca
A188: SINAPI | B188: 95875 | C188: =PROPER(IF(H188="i",VLOOKUP(B188,'Ins SINAPI PE 04-2025 Onerado'!$B$11:$F$50003,2,0),VLOOKUP(B188,'Comp SINAPI PE 04-2025 Onerado'!$B$11:$C$50004,2,0))) -> Transporte Com Caminhão Basculante De 10 M³, Em Via Urbana Pavimentada, Dmt Até 30 Km (Unidade: M3Xkm). Af_07/2020 | D188: =IF(H188="i",VLOOKUP(B188,'Ins SINAPI PE 04-2025 Onerado'!$B$11:$F$50003,2,0),VLOOKUP(B188,'Comp SINAPI PE 04-2025 Onerado'!$B$11:$H$50004,3,0)) -> M3XKM | E188: =30 -> 30 | F188: =IF(H188="i",VLOOKUP(B188,'Ins SINAPI PE 04-2025 Onerado'!$B$11:$F$50003,5,0),VLOOKUP(B188,'Comp SINAPI PE 04-2025 Onerado'!$B$11:$E$50004,4,0)) -> 2.49 | G188: 74.7 | H188: ca
A189: SINAPI | B189: 95875 | C189: =PROPER(IF(H189="i",VLOOKUP(B189,'Ins SINAPI PE 04-2025 Onerado'!$B$11:$F$50003,2,0),VLOOKUP(B189,'Comp SINAPI PE 04-2025 Onerado'!$B$11:$C$50004,2,0))) -> Transporte Com Caminhão Basculante De 10 M³, Em Via Urbana Pavimentada, Dmt Até 30 Km (Unidade: M3Xkm). Af_07/2020 | D189: =IF(H189="i",VLOOKUP(B189,'Ins SINAPI PE 04-2025 Onerado'!$B$11:$F$50003,2,0),VLOOKUP(B189,'Comp SINAPI PE 04-2025 Onerado'!$B$11:$H$50004,3,0)) -> M3XKM | E189: ='Memorial de cálculo'!$H$7-30 -> 66.85714286 | F189: =IF(H189="i",VLOOKUP(B189,'Ins SINAPI PE 04-2025 Onerado'!$B$11:$F$50003,5,0),VLOOKUP(B189,'Comp SINAPI PE 04-2025 Onerado'!$B$11:$E$50004,4,0)) -> 2.49 | G189: 166.47 | H189: ca
A190: PRÓPRIA | B190: CODE | C190: HOSPEDAGEM | D190: un | E190: ='Memorial de cálculo'!D91*'Memorial de cálculo'!H92+'Memorial de cálculo'!D91*'Memorial de cálculo'!H92 -> 0.3877625 | F190: ='CPU HOSPEDAGEM'!$C$19 -> 195.4321212 | G190: 75.78 | H190: ca
A191: PRÓPRIA | B191: CODE | C191: Veículo tipo pick-up, cabine dupla - 2.0 16V 4x4 diesel Aut. | D191: dia | E191: =LARGE('Memorial de cálculo'!H91:H92,1) -> 0.276975 | F191: ='CPU-VEICULO_PickUp1'!$C$11 -> 284.9581094 | G191: 78.92 | H191: ca
A192: =B182 -> CPU.17 | C192: MÃO DE OBRA | G192: 0 | H192: mdo
B194: CPU.18 | C194: Régua Linimétrica Padrão “ANA”, Aço Carbono - 2 X 70 X 1000 mm (Fornecimento e Instalação) | D194: un | E194: 1 | G194: =SUM(G203,G199,G198,G195) -> 414.26 | H194: S
A195: =B194 -> CPU.18 | C195: MATERIAL | G195: =SUM(G196:G197) -> 229.26 | H195: ss
A196: 2025-04-09 | B196: cotação | C196: RÉGUA LINIMÉTRICA PADRÃO “ANA”, AÇO CARBONO - 2 X 70 X 1000MM | D196: un | E196: 1 | F196: =Cotação!O11 -> 165.9 | G196: =TRUNC(E196*F196,2) -> 165.9 | H196: ca
A197: SINAPI | B197: 2747 | C197: =PROPER(IF(H197="i",VLOOKUP(B197,'Ins SINAPI PE 04-2025 Onerado'!$B$11:$F$50003,2,0),VLOOKUP(B197,'Comp SINAPI PE 04-2025 Onerado'!$G$11:$H$50004,2,0))) -> Mourao Rolico De Madeira Tratada, D = 16 A 20 Cm, H = 2,20 M, Em Eucalipto Ou Equivalente Da Regiao (Para Cerca) | D197: =IF(H197="i",VLOOKUP(B197,'Ins SINAPI PE 04-2025 Onerado'!$B$11:$F$50003,3,0),VLOOKUP(B197,'Comp SINAPI PE 04-2025 Onerado'!$G$11:$H$50004,3,0)) -> M | E197: 1.5 | F197: =IF(H197="i",VLOOKUP(B197,'Ins SINAPI PE 04-2025 Onerado'!$B$11:$F$50003,5,0),VLOOKUP(B197,'Comp SINAPI PE 04-2025 Onerado'!$G$11:$H$50004,5,0)) -> 42.24 | G197: =TRUNC(E197*F197,2) -> 63.36 | H197: i
A198: =B194 -> CPU.18 | C198: EQUIPAMENTOS | G198: 0 | H198: ss
A199: =B194 -> CPU.18 | C199: SERVIÇOS | G199: =SUM(G200:G202) -> 120.71 | H199: ss
A200: SINAPI | B200: 94975 | C200: =PROPER(IF(H200="i",VLOOKUP(B200,'Ins SINAPI PE 04-2025 Onerado'!$B$11:$F$50003,2,0),VLOOKUP(B200,'Comp SINAPI PE 04-2025 Onerado'!$B$11:$C$50004,2,0))) -> Concreto Fck = 15Mpa, Traço 1:3,4:3,5 (Em Massa Seca De Cimento/ Areia Média/ Brita 1) - Preparo Manual. Af_05/2021 | D200: =IF(H200="i",VLOOKUP(B200,'Ins SINAPI PE 04-2025 Onerado'!$B$11:$F$50003,2,0),VLOOKUP(B200,'Comp SINAPI PE 04-2025 Onerado'!$B$11:$H$50004,3,0)) -> M3 | E200: 0.01 | F200: =IF(H200="i",VLOOKUP(B200,'Ins SINAPI PE 04-2025 Onerado'!$B$11:$F$50003,5,0),VLOOKUP(B200,'Comp SINAPI PE 04-2025 Onerado'!$B$11:$E$50004,4,0)) -> 510.97 | G200: =TRUNC(E200*F200,2) -> 5.1 | H200: ca
A201: PRÓPRIA | B201: CODE | C201: HOSPEDAGEM | D201: un | E201: ='Memorial de cálculo'!D96*'Memorial de cálculo'!H96+'Memorial de cálculo'!D97*'Memorial de cálculo'!H97 -> 0.3 | F201: ='CPU HOSPEDAGEM'!$C$19 -> 195.4321212 | G201: 58.62 | H201: ca
A202: PRÓPRIA | B202: CODE | C202: Veículo tipo pick-up, cabine dupla - 2.0 16V 4x4 diesel Aut. | D202: dia | E202: =LARGE('Memorial de cálculo'!H96:H97,1) -> 0.2 | F202: ='CPU-VEICULO_PickUp1'!$C$11 -> 284.9581094 | G202: 56.99 | H202: ca
A203: =B194 -> CPU.18 | C203: MÃO DE OBRA | G203: =SUM(G204:G205) -> 64.29 | H203: mdo
A204: SINAPI | B204: 90781 | C204: =PROPER(IF(H204="i",VLOOKUP(B204,'Ins SINAPI PE 04-2025 Onerado'!$B$11:$F$50003,2,0),VLOOKUP(B204,'Comp SINAPI PE 04-2025 Onerado'!$B$11:$C$50004,2,0))) -> Topografo Com Encargos Complementares | D204: =IF(H204="i",VLOOKUP(B204,'Ins SINAPI PE 04-2025 Onerado'!$B$11:$F$50003,2,0),VLOOKUP(B204,'Comp SINAPI PE 04-2025 Onerado'!$B$11:$H$50004,3,0)) -> H | E204: 0.8 | F204: =IF(H204="i",VLOOKUP(B204,'Ins SINAPI PE 04-2025 Onerado'!$B$11:$F$50003,5,0),VLOOKUP(B204,'Comp SINAPI PE 04-2025 Onerado'!$B$11:$E$50004,4,0)) -> 32.22 | G204: 25.77 | H204: ca
A205: SINAPI | B205: 88316 | C205: =PROPER(IF(H205="i",VLOOKUP(B205,'Ins SINAPI PE 04-2025 Onerado'!$B$11:$F$50003,2,0),VLOOKUP(B205,'Comp SINAPI PE 04-2025 Onerado'!$B$11:$C$50004,2,0))) -> Servente Com Encargos Complementares | D205: =IF(H205="i",VLOOKUP(B205,'Ins SINAPI PE 04-2025 Onerado'!$B$11:$F$50003,2,0),VLOOKUP(B205,'Comp SINAPI PE 04-2025 Onerado'!$B$11:$H$50004,3,0)) -> H | E205: 1.6 | F205: =IF(H205="i",VLOOKUP(B205,'Ins SINAPI PE 04-2025 Onerado'!$B$11:$F$50003,5,0),VLOOKUP(B205,'Comp SINAPI PE 04-2025 Onerado'!$B$11:$E$50004,4,0)) -> 24.08 | G205: 38.52 | H205: ca
B207: CPU.19 | C207: Demolição e remoção de guias e sarjetas e/ou canaletas | D207: m | E207: 1 | G207: =SUM(G215,G210,G209,G208) -> 34.13 | H207: S
A208: =B207 -> CPU.19 | C208: MATERIAL | G208: 0 | H208: ss
A209: =B207 -> CPU.19 | C209: EQUIPAMENTOS | G209: 0 | H209: ss
A210: =B207 -> CPU.19 | C210: SERVIÇOS | G210: =SUM(G211:G214) -> 34.13 | H210: ss
A211: SINAPI | B211: 104796 | C211: =PROPER(IF(H211="i",VLOOKUP(B211,'Ins SINAPI PE 04-2025 Onerado'!$B$11:$F$50003,2,0),VLOOKUP(B211,'Comp SINAPI PE 04-2025 Onerado'!$B$11:$C$50004,2,0))) -> Demolição De Guias, Sarjetas Ou Sarjetões, De Forma Mecanizada, Sem Reaproveitamento. Af_09/2023 | D211: =IF(H211="i",VLOOKUP(B211,'Ins SINAPI PE 04-2025 Onerado'!$B$11:$F$50003,2,0),VLOOKUP(B211,'Comp SINAPI PE 04-2025 Onerado'!$B$11:$H$50004,3,0)) -> M | E211: 1 | F211: =IF(H211="i",VLOOKUP(B211,'Ins SINAPI PE 04-2025 Onerado'!$B$11:$F$50003,5,0),VLOOKUP(B211,'Comp SINAPI PE 04-2025 Onerado'!$B$11:$E$50004,4,0)) -> 14.38 | G211: =TRUNC(E211*F211,2) -> 14.38 | H211: ca
A212: PRÓPRIA | B212: CODE | C212: HOSPEDAGEM | D212: un | E212: ='Memorial de cálculo'!D101*'Memorial de cálculo'!H101+'Memorial de cálculo'!D102*'Memorial de cálculo'!H102 -> 0.0316375 | F212: ='CPU HOSPEDAGEM'!$C$19 -> 195.4321212 | G212: =TRUNC(E212*F212,2) -> 6.18 | H212: ca
A213: PRÓPRIA | B213: CODE | C213: Veículo tipo pick-up, cabine dupla - 2.0 16V 4x4 diesel Aut. | D213: dia | E213: =LARGE('Memorial de cálculo'!H101:H102,1) -> 0.0219875 | F213: ='CPU-VEICULO_PickUp1'!$C$11 -> 284.9581094 | G213: =TRUNC(E213*F213,2) -> 6.26 | H213: ca
A214: SINAPI | B214: 93589 | C214: =PROPER(IF(H214="i",VLOOKUP(B214,'Ins SINAPI PE 04-2025 Onerado'!$B$11:$F$50003,2,0),VLOOKUP(B214,'Comp SINAPI PE 04-2025 Onerado'!$B$11:$C$50004,2,0))) -> Transporte Com Caminhão Basculante De 10 M³, Em Via Urbana Em Revestimento Primário (Unidade: M3Xkm). Af_07/2020 | D214: =IF(H214="i",VLOOKUP(B214,'Ins SINAPI PE 04-2025 Onerado'!$B$11:$F$50003,2,0),VLOOKUP(B214,'Comp SINAPI PE 04-2025 Onerado'!$B$11:$H$50004,3,0)) -> M3XKM | E214: =30*(1*0.3*0.3) -> 2.7 | F214: =IF(H214="i",VLOOKUP(B214,'Ins SINAPI PE 04-2025 Onerado'!$B$11:$F$50003,5,0),VLOOKUP(B214,'Comp SINAPI PE 04-2025 Onerado'!$B$11:$E$50004,4,0)) -> 2.71 | G214: =TRUNC(E214*F214,2) -> 7.31 | H214: ca | K214: 30 km de raio para diposição do RCD
A215: =B207 -> CPU.19 | C215: MÃO DE OBRA | G215: 0 | H215: mdo
B217: CPU.20 | C217: Guia (meio-fio) e sarjeta conjudados de concreto, moldada In Loco, 45cm base (15 cm Base da Guia +30 cm Base da Sarjeta) x 22 cm Altura | D217: m | E217: 1 | G217: =SUM(G228,G220,G219,G218) -> 90.72 | H217: S
A218: =B217 -> CPU.20 | C218: MATERIAL | G218: 0 | H218: ss
A219: =B217 -> CPU.20 | C219: EQUIPAMENTOS | G219: 0 | H219: ss
... 92 more rows

Sheet CPU HOSPEDAGEM
B2: Engenharia Consultiva da Codevasf
B3: CPU - HOSPEDAGEM EQUIPE DE CAMPO (4 PESSOAS/MÊS) | D3: Código/Referencia
B4: ALUGUEL | C4: 3074.56 | D4: F020003334/EMBASA insumo
B5: Aquisição de Mobiliário | C5: =41.81*C16 -> 167.24 | D5: B8954/DNIT
B6: Material de limpeza e diarista | C6: =129.46+(123*8) -> 1113.46 | D6: 10563/ORSE - E200300131/EMBASA
B7: manutenção da casa alugada - Serviços Gerais/Vigia | C7: 3043.76 | D7: 41096/SINAPI
B8: Energia | C8: 180 | D8: 10555/ORSE
B9: Água | C9: 394.99 | D9: 10554/ORSE
B10: telefone/Internet | C10: =154.99+89 -> 243.99 | D10: 10557/10558/ORSE
B11: IPTU (mês) | C11: =(C4*0.5)/12 -> 128.1066667
B13: Custo Mensal: | C13: =SUM(C4:C12) -> 8346.106667
B14: Custo Mensal por pessoa: | C14: =C13/C16 -> 2086.526667
B15: Custo diário por pessoa: | C15: =C14/22 -> 94.84212121
B16: número de pessoas: | C16: 4
B17: Alimentação: | C17: 100.59 | D17: Tabela Diária Codevasf 2025
B19: Diária Total (alimentação + hospedagem): | C19: =C15+C17 -> 195.4321212

Sheet COMPOSICÕES MODIFICADAS
A3: Código | D3: 93212 ADAPTADO
A4: Descrição | D4: EXECUÇÃO DE SANITÁRIO E VESTIÁRIO EM CANTEIRO DE OBRA EM CHAPA DE MADEIRA COMPENSADA, NÃO INCLUSO MOBILIÁRIO. AF_02/2016
A5: Data | D5: ='Ins SINAPI PE 04-2025 Onerado'!B4 -> 10/06/2025
A6: Estado | D6: Pernambuco
A7: Tipo | D7: CANT - CANTEIRO DE OBRAS
A8: Unidade | D8: m²
A9: Valor sem Desoneração | D9: =SUM(I12,I16,I20:I54,I58:I61,I65:I78,I85:I105) -> 974.76
A11: Natureza | B11: Fonte | C11: codigo | D11: Descrição | E11: Tipo | F11: Unidade | G11: Valor sem Desoneração | H11: Coeficiente | I11: Preço sem Desoneração
A12: C | B12: SINAPI | C12: 89173 | D12: (COMPOSIÇÃO REPRESENTATIVA) DO SERVIÇO DE EMBOÇO/MASSA ÚNICA, APLICADO MANUALMENTE, TRAÇO 1:2:8, EM BETONEIRA DE 400L, PAREDES INTERNAS, COM EXECUÇÃO DE TALISCAS, EDIFICAÇÃO HABITACIONAL UNIFAMILIAR (CASAS) E EDIFICAÇÃO PÚBLICA PADRÃO. AF_12/2014 - ADAPTADO | E12: REVE - REVESTIMENTO E TRATAMENTO DE SUPERFÍCIES | F12: m² | G12: =SUM(I13:I15) -> 41.26 | H12: 0.7679 | I12: =ROUND(G12*H12,2) -> 31.68
A13: C | B13: SINAPI | C13: 87531 | D13: =VLOOKUP(C13,'[52]COMPOSIÇÃO SEM DESONERAÇÃO'!$B$11:$F$9696,2,FALSE) -> EMBOÇO, EM ARGAMASSA TRAÇO 1:2:8, PREPARO MECÂNICO, APLICADO MANUALMENTE EM PAREDES INTERNAS DE AMBIENTES COM ÁREA ENTRE 5M² E 10M², E = 17,5MM, COM TALISCAS. AF_03/2024 | E13: REVE - REVESTIMENTO E TRATAMENTO DE SUPERFÍCIES | F13: m² | G13: =VLOOKUP(C13,'Comp SINAPI PE 04-2025 Onerado'!B:E,4,FALSE) -> 39.75 | H13: 0.154 | I13: =ROUND(G13*H13,2) -> 6.12
A14: C | B14: SINAPI | C14: 87527 | D14: =VLOOKUP(C14,'[52]COMPOSIÇÃO SEM DESONERAÇÃO'!$B$11:$F$9696,2,FALSE) -> EMBOÇO, EM ARGAMASSA TRAÇO 1:2:8, PREPARO MECÂNICO, APLICADO MANUALMENTE EM PAREDES INTERNAS DE AMBIENTES COM ÁREA MENOR QUE 5M², E =17,5MM, COM TALISCAS. AF_03/2024 | E14: REVE - REVESTIMENTO E TRATAMENTO DE SUPERFÍCIES | F14: m² | G14: =VLOOKUP(C14,'Comp SINAPI PE 04-2025 Onerado'!B:E,4,FALSE) -> 44.4 | H14: 0.1121 | I14: =ROUND(G14*H14,2) -> 4.98
A15: C | B15: SINAPI | C15: 87529 | D15: =VLOOKUP(C15,'[52]COMPOSIÇÃO SEM DESONERAÇÃO'!$B$11:$F$9696,2,FALSE) -> MASSA ÚNICA, EM ARGAMASSA TRAÇO 1:2:8, PREPARO MECÂNICO, APLICADA MANUALMENTE EM PAREDES INTERNAS DE AMBIENTES COM ÁREA ENTRE 5M² E 10M², E = 17,5MM, COM TALISCAS. AF_03/2024 | E15: REVE - REVESTIMENTO E TRATAMENTO DE SUPERFÍCIES | F15: m² | G15: =VLOOKUP(C15,'Comp SINAPI PE 04-2025 Onerado'!B:E,4,FALSE) -> 41.1 | H15: 0.7339 | I15: 30.16
A16: C | B16: SINAPI | C16: 89171 | D16: (COMPOSIÇÃO REPRESENTATIVA) DO SERVIÇO DE REVESTIMENTO CERÂMICO PARA PISO COM PLACAS TIPO ESMALTADA EXTRA DE DIMENSÕES 35X35 CM, PARA EDIFICAÇÃO HABITACIONAL UNIFAMILIAR (CASA) E EDIFICAÇÃO PÚBLICA PADRÃO. AF_11/2014 - ADAPTADO | E16: PISO - PISOS | F16: m² | G16: =SUM(I17:I19) -> 59.65 | H16: 0.4628 | I16: 27.61
A17: C | B17: SINAPI | C17: 87247 | D17: =VLOOKUP(C17,'[52]COMPOSIÇÃO SEM DESONERAÇÃO'!$B$11:$F$9696,2,FALSE) -> REVESTIMENTO CERÂMICO PARA PISO COM PLACAS TIPO ESMALTADA DE DIMENSÕES 35X35 CM APLICADA EM AMBIENTES DE ÁREA ENTRE 5 M2 E 10 M2. AF_02/2023_PE | E17: PISO - PISOS | F17: m² | G17: =VLOOKUP(C17,'Comp SINAPI PE 04-2025 Onerado'!B:E,4,FALSE) -> 64.01 | H17: 0.3365 | I17: =ROUND(G17*H17,2) -> 21.54
A18: C | B18: SINAPI | C18: 87248 | D18: =VLOOKUP(C18,'[52]COMPOSIÇÃO SEM DESONERAÇÃO'!$B$11:$F$9696,2,FALSE) -> REVESTIMENTO CERÂMICO PARA PISO COM PLACAS TIPO ESMALTADA DE DIMENSÕES 35X35 CM APLICADA EM AMBIENTES DE ÁREA MAIOR QUE 10 M2. AF_02/2023_PE | E18: PISO - PISOS | F18: m² | G18: =VLOOKUP(C18,'Comp SINAPI PE 04-2025 Onerado'!B:E,4,FALSE) -> 56.18 | H18: 0.6087 | I18: =ROUND(G18*H18,2) -> 34.2
A19: C | B19: SINAPI | C19: 87246 | D19: =VLOOKUP(C19,'[52]COMPOSIÇÃO SEM DESONERAÇÃO'!$B$11:$F$9696,2,FALSE) -> REVESTIMENTO CERÂMICO PARA PISO COM PLACAS TIPO ESMALTADA DE DIMENSÕES 35X35 CM APLICADA EM AMBIENTES DE ÁREA MENOR QUE 5 M2. AF_02/2023_PE | E19: PISO - PISOS | F19: m² | G19: =VLOOKUP(C19,'Comp SINAPI PE 04-2025 Onerado'!B:E,4,FALSE) -> 71.44 | H19: 0.0548 | I19: 3.91
A20: C | B20: SINAPI | C20: 101165 | D20: =VLOOKUP(C20,'[52]COMPOSIÇÃO SEM DESONERAÇÃO'!$B$11:$F$9696,2,FALSE) -> ALVENARIA DE EMBASAMENTO COM BLOCO ESTRUTURAL DE CONCRETO, DE 14X19X29CM E ARGAMASSA DE ASSENTAMENTO COM PREPARO EM BETONEIRA. AF_05/2020 | E20: FUES - FUNDAÇÕES E ESTRUTURAS | F20: m³ | G20: =VLOOKUP(C20,'Comp SINAPI PE 04-2025 Onerado'!B:E,4,FALSE) -> 1013.86 | H20: 0.0286 | I20: 29
A21: C | B21: SINAPI | C21: 103328 | D21: =VLOOKUP(C21,'[52]COMPOSIÇÃO SEM DESONERAÇÃO'!$B$11:$F$9696,2,FALSE) -> ALVENARIA DE VEDAÇÃO DE BLOCOS CERÂMICOS FURADOS NA HORIZONTAL DE 9X19X19 CM (ESPESSURA 9 CM) E ARGAMASSA DE ASSENTAMENTO COM PREPARO EM BETONEIRA. AF_12/2021 | E21: PARE - PAREDES/PAINEIS | F21: m² | G21: =VLOOKUP(C21,'Comp SINAPI PE 04-2025 Onerado'!B:E,4,FALSE) -> 93.39 | H21: 0.4675 | I21: 43.66
A22: C | B22: SINAPI | C22: 91924 | D22: =VLOOKUP(C22,'[52]COMPOSIÇÃO SEM DESONERAÇÃO'!$B$11:$F$9696,2,FALSE) -> CABO DE COBRE FLEXÍVEL ISOLADO, 1,5 MM², ANTI-CHAMA 450/750 V, PARA CIRCUITOS TERMINAIS - FORNECIMENTO E INSTALAÇÃO. AF_03/2023 | E22: INEL - INSTALAÇÃO ELÉTRICA/ELETRIFICAÇÃO E ILUMINAÇÃO EXTERNA | F22: M | G22: =VLOOKUP(C22,'Comp SINAPI PE 04-2025 Onerado'!B:E,4,FALSE) -> 3.17 | H22: 1.253 | I22: 3.97
A23: C | B23: SINAPI | C23: 92981 | D23: =VLOOKUP(C23,'[52]COMPOSIÇÃO SEM DESONERAÇÃO'!$B$11:$F$9696,2,FALSE) -> CABO DE COBRE FLEXÍVEL ISOLADO, 16 MM², ANTI-CHAMA 450/750 V, PARA DISTRIBUIÇÃO - FORNECIMENTO E INSTALAÇÃO. AF_10/2020 | E23: INEL - INSTALAÇÃO ELÉTRICA/ELETRIFICAÇÃO E ILUMINAÇÃO EXTERNA | F23: M | G23: =VLOOKUP(C23,'Comp SINAPI PE 04-2025 Onerado'!B:E,4,FALSE) -> 16.5 | H23: 0.2611 | I23: 4.31
A24: C | B24: SINAPI | C24: 91926 | D24: =VLOOKUP(C24,'[52]COMPOSIÇÃO SEM DESONERAÇÃO'!$B$11:$F$9696,2,FALSE) -> CABO DE COBRE FLEXÍVEL ISOLADO, 2,5 MM², ANTI-CHAMA 450/750 V, PARA CIRCUITOS TERMINAIS - FORNECIMENTO E INSTALAÇÃO. AF_03/2023 | E24: INEL - INSTALAÇÃO ELÉTRICA/ELETRIFICAÇÃO E ILUMINAÇÃO EXTERNA | F24: M | G24: =VLOOKUP(C24,'Comp SINAPI PE 04-2025 Onerado'!B:E,4,FALSE) -> 4.59 | H24: 0.4699 | I24: 2.16
A25: C | B25: SINAPI | C25: 91928 | D25: =VLOOKUP(C25,'[52]COMPOSIÇÃO SEM DESONERAÇÃO'!$B$11:$F$9696,2,FALSE) -> CABO DE COBRE FLEXÍVEL ISOLADO, 4 MM², ANTI-CHAMA 450/750 V, PARA CIRCUITOS TERMINAIS - FORNECIMENTO E INSTALAÇÃO. AF_03/2023 | E25: INEL - INSTALAÇÃO ELÉTRICA/ELETRIFICAÇÃO E ILUMINAÇÃO EXTERNA | F25: M | G25: =VLOOKUP(C25,'Comp SINAPI PE 04-2025 Onerado'!B:E,4,FALSE) -> 7.06 | H25: 1.0442 | I25: 7.37
A26: C | B26: SINAPI | C26: 97886 | D26: =VLOOKUP(C26,'[52]COMPOSIÇÃO SEM DESONERAÇÃO'!$B$11:$F$9696,2,FALSE) -> CAIXA ENTERRADA ELÉTRICA RETANGULAR, EM ALVENARIA COM TIJOLOS CERÂMICOS MACIÇOS, FUNDO COM BRITA, DIMENSÕES INTERNAS: 0,3X0,3X0,3 M. AF_12/2020 | E26: INEL - INSTALAÇÃO ELÉTRICA/ELETRIFICAÇÃO E ILUMINAÇÃO EXTERNA | F26: UN | G26: =VLOOKUP(C26,'Comp SINAPI PE 04-2025 Onerado'!B:E,4,FALSE) -> 165.48 | H26: 0.0522 | I26: 8.64
A27: C | B27: SINAPI | C27: 97906 | D27: =VLOOKUP(C27,'[52]COMPOSIÇÃO SEM DESONERAÇÃO'!$B$11:$F$9696,2,FALSE) -> CAIXA ENTERRADA HIDRÁULICA RETANGULAR, EM ALVENARIA COM BLOCOS DE CONCRETO, DIMENSÕES INTERNAS: 0,6X0,6X0,6 M PARA REDE DE ESGOTO. AF_12/2020 | E27: INHI - INSTALAÇÕES HIDROS SANITÁRIAS | F27: UN | G27: =VLOOKUP(C27,'Comp SINAPI PE 04-2025 Onerado'!B:E,4,FALSE) -> 461.86 | H27: 0.0348 | I27: 16.07
A28: C | B28: SINAPI | C28: 91937 | D28: =VLOOKUP(C28,'[52]COMPOSIÇÃO SEM DESONERAÇÃO'!$B$11:$F$9696,2,FALSE) -> CAIXA OCTOGONAL 3" X 3", PVC, INSTALADA EM LAJE - FORNECIMENTO E INSTALAÇÃO. AF_03/2023 | E28: INEL - INSTALAÇÃO ELÉTRICA/ELETRIFICAÇÃO E ILUMINAÇÃO EXTERNA | F28: UN | G28: =VLOOKUP(C28,'Comp SINAPI PE 04-2025 Onerado'!B:E,4,FALSE) -> 18.63 | H28: 0.1392 | I28: 2.59
A29: C | B29: SINAPI | C29: 87903 | D29: =VLOOKUP(C29,'[52]COMPOSIÇÃO SEM DESONERAÇÃO'!$B$11:$F$9696,2,FALSE) -> CHAPISCO APLICADO EM ALVENARIA (COM PRESENÇA DE VÃOS) E ESTRUTURAS DE CONCRETO DE FACHADA, COM ROLO PARA TEXTURA ACRÍLICA. ARGAMASSA INDUSTRIALIZADA COM PREPARO EM MISTURADOR 300 KG. AF_10/2022 | E29: REVE - REVESTIMENTO E TRATAMENTO DE SUPERFÍCIES | F29: m² | G29: =VLOOKUP(C29,'Comp SINAPI PE 04-2025 Onerado'!B:E,4,FALSE) -> 14.96 | H29: 0.1681 | I29: 2.51
A30: C | B30: SINAPI | C30: 87885 | D30: =VLOOKUP(C30,'[52]COMPOSIÇÃO SEM DESONERAÇÃO'!$B$11:$F$9696,2,FALSE) -> CHAPISCO APLICADO NO TETO OU EM ALVENARIA E ESTRUTURA, COM ROLO PARA TEXTURA ACRÍLICA. ARGAMASSA INDUSTRIALIZADA COM PREPARO EM MISTURADOR 300 KG. AF_10/2022 | E30: REVE - REVESTIMENTO E TRATAMENTO DE SUPERFÍCIES | F30: m² | G30: =VLOOKUP(C30,'Comp SINAPI PE 04-2025 Onerado'!B:E,4,FALSE) -> 12.41 | H30: 0.7679 | I30: 9.53
A31: C | B31: SINAPI | C31: 90466 | D31: =VLOOKUP(C31,'[52]COMPOSIÇÃO SEM DESONERAÇÃO'!$B$11:$F$9696,2,FALSE) -> CHUMBAMENTO LINEAR EM ALVENARIA PARA RAMAIS/DISTRIBUIÇÃO DE INSTALAÇÕES HIDRÁULICAS COM DIÂMETROS MENORES OU IGUAIS A 40 MM. AF_09/2023 | E31: INHI - INSTALAÇÕES HIDROS SANITÁRIAS | F31: M | G31: =VLOOKUP(C31,'Comp SINAPI PE 04-2025 Onerado'!B:E,4,FALSE) -> 16.14 | H31: 0.0722 | I31: 1.17
A32: C | B32: SINAPI | C32: 100860 | D32: =VLOOKUP(C32,'[52]COMPOSIÇÃO SEM DESONERAÇÃO'!$B$11:$F$9696,2,FALSE) -> CHUVEIRO ELÉTRICO COMUM CORPO PLÁSTICO, TIPO DUCHA - FORNECIMENTO E INSTALAÇÃO. AF_01/2020 | E32: INHI - INSTALAÇÕES HIDROS SANITÁRIAS | F32: UN | G32: =VLOOKUP(C32,'Comp SINAPI PE 04-2025 Onerado'!B:E,4,FALSE) -> 116.36 | H32: 0.0696 | I32: 8.1
A33: C | B33: SINAPI | C33: 95805 | D33: =VLOOKUP(C33,'[52]COMPOSIÇÃO SEM DESONERAÇÃO'!$B$11:$F$9696,2,FALSE) -> CONDULETE DE PVC, TIPO B, PARA ELETRODUTO DE PVC SOLDÁVEL DN 25 MM (3/4''), APARENTE - FORNECIMENTO E INSTALAÇÃO. AF_10/2022 | E33: INEL - INSTALAÇÃO ELÉTRICA/ELETRIFICAÇÃO E ILUMINAÇÃO EXTERNA | F33: UN | G33: =VLOOKUP(C33,'Comp SINAPI PE 04-2025 Onerado'!B:E,4,FALSE) -> 28.79 | H33: 0.0174 | I33: 0.5
A34: C | B34: SINAPI | C34: 95811 | D34: =VLOOKUP(C34,'[52]COMPOSIÇÃO SEM DESONERAÇÃO'!$B$11:$F$9696,2,FALSE) -> CONDULETE DE PVC, TIPO LB, PARA ELETRODUTO DE PVC SOLDÁVEL DN 25 MM (3/4''), APARENTE - FORNECIMENTO E INSTALAÇÃO. AF_10/2022 | E34: INEL - INSTALAÇÃO ELÉTRICA/ELETRIFICAÇÃO E ILUMINAÇÃO EXTERNA | F34: UN | G34: =VLOOKUP(C34,'Comp SINAPI PE 04-2025 Onerado'!B:E,4,FALSE) -> 24.93 | H34: 0.0522 | I34: 1.3
A35: C | B35: SINAPI | C35: 91911 | D35: =VLOOKUP(C35,'[52]COMPOSIÇÃO SEM DESONERAÇÃO'!$B$11:$F$9696,2,FALSE) -> CURVA 90 GRAUS PARA ELETRODUTO, PVC, ROSCÁVEL, DN 20 MM (1/2"), PARA CIRCUITOS TERMINAIS, INSTALADA EM PAREDE - FORNECIMENTO E INSTALAÇÃO. AF_03/2023 | E35: INEL - INSTALAÇÃO ELÉTRICA/ELETRIFICAÇÃO E ILUMINAÇÃO EXTERNA | F35: UN | G35: =VLOOKUP(C35,'Comp SINAPI PE 04-2025 Onerado'!B:E,4,FALSE) -> 19.16 | H35: 0.0696 | I35: 1.33
A36: C | B36: SINAPI | C36: 91890 | D36: =VLOOKUP(C36,'[52]COMPOSIÇÃO SEM DESONERAÇÃO'!$B$11:$F$9696,2,FALSE) -> CURVA 90 GRAUS PARA ELETRODUTO, PVC, ROSCÁVEL, DN 25 MM (3/4"), PARA CIRCUITOS TERMINAIS, INSTALADA EM FORRO - FORNECIMENTO E INSTALAÇÃO. AF_03/2023 | E36: INEL - INSTALAÇÃO ELÉTRICA/ELETRIFICAÇÃO E ILUMINAÇÃO EXTERNA | F36: UN | G36: =VLOOKUP(C36,'Comp SINAPI PE 04-2025 Onerado'!B:E,4,FALSE) -> 15.52 | H36: 0.0174 | I36: 0.27
A37: C | B37: SINAPI | C37: 89748 | D37: =VLOOKUP(C37,'[52]COMPOSIÇÃO SEM DESONERAÇÃO'!$B$11:$F$9696,2,FALSE) -> CURVA CURTA 90 GRAUS, PVC, SERIE NORMAL, ESGOTO PREDIAL, DN 100 MM, JUNTA ELÁSTICA, FORNECIDO E INSTALADO EM RAMAL DE DESCARGA OU RAMAL DE ESGOTO SANITÁRIO. AF_08/2022 | E37: INHI - INSTALAÇÕES HIDROS SANITÁRIAS | F37: UN | G37: =VLOOKUP(C37,'Comp SINAPI PE 04-2025 Onerado'!B:E,4,FALSE) -> 41.95 | H37: 0.0522 | I37: 2.19
A38: C | B38: SINAPI | C38: 101891 | D38: =VLOOKUP(C38,'[52]COMPOSIÇÃO SEM DESONERAÇÃO'!$B$11:$F$9696,2,FALSE) -> DISJUNTOR MONOPOLAR TIPO NEMA, CORRENTE NOMINAL DE 35 ATÉ 50A - FORNECIMENTO E INSTALAÇÃO. AF_10/2020 | E38: INEL - INSTALAÇÃO ELÉTRICA/ELETRIFICAÇÃO E ILUMINAÇÃO EXTERNA | F38: UN | G38: =VLOOKUP(C38,'Comp SINAPI PE 04-2025 Onerado'!B:E,4,FALSE) -> 32.92 | H38: 0.1044 | I38: 3.44
A39: C | B39: SINAPI | C39: 91862 | D39: =VLOOKUP(C39,'[52]COMPOSIÇÃO SEM DESONERAÇÃO'!$B$11:$F$9696,2,FALSE) -> ELETRODUTO RÍGIDO ROSCÁVEL, PVC, DN 20 MM (1/2"), PARA CIRCUITOS TERMINAIS, INSTALADO EM FORRO - FORNECIMENTO E INSTALAÇÃO. AF_03/2023 | E39: INEL - INSTALAÇÃO ELÉTRICA/ELETRIFICAÇÃO E ILUMINAÇÃO EXTERNA | F39: M | G39: =VLOOKUP(C39,'Comp SINAPI PE 04-2025 Onerado'!B:E,4,FALSE) -> 10.25 | H39: 0.3307 | I39: 3.39
A40: C | B40: SINAPI | C40: 91870 | D40: =VLOOKUP(C40,'[52]COMPOSIÇÃO SEM DESONERAÇÃO'!$B$11:$F$9696,2,FALSE) -> ELETRODUTO RÍGIDO ROSCÁVEL, PVC, DN 20 MM (1/2"), PARA CIRCUITOS TERMINAIS, INSTALADO EM PAREDE - FORNECIMENTO E INSTALAÇÃO. AF_03/2023 | E40: INEL - INSTALAÇÃO ELÉTRICA/ELETRIFICAÇÃO E ILUMINAÇÃO EXTERNA | F40: M | G40: =VLOOKUP(C40,'Comp SINAPI PE 04-2025 Onerado'!B:E,4,FALSE) -> 13.48 | H40: 0.1566 | I40: 2.11
A41: C | B41: SINAPI | C41: 91863 | D41: =VLOOKUP(C41,'[52]COMPOSIÇÃO SEM DESONERAÇÃO'!$B$11:$F$9696,2,FALSE) -> ELETRODUTO RÍGIDO ROSCÁVEL, PVC, DN 25 MM (3/4"), PARA CIRCUITOS TERMINAIS, INSTALADO EM FORRO - FORNECIMENTO E INSTALAÇÃO. AF_03/2023 | E41: INEL - INSTALAÇÃO ELÉTRICA/ELETRIFICAÇÃO E ILUMINAÇÃO EXTERNA | F41: M | G41: =VLOOKUP(C41,'Comp SINAPI PE 04-2025 Onerado'!B:E,4,FALSE) -> 12.1 | H41: 0.1305 | I41: 1.58
A42: C | B42: SINAPI | C42: 91871 | D42: =VLOOKUP(C42,'[52]COMPOSIÇÃO SEM DESONERAÇÃO'!$B$11:$F$9696,2,FALSE) -> ELETRODUTO RÍGIDO ROSCÁVEL, PVC, DN 25 MM (3/4"), PARA CIRCUITOS TERMINAIS, INSTALADO EM PAREDE - FORNECIMENTO E INSTALAÇÃO. AF_03/2023 | E42: INEL - INSTALAÇÃO ELÉTRICA/ELETRIFICAÇÃO E ILUMINAÇÃO EXTERNA | F42: M | G42: =VLOOKUP(C42,'Comp SINAPI PE 04-2025 Onerado'!B:E,4,FALSE) -> 15.34 | H42: 0.0261 | I42: 0.4
A43: C | B43: SINAPI | C43: 87777 | D43: =VLOOKUP(C43,'[52]COMPOSIÇÃO SEM DESONERAÇÃO'!$B$11:$F$9696,2,FALSE) -> EMBOÇO OU MASSA ÚNICA EM ARGAMASSA TRAÇO 1:2:8, PREPARO MANUAL, APLICADA MANUALMENTE EM PANOS DE FACHADA COM PRESENÇA DE VÃOS, ESPESSURA DE 25 MM. AF_08/2022 | E43: REVE - REVESTIMENTO E TRATAMENTO DE SUPERFÍCIES | F43: m² | G43: =VLOOKUP(C43,'Comp SINAPI PE 04-2025 Onerado'!B:E,4,FALSE) -> 65.74 | H43: 0.1681 | I43: 11.05
A44: C | B44: SINAPI | C44: 93358 | D44: =VLOOKUP(C44,'[52]COMPOSIÇÃO SEM DESONERAÇÃO'!$B$11:$F$9696,2,FALSE) -> ESCAVAÇÃO MANUAL DE VALA. AF_09/2024 | E44: MOVT - MOVIMENTO DE TERRA | F44: m³ | G44: =VLOOKUP(C44,'Comp SINAPI PE 04-2025 Onerado'!B:E,4,FALSE) -> 95.25 | H44: 0.0279 | I44: 2.66
A45: C | B45: SINAPI | C45: 91305 | D45: =VLOOKUP(C45,'[52]COMPOSIÇÃO SEM DESONERAÇÃO'!$B$11:$F$9696,2,FALSE) -> FECHADURA DE EMBUTIR PARA PORTA DE BANHEIRO, COMPLETA, ACABAMENTO PADRÃO POPULAR, INCLUSO EXECUÇÃO DE FURO - FORNECIMENTO E INSTALAÇÃO. AF_12/2019 | E45: ESQV - ESQUADRIAS/FERRAGENS/VIDROS | F45: UN | G45: =VLOOKUP(C45,'Comp SINAPI PE 04-2025 Onerado'!B:E,4,FALSE) -> 117.46 | H45: 0.0522 | I45: 6.13
A46: C | B46: SINAPI | C46: 91170 | D46: =VLOOKUP(C46,'[52]COMPOSIÇÃO SEM DESONERAÇÃO'!$B$11:$F$9696,2,FALSE) -> FIXAÇÃO DE TUBOS HORIZONTAIS DE PVC ÁGUA, PVC ESGOTO, PVC ÁGUA PLUVIAL, CPVC, PPR, COBRE OU AÇO, DIÂMETROS MENORES OU IGUAIS A 40 MM, COM ABRAÇADEIRA METÁLICA RÍGIDA TIPO U PERFIL 1 1/4", FIXADA EM PERFILADO EM LAJE. AF_09/2023_PS | E46: INHI - INSTALAÇÕES HIDROS SANITÁRIAS | F46: M | G46: =VLOOKUP(C46,'Comp SINAPI PE 04-2025 Onerado'!B:E,4,FALSE) -> 11.65 | H46: 0.4612 | I46: 5.37
A47: C | B47: SINAPI | C47: 91173 | D47: =VLOOKUP(C47,'[52]COMPOSIÇÃO SEM DESONERAÇÃO'!$B$11:$F$9696,2,FALSE) -> FIXAÇÃO DE TUBOS VERTICAIS DE PVC ÁGUA, PVC ESGOTO, PVC ÁGUA PLUVIAL, CPVC, PPR, COBRE OU AÇO, DIÂMETROS MENORES OU IGUAIS A 40 MM, COM ABRAÇADEIRA METÁLICA RÍGIDA TIPO U PERFIL 1 1/4", FIXADA EM PERFILADO EM PAREDE. AF_09/2023_PS | E47: INHI - INSTALAÇÕES HIDROS SANITÁRIAS | F47: M | G47: =VLOOKUP(C47,'Comp SINAPI PE 04-2025 Onerado'!B:E,4,FALSE) -> 4.34 | H47: 0.1827 | I47: 0.79
A48: C | B48: SINAPI | C48: 96985 | D48: =VLOOKUP(C48,'[52]COMPOSIÇÃO SEM DESONERAÇÃO'!$B$11:$F$9696,2,FALSE) -> HASTE DE ATERRAMENTO, DIÂMETRO 5/8", COM 3 METROS - FORNECIMENTO E INSTALAÇÃO. AF_08/2023 | E48: INEL - INSTALAÇÃO ELÉTRICA/ELETRIFICAÇÃO E ILUMINAÇÃO EXTERNA | F48: UN | G48: =VLOOKUP(C48,'Comp SINAPI PE 04-2025 Onerado'!B:E,4,FALSE) -> 110.16 | H48: 0.0522 | I48: 5.75
A49: C | B49: SINAPI | C49: 91959 | D49: =VLOOKUP(C49,'[52]COMPOSIÇÃO SEM DESONERAÇÃO'!$B$11:$F$9696,2,FALSE) -> INTERRUPTOR SIMPLES (2 MÓDULOS), 10A/250V, INCLUINDO SUPORTE E PLACA - FORNECIMENTO E INSTALAÇÃO. AF_03/2023 | E49: INEL - INSTALAÇÃO ELÉTRICA/ELETRIFICAÇÃO E ILUMINAÇÃO EXTERNA | F49: UN | G49: =VLOOKUP(C49,'Comp SINAPI PE 04-2025 Onerado'!B:E,4,FALSE) -> 46.64 | H49: 0.0174 | I49: 0.81
A50: C | B50: SINAPI | C50: 91967 | D50: =VLOOKUP(C50,'[52]COMPOSIÇÃO SEM DESONERAÇÃO'!$B$11:$F$9696,2,FALSE) -> INTERRUPTOR SIMPLES (3 MÓDULOS), 10A/250V, INCLUINDO SUPORTE E PLACA - FORNECIMENTO E INSTALAÇÃO. AF_03/2023 | E50: INEL - INSTALAÇÃO ELÉTRICA/ELETRIFICAÇÃO E ILUMINAÇÃO EXTERNA | F50: UN | G50: =VLOOKUP(C50,'Comp SINAPI PE 04-2025 Onerado'!B:E,4,FALSE) -> 62.59 | H50: 0.0174 | I50: 1.09
A51: C | B51: SINAPI | C51: 94559 | D51: =VLOOKUP(C51,'[52]COMPOSIÇÃO SEM DESONERAÇÃO'!$B$11:$F$9696,2,FALSE) -> JANELA DE AÇO TIPO BASCULANTE, PARA VIDROS (VIDROS NÃO INCLUSOS), BATENTE/ REQUADRO INCLUSO (6,5 A 14 CM), DIMENSÕES 60X60 CM, COM COM PINTURA ANTICORROSIVA, SEM ACABAMENTO, COM FERRAGENS, FIXAÇÃO COM ARGAMASSA, EXCLUSIVE CONTRAMARCO - FORNECIMENTO E INSTALAÇÃO. AF_11/2024 | E51: ESQV - ESQUADRIAS/FERRAGENS/VIDROS | F51: m² | G51: =VLOOKUP(C51,'Comp SINAPI PE 04-2025 Onerado'!B:E,4,FALSE) -> 747.91 | H51: 0.0905 | I51: 67.69
A52: C | B52: SINAPI | C52: 89724 | D52: =VLOOKUP(C52,'[52]COMPOSIÇÃO SEM DESONERAÇÃO'!$B$11:$F$9696,2,FALSE) -> JOELHO 90 GRAUS, PVC, SERIE NORMAL, ESGOTO PREDIAL, DN 40 MM, JUNTA SOLDÁVEL, FORNECIDO E INSTALADO EM RAMAL DE DESCARGA OU RAMAL DE ESGOTO SANITÁRIO. AF_08/2022 | E52: INHI - INSTALAÇÕES HIDROS SANITÁRIAS | F52: UN | G52: =VLOOKUP(C52,'Comp SINAPI PE 04-2025 Onerado'!B:E,4,FALSE) -> 10.45 | H52: 0.174 | I52: 1.82
A53: C | B53: SINAPI | C53: 89731 | D53: =VLOOKUP(C53,'[52]COMPOSIÇÃO SEM DESONERAÇÃO'!$B$11:$F$9696,2,FALSE) -> JOELHO 90 GRAUS, PVC, SERIE NORMAL, ESGOTO PREDIAL, DN 50 MM, JUNTA ELÁSTICA, FORNECIDO E INSTALADO EM RAMAL DE DESCARGA OU RAMAL DE ESGOTO SANITÁRIO. AF_08/2022 | E53: INHI - INSTALAÇÕES HIDROS SANITÁRIAS | F53: UN | G53: =VLOOKUP(C53,'Comp SINAPI PE 04-2025 Onerado'!B:E,4,FALSE) -> 15.74 | H53: 0.0174 | I53: 0.27
A54: C | B54: SINAPI | C54: 89970 | D54: KIT DE REGISTRO DE PRESSÃO BRUTO DE LATÃO ¾", INCLUSIVE CONEXÕES, ROSCÁVEL, INSTALADO EM RAMAL DE ÁGUA FRIA - FORNECIMENTO E INSTALAÇÃO. AF_12/2014 | E54: INHI - INSTALAÇÕES HIDROS SANITÁRIAS | F54: UN | G54: =SUM(I55:I57) -> 52.44 | H54: 0.0696 | I54: 3.65
A55: C | B55: SINAPI | C55: 89383 | D55: =VLOOKUP(C55,'[52]COMPOSIÇÃO SEM DESONERAÇÃO'!$B$11:$F$9696,2,FALSE) -> ADAPTADOR CURTO COM BOLSA E ROSCA PARA REGISTRO, PVC, SOLDÁVEL, DN 25MM X 3/4, INSTALADO EM RAMAL OU SUB-RAMAL DE ÁGUA - FORNECIMENTO E INSTALAÇÃO. AF_06/2022 | E55: INHI - INSTALAÇÕES HIDROS SANITÁRIAS | F55: UN | G55: =VLOOKUP(C55,'Comp SINAPI PE 04-2025 Onerado'!B:E,4,FALSE) -> 6.89 | H55: 1 | I55: =ROUND(G55*H55,2) -> 6.89
A56: C | B56: SINAPI | C56: 89385 | D56: =VLOOKUP(C56,'[52]COMPOSIÇÃO SEM DESONERAÇÃO'!$B$11:$F$9696,2,FALSE) -> LUVA SOLDÁVEL E COM ROSCA, PVC, SOLDÁVEL, DN 25MM X 3/4, INSTALADO EM RAMAL OU SUB-RAMAL DE ÁGUA - FORNECIMENTO E INSTALAÇÃO. AF_06/2022 | E56: INHI - INSTALAÇÕES HIDROS SANITÁRIAS | F56: UN | G56: =VLOOKUP(C56,'Comp SINAPI PE 04-2025 Onerado'!B:E,4,FALSE) -> 7.5 | H56: 1 | I56: =ROUND(G56*H56,2) -> 7.5
A57: C | B57: SINAPI | C57: 89351 | D57: =VLOOKUP(C57,'[52]COMPOSIÇÃO SEM DESONERAÇÃO'!$B$11:$F$9696,2,FALSE) -> REGISTRO DE PRESSÃO BRUTO, LATÃO, ROSCÁVEL, 3/4'' - FORNECIMENTO E INSTALAÇÃO. AF_08/2021 | E57: INHI - INSTALAÇÕES HIDROS SANITÁRIAS | F57: UN | G57: =VLOOKUP(C57,'Comp SINAPI PE 04-2025 Onerado'!B:E,4,FALSE) -> 38.05 | H57: 1 | I57: 38.05
A58: C | B58: SINAPI | C58: 95240 | D58: =VLOOKUP(C58,'[52]COMPOSIÇÃO SEM DESONERAÇÃO'!$B$11:$F$9696,2,FALSE) -> LASTRO DE CONCRETO MAGRO, APLICADO EM PISOS, LAJES SOBRE SOLO OU RADIERS, ESPESSURA DE 3 CM. AF_01/2024 | E58: FUES - FUNDAÇÕES E ESTRUTURAS | F58: m² | G58: =VLOOKUP(C58,'Comp SINAPI PE 04-2025 Onerado'!B:E,4,FALSE) -> 19.61 | H58: 0.0064 | I58: 0.13
A59: C | B59: SINAPI | C59: 95241 | D59: =VLOOKUP(C59,'[52]COMPOSIÇÃO SEM DESONERAÇÃO'!$B$11:$F$9696,2,FALSE) -> LASTRO DE CONCRETO MAGRO, APLICADO EM PISOS, LAJES SOBRE SOLO OU RADIERS, ESPESSURA DE 5 CM. AF_01/2024 | E59: FUES - FUNDAÇÕES E ESTRUTURAS | F59: m² | G59: =VLOOKUP(C59,'Comp SINAPI PE 04-2025 Onerado'!B:E,4,FALSE) -> 37.66 | H59: 1.3328 | I59: 50.19
A60: C | B60: SINAPI | C60: 86943 | D60: =VLOOKUP(C60,'[52]COMPOSIÇÃO SEM DESONERAÇÃO'!$B$11:$F$9696,2,FALSE) -> LAVATÓRIO LOUÇA BRANCA SUSPENSO, 29,5 X 39CM OU EQUIVALENTE, PADRÃO POPULAR, INCLUSO SIFÃO FLEXÍVEL EM PVC, VÁLVULA E ENGATE FLEXÍVEL 30CM EM PLÁSTICO E TORNEIRA CROMADA DE MESA, PADRÃO POPULAR - FORNECIMENTO E INSTALAÇÃO. AF_01/2020 | E60: INHI - INSTALAÇÕES HIDROS SANITÁRIAS | F60: UN | G60: =VLOOKUP(C60,'Comp SINAPI PE 04-2025 Onerado'!B:E,4,FALSE) -> 275.13 | H60: 0.0522 | I60: 14.36
A61: C | B61: SINAPI | C61: 97586 | D61: LUMINÁRIA TIPO CALHA, DE SOBREPOR, COM 2 LÂMPADAS TUBULARES FLUORESCENTES DE 36 W, COM REATOR DE PARTIDA RÁPIDA - FORNECIMENTO E INSTALAÇÃO. AF_02/2020 | E61: INEL - INSTALAÇÃO ELÉTRICA/ELETRIFICAÇÃO E ILUMINAÇÃO EXTERNA | F61: UN | G61: =SUM(I62:I64) -> 222.74 | H61: 0.1392 | I61: 31.01
A62: C | B62: SINAPI | C62: 88247 | D62: =VLOOKUP(C62,'[52]COMPOSIÇÃO SEM DESONERAÇÃO'!$B$11:$F$9696,2,FALSE) -> AUXILIAR DE ELETRICISTA COM ENCARGOS COMPLEMENTARES | E62: SEDI - SERVIÇOS DIVERSOS | F62: H | G62: =VLOOKUP(C62,'Comp SINAPI PE 04-2025 Onerado'!B:E,4,FALSE) -> 25.53 | H62: 0.1727 | I62: =ROUND(G62*H62,2) -> 4.41
A63: C | B63: SINAPI | C63: 88264 | D63: =VLOOKUP(C63,'[52]COMPOSIÇÃO SEM DESONERAÇÃO'!$B$11:$F$9696,2,FALSE) -> ELETRICISTA COM ENCARGOS COMPLEMENTARES | E63: SEDI - SERVIÇOS DIVERSOS | F63: H | G63: =VLOOKUP(C63,'Comp SINAPI PE 04-2025 Onerado'!B:E,4,FALSE) -> 30.24 | H63: 0.4144 | I63: =ROUND(G63*H63,2) -> 12.53
A64: I | B64: SINAPI | C64: 3780 | D64: =VLOOKUP(C64,'[52]INSUMO SEM DESONERAÇÃO'!$B$11:$F$4847,2,FALSE) -> LUMINARIA DE SOBREPOR EM CHAPA DE ACO PARA 1 LAMPADA FLUORESCENTE DE *36* W, ALETADA, COMPLETA (LAMPADA E REATOR INCLUSOS) | E64: Material | F64: UN | G64: 102.9 | H64: 2 | I64: =ROUND(G64*H64,2) -> 205.8 | J64: *Está sem PROCV
A65: C | B65: SINAPI | C65: 91882 | D65: =VLOOKUP(C65,'[52]COMPOSIÇÃO SEM DESONERAÇÃO'!$B$11:$F$9696,2,FALSE) -> LUVA PARA ELETRODUTO, PVC, ROSCÁVEL, DN 20 MM (1/2"), PARA CIRCUITOS TERMINAIS, INSTALADA EM PAREDE - FORNECIMENTO E INSTALAÇÃO. AF_03/2023 | E65: INEL - INSTALAÇÃO ELÉTRICA/ELETRIFICAÇÃO E ILUMINAÇÃO EXTERNA | F65: UN | G65: =VLOOKUP(C65,'Comp SINAPI PE 04-2025 Onerado'!B:E,4,FALSE) -> 11.28 | H65: 0.0348 | I65: 0.39
A66: C | B66: SINAPI | C66: 91875 | D66: =VLOOKUP(C66,'[52]COMPOSIÇÃO SEM DESONERAÇÃO'!$B$11:$F$9696,2,FALSE) -> LUVA PARA ELETRODUTO, PVC, ROSCÁVEL, DN 25 MM (3/4"), PARA CIRCUITOS TERMINAIS, INSTALADA EM FORRO - FORNECIMENTO E INSTALAÇÃO. AF_03/2023 | E66: INEL - INSTALAÇÃO ELÉTRICA/ELETRIFICAÇÃO E ILUMINAÇÃO EXTERNA | F66: UN | G66: =VLOOKUP(C66,'Comp SINAPI PE 04-2025 Onerado'!B:E,4,FALSE) -> 9.39 | H66: 0.0348 | I66: 0.33
A67: C | B67: SINAPI | C67: 87548 | D67: =VLOOKUP(C67,'[52]COMPOSIÇÃO SEM DESONERAÇÃO'!$B$11:$F$9696,2,FALSE) -> MASSA ÚNICA, EM ARGAMASSA TRAÇO 1:2:8, PREPARO MANUAL, APLICADA MANUALMENTE EM PAREDES INTERNAS DE AMBIENTES COM ÁREA ENTRE 5M² E 10M², E = 10MM, COM TALISCAS. AF_03/2024 | E67: REVE - REVESTIMENTO E TRATAMENTO DE SUPERFÍCIES | F67: m² | G67: =VLOOKUP(C67,'Comp SINAPI PE 04-2025 Onerado'!B:E,4,FALSE) -> 32.42 | H67: 0.1894 | I67: 6.14
A68: C | B68: SINAPI | C68: 98445 | D68: =VLOOKUP(C68,'[52]COMPOSIÇÃO SEM DESONERAÇÃO'!$B$11:$F$9696,2,FALSE) -> PAREDE DE MADEIRA COMPENSADA PARA CONSTRUÇÃO TEMPORÁRIA EM CHAPA SIMPLES, EXTERNA, COM ÁREA LÍQUIDA MAIOR OU IGUAL A 6 M², COM VÃO. AF_03/2024 | E68: CANT - CANTEIRO DE OBRAS | F68: m² | G68: =VLOOKUP(C68,'Comp SINAPI PE 04-2025 Onerado'!B:E,4,FALSE) -> 116.02 | H68: 0.4081 | I68: 47.35
A69: C | B69: SINAPI | C69: 98441 | D69: =VLOOKUP(C69,'[52]COMPOSIÇÃO SEM DESONERAÇÃO'!$B$11:$F$9696,2,FALSE) -> PAREDE DE MADEIRA COMPENSADA PARA CONSTRUÇÃO TEMPORÁRIA EM CHAPA SIMPLES, EXTERNA, SEM VÃO. AF_03/2024 | E69: CANT - CANTEIRO DE OBRAS | F69: m² | G69: =VLOOKUP(C69,'Comp SINAPI PE 04-2025 Onerado'!B:E,4,FALSE) -> 97.87 | H69: 0.2612 | I69: 25.56
A70: C | B70: SINAPI | C70: 98446 | D70: =VLOOKUP(C70,'[52]COMPOSIÇÃO SEM DESONERAÇÃO'!$B$11:$F$9696,2,FALSE) -> PAREDE DE MADEIRA COMPENSADA PARA CONSTRUÇÃO TEMPORÁRIA EM CHAPA SIMPLES, EXTERNA, COM ÁREA LÍQUIDA MENOR QUE 6 M², COM VÃO. AF_03/2024 | E70: CANT - CANTEIRO DE OBRAS | F70: m² | G70: =VLOOKUP(C70,'Comp SINAPI PE 04-2025 Onerado'!B:E,4,FALSE) -> 149.23 | H70: 0.3182 | I70: 47.48
A71: C | B71: SINAPI | C71: 98441 | D71: =VLOOKUP(C71,'[52]COMPOSIÇÃO SEM DESONERAÇÃO'!$B$11:$F$9696,2,FALSE) -> PAREDE DE MADEIRA COMPENSADA PARA CONSTRUÇÃO TEMPORÁRIA EM CHAPA SIMPLES, EXTERNA, SEM VÃO. AF_03/2024 | E71: CANT - CANTEIRO DE OBRAS | F71: m² | G71: =VLOOKUP(C71,'Comp SINAPI PE 04-2025 Onerado'!B:E,4,FALSE) -> 97.87 | H71: 0.3007 | I71: 29.43
A72: C | B72: SINAPI | C72: 98447 | D72: =VLOOKUP(C72,'[52]COMPOSIÇÃO SEM DESONERAÇÃO'!$B$11:$F$9696,2,FALSE) -> PAREDE DE MADEIRA COMPENSADA PARA CONSTRUÇÃO TEMPORÁRIA EM CHAPA SIMPLES, INTERNA, COM ÁREA LÍQUIDA MAIOR OU IGUAL A 6 M², COM VÃO. AF_03/2024 | E72: CANT - CANTEIRO DE OBRAS | F72: m² | G72: =VLOOKUP(C72,'Comp SINAPI PE 04-2025 Onerado'!B:E,4,FALSE) -> 90.68 | H72: 0.1297 | I72: 11.76
A73: C | B73: SINAPI | C73: 98443 | D73: =VLOOKUP(C73,'[52]COMPOSIÇÃO SEM DESONERAÇÃO'!$B$11:$F$9696,2,FALSE) -> PAREDE DE MADEIRA COMPENSADA PARA CONSTRUÇÃO TEMPORÁRIA EM CHAPA SIMPLES, INTERNA, SEM VÃO. AF_03/2024 | E73: CANT - CANTEIRO DE OBRAS | F73: m² | G73: =VLOOKUP(C73,'Comp SINAPI PE 04-2025 Onerado'!B:E,4,FALSE) -> 76.01 | H73: 0.083 | I73: 6.31
A74: C | B74: SINAPI | C74: 98448 | D74: =VLOOKUP(C74,'[52]COMPOSIÇÃO SEM DESONERAÇÃO'!$B$11:$F$9696,2,FALSE) -> PAREDE DE MADEIRA COMPENSADA PARA CONSTRUÇÃO TEMPORÁRIA EM CHAPA SIMPLES, INTERNA, COM ÁREA LÍQUIDA MENOR QUE 6 M², COM VÃO. AF_03/2024 | E74: CANT - CANTEIRO DE OBRAS | F74: m² | G74: =VLOOKUP(C74,'Comp SINAPI PE 04-2025 Onerado'!B:E,4,FALSE) -> 117.76 | H74: 0.1011 | I74: 11.91
A75: C | B75: SINAPI | C75: 98443 | D75: =VLOOKUP(C75,'[52]COMPOSIÇÃO SEM DESONERAÇÃO'!$B$11:$F$9696,2,FALSE) -> PAREDE DE MADEIRA COMPENSADA PARA CONSTRUÇÃO TEMPORÁRIA EM CHAPA SIMPLES, INTERNA, SEM VÃO. AF_03/2024 | E75: CANT - CANTEIRO DE OBRAS | F75: m² | G75: =VLOOKUP(C75,'Comp SINAPI PE 04-2025 Onerado'!B:E,4,FALSE) -> 76.01 | H75: 0.0956 | I75: 7.27
A76: C | B76: SINAPI | C76: 88489 | D76: =VLOOKUP(C76,'[52]COMPOSIÇÃO SEM DESONERAÇÃO'!$B$11:$F$9696,2,FALSE) -> PINTURA LÁTEX ACRÍLICA PREMIUM, APLICAÇÃO MANUAL EM PAREDES, DUAS DEMÃOS. AF_04/2023 | E76: PINT - PINTURAS | F76: m² | G76: =VLOOKUP(C76,'Comp SINAPI PE 04-2025 Onerado'!B:E,4,FALSE) -> 14.91 | H76: 2.4442 | I76: =ROUND(G76*H76,2) -> 36.44
A77: C | B77: SINAPI | C77: 98679 | D77: =VLOOKUP(C77,'[52]COMPOSIÇÃO SEM DESONERAÇÃO'!$B$11:$F$9696,2,FALSE) -> PISO CIMENTADO, TRAÇO 1:3 (CIMENTO E AREIA), ACABAMENTO LISO, ESPESSURA 2,0 CM, PREPARO MECÂNICO DA ARGAMASSA. AF_09/2020 | E77: PISO - PISOS | F77: m² | G77: =VLOOKUP(C77,'Comp SINAPI PE 04-2025 Onerado'!B:E,4,FALSE) -> 38.16 | H77: 0.5134 | I77: 19.59
A78: C | B78: SINAPI | C78: 89957 | D78: PONTO DE CONSUMO TERMINAL DE ÁGUA FRIA (SUBRAMAL) COM TUBULAÇÃO DE PVC, DN 25 MM, INSTALADO EM RAMAL DE ÁGUA, INCLUSOS RASGO E CHUMBAMENTO EM ALVENARIA. AF_12/2014 (ADAPTADO) | E78: INHI - INSTALAÇÕES HIDROS SANITÁRIAS | F78: UN | G78: =SUM(I79:I84) -> 146.28 | H78: 0.174 | I78: 25.45
A79: C | B79: SINAPI | C79: 90466 | D79: =VLOOKUP(C79,'[52]COMPOSIÇÃO SEM DESONERAÇÃO'!$B$11:$F$9696,2,FALSE) -> CHUMBAMENTO LINEAR EM ALVENARIA PARA RAMAIS/DISTRIBUIÇÃO DE INSTALAÇÕES HIDRÁULICAS COM DIÂMETROS MENORES OU IGUAIS A 40 MM. AF_09/2023 | E79: Material | F79: M | G79: =VLOOKUP(C79,'Comp SINAPI PE 04-2025 Onerado'!B:E,4,FALSE) -> 16.14 | H79: 2.14 | I79: 34.54
A80: C | B80: SINAPI | C80: 89366 | D80: =VLOOKUP(C80,'[52]COMPOSIÇÃO SEM DESONERAÇÃO'!$B$11:$F$9696,2,FALSE) -> JOELHO 90 GRAUS COM BUCHA DE LATÃO, PVC, SOLDÁVEL, DN 25MM, X 3/4 INSTALADO EM RAMAL OU SUB-RAMAL DE ÁGUA - FORNECIMENTO E INSTALAÇÃO. AF_06/2022 | E80: Material | F80: UN | G80: =VLOOKUP(C80,'Comp SINAPI PE 04-2025 Onerado'!B:E,4,FALSE) -> 16.49 | H80: 1 | I80: 16.49
A81: C | B81: SINAPI | C81: 89362 | D81: =VLOOKUP(C81,'[52]COMPOSIÇÃO SEM DESONERAÇÃO'!$B$11:$F$9696,2,FALSE) -> JOELHO 90 GRAUS, PVC, SOLDÁVEL, DN 25MM, INSTALADO EM RAMAL OU SUB-RAMAL DE ÁGUA - FORNECIMENTO E INSTALAÇÃO. AF_06/2022 | E81: Material | F81: UN | G81: =VLOOKUP(C81,'Comp SINAPI PE 04-2025 Onerado'!B:E,4,FALSE) -> 9.98 | H81: 1.18 | I81: 11.78
A82: C | B82: SINAPI | C82: 90443 | D82: =VLOOKUP(C82,'[52]COMPOSIÇÃO SEM DESONERAÇÃO'!$B$11:$F$9696,2,FALSE) -> RASGO LINEAR MANUAL EM ALVENARIA, PARA RAMAIS/ DISTRIBUIÇÃO DE INSTALAÇÕES HIDRÁULICAS, DIÂMETROS MENORES OU IGUAIS A 40 MM. AF_09/2023 | E82: Material | F82: M | G82: =VLOOKUP(C82,'Comp SINAPI PE 04-2025 Onerado'!B:E,4,FALSE) -> 8.44 | H82: 2.14 | I82: 18.06
A83: C | B83: SINAPI | C83: 89395 | D83: =VLOOKUP(C83,'[52]COMPOSIÇÃO SEM DESONERAÇÃO'!$B$11:$F$9696,2,FALSE) -> TE, PVC, SOLDÁVEL, DN 25MM, INSTALADO EM RAMAL OU SUB-RAMAL DE ÁGUA - FORNECIMENTO E INSTALAÇÃO. AF_06/2022 | E83: Material | F83: UN | G83: =VLOOKUP(C83,'Comp SINAPI PE 04-2025 Onerado'!B:E,4,FALSE) -> 13.72 | H83: 0.89 | I83: 12.21
A84: C | B84: SINAPI | C84: 89356 | D84: =VLOOKUP(C84,'[52]COMPOSIÇÃO SEM DESONERAÇÃO'!$B$11:$F$9696,2,FALSE) -> TUBO, PVC, SOLDÁVEL, DE 25MM, INSTALADO EM RAMAL OU SUB-RAMAL DE ÁGUA - FORNECIMENTO E INSTALAÇÃO. AF_06/2022 | E84: Material | F84: M | G84: =VLOOKUP(C84,'Comp SINAPI PE 04-2025 Onerado'!B:E,4,FALSE) -> 24.86 | H84: 2.14 | I84: 53.2
A85: C | B85: SINAPI | C85: 90822 | D85: =VLOOKUP(C85,'[52]COMPOSIÇÃO SEM DESONERAÇÃO'!$B$11:$F$9696,2,FALSE) -> PORTA DE MADEIRA PARA PINTURA, SEMI-OCA (LEVE OU MÉDIA), 80X210CM, ESPESSURA DE 3,5CM, INCLUSO DOBRADIÇAS - FORNECIMENTO E INSTALAÇÃO. AF_12/2019 | E85: ESQV - ESQUADRIAS/FERRAGENS/VIDROS | F85: UN | G85: =VLOOKUP(C85,'Comp SINAPI PE 04-2025 Onerado'!B:E,4,FALSE) -> 344.98 | H85: 0.0348 | I85: 12.01
A86: C | B86: SINAPI | C86: 101876 | D86: =VLOOKUP(C86,'[52]COMPOSIÇÃO SEM DESONERAÇÃO'!$B$11:$F$9696,2,FALSE) -> QUADRO DE DISTRIBUIÇÃO DE ENERGIA EM PVC, DE EMBUTIR, SEM BARRAMENTO, PARA 6 DISJUNTORES - FORNECIMENTO E INSTALAÇÃO. AF_10/2020 | E86: INEL - INSTALAÇÃO ELÉTRICA/ELETRIFICAÇÃO E ILUMINAÇÃO EXTERNA | F86: UN | G86: =VLOOKUP(C86,'Comp SINAPI PE 04-2025 Onerado'!B:E,4,FALSE) -> 107.13 | H86: 0.0174 | I86: 1.86
A87: C | B87: SINAPI | C87: 89709 | D87: =VLOOKUP(C87,'[52]COMPOSIÇÃO SEM DESONERAÇÃO'!$B$11:$F$9696,2,FALSE) -> RALO SIFONADO, PVC, DN 100 X 40 MM, JUNTA SOLDÁVEL, FORNECIDO E INSTALADO EM RAMAL DE DESCARGA OU EM RAMAL DE ESGOTO SANITÁRIO. AF_08/2022 | E87: INHI - INSTALAÇÕES HIDROS SANITÁRIAS | F87: UN | G87: =VLOOKUP(C87,'Comp SINAPI PE 04-2025 Onerado'!B:E,4,FALSE) -> 18.62 | H87: 0.0696 | I87: 1.3
A88: C | B88: SINAPI | C88: 90443 | D88: =VLOOKUP(C88,'[52]COMPOSIÇÃO SEM DESONERAÇÃO'!$B$11:$F$9696,2,FALSE) -> RASGO LINEAR MANUAL EM ALVENARIA, PARA RAMAIS/ DISTRIBUIÇÃO DE INSTALAÇÕES HIDRÁULICAS, DIÂMETROS MENORES OU IGUAIS A 40 MM. AF_09/2023 | E88: INHI - INSTALAÇÕES HIDROS SANITÁRIAS | F88: M | G88: =VLOOKUP(C88,'Comp SINAPI PE 04-2025 Onerado'!B:E,4,FALSE) -> 8.44 | H88: 0.0722 | I88: 0.61
A89: C | B89: SINAPI | C89: 93382 | D89: =VLOOKUP(C89,'[52]COMPOSIÇÃO SEM DESONERAÇÃO'!$B$11:$F$9696,2,FALSE) -> REATERRO MANUAL DE VALAS, COM COMPACTADOR DE SOLOS DE PERCUSSÃO. AF_08/2023 | E89: MOVT - MOVIMENTO DE TERRA | F89: m³ | G89: =VLOOKUP(C89,'Comp SINAPI PE 04-2025 Onerado'!B:E,4,FALSE) -> 27.42 | H89: 0.0072 | I89: 0.2
A90: C | B90: SINAPI | C90: 89784 | D90: =VLOOKUP(C90,'[52]COMPOSIÇÃO SEM DESONERAÇÃO'!$B$11:$F$9696,2,FALSE) -> TE, PVC, SERIE NORMAL, ESGOTO PREDIAL, DN 50 X 50 MM, JUNTA ELÁSTICA, FORNECIDO E INSTALADO EM RAMAL DE DESCARGA OU RAMAL DE ESGOTO SANITÁRIO. AF_08/2022 | E90: INHI - INSTALAÇÕES HIDROS SANITÁRIAS | F90: UN | G90: =VLOOKUP(C90,'Comp SINAPI PE 04-2025 Onerado'!B:E,4,FALSE) -> 25.03 | H90: 0.0174 | I90: 0.44
A91: C | B91: SINAPI | C91: 94210 | D91: =VLOOKUP(C91,'[52]COMPOSIÇÃO SEM DESONERAÇÃO'!$B$11:$F$9696,2,FALSE) -> TELHAMENTO COM TELHA ONDULADA DE FIBROCIMENTO E = 6 MM, COM RECOBRIMENTO LATERAL DE 1 1/4 DE ONDA PARA TELHADO COM INCLINAÇÃO MÁXIMA DE 10°, COM ATÉ 2 ÁGUAS, INCLUSO IÇAMENTO. AF_07/2019 | E91: COBE - COBERTURA | F91: m² | G91: =VLOOKUP(C91,'Comp SINAPI PE 04-2025 Onerado'!B:E,4,FALSE) -> 59.36 | H91: 1.3566 | I91: 80.53
A92: C | B92: SINAPI | C92: 92000 | D92: =VLOOKUP(C92,'[52]COMPOSIÇÃO SEM DESONERAÇÃO'!$B$11:$F$9696,2,FALSE) -> TOMADA BAIXA DE EMBUTIR (1 MÓDULO), 2P+T 10 A, INCLUINDO SUPORTE E PLACA - FORNECIMENTO E INSTALAÇÃO. AF_03/2023 | E92: INEL - INSTALAÇÃO ELÉTRICA/ELETRIFICAÇÃO E ILUMINAÇÃO EXTERNA | F92: UN | G92: =VLOOKUP(C92,'Comp SINAPI PE 04-2025 Onerado'!B:E,4,FALSE) -> 32.13 | H92: 0.0348 | I92: 1.12
A93: C | B93: SINAPI | C93: 92543 | D93: =VLOOKUP(C93,'[52]COMPOSIÇÃO SEM DESONERAÇÃO'!$B$11:$F$9696,2,FALSE) -> TRAMA DE MADEIRA COMPOSTA POR TERÇAS PARA TELHADOS DE ATÉ 2 ÁGUAS PARA TELHA ONDULADA DE FIBROCIMENTO, METÁLICA, PLÁSTICA OU TERMOACÚSTICA, INCLUSO TRANSPORTE VERTICAL. AF_07/2019 | E93: COBE - COBERTURA | F93: m² | G93: =VLOOKUP(C93,'Comp SINAPI PE 04-2025 Onerado'!B:E,4,FALSE) -> 25.33 | H93: 1.3566 | I93: 34.36
A94: C | B94: SINAPI | C94: 89714 | D94: =VLOOKUP(C94,'[52]COMPOSIÇÃO SEM DESONERAÇÃO'!$B$11:$F$9696,2,FALSE) -> TUBO PVC, SERIE NORMAL, ESGOTO PREDIAL, DN 100 MM, FORNECIDO E INSTALADO EM RAMAL DE DESCARGA OU RAMAL DE ESGOTO SANITÁRIO. AF_08/2022 | E94: INHI - INSTALAÇÕES HIDROS SANITÁRIAS | F94: M | G94: =VLOOKUP(C94,'Comp SINAPI PE 04-2025 Onerado'!B:E,4,FALSE) -> 37.98 | H94: 0.047 | I94: 1.79
A95: C | B95: SINAPI | C95: 89711 | D95: =VLOOKUP(C95,'[52]COMPOSIÇÃO SEM DESONERAÇÃO'!$B$11:$F$9696,2,FALSE) -> TUBO PVC, SERIE NORMAL, ESGOTO PREDIAL, DN 40 MM, FORNECIDO E INSTALADO EM RAMAL DE DESCARGA OU RAMAL DE ESGOTO SANITÁRIO. AF_08/2022 | E95: INHI - INSTALAÇÕES HIDROS SANITÁRIAS | F95: M | G95: =VLOOKUP(C95,'Comp SINAPI PE 04-2025 Onerado'!B:E,4,FALSE) -> 21.9 | H95: 0.1631 | I95: 3.57
A96: C | B96: SINAPI | C96: 89712 | D96: =VLOOKUP(C96,'[52]COMPOSIÇÃO SEM DESONERAÇÃO'!$B$11:$F$9696,2,FALSE) -> TUBO PVC, SERIE NORMAL, ESGOTO PREDIAL, DN 50 MM, FORNECIDO E INSTALADO EM RAMAL DE DESCARGA OU RAMAL DE ESGOTO SANITÁRIO. AF_08/2022 | E96: INHI - INSTALAÇÕES HIDROS SANITÁRIAS | F96: M | G96: =VLOOKUP(C96,'Comp SINAPI PE 04-2025 Onerado'!B:E,4,FALSE) -> 27.25 | H96: 0.2235 | I96: 6.09
A97: C | B97: SINAPI | C97: 86888 | D97: =VLOOKUP(C97,'[52]COMPOSIÇÃO SEM DESONERAÇÃO'!$B$11:$F$9696,2,FALSE) -> VASO SANITÁRIO SIFONADO COM CAIXA ACOPLADA LOUÇA BRANCA - FORNECIMENTO E INSTALAÇÃO. AF_01/2020 | E97: INHI - INSTALAÇÕES HIDROS SANITÁRIAS | F97: UN | G97: =VLOOKUP(C97,'Comp SINAPI PE 04-2025 Onerado'!B:E,4,FALSE) -> 502.85 | H97: 0.0522 | I97: 26.25
A98: I | B98: SINAPI | C98: 11712 | D98: =VLOOKUP(C98,'[52]INSUMO SEM DESONERAÇÃO'!$B$11:$F$4847,2,FALSE) -> CAIXA SIFONADA, PVC, 150 X 150 X 50 MM, COM GRELHA QUADRADA, BRANCA (NBR 5688) | E98: Material | F98: UN | G98: =VLOOKUP(C98,'Ins SINAPI PE 04-2025 Onerado'!B:F,5,FALSE) -> 32.9 | H98: 0.0348 | I98: 1.14
A99: I | B99: SINAPI | C99: 3080 | D99: =VLOOKUP(C99,'[52]INSUMO SEM DESONERAÇÃO'!$B$11:$F$4847,2,FALSE) -> FECHADURA ESPELHO PARA PORTA EXTERNA, EM ACO INOX (MAQUINA, TESTA E CONTRA-TESTA) E EM ZAMAC (MACANETA, LINGUETA E TRINCOS) COM ACABAMENTO CROMADO, MAQUINA DE 40 MM, INCLUINDO CHAVE TIPO CILINDRO | E99: Material | F99: CJ | G99: =VLOOKUP(C99,'Ins SINAPI PE 04-2025 Onerado'!B:F,5,FALSE) -> 77.2 | H99: 0.0348 | I99: 2.69
A100: I | B100: SINAPI | C100: 11587 | D100: =VLOOKUP(C100,'[52]INSUMO SEM DESONERAÇÃO'!$B$11:$F$4847,2,FALSE) -> FORRO DE PVC LISO, BRANCO, REGUA DE 10 CM, ESPESSURA APROXIMADA DE 8 MM (COM COLOCACAO / SEM ESTRUTURA METALICA) | E100: Material | F100: m² | G100: =VLOOKUP(C100,'Ins SINAPI PE 04-2025 Onerado'!B:F,5,FALSE) -> 81.72 | H100: 0.9762 | I100: 79.78
A101: I | B101: SINAPI | C101: 3659 | D101: =VLOOKUP(C101,'[52]INSUMO SEM DESONERAÇÃO'!$B$11:$F$4847,2,FALSE) -> JUNCAO SIMPLES DE REDUCAO, PVC, DN 100 X 50 MM, SERIE NORMAL PARA ESGOTO PREDIAL | E101: Material | F101: UN | G101: =VLOOKUP(C101,'Ins SINAPI PE 04-2025 Onerado'!B:F,5,FALSE) -> 16.78 | H101: 0.0174 | I101: 0.29
A102: I | B102: SINAPI | C102: 3670 | D102: =VLOOKUP(C102,'[52]INSUMO SEM DESONERAÇÃO'!$B$11:$F$4847,2,FALSE) -> JUNCAO SIMPLES, PVC, 45 GRAUS, DN 100 X 100 MM, SERIE NORMAL PARA ESGOTO PREDIAL | E102: Material | F102: UN | G102: =VLOOKUP(C102,'Ins SINAPI PE 04-2025 Onerado'!B:F,5,FALSE) -> 21.55 | H102: 0.0348 | I102: 0.75
A103: I | B103: SINAPI | C103: 11697 | D103: =VLOOKUP(C103,'[52]INSUMO SEM DESONERAÇÃO'!$B$11:$F$4847,2,FALSE) -> MICTORIO COLETIVO ACO INOX (AISI 304), E = 0,8 MM, DE *100 X 40 X 30* CM (C X A X P) | E103: Material | F103: UN | G103: =VLOOKUP(C103,'Ins SINAPI PE 04-2025 Onerado'!B:F,5,FALSE) -> 766.12 | H103: 0.0174 | I103: 13.33
A104: I | B104: SINAPI | C104: 43777 | D104: =VLOOKUP(C104,'[52]INSUMO SEM DESONERAÇÃO'!$B$11:$F$4847,2,FALSE) -> PORTA DE MADEIRA, FOLHA LEVE (NBR 15930), DE 600 X 2100 MM, E = 35 MM, NUCLEO COLMEIA, CAPA LISA EM HDF, ACABAMENTO MELAMINICO EM PADRAO MADEIRA | E104: Material | F104: UN | G104: =VLOOKUP(C104,'Ins SINAPI PE 04-2025 Onerado'!B:F,5,FALSE) -> 179.89 | H104: 0.0447618 | I104: 8.05
A105: I | B105: SINAPI | C105: 21112 | D105: =VLOOKUP(C105,'[52]INSUMO SEM DESONERAÇÃO'!$B$11:$F$4847,2,FALSE) -> VALVULA DE DESCARGA EM METAL CROMADO PARA MICTORIO COM ACIONAMENTO POR PRESSAO E FECHAMENTO AUTOMATICO | E105: Material | F105: UN | G105: =VLOOKUP(C105,'Ins SINAPI PE 04-2025 Onerado'!B:F,5,FALSE) -> 318.49 | H105: 0.0174 | I105: 5.54
A108: Código | D108: 93583 ADAPTADO
A109: Descrição | D109: EXECUÇÃO DE CENTRAL DE FÔRMAS, PRODUÇÃO DE ARGAMASSA OU CONCRETO EM CANTEIRO DE OBRA, NÃO INCLUSO MOBILIÁRIO E EQUIPAMENTOS. AF_04/2016
A110: Data | D110: 2024-04-01
A111: Estado | D111: Pernambuco
A112: Tipo | D112: CANT - CANTEIRO DE OBRAS
A113: Unidade | D113: m²
A114: Valor sem Desoneração | D114: =SUM(I117:I131,I135:I145) -> 571.86
A116: Natureza | B116: Fonte | C116: codigo | D116: Descrição | E116: Tipo | F116: Unidade | G116: Valor sem Desoneração | H116: Coeficiente | I116: Valor sem Desoneração
A117: C | B117: SINAPI | C117: 91924 | D117: =VLOOKUP(C117,'[52]COMPOSIÇÃO SEM DESONERAÇÃO'!$B$11:$E$9696,2,FALSE) -> CABO DE COBRE FLEXÍVEL ISOLADO, 1,5 MM², ANTI-CHAMA 450/750 V, PARA CIRCUITOS TERMINAIS - FORNECIMENTO E INSTALAÇÃO. AF_03/2023 | E117: INEL - INSTALAÇÃO ELÉTRICA/ELETRIFICAÇÃO E ILUMINAÇÃO EXTERNA | F117: M | G117: =VLOOKUP(C117,'Comp SINAPI PE 04-2025 Onerado'!B:E,4,FALSE) -> 3.17 | H117: 1.0821 | I117: =ROUND(G117*H117,2) -> 3.43
A118: C | B118: SINAPI | C118: 92981 | D118: =VLOOKUP(C118,'[52]COMPOSIÇÃO SEM DESONERAÇÃO'!$B$11:$E$9696,2,FALSE) -> CABO DE COBRE FLEXÍVEL ISOLADO, 16 MM², ANTI-CHAMA 450/750 V, PARA DISTRIBUIÇÃO - FORNECIMENTO E INSTALAÇÃO. AF_10/2020 | E118: INEL - INSTALAÇÃO ELÉTRICA/ELETRIFICAÇÃO E ILUMINAÇÃO EXTERNA | F118: M | G118: =VLOOKUP(C118,'Comp SINAPI PE 04-2025 Onerado'!B:E,4,FALSE) -> 16.5 | H118: 2.0821 | I118: =ROUND(G118*H118,2) -> 34.35
A119: C | B119: SINAPI | C119: 91926 | D119: =VLOOKUP(C119,'[52]COMPOSIÇÃO SEM DESONERAÇÃO'!$B$11:$E$9696,2,FALSE) -> CABO DE COBRE FLEXÍVEL ISOLADO, 2,5 MM², ANTI-CHAMA 450/750 V, PARA CIRCUITOS TERMINAIS - FORNECIMENTO E INSTALAÇÃO. AF_03/2023 | E119: INEL - INSTALAÇÃO ELÉTRICA/ELETRIFICAÇÃO E ILUMINAÇÃO EXTERNA | F119: M | G119: =VLOOKUP(C119,'Comp SINAPI PE 04-2025 Onerado'!B:E,4,FALSE) -> 4.59 | H119: 2,087 | I119: 9.58
A120: C | B120: SINAPI | C120: 97886 | D120: =VLOOKUP(C120,'[52]COMPOSIÇÃO SEM DESONERAÇÃO'!$B$11:$E$9696,2,FALSE) -> CAIXA ENTERRADA ELÉTRICA RETANGULAR, EM ALVENARIA COM TIJOLOS CERÂMICOS MACIÇOS, FUNDO COM BRITA, DIMENSÕES INTERNAS: 0,3X0,3X0,3 M. AF_12/2020 | E120: INEL - INSTALAÇÃO ELÉTRICA/ELETRIFICAÇÃO E ILUMINAÇÃO EXTERNA | F120: UN | G120: =VLOOKUP(C120,'Comp SINAPI PE 04-2025 Onerado'!B:E,4,FALSE) -> 165.48 | H120: 0,0966 | I120: 15.99
A121: C | B121: SINAPI | C121: 95805 | D121: =VLOOKUP(C121,'[52]COMPOSIÇÃO SEM DESONERAÇÃO'!$B$11:$E$9696,2,FALSE) -> CONDULETE DE PVC, TIPO B, PARA ELETRODUTO DE PVC SOLDÁVEL DN 25 MM (3/4''), APARENTE - FORNECIMENTO E INSTALAÇÃO. AF_10/2022 | E121: INEL - INSTALAÇÃO ELÉTRICA/ELETRIFICAÇÃO E ILUMINAÇÃO EXTERNA | F121: UN | G121: =VLOOKUP(C121,'Comp SINAPI PE 04-2025 Onerado'!B:E,4,FALSE) -> 28.79 | H121: 0,3865 | I121: 11.13
A122: C | B122: SINAPI | C122: 101891 | D122: =VLOOKUP(C122,'[52]COMPOSIÇÃO SEM DESONERAÇÃO'!$B$11:$E$9696,2,FALSE) -> DISJUNTOR MONOPOLAR TIPO NEMA, CORRENTE NOMINAL DE 35 ATÉ 50A - FORNECIMENTO E INSTALAÇÃO. AF_10/2020 | E122: INEL - INSTALAÇÃO ELÉTRICA/ELETRIFICAÇÃO E ILUMINAÇÃO EXTERNA | F122: UN | G122: =VLOOKUP(C122,'Comp SINAPI PE 04-2025 Onerado'!B:E,4,FALSE) -> 32.92 | H122: 0,2899 | I122: 9.54
A123: C | B123: SINAPI | C123: 91862 | D123: =VLOOKUP(C123,'[52]COMPOSIÇÃO SEM DESONERAÇÃO'!$B$11:$E$9696,2,FALSE) -> ELETRODUTO RÍGIDO ROSCÁVEL, PVC, DN 20 MM (1/2"), PARA CIRCUITOS TERMINAIS, INSTALADO EM FORRO - FORNECIMENTO E INSTALAÇÃO. AF_03/2023 | E123: INEL - INSTALAÇÃO ELÉTRICA/ELETRIFICAÇÃO E ILUMINAÇÃO EXTERNA | F123: M | G123: =VLOOKUP(C123,'Comp SINAPI PE 04-2025 Onerado'!B:E,4,FALSE) -> 10.25 | H123: 0,4251 | I123: 4.36
A124: C | B124: SINAPI | C124: 91870 | D124: =VLOOKUP(C124,'[52]COMPOSIÇÃO SEM DESONERAÇÃO'!$B$11:$E$9696,2,FALSE) -> ELETRODUTO RÍGIDO ROSCÁVEL, PVC, DN 20 MM (1/2"), PARA CIRCUITOS TERMINAIS, INSTALADO EM PAREDE - FORNECIMENTO E INSTALAÇÃO. AF_03/2023 | E124: INEL - INSTALAÇÃO ELÉTRICA/ELETRIFICAÇÃO E ILUMINAÇÃO EXTERNA | F124: M | G124: =VLOOKUP(C124,'Comp SINAPI PE 04-2025 Onerado'!B:E,4,FALSE) -> 13.48 | H124: 0,4638 | I124: 6.25
A125: C | B125: SINAPI | C125: 93358 | D125: =VLOOKUP(C125,'[52]COMPOSIÇÃO SEM DESONERAÇÃO'!$B$11:$E$9696,2,FALSE) -> ESCAVAÇÃO MANUAL DE VALA. AF_09/2024 | E125: MOVT - MOVIMENTO DE TERRA | F125: m³ | G125: =VLOOKUP(C125,'Comp SINAPI PE 04-2025 Onerado'!B:E,4,FALSE) -> 95.25 | H125: 0,0078 | I125: 0.74
A126: C | B126: SINAPI | C126: 91170 | D126: =VLOOKUP(C126,'[52]COMPOSIÇÃO SEM DESONERAÇÃO'!$B$11:$E$9696,2,FALSE) -> FIXAÇÃO DE TUBOS HORIZONTAIS DE PVC ÁGUA, PVC ESGOTO, PVC ÁGUA PLUVIAL, CPVC, PPR, COBRE OU AÇO, DIÂMETROS MENORES OU IGUAIS A 40 MM, COM ABRAÇADEIRA METÁLICA RÍGIDA TIPO U PERFIL 1 1/4", FIXADA EM PERFILADO EM LAJE. AF_09/2023_PS | E126: INHI - INSTALAÇÕES HIDROS SANITÁRIAS | F126: M | G126: =VLOOKUP(C126,'Comp SINAPI PE 04-2025 Onerado'!B:E,4,FALSE) -> 11.65 | H126: 0,4251 | I126: 4.95
A127: C | B127: SINAPI | C127: 91173 | D127: =VLOOKUP(C127,'[52]COMPOSIÇÃO SEM DESONERAÇÃO'!$B$11:$E$9696,2,FALSE) -> FIXAÇÃO DE TUBOS VERTICAIS DE PVC ÁGUA, PVC ESGOTO, PVC ÁGUA PLUVIAL, CPVC, PPR, COBRE OU AÇO, DIÂMETROS MENORES OU IGUAIS A 40 MM, COM ABRAÇADEIRA METÁLICA RÍGIDA TIPO U PERFIL 1 1/4", FIXADA EM PERFILADO EM PAREDE. AF_09/2023_PS | E127: INHI - INSTALAÇÕES HIDROS SANITÁRIAS | F127: M | G127: =VLOOKUP(C127,'Comp SINAPI PE 04-2025 Onerado'!B:E,4,FALSE) -> 4.34 | H127: 0,4638 | I127: 2.01
A128: C | B128: SINAPI | C128: 96985 | D128: =VLOOKUP(C128,'[52]COMPOSIÇÃO SEM DESONERAÇÃO'!$B$11:$E$9696,2,FALSE) -> HASTE DE ATERRAMENTO, DIÂMETRO 5/8", COM 3 METROS - FORNECIMENTO E INSTALAÇÃO. AF_08/2023 | E128: INEL - INSTALAÇÃO ELÉTRICA/ELETRIFICAÇÃO E ILUMINAÇÃO EXTERNA | F128: UN | G128: =VLOOKUP(C128,'Comp SINAPI PE 04-2025 Onerado'!B:E,4,FALSE) -> 110.16 | H128: 0,0966 | I128: 10.64
A129: C | B129: SINAPI | C129: 92023 | D129: =VLOOKUP(C129,'[52]COMPOSIÇÃO SEM DESONERAÇÃO'!$B$11:$E$9696,2,FALSE) -> INTERRUPTOR SIMPLES (1 MÓDULO) COM 1 TOMADA DE EMBUTIR 2P+T 10 A, INCLUINDO SUPORTE E PLACA - FORNECIMENTO E INSTALAÇÃO. AF_03/2023 | E129: INEL - INSTALAÇÃO ELÉTRICA/ELETRIFICAÇÃO E ILUMINAÇÃO EXTERNA | F129: UN | G129: =VLOOKUP(C129,'Comp SINAPI PE 04-2025 Onerado'!B:E,4,FALSE) -> 52.21 | H129: 0,0966 | I129: 5.04
A130: C | B130: SINAPI | C130: 95241 | D130: =VLOOKUP(C130,'[52]COMPOSIÇÃO SEM DESONERAÇÃO'!$B$11:$E$9696,2,FALSE) -> LASTRO DE CONCRETO MAGRO, APLICADO EM PISOS, LAJES SOBRE SOLO OU RADIERS, ESPESSURA DE 5 CM. AF_01/2024 | E130: FUES - FUNDAÇÕES E ESTRUTURAS | F130: m² | G130: =VLOOKUP(C130,'Comp SINAPI PE 04-2025 Onerado'!B:E,4,FALSE) -> 37.66 | H130: 1,9256 | I130: 72.52
A131: C | B131: SINAPI | C131: 97586 | D131: LUMINÁRIA TIPO CALHA, DE SOBREPOR, COM 2 LÂMPADAS TUBULARES FLUORESCENTES DE 36 W, COM REATOR DE PARTIDA RÁPIDA - FORNECIMENTO E INSTALAÇÃO. AF_02/2020 | E131: INEL - INSTALAÇÃO ELÉTRICA/ELETRIFICAÇÃO E ILUMINAÇÃO EXTERNA | F131: UN | G131: =SUM(I132:I134) -> 222.74 | H131: 0.1392 | I131: =ROUND(G131*H131,2) -> 31.01
A132: C | B132: SINAPI | C132: 88247 | D132: =VLOOKUP(C132,'[52]COMPOSIÇÃO SEM DESONERAÇÃO'!$B$11:$F$9696,2,FALSE) -> AUXILIAR DE ELETRICISTA COM ENCARGOS COMPLEMENTARES | E132: SEDI - SERVIÇOS DIVERSOS | F132: H | G132: =VLOOKUP(C132,'Comp SINAPI PE 04-2025 Onerado'!B:E,4,FALSE) -> 25.53 | H132: 0.1727 | I132: =ROUND(G132*H132,2) -> 4.41
A133: C | B133: SINAPI | C133: 88264 | D133: =VLOOKUP(C133,'[52]COMPOSIÇÃO SEM DESONERAÇÃO'!$B$11:$F$9696,2,FALSE) -> ELETRICISTA COM ENCARGOS COMPLEMENTARES | E133: SEDI - SERVIÇOS DIVERSOS | F133: H | G133: =VLOOKUP(C133,'Comp SINAPI PE 04-2025 Onerado'!B:E,4,FALSE) -> 30.24 | H133: 0.4144 | I133: =ROUND(G133*H133,2) -> 12.53
A134: C | B134: SINAPI | C134: 3780 | D134: =VLOOKUP(C134,'[52]INSUMO SEM DESONERAÇÃO'!$B$11:$F$4847,2,FALSE) -> LUMINARIA DE SOBREPOR EM CHAPA DE ACO PARA 1 LAMPADA FLUORESCENTE DE *36* W, ALETADA, COMPLETA (LAMPADA E REATOR INCLUSOS) | E134: Material | F134: UN | G134: 102.9 | H134: 2 | I134: =ROUND(G134*H134,2) -> 205.8 | J134: *Está sem PROCV
A135: C | B135: SINAPI | C135: 98445 | D135: =VLOOKUP(C135,'[52]COMPOSIÇÃO SEM DESONERAÇÃO'!$B$11:$E$9696,2,FALSE) -> PAREDE DE MADEIRA COMPENSADA PARA CONSTRUÇÃO TEMPORÁRIA EM CHAPA SIMPLES, EXTERNA, COM ÁREA LÍQUIDA MAIOR OU IGUAL A 6 M², COM VÃO. AF_03/2024 | E135: CANT - CANTEIRO DE OBRAS | F135: m² | G135: =VLOOKUP(C135,'Comp SINAPI PE 04-2025 Onerado'!B:E,4,FALSE) -> 116.02 | H135: 0,1508 | I135: 28.43
A136: C | B136: SINAPI | C136: 98441 | D136: =VLOOKUP(C136,'[52]COMPOSIÇÃO SEM DESONERAÇÃO'!$B$11:$E$9696,2,FALSE) -> PAREDE DE MADEIRA COMPENSADA PARA CONSTRUÇÃO TEMPORÁRIA EM CHAPA SIMPLES, EXTERNA, SEM VÃO. AF_03/2024 | E136: CANT - CANTEIRO DE OBRAS | F136: m² | G136: =VLOOKUP(C136,'Comp SINAPI PE 04-2025 Onerado'!B:E,4,FALSE) -> 97.87 | H136: 0,0966 | I136: 15.02
A137: C | B137: SINAPI | C137: 98446 | D137: =VLOOKUP(C137,'[52]COMPOSIÇÃO SEM DESONERAÇÃO'!$B$11:$E$9696,2,FALSE) -> PAREDE DE MADEIRA COMPENSADA PARA CONSTRUÇÃO TEMPORÁRIA EM CHAPA SIMPLES, EXTERNA, COM ÁREA LÍQUIDA MENOR QUE 6 M², COM VÃO. AF_03/2024 | E137: CANT - CANTEIRO DE OBRAS | F137: m² | G137: =VLOOKUP(C137,'Comp SINAPI PE 04-2025 Onerado'!B:E,4,FALSE) -> 149.23 | H137: 0,1176 | I137: 28.54
A138: C | B138: SINAPI | C138: 98441 | D138: =VLOOKUP(C138,'[52]COMPOSIÇÃO SEM DESONERAÇÃO'!$B$11:$F$9696,2,FALSE) -> PAREDE DE MADEIRA COMPENSADA PARA CONSTRUÇÃO TEMPORÁRIA EM CHAPA SIMPLES, EXTERNA, SEM VÃO. AF_03/2024 | E138: CANT - CANTEIRO DE OBRAS | F138: m² | G138: =VLOOKUP(C138,'Comp SINAPI PE 04-2025 Onerado'!B:E,4,FALSE) -> 97.87 | H138: 0.3007 | I138: =ROUND(G138*H138,2) -> 29.43
A139: C | B139: SINAPI | C139: 88489 | D139: =VLOOKUP(C139,'[52]COMPOSIÇÃO SEM DESONERAÇÃO'!$B$11:$E$9696,2,FALSE) -> PINTURA LÁTEX ACRÍLICA PREMIUM, APLICAÇÃO MANUAL EM PAREDES, DUAS DEMÃOS. AF_04/2023 | E139: PINT - PINTURAS | F139: m² | G139: =VLOOKUP(C139,'Comp SINAPI PE 04-2025 Onerado'!B:E,4,FALSE) -> 14.91 | H139: 0,4761 | I139: 6.35
A140: C | B140: SINAPI | C140: 101876 | D140: =VLOOKUP(C140,'[52]COMPOSIÇÃO SEM DESONERAÇÃO'!$B$11:$E$9696,2,FALSE) -> QUADRO DE DISTRIBUIÇÃO DE ENERGIA EM PVC, DE EMBUTIR, SEM BARRAMENTO, PARA 6 DISJUNTORES - FORNECIMENTO E INSTALAÇÃO. AF_10/2020 | E140: INEL - INSTALAÇÃO ELÉTRICA/ELETRIFICAÇÃO E ILUMINAÇÃO EXTERNA | F140: UN | G140: =VLOOKUP(C140,'Comp SINAPI PE 04-2025 Onerado'!B:E,4,FALSE) -> 107.13 | H140: 0,0966 | I140: 10.05
A141: C | B141: SINAPI | C141: 94210 | D141: =VLOOKUP(C141,'[52]COMPOSIÇÃO SEM DESONERAÇÃO'!$B$11:$E$9696,2,FALSE) -> TELHAMENTO COM TELHA ONDULADA DE FIBROCIMENTO E = 6 MM, COM RECOBRIMENTO LATERAL DE 1 1/4 DE ONDA PARA TELHADO COM INCLINAÇÃO MÁXIMA DE 10°, COM ATÉ 2 ÁGUAS, INCLUSO IÇAMENTO. AF_07/2019 | E141: COBE - COBERTURA | F141: m² | G141: =VLOOKUP(C141,'Comp SINAPI PE 04-2025 Onerado'!B:E,4,FALSE) -> 59.36 | H141: 1,9256 | I141: 125
A142: C | B142: SINAPI | C142: 92008 | D142: =VLOOKUP(C142,'[52]COMPOSIÇÃO SEM DESONERAÇÃO'!$B$11:$E$9696,2,FALSE) -> TOMADA BAIXA DE EMBUTIR (2 MÓDULOS), 2P+T 10 A, INCLUINDO SUPORTE E PLACA - FORNECIMENTO E INSTALAÇÃO. AF_03/2023 | E142: INEL - INSTALAÇÃO ELÉTRICA/ELETRIFICAÇÃO E ILUMINAÇÃO EXTERNA | F142: UN | G142: =VLOOKUP(C142,'Comp SINAPI PE 04-2025 Onerado'!B:E,4,FALSE) -> 49.48 | H142: 0,2899 | I142: 13.41
A143: C | B143: SINAPI | C143: 92543 | D143: =VLOOKUP(C143,'[52]COMPOSIÇÃO SEM DESONERAÇÃO'!$B$11:$E$9696,2,FALSE) -> TRAMA DE MADEIRA COMPOSTA POR TERÇAS PARA TELHADOS DE ATÉ 2 ÁGUAS PARA TELHA ONDULADA DE FIBROCIMENTO, METÁLICA, PLÁSTICA OU TERMOACÚSTICA, INCLUSO TRANSPORTE VERTICAL. AF_07/2019 | E143: COBE - COBERTURA | F143: m² | G143: =VLOOKUP(C143,'Comp SINAPI PE 04-2025 Onerado'!B:E,4,FALSE) -> 25.33 | H143: 1,9256 | I143: 49.21
A144: I | B144: SINAPI | C144: 10886 | D144: =VLOOKUP(C144,'[52]INSUMO SEM DESONERAÇÃO'!$B$11:$F$4847,2,FALSE) -> EXTINTOR DE INCENDIO PORTATIL COM CARGA DE AGUA PRESSURIZADA DE 10 L, CLASSE A | E144: Material | F144: UN | G144: =VLOOKUP(C144,'Ins SINAPI PE 04-2025 Onerado'!B:F,5,FALSE) -> 245 | H144: 0,0966 | I144: 22.82
A145: I | B145: SINAPI | C145: 10891 | D145: =VLOOKUP(C145,'[52]INSUMO SEM DESONERAÇÃO'!$B$11:$F$4847,2,FALSE) -> EXTINTOR DE INCENDIO PORTATIL COM CARGA DE PO QUIMICO SECO (PQS) DE 4 KG, CLASSE BC | E145: Material | F145: UN | G145: =VLOOKUP(C145,'Ins SINAPI PE 04-2025 Onerado'!B:F,5,FALSE) -> 236.92 | H145: 0,0966 | I145: 22.06
A148: Código | D148: 93210 ADAPTADO
A149: Descrição | D149: EXECUÇÃO DE REFEITÓRIO EM CANTEIRO DE OBRA EM CHAPA DE MADEIRA COMPENSADA, NÃO INCLUSO MOBILIÁRIO E EQUIPAMENTOS. AF_02/2016
A150: Data | D150: 2024-04-01
A151: Estado | D151: Pernambuco
A152: Tipo | D152: CANT - CANTEIRO DE OBRAS
A153: Unidade | D153: m²
A154: Valor sem Desoneração | D154: =SUM(I157:I179,I183:I188,I195:I208) -> 599.503077
A156: Natureza | B156: Fonte | C156: codigo | D156: Descrição | E156: Tipo | F156: Unidade | G156: Valor sem Desoneração | H156: Coeficiente | I156: Valor sem Desoneração
A157: C | B157: SINAPI | C157: 101165 | D157: =VLOOKUP(C157,'[53]SINAPI COMPOSIÇÕES'!$B$11:$F$9696,2,0) -> ALVENARIA DE EMBASAMENTO COM BLOCO ESTRUTURAL DE CONCRETO, DE 14X19X29CM E ARGAMASSA DE ASSENTAMENTO COM PREPARO EM BETONEIRA. AF_05/2020 | E157: FUES - FUNDAÇÕES E ESTRUTURAS | F157: m³ | G157: =VLOOKUP(C157,'Comp SINAPI PE 04-2025 Onerado'!B:E,4,FALSE) -> 1013.86 | H157: 0.04 | I157: =G157*H157 -> 40.5544
A158: C | B158: SINAPI | C158: 86934 | D158: =VLOOKUP(C158,'[53]SINAPI COMPOSIÇÕES'!$B$11:$F$9696,2,0) -> BANCADA DE MÁRMORE SINTÉTICO 120 X 60CM, COM CUBA INTEGRADA, INCLUSO SIFÃO TIPO FLEXÍVEL EM PVC, VÁLVULA EM PLÁSTICO CROMADO TIPO AMERICANA E TORNEIRA CROMADA LONGA, DE PAREDE, PADRÃO POPULAR - FORNECIMENTO E INSTALAÇÃO. AF_01/2020 | E158: INHI - INSTALAÇÕES HIDROS SANITÁRIAS | F158: UN | G158: =VLOOKUP(C158,'Comp SINAPI PE 04-2025 Onerado'!B:E,4,FALSE) -> 457.09 | H158: 0.0268 | I158: =G158*H158 -> 12.250012
A159: C | B159: SINAPI | C159: 91924 | D159: =VLOOKUP(C159,'[53]SINAPI COMPOSIÇÕES'!$B$11:$F$9696,2,0) -> CABO DE COBRE FLEXÍVEL ISOLADO, 1,5 MM², ANTI-CHAMA 450/750 V, PARA CIRCUITOS TERMINAIS - FORNECIMENTO E INSTALAÇÃO. AF_03/2023 | E159: INEL - INSTALAÇÃO ELÉTRICA/ELETRIFICAÇÃO E ILUMINAÇÃO EXTERNA | F159: M | G159: =VLOOKUP(C159,'Comp SINAPI PE 04-2025 Onerado'!B:E,4,FALSE) -> 3.17 | H159: 0.8591 | I159: 2.723347
A160: C | B160: SINAPI | C160: 91926 | D160: =VLOOKUP(C160,'[53]SINAPI COMPOSIÇÕES'!$B$11:$F$9696,2,0) -> CABO DE COBRE FLEXÍVEL ISOLADO, 2,5 MM², ANTI-CHAMA 450/750 V, PARA CIRCUITOS TERMINAIS - FORNECIMENTO E INSTALAÇÃO. AF_03/2023 | E160: INEL - INSTALAÇÃO ELÉTRICA/ELETRIFICAÇÃO E ILUMINAÇÃO EXTERNA | F160: M | G160: =VLOOKUP(C160,'Comp SINAPI PE 04-2025 Onerado'!B:E,4,FALSE) -> 4.59 | H160: 2.5503 | I160: 11.705877
A161: C | B161: SINAPI | C161: 98102 | D161: =VLOOKUP(C161,'[53]SINAPI COMPOSIÇÕES'!$B$11:$F$9696,2,0) -> CAIXA DE GORDURA SIMPLES, CIRCULAR, EM CONCRETO PRÉ-MOLDADO, DIÂMETRO INTERNO = 0,4 M, ALTURA INTERNA = 0,4 M. AF_12/2020 | E161: INHI - INSTALAÇÕES HIDROS SANITÁRIAS | F161: UN | G161: =VLOOKUP(C161,'Comp SINAPI PE 04-2025 Onerado'!B:E,4,FALSE) -> 145.95 | H161: 0.0268 | I161: 3.91146
A162: C | B162: SINAPI | C162: 97906 | D162: =VLOOKUP(C162,'[53]SINAPI COMPOSIÇÕES'!$B$11:$F$9696,2,0) -> CAIXA ENTERRADA HIDRÁULICA RETANGULAR, EM ALVENARIA COM BLOCOS DE CONCRETO, DIMENSÕES INTERNAS: 0,6X0,6X0,6 M PARA REDE DE ESGOTO. AF_12/2020 | E162: INHI - INSTALAÇÕES HIDROS SANITÁRIAS | F162: UN | G162: =VLOOKUP(C162,'Comp SINAPI PE 04-2025 Onerado'!B:E,4,FALSE) -> 461.86 | H162: 0.0268 | I162: 12.377848
A163: C | B163: SINAPI | C163: 91937 | D163: =VLOOKUP(C163,'[53]SINAPI COMPOSIÇÕES'!$B$11:$F$9696,2,0) -> CAIXA OCTOGONAL 3" X 3", PVC, INSTALADA EM LAJE - FORNECIMENTO E INSTALAÇÃO. AF_03/2023 | E163: INEL - INSTALAÇÃO ELÉTRICA/ELETRIFICAÇÃO E ILUMINAÇÃO EXTERNA | F163: UN | G163: =VLOOKUP(C163,'Comp SINAPI PE 04-2025 Onerado'!B:E,4,FALSE) -> 18.63 | H163: 0.1611 | I163: 3.001293
A164: C | B164: SINAPI | C164: 88262 | D164: =VLOOKUP(C164,'[53]SINAPI COMPOSIÇÕES'!$B$11:$F$9696,2,0) -> CARPINTEIRO DE FORMAS COM ENCARGOS COMPLEMENTARES | E164: SEDI - SERVIÇOS DIVERSOS | F164: H | G164: =VLOOKUP(C164,'Comp SINAPI PE 04-2025 Onerado'!B:E,4,FALSE) -> 29.41 | H164: 1.1155 | I164: 32.806855
A165: C | B165: SINAPI | C165: 95805 | D165: =VLOOKUP(C165,'[53]SINAPI COMPOSIÇÕES'!$B$11:$F$9696,2,0) -> CONDULETE DE PVC, TIPO B, PARA ELETRODUTO DE PVC SOLDÁVEL DN 25 MM (3/4''), APARENTE - FORNECIMENTO E INSTALAÇÃO. AF_10/2022 | E165: INEL - INSTALAÇÃO ELÉTRICA/ELETRIFICAÇÃO E ILUMINAÇÃO EXTERNA | F165: UN | G165: =VLOOKUP(C165,'Comp SINAPI PE 04-2025 Onerado'!B:E,4,FALSE) -> 28.79 | H165: 0.1879 | I165: 5.409641
A166: C | B166: SINAPI | C166: 95811 | D166: =VLOOKUP(C166,'[53]SINAPI COMPOSIÇÕES'!$B$11:$F$9696,2,0) -> CONDULETE DE PVC, TIPO LB, PARA ELETRODUTO DE PVC SOLDÁVEL DN 25 MM (3/4''), APARENTE - FORNECIMENTO E INSTALAÇÃO. AF_10/2022 | E166: INEL - INSTALAÇÃO ELÉTRICA/ELETRIFICAÇÃO E ILUMINAÇÃO EXTERNA | F166: UN | G166: =VLOOKUP(C166,'Comp SINAPI PE 04-2025 Onerado'!B:E,4,FALSE) -> 24.93 | H166: 0.0268 | I166: 0.668124
A167: C | B167: SINAPI | C167: 91911 | D167: =VLOOKUP(C167,'[53]SINAPI COMPOSIÇÕES'!$B$11:$F$9696,2,0) -> CURVA 90 GRAUS PARA ELETRODUTO, PVC, ROSCÁVEL, DN 20 MM (1/2"), PARA CIRCUITOS TERMINAIS, INSTALADA EM PAREDE - FORNECIMENTO E INSTALAÇÃO. AF_03/2023 | E167: INEL - INSTALAÇÃO ELÉTRICA/ELETRIFICAÇÃO E ILUMINAÇÃO EXTERNA | F167: UN | G167: =VLOOKUP(C167,'Comp SINAPI PE 04-2025 Onerado'!B:E,4,FALSE) -> 19.16 | H167: 0.1074 | I167: 2.057784
A168: C | B168: SINAPI | C168: 101891 | D168: =VLOOKUP(C168,'[53]SINAPI COMPOSIÇÕES'!$B$11:$F$9696,2,0) -> DISJUNTOR MONOPOLAR TIPO NEMA, CORRENTE NOMINAL DE 35 ATÉ 50A - FORNECIMENTO E INSTALAÇÃO. AF_10/2020 | E168: INEL - INSTALAÇÃO ELÉTRICA/ELETRIFICAÇÃO E ILUMINAÇÃO EXTERNA | F168: UN | G168: =VLOOKUP(C168,'Comp SINAPI PE 04-2025 Onerado'!B:E,4,FALSE) -> 32.92 | H168: 0.1074 | I168: 3.535608
A169: C | B169: SINAPI | C169: 91862 | D169: =VLOOKUP(C169,'[53]SINAPI COMPOSIÇÕES'!$B$11:$F$9696,2,0) -> ELETRODUTO RÍGIDO ROSCÁVEL, PVC, DN 20 MM (1/2"), PARA CIRCUITOS TERMINAIS, INSTALADO EM FORRO - FORNECIMENTO E INSTALAÇÃO. AF_03/2023 | E169: INEL - INSTALAÇÃO ELÉTRICA/ELETRIFICAÇÃO E ILUMINAÇÃO EXTERNA | F169: M | G169: =VLOOKUP(C169,'Comp SINAPI PE 04-2025 Onerado'!B:E,4,FALSE) -> 10.25 | H169: 0.3221 | I169: 3.301525
A170: C | B170: SINAPI | C170: 91870 | D170: =VLOOKUP(C170,'[53]SINAPI COMPOSIÇÕES'!$B$11:$F$9696,2,0) -> ELETRODUTO RÍGIDO ROSCÁVEL, PVC, DN 20 MM (1/2"), PARA CIRCUITOS TERMINAIS, INSTALADO EM PAREDE - FORNECIMENTO E INSTALAÇÃO. AF_03/2023 | E170: INEL - INSTALAÇÃO ELÉTRICA/ELETRIFICAÇÃO E ILUMINAÇÃO EXTERNA | F170: M | G170: =VLOOKUP(C170,'Comp SINAPI PE 04-2025 Onerado'!B:E,4,FALSE) -> 13.48 | H170: 0.5369 | I170: 7.237412
A171: C | B171: SINAPI | C171: 93358 | D171: =VLOOKUP(C171,'[53]SINAPI COMPOSIÇÕES'!$B$11:$F$9696,2,0) -> ESCAVAÇÃO MANUAL DE VALA. AF_09/2024 | E171: MOVT - MOVIMENTO DE TERRA | F171: m³ | G171: =VLOOKUP(C171,'Comp SINAPI PE 04-2025 Onerado'!B:E,4,FALSE) -> 95.25 | H171: 0.039 | I171: 3.71475
A172: C | B172: SINAPI | C172: 91170 | D172: =VLOOKUP(C172,'[53]SINAPI COMPOSIÇÕES'!$B$11:$F$9696,2,0) -> FIXAÇÃO DE TUBOS HORIZONTAIS DE PVC ÁGUA, PVC ESGOTO, PVC ÁGUA PLUVIAL, CPVC, PPR, COBRE OU AÇO, DIÂMETROS MENORES OU IGUAIS A 40 MM, COM ABRAÇADEIRA METÁLICA RÍGIDA TIPO U PERFIL 1 1/4", FIXADA EM PERFILADO EM LAJE. AF_09/2023_PS | E172: INHI - INSTALAÇÕES HIDROS SANITÁRIAS | F172: M | G172: =VLOOKUP(C172,'Comp SINAPI PE 04-2025 Onerado'!B:E,4,FALSE) -> 11.65 | H172: 0.3221 | I172: 3.752465
A173: C | B173: SINAPI | C173: 91173 | D173: =VLOOKUP(C173,'[53]SINAPI COMPOSIÇÕES'!$B$11:$F$9696,2,0) -> FIXAÇÃO DE TUBOS VERTICAIS DE PVC ÁGUA, PVC ESGOTO, PVC ÁGUA PLUVIAL, CPVC, PPR, COBRE OU AÇO, DIÂMETROS MENORES OU IGUAIS A 40 MM, COM ABRAÇADEIRA METÁLICA RÍGIDA TIPO U PERFIL 1 1/4", FIXADA EM PERFILADO EM PAREDE. AF_09/2023_PS | E173: INHI - INSTALAÇÕES HIDROS SANITÁRIAS | F173: M | G173: =VLOOKUP(C173,'Comp SINAPI PE 04-2025 Onerado'!B:E,4,FALSE) -> 4.34 | H173: 0.5369 | I173: 2.330146
A174: C | B174: SINAPI | C174: 92023 | D174: =VLOOKUP(C174,'[53]SINAPI COMPOSIÇÕES'!$B$11:$F$9696,2,0) -> INTERRUPTOR SIMPLES (1 MÓDULO) COM 1 TOMADA DE EMBUTIR 2P+T 10 A, INCLUINDO SUPORTE E PLACA - FORNECIMENTO E INSTALAÇÃO. AF_03/2023 | E174: INEL - INSTALAÇÃO ELÉTRICA/ELETRIFICAÇÃO E ILUMINAÇÃO EXTERNA | F174: UN | G174: =VLOOKUP(C174,'Comp SINAPI PE 04-2025 Onerado'!B:E,4,FALSE) -> 52.21 | H174: 0.0268 | I174: 1.399228
A175: C | B175: SINAPI | C175: 89724 | D175: =VLOOKUP(C175,'[53]SINAPI COMPOSIÇÕES'!$B$11:$F$9696,2,0) -> JOELHO 90 GRAUS, PVC, SERIE NORMAL, ESGOTO PREDIAL, DN 40 MM, JUNTA SOLDÁVEL, FORNECIDO E INSTALADO EM RAMAL DE DESCARGA OU RAMAL DE ESGOTO SANITÁRIO. AF_08/2022 | E175: INHI - INSTALAÇÕES HIDROS SANITÁRIAS | F175: UN | G175: =VLOOKUP(C175,'Comp SINAPI PE 04-2025 Onerado'!B:E,4,FALSE) -> 10.45 | H175: 0.0537 | I175: 0.561165
A176: C | B176: SINAPI | C176: 95240 | D176: =VLOOKUP(C176,'[53]SINAPI COMPOSIÇÕES'!$B$11:$F$9696,2,0) -> LASTRO DE CONCRETO MAGRO, APLICADO EM PISOS, LAJES SOBRE SOLO OU RADIERS, ESPESSURA DE 3 CM. AF_01/2024 | E176: FUES - FUNDAÇÕES E ESTRUTURAS | F176: m² | G176: =VLOOKUP(C176,'Comp SINAPI PE 04-2025 Onerado'!B:E,4,FALSE) -> 19.61 | H176: 0.009 | I176: 0.17649
A177: C | B177: SINAPI | C177: 95241 | D177: =VLOOKUP(C177,'[53]SINAPI COMPOSIÇÕES'!$B$11:$F$9696,2,0) -> LASTRO DE CONCRETO MAGRO, APLICADO EM PISOS, LAJES SOBRE SOLO OU RADIERS, ESPESSURA DE 5 CM. AF_01/2024 | E177: FUES - FUNDAÇÕES E ESTRUTURAS | F177: m² | G177: =VLOOKUP(C177,'Comp SINAPI PE 04-2025 Onerado'!B:E,4,FALSE) -> 37.66 | H177: 1.451 | I177: 54.64466
A178: C | B178: SINAPI | C178: 86943 | D178: =VLOOKUP(C178,'[53]SINAPI COMPOSIÇÕES'!$B$11:$F$9696,2,0) -> LAVATÓRIO LOUÇA BRANCA SUSPENSO, 29,5 X 39CM OU EQUIVALENTE, PADRÃO POPULAR, INCLUSO SIFÃO FLEXÍVEL EM PVC, VÁLVULA E ENGATE FLEXÍVEL 30CM EM PLÁSTICO E TORNEIRA CROMADA DE MESA, PADRÃO POPULAR - FORNECIMENTO E INSTALAÇÃO. AF_01/2020 | E178: INHI - INSTALAÇÕES HIDROS SANITÁRIAS | F178: UN | G178: =VLOOKUP(C178,'Comp SINAPI PE 04-2025 Onerado'!B:E,4,FALSE) -> 275.13 | H178: 0.0268 | I178: 7.373484
A179: C | B179: SINAPI | C179: 97586 | D179: LUMINÁRIA TIPO CALHA, DE SOBREPOR, COM 2 LÂMPADAS TUBULARES FLUORESCENTES DE 36 W, COM REATOR DE PARTIDA RÁPIDA - FORNECIMENTO E INSTALAÇÃO. AF_02/2020 ADAPTADA | E179: INEL - INSTALAÇÃO ELÉTRICA/ELETRIFICAÇÃO E ILUMINAÇÃO EXTERNA | F179: UN | G179: =SUM(I180:I182) -> 119.840487 | H179: 0.1611 | I179: 19.30630246
A180: C | B180: SINAPI | C180: 88247 | D180: =VLOOKUP(C180,'[53]SINAPI COMPOSIÇÕES'!$B$11:$F$9696,2,0) -> AUXILIAR DE ELETRICISTA COM ENCARGOS COMPLEMENTARES | E180: SEDI - SERVIÇOS DIVERSOS | F180: H | G180: =VLOOKUP(C180,'Comp SINAPI PE 04-2025 Onerado'!B:E,4,FALSE) -> 25.53 | H180: 0.1727 | I180: 4.409031
A181: C | B181: SINAPI | C181: 88264 | D181: =VLOOKUP(C181,'[53]SINAPI COMPOSIÇÕES'!$B$11:$F$9696,2,0) -> ELETRICISTA COM ENCARGOS COMPLEMENTARES | E181: SEDI - SERVIÇOS DIVERSOS | F181: H | G181: =VLOOKUP(C181,'Comp SINAPI PE 04-2025 Onerado'!B:E,4,FALSE) -> 30.24 | H181: 0.4144 | I181: 12.531456
A182: C | B182: SINAPI | C182: 3780 | D182: =VLOOKUP(C182,'[53]SINAPI INSUMOS'!$B$11:$F$4847,2,0) -> LUMINARIA DE SOBREPOR EM CHAPA DE ACO PARA 1 LAMPADA FLUORESCENTE DE *36* W, ALETADA, COMPLETA (LAMPADA E REATOR INCLUSOS) | E182: Material | F182: UN | G182: 102.9 | H182: 1 | I182: 102.9 | J182: *Está sem PROCV
A183: C | B183: SINAPI | C183: 98445 | D183: =VLOOKUP(C183,'[53]SINAPI COMPOSIÇÕES'!$B$11:$F$9696,2,0) -> PAREDE DE MADEIRA COMPENSADA PARA CONSTRUÇÃO TEMPORÁRIA EM CHAPA SIMPLES, EXTERNA, COM ÁREA LÍQUIDA MAIOR OU IGUAL A 6 M², COM VÃO. AF_03/2024 | E183: CANT - CANTEIRO DE OBRAS | F183: m² | G183: =VLOOKUP(C183,'Comp SINAPI PE 04-2025 Onerado'!B:E,4,FALSE) -> 116.02 | H183: 0.2264 | I183: 26.266928
A184: C | B184: SINAPI | C184: 98441 | D184: =VLOOKUP(C184,'[53]SINAPI COMPOSIÇÕES'!$B$11:$F$9696,2,0) -> PAREDE DE MADEIRA COMPENSADA PARA CONSTRUÇÃO TEMPORÁRIA EM CHAPA SIMPLES, EXTERNA, SEM VÃO. AF_03/2024 | E184: CANT - CANTEIRO DE OBRAS | F184: m² | G184: =VLOOKUP(C184,'Comp SINAPI PE 04-2025 Onerado'!B:E,4,FALSE) -> 97.87 | H184: 0.1449 | I184: 14.181363
A185: C | B185: SINAPI | C185: 98446 | D185: =VLOOKUP(C185,'[53]SINAPI COMPOSIÇÕES'!$B$11:$F$9696,2,0) -> PAREDE DE MADEIRA COMPENSADA PARA CONSTRUÇÃO TEMPORÁRIA EM CHAPA SIMPLES, EXTERNA, COM ÁREA LÍQUIDA MENOR QUE 6 M², COM VÃO. AF_03/2024 | E185: CANT - CANTEIRO DE OBRAS | F185: m² | G185: =VLOOKUP(C185,'Comp SINAPI PE 04-2025 Onerado'!B:E,4,FALSE) -> 149.23 | H185: 0.1765 | I185: 26.339095
A186: C | B186: SINAPI | C186: 98441 | D186: =VLOOKUP(C186,'[53]SINAPI COMPOSIÇÕES'!$B$11:$F$9696,2,0) -> PAREDE DE MADEIRA COMPENSADA PARA CONSTRUÇÃO TEMPORÁRIA EM CHAPA SIMPLES, EXTERNA, SEM VÃO. AF_03/2024 | E186: CANT - CANTEIRO DE OBRAS | F186: m² | G186: =VLOOKUP(C186,'Comp SINAPI PE 04-2025 Onerado'!B:E,4,FALSE) -> 97.87 | H186: 0.1668 | I186: 16.324716
A187: C | B187: SINAPI | C187: 88489 | D187: =VLOOKUP(C187,'[53]SINAPI COMPOSIÇÕES'!$B$11:$F$9696,2,0) -> PINTURA LÁTEX ACRÍLICA PREMIUM, APLICAÇÃO MANUAL EM PAREDES, DUAS DEMÃOS. AF_04/2023 | E187: PINT - PINTURAS | F187: m² | G187: =VLOOKUP(C187,'Comp SINAPI PE 04-2025 Onerado'!B:E,4,FALSE) -> 14.91 | H187: 1.4293 | I187: 21.310863
A188: C | B188: SINAPI | C188: 89957 | D188: PONTO DE CONSUMO TERMINAL DE ÁGUA FRIA (SUBRAMAL) COM TUBULAÇÃO DE PVC, DN 25 MM, INSTALADO EM RAMAL DE ÁGUA, INCLUSOS RASGO E CHUMBAMENTO EM ALVENARIA. AF_12/2014 ATUALIZADA | E188: INHI - INSTALAÇÕES HIDROS SANITÁRIAS | F188: UN | G188: =SUM(I189:I194) -> 146.2788 | H188: 0.0537 | I188: 7.85517156
A189: C | B189: SINAPI | C189: 90466 | D189: =VLOOKUP(C189,'[53]SINAPI COMPOSIÇÕES'!$B$11:$F$9696,2,0) -> CHUMBAMENTO LINEAR EM ALVENARIA PARA RAMAIS/DISTRIBUIÇÃO DE INSTALAÇÕES HIDRÁULICAS COM DIÂMETROS MENORES OU IGUAIS A 40 MM. AF_09/2023 | E189: INHI - INSTALAÇÕES HIDROS SANITÁRIAS | F189: M | G189: =VLOOKUP(C189,'Comp SINAPI PE 04-2025 Onerado'!B:E,4,FALSE) -> 16.14 | H189: 2.14 | I189: 34.5396
A190: C | B190: SINAPI | C190: 89366 | D190: =VLOOKUP(C190,'[53]SINAPI COMPOSIÇÕES'!$B$11:$F$9696,2,0) -> JOELHO 90 GRAUS COM BUCHA DE LATÃO, PVC, SOLDÁVEL, DN 25MM, X 3/4 INSTALADO EM RAMAL OU SUB-RAMAL DE ÁGUA - FORNECIMENTO E INSTALAÇÃO. AF_06/2022 | E190: INHI - INSTALAÇÕES HIDROS SANITÁRIAS | F190: UN | G190: =VLOOKUP(C190,'Comp SINAPI PE 04-2025 Onerado'!B:E,4,FALSE) -> 16.49 | H190: 1 | I190: 16.49
A191: C | B191: SINAPI | C191: 89362 | D191: =VLOOKUP(C191,'[53]SINAPI COMPOSIÇÕES'!$B$11:$F$9696,2,0) -> JOELHO 90 GRAUS, PVC, SOLDÁVEL, DN 25MM, INSTALADO EM RAMAL OU SUB-RAMAL DE ÁGUA - FORNECIMENTO E INSTALAÇÃO. AF_06/2022 | E191: INHI - INSTALAÇÕES HIDROS SANITÁRIAS | F191: UN | G191: =VLOOKUP(C191,'Comp SINAPI PE 04-2025 Onerado'!B:E,4,FALSE) -> 9.98 | H191: 1.18 | I191: 11.7764
A192: C | B192: SINAPI | C192: 90443 | D192: =VLOOKUP(C192,'[53]SINAPI COMPOSIÇÕES'!$B$11:$F$9696,2,0) -> RASGO LINEAR MANUAL EM ALVENARIA, PARA RAMAIS/ DISTRIBUIÇÃO DE INSTALAÇÕES HIDRÁULICAS, DIÂMETROS MENORES OU IGUAIS A 40 MM. AF_09/2023 | E192: INHI - INSTALAÇÕES HIDROS SANITÁRIAS | F192: M | G192: =VLOOKUP(C192,'Comp SINAPI PE 04-2025 Onerado'!B:E,4,FALSE) -> 8.44 | H192: 2.14 | I192: 18.0616
A193: C | B193: SINAPI | C193: 89395 | D193: =VLOOKUP(C193,'[53]SINAPI COMPOSIÇÕES'!$B$11:$F$9696,2,0) -> TE, PVC, SOLDÁVEL, DN 25MM, INSTALADO EM RAMAL OU SUB-RAMAL DE ÁGUA - FORNECIMENTO E INSTALAÇÃO. AF_06/2022 | E193: INHI - INSTALAÇÕES HIDROS SANITÁRIAS | F193: UN | G193: =VLOOKUP(C193,'Comp SINAPI PE 04-2025 Onerado'!B:E,4,FALSE) -> 13.72 | H193: 0.89 | I193: 12.2108
A194: C | B194: SINAPI | C194: 89356 | D194: =VLOOKUP(C194,'[53]SINAPI COMPOSIÇÕES'!$B$11:$F$9696,2,0) -> TUBO, PVC, SOLDÁVEL, DE 25MM, INSTALADO EM RAMAL OU SUB-RAMAL DE ÁGUA - FORNECIMENTO E INSTALAÇÃO. AF_06/2022 | E194: INHI - INSTALAÇÕES HIDROS SANITÁRIAS | F194: M | G194: =VLOOKUP(C194,'Comp SINAPI PE 04-2025 Onerado'!B:E,4,FALSE) -> 24.86 | H194: 2.14 | I194: 53.2004
A195: C | B195: SINAPI | C195: 90822 | D195: =VLOOKUP(C195,'[53]SINAPI COMPOSIÇÕES'!$B$11:$F$9696,2,0) -> PORTA DE MADEIRA PARA PINTURA, SEMI-OCA (LEVE OU MÉDIA), 80X210CM, ESPESSURA DE 3,5CM, INCLUSO DOBRADIÇAS - FORNECIMENTO E INSTALAÇÃO. AF_12/2019 | E195: ESQV - ESQUADRIAS/FERRAGENS/VIDROS | F195: UN | G195: =VLOOKUP(C195,'Comp SINAPI PE 04-2025 Onerado'!B:E,4,FALSE) -> 344.98 | H195: 0.0268 | I195: 9.245464
A196: C | B196: SINAPI | C196: 101876 | D196: =VLOOKUP(C196,'[53]SINAPI COMPOSIÇÕES'!$B$11:$F$9696,2,0) -> QUADRO DE DISTRIBUIÇÃO DE ENERGIA EM PVC, DE EMBUTIR, SEM BARRAMENTO, PARA 6 DISJUNTORES - FORNECIMENTO E INSTALAÇÃO. AF_10/2020 | E196: INEL - INSTALAÇÃO ELÉTRICA/ELETRIFICAÇÃO E ILUMINAÇÃO EXTERNA | F196: UN | G196: =VLOOKUP(C196,'Comp SINAPI PE 04-2025 Onerado'!B:E,4,FALSE) -> 107.13 | H196: 0.0268 | I196: 2.871084
A197: C | B197: SINAPI | C197: 93382 | D197: =VLOOKUP(C197,'[53]SINAPI COMPOSIÇÕES'!$B$11:$F$9696,2,0) -> REATERRO MANUAL DE VALAS, COM COMPACTADOR DE SOLOS DE PERCUSSÃO. AF_08/2023 | E197: MOVT - MOVIMENTO DE TERRA | F197: m³ | G197: =VLOOKUP(C197,'Comp SINAPI PE 04-2025 Onerado'!B:E,4,FALSE) -> 27.42 | H197: 0.01 | I197: 0.2742
A198: C | B198: SINAPI | C198: 94210 | D198: =VLOOKUP(C198,'[53]SINAPI COMPOSIÇÕES'!$B$11:$F$9696,2,0) -> TELHAMENTO COM TELHA ONDULADA DE FIBROCIMENTO E = 6 MM, COM RECOBRIMENTO LATERAL DE 1 1/4 DE ONDA PARA TELHADO COM INCLINAÇÃO MÁXIMA DE 10°, COM ATÉ 2 ÁGUAS, INCLUSO IÇAMENTO. AF_07/2019 | E198: COBE - COBERTURA | F198: m² | G198: =VLOOKUP(C198,'Comp SINAPI PE 04-2025 Onerado'!B:E,4,FALSE) -> 59.36 | H198: 1.451 | I198: 86.13136
A199: C | B199: SINAPI | C199: 92000 | D199: =VLOOKUP(C199,'[53]SINAPI COMPOSIÇÕES'!$B$11:$F$9696,2,0) -> TOMADA BAIXA DE EMBUTIR (1 MÓDULO), 2P+T 10 A, INCLUINDO SUPORTE E PLACA - FORNECIMENTO E INSTALAÇÃO. AF_03/2023 | E199: INEL - INSTALAÇÃO ELÉTRICA/ELETRIFICAÇÃO E ILUMINAÇÃO EXTERNA | F199: UN | G199: =VLOOKUP(C199,'Comp SINAPI PE 04-2025 Onerado'!B:E,4,FALSE) -> 32.13 | H199: 0.0268 | I199: 0.861084
A200: C | B200: SINAPI | C200: 92008 | D200: =VLOOKUP(C200,'[53]SINAPI COMPOSIÇÕES'!$B$11:$F$9696,2,0) -> TOMADA BAIXA DE EMBUTIR (2 MÓDULOS), 2P+T 10 A, INCLUINDO SUPORTE E PLACA - FORNECIMENTO E INSTALAÇÃO. AF_03/2023 | E200: INEL - INSTALAÇÃO ELÉTRICA/ELETRIFICAÇÃO E ILUMINAÇÃO EXTERNA | F200: UN | G200: =VLOOKUP(C200,'Comp SINAPI PE 04-2025 Onerado'!B:E,4,FALSE) -> 49.48 | H200: 0.1342 | I200: 6.640216
A201: C | B201: SINAPI | C201: 92543 | D201: =VLOOKUP(C201,'[53]SINAPI COMPOSIÇÕES'!$B$11:$F$9696,2,0) -> TRAMA DE MADEIRA COMPOSTA POR TERÇAS PARA TELHADOS DE ATÉ 2 ÁGUAS PARA TELHA ONDULADA DE FIBROCIMENTO, METÁLICA, PLÁSTICA OU TERMOACÚSTICA, INCLUSO TRANSPORTE VERTICAL. AF_07/2019 | E201: COBE - COBERTURA | F201: m² | G201: =VLOOKUP(C201,'Comp SINAPI PE 04-2025 Onerado'!B:E,4,FALSE) -> 25.33 | H201: 1.451 | I201: 36.75383
A202: C | B202: SINAPI | C202: 89714 | D202: =VLOOKUP(C202,'[53]SINAPI COMPOSIÇÕES'!$B$11:$F$9696,2,0) -> TUBO PVC, SERIE NORMAL, ESGOTO PREDIAL, DN 100 MM, FORNECIDO E INSTALADO EM RAMAL DE DESCARGA OU RAMAL DE ESGOTO SANITÁRIO. AF_08/2022 | E202: INHI - INSTALAÇÕES HIDROS SANITÁRIAS | F202: M | G202: =VLOOKUP(C202,'Comp SINAPI PE 04-2025 Onerado'!B:E,4,FALSE) -> 37.98 | H202: 0.1423 | I202: 5.404554
A203: C | B203: SINAPI | C203: 89711 | D203: =VLOOKUP(C203,'[53]SINAPI COMPOSIÇÕES'!$B$11:$F$9696,2,0) -> TUBO PVC, SERIE NORMAL, ESGOTO PREDIAL, DN 40 MM, FORNECIDO E INSTALADO EM RAMAL DE DESCARGA OU RAMAL DE ESGOTO SANITÁRIO. AF_08/2022 | E203: INHI - INSTALAÇÕES HIDROS SANITÁRIAS | F203: M | G203: =VLOOKUP(C203,'Comp SINAPI PE 04-2025 Onerado'!B:E,4,FALSE) -> 21.9 | H203: 0.0886 | I203: 1.94034
A204: C | B204: SINAPI | C204: 10886 | D204: =VLOOKUP(C204,'[53]SINAPI INSUMOS'!$B$11:$F$4847,2,0) -> EXTINTOR DE INCENDIO PORTATIL COM CARGA DE AGUA PRESSURIZADA DE 10 L, CLASSE A | E204: Material | F204: UN | G204: =VLOOKUP(C204,'Ins SINAPI PE 04-2025 Onerado'!B:F,5,FALSE) -> 245 | H204: 0.0268 | I204: 6.566
A205: C | B205: SINAPI | C205: 10891 | D205: =VLOOKUP(C205,'[53]SINAPI INSUMOS'!$B$11:$F$4847,2,0) -> EXTINTOR DE INCENDIO PORTATIL COM CARGA DE PO QUIMICO SECO (PQS) DE 4 KG, CLASSE BC | E205: Material | F205: UN | G205: =VLOOKUP(C205,'Ins SINAPI PE 04-2025 Onerado'!B:F,5,FALSE) -> 236.92 | H205: 0.0268 | I205: 6.349456
A206: C | B206: SINAPI | C206: 3080 | D206: =VLOOKUP(C206,'[53]SINAPI INSUMOS'!$B$11:$F$4847,2,0) -> FECHADURA ESPELHO PARA PORTA EXTERNA, EM ACO INOX (MAQUINA, TESTA E CONTRA-TESTA) E EM ZAMAC (MACANETA, LINGUETA E TRINCOS) COM ACABAMENTO CROMADO, MAQUINA DE 40 MM, INCLUINDO CHAVE TIPO CILINDRO | E206: Material | F206: CJ | G206: =VLOOKUP(C206,'Ins SINAPI PE 04-2025 Onerado'!B:F,5,FALSE) -> 77.2 | H206: 0.0268 | I206: 2.06896
A207: C | B207: SINAPI | C207: 11587 | D207: =VLOOKUP(C207,'[53]SINAPI INSUMOS'!$B$11:$F$4847,2,0) -> FORRO DE PVC LISO, BRANCO, REGUA DE 10 CM, ESPESSURA APROXIMADA DE 8 MM (COM COLOCACAO / SEM ESTRUTURA METALICA) | E207: Material | F207: m² | G207: =VLOOKUP(C207,'Ins SINAPI PE 04-2025 Onerado'!B:F,5,FALSE) -> 81.72 | H207: 1 | I207: 81.72
A208: C | B208: SINAPI | C208: 37525 | D208: =VLOOKUP(C208,'[53]SINAPI INSUMOS'!$B$11:$F$4847,2,0) -> TELA PLASTICA TECIDA LISTRADA BRANCA E LARANJA, TIPO GUARDA CORPO, EM POLIETILENO MONOFILADO, ROLO 1,20 X 50 M (L X C) | E208: Equipamento | F208: M | G208: =VLOOKUP(C208,'Ins SINAPI PE 04-2025 Onerado'!B:F,5,FALSE) -> 4.38 | H208: 1.2782 | I208: 5.598516

Sheet BDI serv
A1: =Resumo!A1 -> Ministério da Integração e do Desenvolvimento Regional
A2: =Resumo!A2 -> Companhia de Desenvolvimento dos Vales do São Francisco e do Parnaíba
A4: COMPOSIÇÃO DE BDI - SERVIÇOS - NÃO DESONERADO
A5: OBRA: | B5: =Resumo!B5 -> Execução de Manutenção e Obras Civis nas Barragens de Pereiro, Cal, Soledade, Mudubim, Barra Franca, Baixa Alegre e Açude da Roça, localizadas no estado de Pernambuco. | D5: BDI (serv.): | E5: =D23 -> 0.2591
A6: LOCAL: | B6: =Resumo!B6 -> BARRAGENS DE PERNAMBUCO | D6: BDI (forn.): | E6: ='BDI forn'!E6 -> 0
A7: DATA BASE: | B7: =Resumo!B7 -> 2025-04-01
A8: PRAZO: | B8: =Resumo!B8 -> 360 dias
A9: ITEM | B9: DESCRIÇÃO | C9: SIGLA | D9: % APLICADO | E9: REFERÊNCIA TCU (ACÓRDÃO Nº 2622/2013)
E10: 1º QUARTIL | F10: 2º QUARTIL | G10: 3º QUARTIL
A11: 1 | B11: ADMINISTRAÇÃO CENTRAL | C11: AC | D11: =E11 -> 0.04 | E11: 0.04 | F11: 0.0552 | G11: 0.0785
A12: 2 | B12: IMPOSTOS | C12: T | D12: =SUM(D13:D16) -> 0.0865
A13: 2.1 | B13: ISS (*) | D13: 0.05 | E13: - | F13: - | G13: -
A14: 2.2 | B14: PIS | D14: 0.0065 | E14: - | F14: - | G14: -
A15: 2.3 | B15: Cofins | D15: 0.03 | E15: - | F15: - | G15: -
A16: 2.4 | B16: Contribuição previdênciária sobre a receita bruta (CPRB) | E16: - | F16: - | G16: -
A17: 3 | B17: SEGURO, GARANTIA E RISCO | D17: =SUM(D18:D20) -> 0.0227
A18: 3.1 | B18: Seguro | C18: S | D18: =E18 -> 0.0081 | E18: 0.0081 | F18: 0.0122 | G18: 0.0199
A19: 3.2 | B19: Garantia | C19: G
A20: 3.3 | B20: Risco | C20: R | D20: =E20 -> 0.0146 | E20: 0.0146 | F20: 0.0232 | G20: 0.0316
A21: 4 | B21: DESPESAS FINANCEIRAS | C21: DF | D21: =F21 -> 0.0102 | E21: 0.0094 | F21: 0.0102 | G21: 0.01363
A22: 5 | B22: LUCRO | C22: L | D22: =E22 -> 0.0714 | E22: 0.0714 | F22: 0.084 | G22: 0.1043
B23: BDI ADOTADO: | D23: =ROUND(((((1+D11+D17)*(1+D21)*(1+D22))/(1-D12))-1),4) -> 0.2591
A24: D
H173: =SUM(H174:H177) -> 0
D177: mec | F177: 2 | G177: 128

Sheet BDI forn
A1: =Resumo!A1 -> Ministério da Integração e do Desenvolvimento Regional
A2: =Resumo!A2 -> Companhia de Desenvolvimento dos Vales do São Francisco e do Parnaíba
A4: COMPOSIÇÃO DE BDI - SERVIÇOS - NÃO DESONERADO
A5: =CAL!A5 -> OBRA: | B5: =Resumo!B5 -> Execução de Manutenção e Obras Civis nas Barragens de Pereiro, Cal, Soledade, Mudubim, Barra Franca, Baixa Alegre e Açude da Roça, localizadas no estado de Pernambuco. | D5: BDI (serv.): | E5: ='BDI serv'!E5 -> 0.2591
A6: =CAL!A6 -> LOCAL: | B6: =Resumo!B6 -> BARRAGENS DE PERNAMBUCO | D6: BDI (forn.): | E6: =D23 -> 0
A7: =CAL!A7 -> DATA BASE: | B7: =Resumo!B7 -> 2025-04-01
A8: =CAL!A8 -> PRAZO: | B8: =Resumo!B8 -> 360 dias
A9: ITEM | B9: DESCRIÇÃO | C9: SIGLA | D9: % APLICADO | E9: REFERÊNCIA TCU (ACÓRDÃO Nº 2622/2013)
E10: 1º QUARTIL | F10: 2º QUARTIL | G10: 3º QUARTIL
A11: 1 | B11: ADMINISTRAÇÃO CENTRAL | C11: AC | D11: 0.03 | E11: 0.015 | F11: 0.0345 | G11: 0.0449
A12: 2 | B12: IMPOSTOS | C12: T | D12: =SUM(D13:D16) -> 0.0365
A13: 2.1 | B13: ISS (*) | E13: - | F13: - | G13: -
A14: 2.2 | B14: PIS | D14: 0.0065 | E14: - | F14: - | G14: -
A15: 2.3 | B15: Cofins | D15: 0.03 | E15: - | F15: - | G15: -
A16: 2.4 | B16: Contribuição previdênciária sobre a receita bruta (CPRB) | E16: - | F16: - | G16: -
A17: 3 | B17: SEGURO, GARANTIA E RISCO | D17: =SUM(D18:D20) -> 0.0086
A18: 3.1 | B18: Seguro | C18: S | D18: =E18 -> 0.003 | E18: 0.003 | F18: 0.0048 | G18: 0.0082
A19: 3.2 | B19: Garantia | C19: G
A20: 3.3 | B20: Risco | C20: R | D20: =E20 -> 0.0056 | E20: 0.0056 | F20: 0.0085 | G20: 0.0089
A21: 4 | B21: DESPESAS FINANCEIRAS | C21: DF | D21: =F21 -> 0.0085 | E21: 0.0085 | F21: 0.0085 | G21: 0.0111
A22: 5 | B22: LUCRO | C22: L | D22: 0.045 | E22: 0.035 | F22: 0.0511 | G22: 0.0622
B23: BDI ADOTADO: | C23: =ROUND(((((1+D11+D17)*(1+D21)*(1+D22))/(1-D12))-1),4) -> 0.136
A24: D
H173: =SUM(H174:H177) -> 0
D177: mec | F177: 2 | G177: 128

Sheet Cronograma Geral
A1: Ministério da Integração e do Desenvolvimento Regional
A2: Companhia de Desenvolvimento dos Vales do São Francisco e do Parnaíba
A4: COMPOSIÇÃO DE BDI - SERVIÇOS - NÃO DESONERADO
A5: =CAL!A5 -> OBRA: | B5: =Resumo!B5 -> Execução de Manutenção e Obras Civis nas Barragens de Pereiro, Cal, Soledade, Mudubim, Barra Franca, Baixa Alegre e Açude da Roça, localizadas no estado de Pernambuco.
A6: =CAL!A6 -> LOCAL: | B6: =Resumo!B6 -> BARRAGENS DE PERNAMBUCO
A7: =CAL!A7 -> DATA BASE: | B7: =Resumo!B7 -> 2025-04-01
A8: =CAL!A8 -> PRAZO: | B8: =Resumo!B8 -> 360 dias
A9: ITEM | B9: DESCRIÇÃO | C9: TOTAL POR ETAPA | D9: MESES | P9: TOTAL
D10: 1 | E10: 2 | F10: 3 | G10: 4 | H10: 5 | I10: 6 | J10: 7 | K10: 8 | L10: 9 | M10: 10 | N10: 11 | O10: 12
A11: 1.1 | B11: =VLOOKUP(A11,Resumo!A$11:I$1008,2) -> Pereiro | C11: =VLOOKUP(A11,Resumo!A$11:I$1008,7) -> 613653.52 | D11: =$C11*D12 -> 237160.9091 | E11: =$C11*E12 -> 222051.7228 | F11: =$C11*F12 -> 96275.75815 | G11: =$C11*G12 -> 58165.12989 | P11: =SUM(D11:O11) -> 613653.52 | Q11: R$
C12: =C11/C11 -> 1 | D12: ='Cronograma Barra Franca'!D40 -> 0.3864736393 | E12: ='Cronograma Barra Franca'!E40 -> 0.36185195 | F12: ='Cronograma Barra Franca'!F40 -> 0.1568894417 | G12: ='Cronograma Barra Franca'!G40 -> 0.09478496903 | P12: =SUM(D12:O12) -> 1 | Q12: %
A13: 1.2 | B13: =VLOOKUP(A13,Resumo!A$11:I$1008,2) -> Barra Franca | C13: =VLOOKUP(A13,Resumo!A$11:I$1008,7) -> 640686.64 | D13: =$C13*D14 -> 247608.4974 | E13: =$C13*E14 -> 231833.71 | F13: =$C13*F14 -> 100516.9693 | G13: =$C13*G14 -> 60727.46333 | P13: =SUM(D13:O13) -> 640686.64 | Q13: R$
C14: =C13/C13 -> 1 | D14: ='Cronograma Barra Franca'!D40 -> 0.3864736393 | E14: ='Cronograma Barra Franca'!E40 -> 0.36185195 | F14: ='Cronograma Barra Franca'!F40 -> 0.1568894417 | G14: ='Cronograma Barra Franca'!G40 -> 0.09478496903 | P14: =SUM(D14:O14) -> 1 | Q14: %
A15: 1.3 | B15: =VLOOKUP(A15,Resumo!A$11:I$1008,2) -> Baixa Alegre | C15: =VLOOKUP(A15,Resumo!A$11:I$1008,7) -> 491546.56 | D15: =$C15*D16 -> 230520.8716 | E15: =$C15*E16 -> 124761.5565 | F15: =$C15*F16 -> 37096.78818 | G15: =$C15*G16 -> 99167.34375 | P15: 491546.56 | Q15: R$
C16: =C15/C15 -> 1 | D16: ='Cronograma Baixa Alegre'!D40 -> 0.4689705724 | E16: ='Cronograma Baixa Alegre'!E40 -> 0.2538143212 | F16: ='Cronograma Baixa Alegre'!F40 -> 0.07546953065 | G16: ='Cronograma Baixa Alegre'!G40 -> 0.2017455757 | P16: =SUM(D16:O16) -> 1 | Q16: %
A17: 1.4 | B17: =VLOOKUP(A17,Resumo!A$11:I$1008,2) -> Cal | C17: =VLOOKUP(A17,Resumo!A$11:I$1008,7) -> 429846.95 | H17: =$C17*H18 -> 170278.5872 | I17: =$C17*I18 -> 123753.9756 | J17: =$C17*J18 -> 69144.34374 | K17: =$C17*K18 -> 66670.04345 | P17: 429846.95 | Q17: R$
C18: =C17/C17 -> 1 | H18: ='Cronograma Cal'!D40 -> 0.3961377118 | I18: ='Cronograma Cal'!E40 -> 0.2879024164 | J18: ='Cronograma Cal'!F40 -> 0.1608580536 | K18: ='Cronograma Cal'!G40 -> 0.1551018181 | P18: =SUM(D18:O18) -> 1 | Q18: %
A19: 1.5 | B19: =VLOOKUP(A19,Resumo!A$11:I$1008,2) -> Soledade | C19: =VLOOKUP(A19,Resumo!A$11:I$1008,7) -> 684845.16 | H19: =$C19*H20 -> 258335.1494 | I19: =$C19*I20 -> 263782.7906 | J19: =$C19*J20 -> 110909.3534 | K19: =$C19*K20 -> 51817.86656 | P19: 684845.16 | Q19: R$
C20: =C19/C19 -> 1 | H20: ='Cronograma Soledade'!D40 -> 0.3772168725 | I20: ='Cronograma Soledade'!E40 -> 0.3851714315 | J20: ='Cronograma Soledade'!F40 -> 0.1619480721 | K20: ='Cronograma Soledade'!G40 -> 0.07566362382 | P20: 1 | Q20: %
A21: 1.6 | B21: =VLOOKUP(A21,Resumo!A$11:I$1008,2) -> Mudubim | C21: =VLOOKUP(A21,Resumo!A$11:I$1008,7) -> 740035.14 | L21: =$C21*L22 -> 308157.3361 | M21: =$C21*M22 -> 298876.6876 | N21: =$C21*N22 -> 69704.92478 | O21: =$C21*O22 -> 63296.19151 | P21: 740035.14 | Q21: R$
C22: =C21/C21 -> 1 | L22: ='Cronograma Mudubim'!D40 -> 0.4164090587 | M22: ='Cronograma Mudubim'!E40 -> 0.4038682374 | N22: ='Cronograma Mudubim'!F40 -> 0.09419137148 | O22: ='Cronograma Mudubim'!G40 -> 0.08553133236 | P22: 1 | Q22: %
A23: 1.7 | B23: =VLOOKUP(A23,Resumo!A$11:I$1008,2) -> Açude da Roça | C23: =VLOOKUP(A23,Resumo!A$11:I$1008,7) -> 912812.34 | L23: =$C23*L24 -> 396341.0059 | M23: =$C23*M24 -> 310561.9927 | N23: =$C23*N24 -> 121691.5547 | O23: =$C23*O24 -> 84217.7868 | P23: 912812.34 | Q23: R$
C24: =C23/C23 -> 1 | L24: ='Cronograma Açude da Roça'!D38 -> 0.4341976861 | M24: ='Cronograma Açude da Roça'!E38 -> 0.3402254538 | N24: ='Cronograma Açude da Roça'!F38 -> 0.1333149754 | O24: ='Cronograma Açude da Roça'!G38 -> 0.09226188463 | P24: 1 | Q24: %
B25: VALOR TOTAL: | C25: =SUMIF($Q$11:$Q$24,"R$",C$11:C$24) -> 4513426.31 | D25: 715290.2781 | E25: 578646.9893 | F25: 233889.5156 | G25: 218059.937 | H25: 428613.7366 | I25: 387536.7662 | J25: 180053.6971 | K25: 118487.91 | L25: 704498.342 | M25: 609438.6803 | N25: 191396.4794 | O25: 147513.9783 | P25: =SUMIF($Q$11:$Q$24,"R$",P$11:P$24) -> 4513426.31
B26: VALOR ACUMULADO: | D26: =D25 -> 715290.2781 | E26: =E25+D26 -> 1293937.267 | F26: =F25+E26 -> 1527826.783 | G26: 1745886.72 | H26: 2174500.457 | I26: 2562037.223 | J26: 2742090.92 | K26: 2860578.83 | L26: 3565077.172 | M26: 4174515.852 | N26: 4365912.332 | O26: =O25+N26 -> 4513426.31 | P26: =O26 -> 4513426.31 | S26: =IF(P26=Resumo!G24,"ok","ERRO") -> ok
B27: FÍSICO PARCIAL: | D27: =SUMIF($Q$11:$Q$24,"R$",D$11:D$24)/$C$25 -> 0.1584805487 | E27: =SUMIF($Q$11:$Q$24,"R$",E$11:E$24)/$C$25 -> 0.1282057022 | F27: 0.051820834 | G27: 0.04831361409 | H27: 0.09496415964 | I27: 0.08586309815 | J27: 0.03989290724 | K27: 0.02625231961 | L27: 0.1560894747 | M27: 0.1350279452 | N27: 0.04240602733 | O27: 0.03268336917 | P27: =SUMIF($Q$11:$Q$24,"R$",P$11:P$24)/$C$25 -> 1
B28: AVANÇO FÍSICO: | D28: =D27 -> 0.1584805487 | E28: =E27+D28 -> 0.2866862509 | F28: =F27+E28 -> 0.3385070849 | G28: 0.386820699 | H28: 0.4817848586 | I28: 0.5676479568 | J28: 0.607540864 | K28: 0.6337931836 | L28: 0.7898826583 | M28: 0.9249106035 | N28: 0.9673166308 | O28: =O27+N28 -> 1

Sheet Cronograma Pereiro
A1: Ministério da Integração e do Desenvolvimento Regional
A2: Companhia de Desenvolvimento dos Vales do São Francisco e do Parnaíba
A4: COMPOSIÇÃO DE BDI - SERVIÇOS - NÃO DESONERADO
A5: =Resumo!A5 -> OBRA: | B5: =Resumo!B5 -> Execução de Manutenção e Obras Civis nas Barragens de Pereiro, Cal, Soledade, Mudubim, Barra Franca, Baixa Alegre e Açude da Roça, localizadas no estado de Pernambuco.
A6: =Resumo!A6 -> LOCAL: | B6: =Resumo!B6 -> BARRAGENS DE PERNAMBUCO
A7: =Resumo!A7 -> DATA BASE: | B7: =Resumo!B7 -> 2025-04-01
A8: =Resumo!A8 -> PRAZO: | B8: ='BARRA FRANCA'!B8 -> 120 dias
B9: =PEREIRO!B9 -> Pereiro
A10: ITEM | B10: DESCRIÇÃO | C10: TOTAL POR ETAPA | D10: MESES | H10: TOTAL
D11: 1 | E11: 2 | F11: 3 | G11: 4
A12: 1 | B12: =VLOOKUP(A12,PEREIRO!A:I,4) -> ADMINISTRAÇÃO DA OBRA | C12: =VLOOKUP(A12,PEREIRO!A$10:I$1036,9) -> 140311.08 | D12: =$C12*D13 -> 43453.65682 | E12: =$C12*E13 -> 56586.11194 | F12: =$C12*F13 -> 13263.12913 | G12: =$C12*G13 -> 27008.18211 | H12: =SUM(D12:G12) -> 140311.08 | I12: R$
C13: =C12/C12 -> 1 | D13: =SUMIF($I$14:$I$39,"R$",D$14:D$39)/$C$40 -> 0.3096951204 | E13: =(SUMIF($I$14:$I$39,"R$",E$14:E$39)/$C$40)+D42-D13 -> 0.4032904026 | F13: =(SUMIF($I$14:$I$39,"R$",F$14:F$39)/$C$40)+E42-E13 -> 0.09452659856 | G13: =1-SUM(D13:F13) -> 0.1924878784 | H13: =SUM(D13:G13) -> 1 | I13: %
A14: 2 | B14: =VLOOKUP(A14,PEREIRO!A:I,4) -> SERVIÇOS PRELIMINARES | C14: =VLOOKUP(A14,PEREIRO!A$10:I$1036,9) -> 30486.77 | D14: =$C14*D15 -> 30486.77 | H14: 30486.77 | I14: R$
C15: =C14/C14 -> 1 | D15: 1 | H15: 1 | I15: %
A16: 3 | B16: =VLOOKUP(A16,PEREIRO!A:I,4) -> CORTE DA VEGETAÇÃO E REMOÇÃO DAS RAIZES | C16: =VLOOKUP(A16,PEREIRO!A$10:I$1036,9) -> 148152.03 | D16: =$C16*D17 -> 148152.03 | H16: 148152.03 | I16: R$
C17: =C16/C16 -> 1 | D17: 1 | H17: 1 | I17: %
A18: 4 | B18: =VLOOKUP(A18,PEREIRO!A:I,4) -> RECUPERAÇÃO DO MACIÇO | C18: =VLOOKUP(A18,PEREIRO!A$10:I$1036,9) -> 9130.47 | D18: =$C18*D19 -> 9130.47 | H18: 9130.47 | I18: R$
C19: =C18/C18 -> 1 | D19: 1 | H19: 1 | I19: %
A20: 5 | B20: =VLOOKUP(A20,PEREIRO!A:I,4) -> REGULARIZAÇÃO E PAVIMENTAÇÃO DA CRISTA | C20: =VLOOKUP(A20,PEREIRO!A$10:I$1036,9) -> 172534.42 | E20: =$C20*E21 -> 172534.42 | H20: 172534.42 | I20: R$
C21: =C20/C20 -> 1 | E21: 1 | H21: 1 | I21: %
A22: 6 | B22: =VLOOKUP(A22,PEREIRO!A:I,4) -> DRENAGEM SUPERFICIAL DO TALUDE DE JUSANTE | C22: =VLOOKUP(A22,PEREIRO!A$10:I$1036,9) -> 26951.31 | E22: =$C22*E23 -> 26951.31 | H22: 26951.31 | I22: R$
C23: =C22/C22 -> 1 | E23: 1 | H23: 1 | I23: %
A24: D | B24: =VLOOKUP(A24,PEREIRO!A:I,4) -> Disponibilidade de veículo para apoio a fiscalização, inclusive combustível | C24: =VLOOKUP(A24,PEREIRO!A$10:I$1036,9) -> 2152.68 | E24: =$C24*E25 -> 2152.68 | H24: 2152.68 | I24: R$
C25: =C24/C24 -> 1 | E25: 1 | H25: 1 | I25: %
A26: 8 | B26: =VLOOKUP(A26,PEREIRO!A:I,4) -> PROTEÇÃO SUPERFICIAL DO TALUDE DE JUSANTE | C26: =VLOOKUP(A26,PEREIRO!A$10:I$1036,9) -> 19700.7 | F26: =$C26*F27 -> 19700.7 | H26: =SUM(D26:G26) -> 19700.7 | I26: R$
C27: =C26/C26 -> 1 | F27: 1 | H27: 1 | I27: %
A28: 9 | B28: =VLOOKUP(A28,PEREIRO!A:I,4) -> RESTAURAÇÃO DA SOLEIRA DO VERTEDOURO | C28: =VLOOKUP(A28,PEREIRO!A$10:I$1036,9) -> 22569.3 | F28: =$C28*F29 -> 22569.3 | H28: 22569.3 | I28: R$
C29: =C28/C28 -> 1 | F29: 1 | H29: 1 | I29: %
A30: 10 | B30: =VLOOKUP(A30,PEREIRO!A:I,4) -> RESTAURAÇÃO DO MURO LATERAL | C30: =VLOOKUP(A30,PEREIRO!A$10:I$1036,9) -> 1769.6 | F30: =$C30*F31 -> 1769.6 | H30: 1769.6 | I30: R$
C31: =C30/C30 -> 1 | F31: 1 | H31: 1 | I31: %
A32: 11 | B32: =VLOOKUP(A32,PEREIRO!A:I,4) -> CONTENÇÃO DO PROCESSO EROSIVO NA OMBREIRA | C32: =VLOOKUP(A32,PEREIRO!A$10:I$1036,9) -> 4183.6 | G32: =$C32*G33 -> 4183.6 | H32: 4183.6 | I32: R$
C33: =C32/C32 -> 1 | G33: 1 | H33: 1 | I33: %
A34: 12 | B34: =VLOOKUP(A34,PEREIRO!A:I,4) -> SERVIÇOS COMPLEMENTARES | C34: =VLOOKUP(A34,PEREIRO!A$10:I$1036,9) -> 12267.53 | G34: =$C34*G35 -> 12267.53 | H34: =SUM(D34:G34) -> 12267.53 | I34: R$
C35: =C34/C34 -> 1 | G35: 1 | H35: =SUM(D35:G35) -> 1 | I35: %
A36: 13 | B36: =VLOOKUP(A36,PEREIRO!A:I,4) -> PROJETO "AS IS" | C36: =VLOOKUP(A36,PEREIRO!A$10:I$1036,9) -> 16258.43 | G36: =$C36*G37 -> 16258.43 | H36: 16258.43 | I36: R$
C37: =C36/C36 -> 1 | G37: 1 | H37: 1 | I37: %
A38: 14 | B38: =VLOOKUP(A38,PEREIRO!A:I,4) -> FISCALIZAÇÃO E ACOMPANHAMENTO | C38: =VLOOKUP(A38,PEREIRO!A$10:I$1036,9) -> 2152.68 | D38: =C38/6*2 -> 717.56 | E38: =C38/6 -> 358.78 | F38: =C38/6 -> 358.78 | G38: =C38/6*2 -> 717.56 | H38: 2152.68 | I38: R$
C39: =C38/C38 -> 1 | D39: =D38/$C$38 -> 0.3333333333 | E39: =E38/$C$38 -> 0.1666666667 | F39: =F38/$C$38 -> 0.1666666667 | G39: =G38/$C$38 -> 0.3333333333 | H39: =SUM(D39:G39) -> 1 | I39: %
B40: VALOR TOTAL: | C40: =SUMIF($I$12:$I$39,"R$",C$12:C$39) -> 608620.6 | D40: 231940.4868 | E40: 258583.3019 | F40: =SUMIF($I$12:$I$39,"R$",F$12:F$39) -> 57661.50913 | G40: =SUMIF($I$12:$I$39,"R$",G$12:G$39) -> 60435.30211 | H40: 608620.6 | L40: VERIFICAÇÃO
B41: VALOR ACUMULADO: | D41: =D40 -> 231940.4868 | E41: =E40+D41 -> 490523.7888 | F41: =F40+E41 -> 548185.2979 | G41: =G40+F41 -> 608620.6 | H41: =H40 -> 608620.6 | L41: =IF(H41=PEREIRO!I91,"OK","ERRO") -> ERRO
B42: FÍSICO PARCIAL: | D42: =SUMIF($I$12:$I$39,"R$",D$12:D$39)/$C$40 -> 0.3810920741 | E42: =SUMIF($I$12:$I$39,"R$",E$12:E$39)/$C$40 -> 0.4248678108 | F42: =SUMIF($I$12:$I$39,"R$",F$12:F$39)/$C$40 -> 0.09474130375 | G42: =SUMIF($I$12:$I$39,"R$",G$12:G$39)/$C$40 -> 0.09929881129 | H42: =SUMIF($I$12:$I$39,"R$",H$12:H$39)/$C$40 -> 1
B43: AVANÇO FÍSICO: | D43: =D42 -> 0.3810920741 | E43: =E42+D43 -> 0.805959885 | F43: =F42+E43 -> 0.9007011887 | G43: =G42+F43 -> 1

Sheet Cronograma Barra Franca
A1: Ministério da Integração e do Desenvolvimento Regional
A2: Companhia de Desenvolvimento dos Vales do São Francisco e do Parnaíba
A4: COMPOSIÇÃO DE BDI - SERVIÇOS - NÃO DESONERADO
A5: =Resumo!A5 -> OBRA: | B5: =Resumo!B5 -> Execução de Manutenção e Obras Civis nas Barragens de Pereiro, Cal, Soledade, Mudubim, Barra Franca, Baixa Alegre e Açude da Roça, localizadas no estado de Pernambuco.
A6: =Resumo!A6 -> LOCAL: | B6: =Resumo!B6 -> BARRAGENS DE PERNAMBUCO
A7: =Resumo!A7 -> DATA BASE: | B7: =Resumo!B7 -> 2025-04-01
A8: =Resumo!A8 -> PRAZO: | B8: ='BARRA FRANCA'!B8 -> 120 dias
B9: ='BARRA FRANCA'!B9 -> Barra Franca
A10: ITEM | B10: DESCRIÇÃO | C10: TOTAL POR ETAPA | D10: MESES | H10: TOTAL
D11: 1 | E11: 2 | F11: 3 | G11: 4
A12: 1 | B12: =VLOOKUP(A12,'BARRA FRANCA'!A:I,4) -> ADMINISTRAÇÃO DA OBRA | C12: =VLOOKUP(A12,'BARRA FRANCA'!A$10:I$1036,9) -> 140311.08 | D12: =$C12*D13 -> 43910.11582 | E12: =$C12*E13 -> 49466.41807 | F12: =$C12*F13 -> 18882.43272 | G12: =$C12*G13 -> 28052.11339 | H12: =SUM(D12:G12) -> 140311.08 | I12: R$
C13: =C12/C12 -> 1 | D13: =SUMIF($I$14:$I$37,"R$",D$14:D$37)/$C$38 -> 0.3129483133 | E13: =SUMIF($I$14:$I$37,"R$",E$14:E$37)/$C$38+D40-D13 -> 0.3525481956 | F13: =SUMIF($I$14:$I$37,"R$",F$14:F$37)/$C$38+E40-E13 -> 0.1345754927 | G13: =1-SUM(D13:F13) -> 0.1999279985 | H13: 1 | I13: %
A14: 2 | B14: =VLOOKUP(A14,'BARRA FRANCA'!A:I,4) -> SERVIÇOS PRELIMINARES | C14: =VLOOKUP(A14,'BARRA FRANCA'!A$10:I$1036,9) -> 30486.77 | D14: =$C14*D15 -> 30486.77 | H14: 30486.77 | I14: R$
C15: =C14/C14 -> 1 | D15: 1 | H15: 1 | I15: %
A16: 3 | B16: =VLOOKUP(A16,'BARRA FRANCA'!A:I,4) -> CORTE DA VEGETAÇÃO E REMOÇÃO DAS RAIZES | C16: =VLOOKUP(A16,'BARRA FRANCA'!A$10:I$1036,9) -> 151629.98 | D16: =$C16*D17 -> 151629.98 | H16: 151629.98 | I16: R$
